Workbook

Sheet ACCUEILPRO
A1: Accueil
F7: =ACCUEIL!F7 -> 2022-09-11

Sheet ACCUEILPREM
A1: Accueil
F7: =ACCUEIL!F7 -> 2022-09-11

Sheet ACCUEILGP
A1: Accueil
F7: =ACCUEIL!F7 -> 2022-09-11

Sheet ACCUEIL
F7: 2022-09-11

Sheet Accueilagence
A1: Accueil
E7: =ACCUEIL!F7 -> 2022-09-11

Sheet Accueilsecteur
A1: Accueil
E7: =ACCUEIL!F7 -> 2022-09-11

Sheet AccueilDircom
A1: Accueil
E7: =ACCUEIL!F7 -> 2022-09-11

Sheet DC_FICHE
A1: Accueil
A2: BAROMETRE BDD
A4: UNITE: | B4: DIRECTION REGIONALE | E4: ETP perf : | F4: =VLOOKUP(A5,'RECAP DIRCOM'!$G$6:$I$12,3,FALSE) -> 221.46
A5: =VLOOKUP(B5,LISTES!$M$6:$N$12,2,FALSE) -> 262 | B5: BAS-RHIN
C6: Coefficient du critére | E6: Résultats | I6: Ecart au 1ier | M6: Evolution | O6: Rang
E7: du 1ier | G7: DIRECTION | I7: Du mois | K7: Au 31/12/2019
A9: RANG au CLASSEMENT GENERAL | K9: =VLOOKUP($A$5,#REF!,168,FALSE) ->  | M9: =+K9-O9 ->  | O9: =VLOOKUP($A$5,'RECAP DIRCOM'!$G$6:$CY$312,168,FALSE) -> 
A11: CRITERE CLIENTS | C11: 15% | O11: =VLOOKUP($A$5,'RECAP DIRCOM'!$G$6:$CY$312,23,FALSE) -> 42.10241127
B12: PNB Evolution nette Clients BP | C12: 4% | E12: ='RECAP DIRCOM'!#REF! ->  | G12: =VLOOKUP($A$5,'RECAP DIRCOM'!$G$6:$CY$312,6,FALSE) -> 0.8 | I12: =VLOOKUP($A$5,'RECAP DIRCOM'!$G$6:$CY$312,7,FALSE) -> 500% | K12: =VLOOKUP($A$5,#REF!,7,FALSE) ->  | M12: =+K12-I12 ->  | O12: =VLOOKUP($A$5,'RECAP DIRCOM'!$G$6:$CY$312,8,FALSE) -> 0.6183934952
B13: PNB Evolution nette Clients PREMIUM | C13: 5% | E13: ='RECAP DIRCOM'!#REF! ->  | G13: =VLOOKUP($A$5,'RECAP DIRCOM'!$G$6:$CY$312,10,FALSE) -> 4.0 | I13: =VLOOKUP($A$5,'RECAP DIRCOM'!$G$6:$CY$312,11,FALSE) -> 43% | K13: =VLOOKUP($A$5,#REF!,11,FALSE) ->  | M13: =+K13-I13 ->  | O13: =VLOOKUP($A$5,'RECAP DIRCOM'!$G$6:$CY$312,12,FALSE) -> 0.4296169256
B14: PNB Evolution nette Clients Jeunes Equipés | C14: 3% | E14: ='RECAP DIRCOM'!#REF! ->  | G14: =VLOOKUP($A$5,'RECAP DIRCOM'!$G$6:$CY$312,14,FALSE) -> 0.0 | I14: =VLOOKUP($A$5,'RECAP DIRCOM'!$G$6:$CY$312,15,FALSE) -> 0% | K14: =VLOOKUP($A$5,#REF!,15,FALSE) ->  | M14: =+K14-I14 ->  | O14: =VLOOKUP($A$5,'RECAP DIRCOM'!$G$6:$CY$312,16,FALSE) -> 0
B15: PNB Evolution nette Clients Pro Actifs Equipés | C15: 3% | E15: ='RECAP DIRCOM'!W4 -> 0.0 | G15: =VLOOKUP($A$5,'RECAP DIRCOM'!$G$6:$CY$312,18,FALSE) -> 3321.2 | I15: =VLOOKUP($A$5,'RECAP DIRCOM'!$G$6:$CY$312,19,FALSE) -> 1500% | K15: =VLOOKUP($A$5,#REF!,19,FALSE) ->  | M15: =+K15-I15 ->  | O15: =VLOOKUP($A$5,'RECAP DIRCOM'!$G$6:$CY$312,20,FALSE) -> 0.3010278994
A17: CRITERE BANCARISATION | C17: 15% | O17: =VLOOKUP($A$5,'RECAP DIRCOM'!$G$6:$CY$312,48,FALSE) -> 37942.34379
B18: PNB Ventes nettes forfaits | C18: 4% | E18: ='RECAP DIRCOM'!X4 -> 21.5 | G18: =VLOOKUP($A$5,'RECAP DIRCOM'!$G$6:$CY$312,31,FALSE) -> 0.0 | I18: =VLOOKUP($A$5,'RECAP DIRCOM'!$G$6:$CY$312,32,FALSE) -> 0% | K18: =VLOOKUP($A$5,#REF!,32,FALSE) ->  | M18: =+K18-I18 ->  | O18: =VLOOKUP($A$5,'RECAP DIRCOM'!$G$6:$CY$312,33,FALSE) -> 67595.17566
B19: PNB Ventes nettes IZICARTES Débit Différé | C19: 4% | E19: ='RECAP DIRCOM'!AB4 -> 53.8 | G19: =VLOOKUP($A$5,'RECAP DIRCOM'!$G$6:$CY$312,35,FALSE) -> 0.0 | I19: =VLOOKUP($A$5,'RECAP DIRCOM'!$G$6:$CY$312,36,FALSE) -> 100% | K19: =VLOOKUP($A$5,#REF!,36,FALSE) ->  | M19: =+K19-I19 ->  | O19: =VLOOKUP($A$5,'RECAP DIRCOM'!$G$6:$CY$312,37,FALSE) -> 9073
B20: PNB Ventes nettes cartes HDG Débit Différé | C20: 4% | E20: ='RECAP DIRCOM'!#REF! ->  | G20: =VLOOKUP($A$5,'RECAP DIRCOM'!$G$6:$CY$312,39,FALSE) -> 0.3 | I20: =VLOOKUP($A$5,'RECAP DIRCOM'!$G$6:$CY$312,40,FALSE) -> 400% | K20: =VLOOKUP($A$5,#REF!,40,FALSE) ->  | M20: =+K20-I20 ->  | O20: =VLOOKUP($A$5,'RECAP DIRCOM'!$G$6:$CY$312,41,FALSE) -> 0.1001591631
B21: PNB Ventes nettes Forfaits Pro, Carte pro | C21: 3% | E21: ='RECAP DIRCOM'!#REF! ->  | G21: =VLOOKUP($A$5,'RECAP DIRCOM'!$G$6:$CY$312,43,FALSE) -> 1.0 | I21: =VLOOKUP($A$5,'RECAP DIRCOM'!$G$6:$CY$312,44,FALSE) -> 0% | K21: =VLOOKUP($A$5,#REF!,44,FALSE) ->  | M21: =+K21-I21 ->  | O21: =VLOOKUP($A$5,'RECAP DIRCOM'!$G$6:$CY$312,45,FALSE) -> 0
A23: CRITERE EPARGNE | C23: 10% | O23: =VLOOKUP($A$5,'RECAP DIRCOM'!$G$6:$CY$312,69,FALSE) -> 0.3991387183
B24: PNB Epargne Liquide | C24: 3% | E24: ='RECAP DIRCOM'!AM4 -> 305.2 | G24: =VLOOKUP($A$5,'RECAP DIRCOM'!$G$6:$CY$312,56,FALSE) -> 3364.0 | I24: =VLOOKUP($A$5,'RECAP DIRCOM'!$G$6:$CY$312,57,FALSE) -> 1519% | K24: =VLOOKUP($A$5,#REF!,57,FALSE) ->  | M24: =+K24-I24 ->  | O24: =VLOOKUP($A$5,'RECAP DIRCOM'!$G$6:$CY$312,58,FALSE) -> 0.4078741293
B25: PNB CA UC + arbitrage | C25: 4% | E25: ='RECAP DIRCOM'!AQ4 -> 54.7 | G25: =VLOOKUP($A$5,'RECAP DIRCOM'!$G$6:$CY$312,60,FALSE) -> 0.4 | I25: =VLOOKUP($A$5,'RECAP DIRCOM'!$G$6:$CY$312,61,FALSE) -> 35% | K25: =VLOOKUP($A$5,#REF!,61,FALSE) ->  | M25: =+K25-I25 ->  | O25: =VLOOKUP($A$5,'RECAP DIRCOM'!$G$6:$CY$312,62,FALSE) -> 6
B26: PNB Excédent assurance vie | C26: 3% | E26: ='RECAP DIRCOM'!#REF! ->  | G26: =VLOOKUP($A$5,'RECAP DIRCOM'!$G$6:$CY$312,64,FALSE) -> 0.0 | I26: =VLOOKUP($A$5,'RECAP DIRCOM'!$G$6:$CY$312,65,FALSE) -> 0% | K26: =VLOOKUP($A$5,#REF!,65,FALSE) ->  | M26: =+K26-I26 ->  | O26: =VLOOKUP($A$5,'RECAP DIRCOM'!$G$6:$CY$312,66,FALSE) -> 0
A28: CRITERE CREDITS | C28: 15% | O28: =VLOOKUP($A$5,'RECAP DIRCOM'!$G$6:$CY$312,102,FALSE) -> 
B29: PNB crédit conso | C29: 4% | E29: ='RECAP DIRCOM'!BB4 -> 339.1 | G29: =VLOOKUP($A$5,'RECAP DIRCOM'!$G$6:$CY$312,77,FALSE) -> 5.0 | I29: =VLOOKUP($A$5,'RECAP DIRCOM'!$G$6:$CY$312,78,FALSE) -> 0% | K29: =VLOOKUP($A$5,#REF!,78,FALSE) ->  | M29: =+K29-I29 ->  | O29: =VLOOKUP($A$5,'RECAP DIRCOM'!$G$6:$CY$312,79,FALSE) -> 0
B30: PNB ADE crédit conso | C30: 1% | E30: ='RECAP DIRCOM'!#REF! ->  | G30: =VLOOKUP($A$5,'RECAP DIRCOM'!$G$6:$CY$312,81,FALSE) -> 0.0 | I30: =VLOOKUP($A$5,'RECAP DIRCOM'!$G$6:$CY$312,82,FALSE) -> 0% | K30: =VLOOKUP($A$5,#REF!,82,FALSE) ->  | O30: =VLOOKUP($A$5,'RECAP DIRCOM'!$G$6:$CY$312,83,FALSE) -> 0
B31: PNB crédit immo | C31: 4% | E31: ='RECAP DIRCOM'!BF4 -> 45.4 | G31: =VLOOKUP($A$5,'RECAP DIRCOM'!$G$6:$CY$312,85,FALSE) -> 0.0 | I31: =VLOOKUP($A$5,'RECAP DIRCOM'!$G$6:$CY$312,86,FALSE) -> 0% | K31: =VLOOKUP($A$5,#REF!,86,FALSE) ->  | O31: =VLOOKUP($A$5,'RECAP DIRCOM'!$G$6:$CY$312,87,FALSE) -> 0
B32: PNB ADE crédit immo | C32: 2% | E32: ='RECAP DIRCOM'!#REF! ->  | G32: =VLOOKUP($A$5,'RECAP DIRCOM'!$G$6:$CY$312,89,FALSE) -> 0.0 | I32: =VLOOKUP($A$5,'RECAP DIRCOM'!$G$6:$CY$312,90,FALSE) -> 0% | K32: =VLOOKUP($A$5,#REF!,90,FALSE) ->  | O32: =VLOOKUP($A$5,'RECAP DIRCOM'!$G$6:$CY$312,91,FALSE) -> 0
B33: PNB SACCEF | C33: 2% | E33: ='RECAP DIRCOM'!#REF! ->  | G33: =VLOOKUP($A$5,'RECAP DIRCOM'!$G$6:$CY$312,93,FALSE) -> 0.0 | I33: =VLOOKUP($A$5,'RECAP DIRCOM'!$G$6:$CY$312,94,FALSE) -> 27% | K33: =VLOOKUP($A$5,#REF!,94,FALSE) ->  | O33: =VLOOKUP($A$5,'RECAP DIRCOM'!$G$6:$CY$312,95,FALSE) -> 0.2291024636
B34: PNB Crédit MLT + Crédit Bail | C34: 2% | E34: ='RECAP DIRCOM'!BJ4 -> 25.7 | G34: =VLOOKUP($A$5,'RECAP DIRCOM'!$G$6:$CY$312,97,FALSE) -> 0.0 | I34: =VLOOKUP($A$5,'RECAP DIRCOM'!$G$6:$CY$312,98,FALSE) ->  | K34: =VLOOKUP($A$5,#REF!,98,FALSE) ->  | O34: =VLOOKUP($A$5,'RECAP DIRCOM'!$G$6:$CY$312,99,FALSE) -> 
A36: CRITERE IARD PREVOYANCE | C36: 15% | O36: =VLOOKUP($A$5,'RECAP DIRCOM'!$G$6:$CY$312,119,FALSE) -> 
B37: PNB Ventes nettes IARD | C37: 9% | E37: ='RECAP DIRCOM'!BU4 -> 120.7 | G37: =VLOOKUP($A$5,'RECAP DIRCOM'!$G$6:$CY$312,110,FALSE) ->  | I37: =VLOOKUP($A$5,'RECAP DIRCOM'!$G$6:$CY$312,111,FALSE) ->  | K37: =VLOOKUP($A$5,#REF!,111,FALSE) ->  | M37: =+K37-I37 ->  | O37: =VLOOKUP($A$5,'RECAP DIRCOM'!$G$6:$CY$312,112,FALSE) -> 
B38: PNB Ventes nettes Prévoyance | C38: 6% | E38: ='RECAP DIRCOM'!BY4 -> 36.0 | G38: =VLOOKUP($A$5,'RECAP DIRCOM'!$G$6:$CY$312,114,FALSE) ->  | I38: =VLOOKUP($A$5,'RECAP DIRCOM'!$G$6:$CY$312,115,FALSE) ->  | K38: =VLOOKUP($A$5,#REF!,115,FALSE) ->  | M38: =+K38-I38 ->  | O38: =VLOOKUP($A$5,'RECAP DIRCOM'!$G$6:$CY$312,116,FALSE) -> 
A40: CRITERE ACCELERATEURS PNB | C40: 15% | O40: =VLOOKUP($A$5,'RECAP DIRCOM'!$G$6:$CY$312,144,FALSE) -> 
B41: PNB Ventes brutes SED Finalisées | C41: 6% | E41: ='RECAP DIRCOM'!#REF! ->  | G41: =VLOOKUP($A$5,'RECAP DIRCOM'!$G$6:$CY$312,127,FALSE) ->  | I41: =VLOOKUP($A$5,'RECAP DIRCOM'!$G$6:$CY$312,128,FALSE) ->  | K41: =VLOOKUP($A$5,#REF!,128,FALSE) ->  | M41: =+K41-I41 ->  | O41: =VLOOKUP($A$5,'RECAP DIRCOM'!$G$6:$CY$312,129,FALSE) -> 
B42: PNB clients équipés E documents | C42: 3% | E42: ='RECAP DIRCOM'!#REF! ->  | G42: =VLOOKUP($A$5,'RECAP DIRCOM'!$G$6:$CY$312,131,FALSE) ->  | I42: =VLOOKUP($A$5,'RECAP DIRCOM'!$G$6:$CY$312,132,FALSE) ->  | K42: =VLOOKUP($A$5,#REF!,132,FALSE) ->  | M42: =+K42-I42 ->  | O42: =VLOOKUP($A$5,'RECAP DIRCOM'!$G$6:$CY$312,133,FALSE) -> 
B43: Economie opt'in | C43: 3% | E43: ='RECAP DIRCOM'!#REF! ->  | G43: =VLOOKUP($A$5,'RECAP DIRCOM'!$G$6:$CY$312,135,FALSE) ->  | I43: =VLOOKUP($A$5,'RECAP DIRCOM'!$G$6:$CY$312,136,FALSE) ->  | K43: =VLOOKUP($A$5,#REF!,136,FALSE) ->  | M43: =+K43-I43 ->  | O43: =VLOOKUP($A$5,'RECAP DIRCOM'!$G$6:$CY$312,137,FALSE) -> 
B44: Remises commerciales | C44: 3% | E44: ='RECAP DIRCOM'!#REF! ->  | G44: =VLOOKUP($A$5,'RECAP DIRCOM'!$G$6:$CY$312,139,FALSE) ->  | I44: =VLOOKUP($A$5,'RECAP DIRCOM'!$G$6:$CY$312,140,FALSE) ->  | K44: =VLOOKUP($A$5,#REF!,140,FALSE) ->  | M44: =+K44-I44 ->  | O44: =VLOOKUP($A$5,'RECAP DIRCOM'!$G$6:$CY$312,141,FALSE) -> 
A46: CRITERE Qualité-Satisfaction Clients | C46: 15% | O46: =VLOOKUP($A$5,'RECAP DIRCOM'!$G$6:$CY$312,159,FALSE) -> 
B47: Objectifs NPS* | C47: 8% | E47: ='RECAP DIRCOM'!K4 -> 23 | G47: =VLOOKUP($A$5,'RECAP DIRCOM'!$G$6:$CY$312,151,FALSE) ->  | I47: =VLOOKUP($A$5,'RECAP DIRCOM'!$G$6:$CY$312,152,FALSE) ->  | K47: =VLOOKUP($A$5,#REF!,152,FALSE) ->  | M47: =+K47-I47 ->  | O47: =VLOOKUP($A$5,'RECAP DIRCOM'!$G$6:$CY$312,153,FALSE) -> 
B48: Enquête Qualité Haute Définition | C48: 7% | E48: ='RECAP DIRCOM'!N4 -> 69% | G48: =VLOOKUP($A$5,'RECAP DIRCOM'!$G$6:$CY$312,154,FALSE) ->  | I48: =VLOOKUP($A$5,'RECAP DIRCOM'!$G$6:$CY$312,155,FALSE) ->  | K48: =VLOOKUP($A$5,#REF!,155,FALSE) ->  | M48: =+K48-I48 ->  | O48: =VLOOKUP($A$5,'RECAP DIRCOM'!$G$6:$CY$312,156,FALSE) -> 

Sheet DC_TOTAL
B1: Accueil | D1: BAROMETRE BDD - DIRECTIONS REGIONALES
D2: TOTAL GENERAL
D3: =ACCUEIL!F7 -> 2022-09-11
D7: TOTAL GENERAL | G7: Total Satisfaction Clients | J7: Total Bancarisation | M7: Total Epargne | P7: Total IARD Prévoyance | S7: Total Crédits
E8: coef | F8: =+I8+L8+O8+R8+U8 -> 100% | H8: coef | I8: =DC_SATISFACTION!L8 -> 20% | K8: coef | L8: =DC_BANCA!N8 -> 20% | N8: coef | O8: =DC_EPARGNE!N8 -> 20% | Q8: coef | R8: =DC_IARD!N8 -> 20% | T8: coef | U8: =DC_CREDIT!R8 -> 20%
A9: eds | B9: Direction | C9: ="ETP perf "&DATEMAJ!$C$28 -> ETP perf 11-sept | D9: Moyenne ecart au 1er | E9: % Ecart au 1er | F9: Rang CEGEE | G9: Moyenne ecart au 1er | H9: % Ecart au 1er | I9: Rang CEGEE | J9: Moyenne ecart au 1er | K9: % Ecart au 1er | L9: Rang CEGEE | M9: Moyenne ecart au 1er | N9: % Ecart au 1er | O9: Rang CEGEE | P9: Moyenne ecart au 1er | Q9: % Ecart au 1er | R9: Rang CEGEE | S9: Moyenne ecart au 1er | T9: % Ecart au 1er | U9: Rang CEGEE
A10: 50 | B10: Marne-Ardennes | C10: 193 | D10: 4% | E10: 0% | F10: 1 | G10: 15% | H10: 15% | I10: 2 | J10: 0% | K10: 0% | L10: 1 | M10: 17% | N10: 7% | O10: 2 | P10: 0% | Q10: 0% | R10: 1 | S10: 4% | T10: 0% | U10: 1
A11: 262 | B11: Moselle | C11: 225 | D11: 8% | E11: 3% | F11: 2 | G11: 22% | H11: 22% | I11: 3 | J11: 4% | K11: 4% | L11: 2 | M11: 17% | N11: 7% | O11: 3 | P11: 2% | Q11: 2% | R11: 2 | S11: 8% | T11: 3% | U11: 2
A12: 264 | B12: Meurthe et Moselle Meuse | C12: 203 | D12: 21% | E12: 17% | F12: 3 | G12: 33% | H12: 33% | I12: 4 | J12: 23% | K12: 23% | L12: 3 | M12: 26% | N12: 16% | O12: 4 | P12: 21% | Q12: 21% | R12: 3 | S12: 16% | T12: 12% | U12: 3
A13: 30 | B13: Vosges | C13: 117 | D13: 24% | E13: 20% | F13: 4 | G13: 0% | H13: 0% | I13: 1 | J13: 33% | K13: 33% | L13: 5 | M13: 33% | N13: 23% | O13: 5 | P13: 36% | Q13: 36% | R13: 6 | S13: 34% | T13: 30% | U13: 4
A14: 110 | B14: Bas-Rhin | C14: 221 | D14: 27% | E14: 23% | F14: 5 | G14: 43% | H14: 43% | I14: 5 | J14: 27% | K14: 27% | L14: 4 | M14: 10% | N14: 0% | O14: 1 | P14: 31% | Q14: 31% | R14: 5 | S14: 39% | T14: 35% | U14: 6
A15: 160 | B15: Aube Haute Marne | C15: 112 | D15: 39% | E15: 35% | F15: 6 | G15: 51% | H15: 51% | I15: 6 | J15: 43% | K15: 43% | L15: 6 | M15: 51% | N15: 41% | O15: 6 | P15: 29% | Q15: 29% | R15: 4 | S15: 35% | T15: 31% | U15: 5
A16: 80 | B16: Haut-Rhin | C16: 123 | D16: 57% | E16: 53% | F16: 7 | G16: 59% | H16: 59% | I16: 7 | J16: 63% | K16: 63% | L16: 7 | M16: 69% | N16: 59% | O16: 7 | P16: 63% | Q16: 63% | R16: 7 | S16: 47% | T16: 43% | U16: 7
B17: Total CEGEE Directions Régionales | C17: =SUM(C10:C16) -> 1196

Sheet DC_BANCA
B1: Accueil | D1: BAROMETRE BDD - DIRECTIONS REGIONALES
D2: BANCARISATION
D3: =ACCUEIL!F7 -> 2022-09-11
D7: Ventes Nettes produits pondérés | H7: Ventes sur client non détenteur de l’univers | L7: Total Bancarisation
D8: =DATEMAJ!C8 -> au 11/09 | F8: coef | G8: ='RECAP DIRCOM'!AA4 -> 12% | H8: =DATEMAJ!C9 -> au 11/09 | J8: coef | K8: ='RECAP DIRCOM'!AE4 -> 8% | M8: coef | N8: ='RECAP DIRCOM'!AH4 -> 20%
B9: Direction | C9: ="ETP perf "&DATEMAJ!$C$28 -> ETP perf 11-sept | D9: VN | E9: VN / ETP | F9: % Ecart au 1er | G9: Rang | H9: VB | I9: VB / ETP | J9: % Ecart au 1er | K9: Rang | L9: Moyenne ecart au 1er | M9: % Ecart au 1er | N9: Rang CEGEE
A10: 50 | B10: Aube Haute Marne | C10: =VLOOKUP($A10,'RECAP DIRCOM'!$G$6:$CU$12,3,FALSE) -> 112 | D10: =VLOOKUP($A10,'RECAP DIRCOM'!$G$6:$CU$12,18,FALSE) -> 1,038 | E10: =VLOOKUP($A10,'RECAP DIRCOM'!$G$6:$CU$12,19,FALSE) -> 9.22 | F10: =VLOOKUP($A10,'RECAP DIRCOM'!$G$6:$CU$12,20,FALSE) -> 57% | G10: =VLOOKUP($A10,'RECAP DIRCOM'!$G$6:$CU$12,21,FALSE) -> 6 | H10: =VLOOKUP($A10,'RECAP DIRCOM'!$G$6:$CU$12,22,FALSE) -> 4,669 | I10: =VLOOKUP($A10,'RECAP DIRCOM'!$G$6:$CU$12,23,FALSE) -> 41.51 | J10: =VLOOKUP($A10,'RECAP DIRCOM'!$G$6:$CU$12,24,FALSE) -> 23% | K10: =VLOOKUP($A10,'RECAP DIRCOM'!$G$6:$CU$12,25,FALSE) -> 5 | L10: =VLOOKUP($A10,'RECAP DIRCOM'!$G$6:$CU$12,26,FALSE) -> 43% | M10: =VLOOKUP($A10,'RECAP DIRCOM'!$G$6:$CU$12,27,FALSE) -> 43% | N10: =VLOOKUP($A10,'RECAP DIRCOM'!$G$6:$CU$12,28,FALSE) -> 6
A11: 262 | B11: Bas-Rhin | C11: =VLOOKUP($A11,'RECAP DIRCOM'!$G$6:$CU$12,3,FALSE) -> 221 | D11: =VLOOKUP($A11,'RECAP DIRCOM'!$G$6:$CU$12,18,FALSE) -> 3,321 | E11: =VLOOKUP($A11,'RECAP DIRCOM'!$G$6:$CU$12,19,FALSE) -> 15.00 | F11: =VLOOKUP($A11,'RECAP DIRCOM'!$G$6:$CU$12,20,FALSE) -> 30% | G11: =VLOOKUP($A11,'RECAP DIRCOM'!$G$6:$CU$12,21,FALSE) -> 3 | H11: =VLOOKUP($A11,'RECAP DIRCOM'!$G$6:$CU$12,22,FALSE) -> 9,324 | I11: =VLOOKUP($A11,'RECAP DIRCOM'!$G$6:$CU$12,23,FALSE) -> 42.10 | J11: =VLOOKUP($A11,'RECAP DIRCOM'!$G$6:$CU$12,24,FALSE) -> 22% | K11: =VLOOKUP($A11,'RECAP DIRCOM'!$G$6:$CU$12,25,FALSE) -> 4 | L11: =VLOOKUP($A11,'RECAP DIRCOM'!$G$6:$CU$12,26,FALSE) -> 27% | M11: =VLOOKUP($A11,'RECAP DIRCOM'!$G$6:$CU$12,27,FALSE) -> 27% | N11: =VLOOKUP($A11,'RECAP DIRCOM'!$G$6:$CU$12,28,FALSE) -> 4
A12: 264 | B12: Haut-Rhin | C12: =VLOOKUP($A12,'RECAP DIRCOM'!$G$6:$CU$12,3,FALSE) -> 123 | D12: =VLOOKUP($A12,'RECAP DIRCOM'!$G$6:$CU$12,18,FALSE) -> 517 | E12: =VLOOKUP($A12,'RECAP DIRCOM'!$G$6:$CU$12,19,FALSE) -> 4.19 | F12: =VLOOKUP($A12,'RECAP DIRCOM'!$G$6:$CU$12,20,FALSE) -> 80% | G12: =VLOOKUP($A12,'RECAP DIRCOM'!$G$6:$CU$12,21,FALSE) -> 7 | H12: =VLOOKUP($A12,'RECAP DIRCOM'!$G$6:$CU$12,22,FALSE) -> 4,259 | I12: =VLOOKUP($A12,'RECAP DIRCOM'!$G$6:$CU$12,23,FALSE) -> 34.57 | J12: =VLOOKUP($A12,'RECAP DIRCOM'!$G$6:$CU$12,24,FALSE) -> 36% | K12: =VLOOKUP($A12,'RECAP DIRCOM'!$G$6:$CU$12,25,FALSE) -> 7 | L12: =VLOOKUP($A12,'RECAP DIRCOM'!$G$6:$CU$12,26,FALSE) -> 63% | M12: =VLOOKUP($A12,'RECAP DIRCOM'!$G$6:$CU$12,27,FALSE) -> 63% | N12: =VLOOKUP($A12,'RECAP DIRCOM'!$G$6:$CU$12,28,FALSE) -> 7
A13: 30 | B13: Marne-Ardennes | C13: =VLOOKUP($A13,'RECAP DIRCOM'!$G$6:$CU$12,3,FALSE) -> 193 | D13: =VLOOKUP($A13,'RECAP DIRCOM'!$G$6:$CU$12,18,FALSE) -> 4,145 | E13: =VLOOKUP($A13,'RECAP DIRCOM'!$G$6:$CU$12,19,FALSE) -> 21.46 | F13: =VLOOKUP($A13,'RECAP DIRCOM'!$G$6:$CU$12,20,FALSE) -> 0% | G13: =VLOOKUP($A13,'RECAP DIRCOM'!$G$6:$CU$12,21,FALSE) -> 1 | H13: =VLOOKUP($A13,'RECAP DIRCOM'!$G$6:$CU$12,22,FALSE) -> 10,397 | I13: =VLOOKUP($A13,'RECAP DIRCOM'!$G$6:$CU$12,23,FALSE) -> 53.82 | J13: =VLOOKUP($A13,'RECAP DIRCOM'!$G$6:$CU$12,24,FALSE) -> 0% | K13: =VLOOKUP($A13,'RECAP DIRCOM'!$G$6:$CU$12,25,FALSE) -> 1 | L13: =VLOOKUP($A13,'RECAP DIRCOM'!$G$6:$CU$12,26,FALSE) -> 0% | M13: =VLOOKUP($A13,'RECAP DIRCOM'!$G$6:$CU$12,27,FALSE) -> 0% | N13: =VLOOKUP($A13,'RECAP DIRCOM'!$G$6:$CU$12,28,FALSE) -> 1
A14: 110 | B14: Meurthe et Moselle Meuse | C14: =VLOOKUP($A14,'RECAP DIRCOM'!$G$6:$CU$12,3,FALSE) -> 203 | D14: =VLOOKUP($A14,'RECAP DIRCOM'!$G$6:$CU$12,18,FALSE) -> 2,998 | E14: =VLOOKUP($A14,'RECAP DIRCOM'!$G$6:$CU$12,19,FALSE) -> 14.78 | F14: =VLOOKUP($A14,'RECAP DIRCOM'!$G$6:$CU$12,20,FALSE) -> 31% | G14: =VLOOKUP($A14,'RECAP DIRCOM'!$G$6:$CU$12,21,FALSE) -> 4 | H14: =VLOOKUP($A14,'RECAP DIRCOM'!$G$6:$CU$12,22,FALSE) -> 9,726 | I14: =VLOOKUP($A14,'RECAP DIRCOM'!$G$6:$CU$12,23,FALSE) -> 47.94 | J14: =VLOOKUP($A14,'RECAP DIRCOM'!$G$6:$CU$12,24,FALSE) -> 11% | K14: =VLOOKUP($A14,'RECAP DIRCOM'!$G$6:$CU$12,25,FALSE) -> 3 | L14: =VLOOKUP($A14,'RECAP DIRCOM'!$G$6:$CU$12,26,FALSE) -> 23% | M14: =VLOOKUP($A14,'RECAP DIRCOM'!$G$6:$CU$12,27,FALSE) -> 23% | N14: =VLOOKUP($A14,'RECAP DIRCOM'!$G$6:$CU$12,28,FALSE) -> 3
A15: 160 | B15: Moselle | C15: =VLOOKUP($A15,'RECAP DIRCOM'!$G$6:$CU$12,3,FALSE) -> 225 | D15: =VLOOKUP($A15,'RECAP DIRCOM'!$G$6:$CU$12,18,FALSE) -> 4,592 | E15: =VLOOKUP($A15,'RECAP DIRCOM'!$G$6:$CU$12,19,FALSE) -> 20.37 | F15: =VLOOKUP($A15,'RECAP DIRCOM'!$G$6:$CU$12,20,FALSE) -> 5% | G15: =VLOOKUP($A15,'RECAP DIRCOM'!$G$6:$CU$12,21,FALSE) -> 2 | H15: =VLOOKUP($A15,'RECAP DIRCOM'!$G$6:$CU$12,22,FALSE) -> 11,882 | I15: =VLOOKUP($A15,'RECAP DIRCOM'!$G$6:$CU$12,23,FALSE) -> 52.72 | J15: =VLOOKUP($A15,'RECAP DIRCOM'!$G$6:$CU$12,24,FALSE) -> 2% | K15: =VLOOKUP($A15,'RECAP DIRCOM'!$G$6:$CU$12,25,FALSE) -> 2 | L15: =VLOOKUP($A15,'RECAP DIRCOM'!$G$6:$CU$12,26,FALSE) -> 4% | M15: =VLOOKUP($A15,'RECAP DIRCOM'!$G$6:$CU$12,27,FALSE) -> 4% | N15: =VLOOKUP($A15,'RECAP DIRCOM'!$G$6:$CU$12,28,FALSE) -> 2
A16: 80 | B16: Vosges | C16: =VLOOKUP($A16,'RECAP DIRCOM'!$G$6:$CU$12,3,FALSE) -> 117 | D16: =VLOOKUP($A16,'RECAP DIRCOM'!$G$6:$CU$12,18,FALSE) -> 1,617 | E16: =VLOOKUP($A16,'RECAP DIRCOM'!$G$6:$CU$12,19,FALSE) -> 13.82 | F16: =VLOOKUP($A16,'RECAP DIRCOM'!$G$6:$CU$12,20,FALSE) -> 36% | G16: =VLOOKUP($A16,'RECAP DIRCOM'!$G$6:$CU$12,21,FALSE) -> 5 | H16: =VLOOKUP($A16,'RECAP DIRCOM'!$G$6:$CU$12,22,FALSE) -> 4,508 | I16: =VLOOKUP($A16,'RECAP DIRCOM'!$G$6:$CU$12,23,FALSE) -> 38.53 | J16: =VLOOKUP($A16,'RECAP DIRCOM'!$G$6:$CU$12,24,FALSE) -> 28% | K16: =VLOOKUP($A16,'RECAP DIRCOM'!$G$6:$CU$12,25,FALSE) -> 6 | L16: =VLOOKUP($A16,'RECAP DIRCOM'!$G$6:$CU$12,26,FALSE) -> 33% | M16: =VLOOKUP($A16,'RECAP DIRCOM'!$G$6:$CU$12,27,FALSE) -> 33% | N16: =VLOOKUP($A16,'RECAP DIRCOM'!$G$6:$CU$12,28,FALSE) -> 5
B17: Total CEGEE Directions Régionales | C17: =SUM(C10:C16) -> 1196

Sheet DC_EPARGNE
B1: Accueil | D1: BAROMETRE BDD - DIRECTIONS REGIONALES
D2: EPARGNE
D3: =ACCUEIL!F7 -> 2022-09-11
D7: Excédent Epargne hors DAV pondéré | H7: Ventes sur client non détenteur de l’univers | L7: Total Epargne
D8: =DATEMAJ!C14 -> au 11/09 | F8: coef | G8: ='RECAP DIRCOM'!AP4 -> 12% | H8: =DATEMAJ!C15 -> au 11/09 | J8: coef | K8: ='RECAP DIRCOM'!AT4 -> 8% | M8: coef | N8: ='RECAP DIRCOM'!AW4 -> 20%
B9: Direction | C9: ="ETP perf "&DATEMAJ!$C$28 -> ETP perf 11-sept | D9: Excédent | E9: Excédent / ETP | F9: % Ecart au 1er | G9: Rang | H9: VB | I9: VB / ETP | J9: % Ecart au 1er | K9: Rang | L9: Moyenne ecart au 1er | M9: % Ecart au 1er | N9: Rang CEGEE
A10: 50 | B10: Aube Haute Marne | C10: =VLOOKUP($A10,'RECAP DIRCOM'!$G$6:$CU$12,3,FALSE) -> 112 | D10: =VLOOKUP($A10,'RECAP DIRCOM'!$G$6:$CU$12,33,FALSE) -> 12,042 | E10: =VLOOKUP($A10,'RECAP DIRCOM'!$G$6:$CU$12,34,FALSE) -> 107.05 | F10: =VLOOKUP($A10,'RECAP DIRCOM'!$G$6:$CU$12,35,FALSE) -> 65% | G10: =VLOOKUP($A10,'RECAP DIRCOM'!$G$6:$CU$12,36,FALSE) -> 6 | H10: =VLOOKUP($A10,'RECAP DIRCOM'!$G$6:$CU$12,37,FALSE) -> 4,371 | I10: =VLOOKUP($A10,'RECAP DIRCOM'!$G$6:$CU$12,38,FALSE) -> 38.86 | J10: =VLOOKUP($A10,'RECAP DIRCOM'!$G$6:$CU$12,39,FALSE) -> 29% | K10: =VLOOKUP($A10,'RECAP DIRCOM'!$G$6:$CU$12,40,FALSE) -> 5 | L10: =VLOOKUP($A10,'RECAP DIRCOM'!$G$6:$CU$12,41,FALSE) -> 51% | M10: =VLOOKUP($A10,'RECAP DIRCOM'!$G$6:$CU$12,42,FALSE) -> 41% | N10: =VLOOKUP($A10,'RECAP DIRCOM'!$G$6:$CU$12,43,FALSE) -> 6
A11: 262 | B11: Bas-Rhin | C11: =VLOOKUP($A11,'RECAP DIRCOM'!$G$6:$CU$12,3,FALSE) -> 221 | D11: =VLOOKUP($A11,'RECAP DIRCOM'!$G$6:$CU$12,33,FALSE) -> 67,595 | E11: =VLOOKUP($A11,'RECAP DIRCOM'!$G$6:$CU$12,34,FALSE) -> 305.23 | F11: =VLOOKUP($A11,'RECAP DIRCOM'!$G$6:$CU$12,35,FALSE) -> 0% | G11: =VLOOKUP($A11,'RECAP DIRCOM'!$G$6:$CU$12,36,FALSE) -> 1 | H11: =VLOOKUP($A11,'RECAP DIRCOM'!$G$6:$CU$12,37,FALSE) -> 9,073 | I11: =VLOOKUP($A11,'RECAP DIRCOM'!$G$6:$CU$12,38,FALSE) -> 40.97 | J11: =VLOOKUP($A11,'RECAP DIRCOM'!$G$6:$CU$12,39,FALSE) -> 25% | K11: =VLOOKUP($A11,'RECAP DIRCOM'!$G$6:$CU$12,40,FALSE) -> 4 | L11: =VLOOKUP($A11,'RECAP DIRCOM'!$G$6:$CU$12,41,FALSE) -> 10% | M11: =VLOOKUP($A11,'RECAP DIRCOM'!$G$6:$CU$12,42,FALSE) -> 0% | N11: =VLOOKUP($A11,'RECAP DIRCOM'!$G$6:$CU$12,43,FALSE) -> 1
A12: 264 | B12: Haut-Rhin | C12: =VLOOKUP($A12,'RECAP DIRCOM'!$G$6:$CU$12,3,FALSE) -> 123 | D12: =VLOOKUP($A12,'RECAP DIRCOM'!$G$6:$CU$12,33,FALSE) -> 5,493 | E12: =VLOOKUP($A12,'RECAP DIRCOM'!$G$6:$CU$12,34,FALSE) -> 44.59 | F12: =VLOOKUP($A12,'RECAP DIRCOM'!$G$6:$CU$12,35,FALSE) -> 85% | G12: =VLOOKUP($A12,'RECAP DIRCOM'!$G$6:$CU$12,36,FALSE) -> 7 | H12: =VLOOKUP($A12,'RECAP DIRCOM'!$G$6:$CU$12,37,FALSE) -> 3,712 | I12: =VLOOKUP($A12,'RECAP DIRCOM'!$G$6:$CU$12,38,FALSE) -> 30.13 | J12: =VLOOKUP($A12,'RECAP DIRCOM'!$G$6:$CU$12,39,FALSE) -> 45% | K12: =VLOOKUP($A12,'RECAP DIRCOM'!$G$6:$CU$12,40,FALSE) -> 7 | L12: =VLOOKUP($A12,'RECAP DIRCOM'!$G$6:$CU$12,41,FALSE) -> 69% | M12: =VLOOKUP($A12,'RECAP DIRCOM'!$G$6:$CU$12,42,FALSE) -> 59% | N12: =VLOOKUP($A12,'RECAP DIRCOM'!$G$6:$CU$12,43,FALSE) -> 7
A13: 30 | B13: Marne-Ardennes | C13: =VLOOKUP($A13,'RECAP DIRCOM'!$G$6:$CU$12,3,FALSE) -> 193 | D13: =VLOOKUP($A13,'RECAP DIRCOM'!$G$6:$CU$12,33,FALSE) -> 44,653 | E13: =VLOOKUP($A13,'RECAP DIRCOM'!$G$6:$CU$12,34,FALSE) -> 231.14 | F13: =VLOOKUP($A13,'RECAP DIRCOM'!$G$6:$CU$12,35,FALSE) -> 24% | G13: =VLOOKUP($A13,'RECAP DIRCOM'!$G$6:$CU$12,36,FALSE) -> 2 | H13: =VLOOKUP($A13,'RECAP DIRCOM'!$G$6:$CU$12,37,FALSE) -> 10,042 | I13: =VLOOKUP($A13,'RECAP DIRCOM'!$G$6:$CU$12,38,FALSE) -> 51.98 | J13: =VLOOKUP($A13,'RECAP DIRCOM'!$G$6:$CU$12,39,FALSE) -> 5% | K13: =VLOOKUP($A13,'RECAP DIRCOM'!$G$6:$CU$12,40,FALSE) -> 2 | L13: =VLOOKUP($A13,'RECAP DIRCOM'!$G$6:$CU$12,41,FALSE) -> 17% | M13: =VLOOKUP($A13,'RECAP DIRCOM'!$G$6:$CU$12,42,FALSE) -> 7% | N13: =VLOOKUP($A13,'RECAP DIRCOM'!$G$6:$CU$12,43,FALSE) -> 2
A14: 110 | B14: Meurthe et Moselle Meuse | C14: =VLOOKUP($A14,'RECAP DIRCOM'!$G$6:$CU$12,3,FALSE) -> 203 | D14: =VLOOKUP($A14,'RECAP DIRCOM'!$G$6:$CU$12,33,FALSE) -> 44,454 | E14: =VLOOKUP($A14,'RECAP DIRCOM'!$G$6:$CU$12,34,FALSE) -> 219.12 | F14: =VLOOKUP($A14,'RECAP DIRCOM'!$G$6:$CU$12,35,FALSE) -> 28% | G14: =VLOOKUP($A14,'RECAP DIRCOM'!$G$6:$CU$12,36,FALSE) -> 3 | H14: =VLOOKUP($A14,'RECAP DIRCOM'!$G$6:$CU$12,37,FALSE) -> 8,450 | I14: =VLOOKUP($A14,'RECAP DIRCOM'!$G$6:$CU$12,38,FALSE) -> 41.65 | J14: =VLOOKUP($A14,'RECAP DIRCOM'!$G$6:$CU$12,39,FALSE) -> 24% | K14: =VLOOKUP($A14,'RECAP DIRCOM'!$G$6:$CU$12,40,FALSE) -> 3 | L14: =VLOOKUP($A14,'RECAP DIRCOM'!$G$6:$CU$12,41,FALSE) -> 26% | M14: =VLOOKUP($A14,'RECAP DIRCOM'!$G$6:$CU$12,42,FALSE) -> 16% | N14: =VLOOKUP($A14,'RECAP DIRCOM'!$G$6:$CU$12,43,FALSE) -> 4
A15: 160 | B15: Moselle | C15: =VLOOKUP($A15,'RECAP DIRCOM'!$G$6:$CU$12,3,FALSE) -> 225 | D15: =VLOOKUP($A15,'RECAP DIRCOM'!$G$6:$CU$12,33,FALSE) -> 49,287 | E15: =VLOOKUP($A15,'RECAP DIRCOM'!$G$6:$CU$12,34,FALSE) -> 218.68 | F15: =VLOOKUP($A15,'RECAP DIRCOM'!$G$6:$CU$12,35,FALSE) -> 28% | G15: =VLOOKUP($A15,'RECAP DIRCOM'!$G$6:$CU$12,36,FALSE) -> 4 | H15: =VLOOKUP($A15,'RECAP DIRCOM'!$G$6:$CU$12,37,FALSE) -> 12,318 | I15: =VLOOKUP($A15,'RECAP DIRCOM'!$G$6:$CU$12,38,FALSE) -> 54.65 | J15: =VLOOKUP($A15,'RECAP DIRCOM'!$G$6:$CU$12,39,FALSE) -> 0% | K15: =VLOOKUP($A15,'RECAP DIRCOM'!$G$6:$CU$12,40,FALSE) -> 1 | L15: =VLOOKUP($A15,'RECAP DIRCOM'!$G$6:$CU$12,41,FALSE) -> 17% | M15: =VLOOKUP($A15,'RECAP DIRCOM'!$G$6:$CU$12,42,FALSE) -> 7% | N15: =VLOOKUP($A15,'RECAP DIRCOM'!$G$6:$CU$12,43,FALSE) -> 3
A16: 80 | B16: Vosges | C16: =VLOOKUP($A16,'RECAP DIRCOM'!$G$6:$CU$12,3,FALSE) -> 117 | D16: =VLOOKUP($A16,'RECAP DIRCOM'!$G$6:$CU$12,33,FALSE) -> 24,219 | E16: =VLOOKUP($A16,'RECAP DIRCOM'!$G$6:$CU$12,34,FALSE) -> 207.00 | F16: =VLOOKUP($A16,'RECAP DIRCOM'!$G$6:$CU$12,35,FALSE) -> 32% | G16: =VLOOKUP($A16,'RECAP DIRCOM'!$G$6:$CU$12,36,FALSE) -> 5 | H16: =VLOOKUP($A16,'RECAP DIRCOM'!$G$6:$CU$12,37,FALSE) -> 4,180 | I16: =VLOOKUP($A16,'RECAP DIRCOM'!$G$6:$CU$12,38,FALSE) -> 35.73 | J16: =VLOOKUP($A16,'RECAP DIRCOM'!$G$6:$CU$12,39,FALSE) -> 35% | K16: =VLOOKUP($A16,'RECAP DIRCOM'!$G$6:$CU$12,40,FALSE) -> 6 | L16: =VLOOKUP($A16,'RECAP DIRCOM'!$G$6:$CU$12,41,FALSE) -> 33% | M16: =VLOOKUP($A16,'RECAP DIRCOM'!$G$6:$CU$12,42,FALSE) -> 23% | N16: =VLOOKUP($A16,'RECAP DIRCOM'!$G$6:$CU$12,43,FALSE) -> 5
B17: Total CEGEE Directions Régionales | C17: =SUM(C10:C16) -> 1196

Sheet DC_CREDIT
B1: Accueil | D1: BAROMETRE BDD - DIRECTIONS REGIONALES
D2: CREDITS
D3: =ACCUEIL!F7 -> 2022-09-11
D7: Engagements et ventes accessoires pondérés Immo | H7: Engagements et ventes accessoires pondérés Conso | L7: Ventes sur client non détenteur de l’univers | P7: Total Crédits
D8: =DATEMAJ!C18 -> au 11/09 | F8: coef | G8: ='RECAP DIRCOM'!BE4 -> 6% | H8: =DATEMAJ!C19 -> au 11/09 | J8: coef | K8: ='RECAP DIRCOM'!BI4 -> 6% | L8: =DATEMAJ!C20 -> au 11/09 | N8: coef | O8: ='RECAP DIRCOM'!BM4 -> 8% | Q8: coef | R8: ='RECAP DIRCOM'!BP4 -> 20%
B9: Direction | C9: ="ETP perf "&DATEMAJ!$C$28 -> ETP perf 11-sept | D9: PNB | E9: PNB / ETP | F9: % Ecart au 1er | G9: Rang | H9: PNB | I9: PNB / ETP | J9: % Ecart au 1er | K9: Rang | L9: VB | M9: VB / ETP | N9: % Ecart au 1er | O9: Rang | P9: Moyenne ecart au 1er | Q9: % Ecart au 1er | R9: Rang CEGEE
A10: 50 | B10: Aube Haute Marne | C10: =VLOOKUP($A10,'RECAP DIRCOM'!$G$6:$CU$12,3,FALSE) -> 112 | D10: =VLOOKUP($A10,'RECAP DIRCOM'!$G$6:$CU$12,48,FALSE) -> 18,335 | E10: =VLOOKUP($A10,'RECAP DIRCOM'!$G$6:$CU$12,49,FALSE) -> 163.00 | F10: =VLOOKUP($A10,'RECAP DIRCOM'!$G$6:$CU$12,50,FALSE) -> 52% | G10: =VLOOKUP($A10,'RECAP DIRCOM'!$G$6:$CU$12,51,FALSE) -> 6 | H10: =VLOOKUP($A10,'RECAP DIRCOM'!$G$6:$CU$12,52,FALSE) -> 4,379 | I10: =VLOOKUP($A10,'RECAP DIRCOM'!$G$6:$CU$12,53,FALSE) -> 38.93 | J10: =VLOOKUP($A10,'RECAP DIRCOM'!$G$6:$CU$12,54,FALSE) -> 14% | K10: =VLOOKUP($A10,'RECAP DIRCOM'!$G$6:$CU$12,55,FALSE) -> 4 | L10: =VLOOKUP($A10,'RECAP DIRCOM'!$G$6:$CU$12,56,FALSE) -> 1,759 | M10: =VLOOKUP($A10,'RECAP DIRCOM'!$G$6:$CU$12,57,FALSE) -> 15.64 | N10: =VLOOKUP($A10,'RECAP DIRCOM'!$G$6:$CU$12,58,FALSE) -> 39% | O10: =VLOOKUP($A10,'RECAP DIRCOM'!$G$6:$CU$12,59,FALSE) -> 5 | P10: =VLOOKUP($A10,'RECAP DIRCOM'!$G$6:$CU$12,60,FALSE) -> 35% | Q10: =VLOOKUP($A10,'RECAP DIRCOM'!$G$6:$CU$12,61,FALSE) -> 31% | R10: =VLOOKUP($A10,'RECAP DIRCOM'!$G$6:$CU$12,62,FALSE) -> 5
A11: 262 | B11: Bas-Rhin | C11: =VLOOKUP($A11,'RECAP DIRCOM'!$G$6:$CU$12,3,FALSE) -> 221 | D11: =VLOOKUP($A11,'RECAP DIRCOM'!$G$6:$CU$12,48,FALSE) -> 37,942 | E11: =VLOOKUP($A11,'RECAP DIRCOM'!$G$6:$CU$12,49,FALSE) -> 171.33 | F11: =VLOOKUP($A11,'RECAP DIRCOM'!$G$6:$CU$12,50,FALSE) -> 49% | G11: =VLOOKUP($A11,'RECAP DIRCOM'!$G$6:$CU$12,51,FALSE) -> 4 | H11: =VLOOKUP($A11,'RECAP DIRCOM'!$G$6:$CU$12,52,FALSE) -> 7,314 | I11: =VLOOKUP($A11,'RECAP DIRCOM'!$G$6:$CU$12,53,FALSE) -> 33.03 | J11: =VLOOKUP($A11,'RECAP DIRCOM'!$G$6:$CU$12,54,FALSE) -> 27% | K11: =VLOOKUP($A11,'RECAP DIRCOM'!$G$6:$CU$12,55,FALSE) -> 6 | L11: =VLOOKUP($A11,'RECAP DIRCOM'!$G$6:$CU$12,56,FALSE) -> 3,364 | M11: =VLOOKUP($A11,'RECAP DIRCOM'!$G$6:$CU$12,57,FALSE) -> 15.19 | N11: =VLOOKUP($A11,'RECAP DIRCOM'!$G$6:$CU$12,58,FALSE) -> 41% | O11: =VLOOKUP($A11,'RECAP DIRCOM'!$G$6:$CU$12,59,FALSE) -> 6 | P11: =VLOOKUP($A11,'RECAP DIRCOM'!$G$6:$CU$12,60,FALSE) -> 39% | Q11: =VLOOKUP($A11,'RECAP DIRCOM'!$G$6:$CU$12,61,FALSE) -> 35% | R11: =VLOOKUP($A11,'RECAP DIRCOM'!$G$6:$CU$12,62,FALSE) -> 6
A12: 264 | B12: Haut-Rhin | C12: =VLOOKUP($A12,'RECAP DIRCOM'!$G$6:$CU$12,3,FALSE) -> 123 | D12: =VLOOKUP($A12,'RECAP DIRCOM'!$G$6:$CU$12,48,FALSE) -> 17,576 | E12: =VLOOKUP($A12,'RECAP DIRCOM'!$G$6:$CU$12,49,FALSE) -> 142.65 | F12: =VLOOKUP($A12,'RECAP DIRCOM'!$G$6:$CU$12,50,FALSE) -> 58% | G12: =VLOOKUP($A12,'RECAP DIRCOM'!$G$6:$CU$12,51,FALSE) -> 7 | H12: =VLOOKUP($A12,'RECAP DIRCOM'!$G$6:$CU$12,52,FALSE) -> 3,864 | I12: =VLOOKUP($A12,'RECAP DIRCOM'!$G$6:$CU$12,53,FALSE) -> 31.36 | J12: =VLOOKUP($A12,'RECAP DIRCOM'!$G$6:$CU$12,54,FALSE) -> 31% | K12: =VLOOKUP($A12,'RECAP DIRCOM'!$G$6:$CU$12,55,FALSE) -> 7 | L12: =VLOOKUP($A12,'RECAP DIRCOM'!$G$6:$CU$12,56,FALSE) -> 1,524 | M12: =VLOOKUP($A12,'RECAP DIRCOM'!$G$6:$CU$12,57,FALSE) -> 12.37 | N12: =VLOOKUP($A12,'RECAP DIRCOM'!$G$6:$CU$12,58,FALSE) -> 52% | O12: =VLOOKUP($A12,'RECAP DIRCOM'!$G$6:$CU$12,59,FALSE) -> 7 | P12: =VLOOKUP($A12,'RECAP DIRCOM'!$G$6:$CU$12,60,FALSE) -> 47% | Q12: =VLOOKUP($A12,'RECAP DIRCOM'!$G$6:$CU$12,61,FALSE) -> 43% | R12: =VLOOKUP($A12,'RECAP DIRCOM'!$G$6:$CU$12,62,FALSE) -> 7
A13: 30 | B13: Marne-Ardennes | C13: =VLOOKUP($A13,'RECAP DIRCOM'!$G$6:$CU$12,3,FALSE) -> 193 | D13: =VLOOKUP($A13,'RECAP DIRCOM'!$G$6:$CU$12,48,FALSE) -> 65,504 | E13: =VLOOKUP($A13,'RECAP DIRCOM'!$G$6:$CU$12,49,FALSE) -> 339.07 | F13: =VLOOKUP($A13,'RECAP DIRCOM'!$G$6:$CU$12,50,FALSE) -> 0% | G13: =VLOOKUP($A13,'RECAP DIRCOM'!$G$6:$CU$12,51,FALSE) -> 1 | H13: =VLOOKUP($A13,'RECAP DIRCOM'!$G$6:$CU$12,52,FALSE) -> 7,543 | I13: =VLOOKUP($A13,'RECAP DIRCOM'!$G$6:$CU$12,53,FALSE) -> 39.04 | J13: =VLOOKUP($A13,'RECAP DIRCOM'!$G$6:$CU$12,54,FALSE) -> 14% | K13: =VLOOKUP($A13,'RECAP DIRCOM'!$G$6:$CU$12,55,FALSE) -> 3 | L13: =VLOOKUP($A13,'RECAP DIRCOM'!$G$6:$CU$12,56,FALSE) -> 4,956 | M13: =VLOOKUP($A13,'RECAP DIRCOM'!$G$6:$CU$12,57,FALSE) -> 25.65 | N13: =VLOOKUP($A13,'RECAP DIRCOM'!$G$6:$CU$12,58,FALSE) -> 0% | O13: =VLOOKUP($A13,'RECAP DIRCOM'!$G$6:$CU$12,59,FALSE) -> 1 | P13: =VLOOKUP($A13,'RECAP DIRCOM'!$G$6:$CU$12,60,FALSE) -> 4% | Q13: =VLOOKUP($A13,'RECAP DIRCOM'!$G$6:$CU$12,61,FALSE) -> 0% | R13: =VLOOKUP($A13,'RECAP DIRCOM'!$G$6:$CU$12,62,FALSE) -> 1
A14: 110 | B14: Meurthe et Moselle Meuse | C14: =VLOOKUP($A14,'RECAP DIRCOM'!$G$6:$CU$12,3,FALSE) -> 203 | D14: =VLOOKUP($A14,'RECAP DIRCOM'!$G$6:$CU$12,48,FALSE) -> 55,995 | E14: =VLOOKUP($A14,'RECAP DIRCOM'!$G$6:$CU$12,49,FALSE) -> 276.00 | F14: =VLOOKUP($A14,'RECAP DIRCOM'!$G$6:$CU$12,50,FALSE) -> 19% | G14: =VLOOKUP($A14,'RECAP DIRCOM'!$G$6:$CU$12,51,FALSE) -> 3 | H14: =VLOOKUP($A14,'RECAP DIRCOM'!$G$6:$CU$12,52,FALSE) -> 8,519 | I14: =VLOOKUP($A14,'RECAP DIRCOM'!$G$6:$CU$12,53,FALSE) -> 41.99 | J14: =VLOOKUP($A14,'RECAP DIRCOM'!$G$6:$CU$12,54,FALSE) -> 7% | K14: =VLOOKUP($A14,'RECAP DIRCOM'!$G$6:$CU$12,55,FALSE) -> 2 | L14: =VLOOKUP($A14,'RECAP DIRCOM'!$G$6:$CU$12,56,FALSE) -> 4,084 | M14: =VLOOKUP($A14,'RECAP DIRCOM'!$G$6:$CU$12,57,FALSE) -> 20.13 | N14: =VLOOKUP($A14,'RECAP DIRCOM'!$G$6:$CU$12,58,FALSE) -> 22% | O14: =VLOOKUP($A14,'RECAP DIRCOM'!$G$6:$CU$12,59,FALSE) -> 3 | P14: =VLOOKUP($A14,'RECAP DIRCOM'!$G$6:$CU$12,60,FALSE) -> 16% | Q14: =VLOOKUP($A14,'RECAP DIRCOM'!$G$6:$CU$12,61,FALSE) -> 12% | R14: =VLOOKUP($A14,'RECAP DIRCOM'!$G$6:$CU$12,62,FALSE) -> 3
A15: 160 | B15: Moselle | C15: =VLOOKUP($A15,'RECAP DIRCOM'!$G$6:$CU$12,3,FALSE) -> 225 | D15: =VLOOKUP($A15,'RECAP DIRCOM'!$G$6:$CU$12,48,FALSE) -> 71,539 | E15: =VLOOKUP($A15,'RECAP DIRCOM'!$G$6:$CU$12,49,FALSE) -> 317.41 | F15: =VLOOKUP($A15,'RECAP DIRCOM'!$G$6:$CU$12,50,FALSE) -> 6% | G15: =VLOOKUP($A15,'RECAP DIRCOM'!$G$6:$CU$12,51,FALSE) -> 2 | H15: =VLOOKUP($A15,'RECAP DIRCOM'!$G$6:$CU$12,52,FALSE) -> 10,224 | I15: =VLOOKUP($A15,'RECAP DIRCOM'!$G$6:$CU$12,53,FALSE) -> 45.36 | J15: =VLOOKUP($A15,'RECAP DIRCOM'!$G$6:$CU$12,54,FALSE) -> 0% | K15: =VLOOKUP($A15,'RECAP DIRCOM'!$G$6:$CU$12,55,FALSE) -> 1 | L15: =VLOOKUP($A15,'RECAP DIRCOM'!$G$6:$CU$12,56,FALSE) -> 4,953 | M15: =VLOOKUP($A15,'RECAP DIRCOM'!$G$6:$CU$12,57,FALSE) -> 21.98 | N15: =VLOOKUP($A15,'RECAP DIRCOM'!$G$6:$CU$12,58,FALSE) -> 14% | O15: =VLOOKUP($A15,'RECAP DIRCOM'!$G$6:$CU$12,59,FALSE) -> 2 | P15: =VLOOKUP($A15,'RECAP DIRCOM'!$G$6:$CU$12,60,FALSE) -> 8% | Q15: =VLOOKUP($A15,'RECAP DIRCOM'!$G$6:$CU$12,61,FALSE) -> 3% | R15: =VLOOKUP($A15,'RECAP DIRCOM'!$G$6:$CU$12,62,FALSE) -> 2
A16: 80 | B16: Vosges | C16: =VLOOKUP($A16,'RECAP DIRCOM'!$G$6:$CU$12,3,FALSE) -> 117 | D16: =VLOOKUP($A16,'RECAP DIRCOM'!$G$6:$CU$12,48,FALSE) -> 19,574 | E16: =VLOOKUP($A16,'RECAP DIRCOM'!$G$6:$CU$12,49,FALSE) -> 167.30 | F16: =VLOOKUP($A16,'RECAP DIRCOM'!$G$6:$CU$12,50,FALSE) -> 51% | G16: =VLOOKUP($A16,'RECAP DIRCOM'!$G$6:$CU$12,51,FALSE) -> 5 | H16: =VLOOKUP($A16,'RECAP DIRCOM'!$G$6:$CU$12,52,FALSE) -> 4,199 | I16: =VLOOKUP($A16,'RECAP DIRCOM'!$G$6:$CU$12,53,FALSE) -> 35.89 | J16: =VLOOKUP($A16,'RECAP DIRCOM'!$G$6:$CU$12,54,FALSE) -> 21% | K16: =VLOOKUP($A16,'RECAP DIRCOM'!$G$6:$CU$12,55,FALSE) -> 5 | L16: =VLOOKUP($A16,'RECAP DIRCOM'!$G$6:$CU$12,56,FALSE) -> 2,047 | M16: =VLOOKUP($A16,'RECAP DIRCOM'!$G$6:$CU$12,57,FALSE) -> 17.50 | N16: =VLOOKUP($A16,'RECAP DIRCOM'!$G$6:$CU$12,58,FALSE) -> 32% | O16: =VLOOKUP($A16,'RECAP DIRCOM'!$G$6:$CU$12,59,FALSE) -> 4 | P16: =VLOOKUP($A16,'RECAP DIRCOM'!$G$6:$CU$12,60,FALSE) -> 34% | Q16: =VLOOKUP($A16,'RECAP DIRCOM'!$G$6:$CU$12,61,FALSE) -> 30% | R16: =VLOOKUP($A16,'RECAP DIRCOM'!$G$6:$CU$12,62,FALSE) -> 4
B17: Total CEGEE Directions Régionales | C17: =SUM(C10:C16) -> 1196

Sheet DC_IARD
B1: Accueil | D1: BAROMETRE BDD - DIRECTIONS REGIONALES
D2: IARD ET PREVOYANCE
D3: =ACCUEIL!F7 -> 2022-09-11
D7: Ventes Nettes produits pondérés | H7: Ventes sur client non détenteur de l’univers | L7: Total IARD Prévoyance
D8: =DATEMAJ!C23 -> au 11/09 | F8: coef | G8: ='RECAP DIRCOM'!BX4 -> 12% | H8: =DATEMAJ!C24 -> au 11/09 | J8: coef | K8: ='RECAP DIRCOM'!CB4 -> 8% | M8: coef | N8: ='RECAP DIRCOM'!CE4 -> 20%
B9: Direction | C9: ="ETP perf "&DATEMAJ!$C$28 -> ETP perf 11-sept | D9: VN | E9: VN / ETP | F9: % Ecart au 1er | G9: Rang | H9: VB | I9: VB / ETP | J9: % Ecart au 1er | K9: Rang | L9: Moyenne ecart au 1er | M9: % Ecart au 1er | N9: Rang CEGEE
A10: 50 | B10: Aube Haute Marne | C10: =VLOOKUP($A10,'RECAP DIRCOM'!$G$6:$CU$12,3,FALSE) -> 112 | D10: =VLOOKUP($A10,'RECAP DIRCOM'!$G$6:$CU$12,67,FALSE) -> 9,210 | E10: =VLOOKUP($A10,'RECAP DIRCOM'!$G$6:$CU$12,68,FALSE) -> 81.87 | F10: =VLOOKUP($A10,'RECAP DIRCOM'!$G$6:$CU$12,69,FALSE) -> 32% | G10: =VLOOKUP($A10,'RECAP DIRCOM'!$G$6:$CU$12,70,FALSE) -> 4 | H10: =VLOOKUP($A10,'RECAP DIRCOM'!$G$6:$CU$12,71,FALSE) -> 3,104 | I10: =VLOOKUP($A10,'RECAP DIRCOM'!$G$6:$CU$12,72,FALSE) -> 27.59 | J10: =VLOOKUP($A10,'RECAP DIRCOM'!$G$6:$CU$12,73,FALSE) -> 23% | K10: =VLOOKUP($A10,'RECAP DIRCOM'!$G$6:$CU$12,74,FALSE) -> 5 | L10: =VLOOKUP($A10,'RECAP DIRCOM'!$G$6:$CU$12,75,FALSE) -> 29% | M10: =VLOOKUP($A10,'RECAP DIRCOM'!$G$6:$CU$12,76,FALSE) -> 29% | N10: =VLOOKUP($A10,'RECAP DIRCOM'!$G$6:$CU$12,77,FALSE) -> 4
A11: 262 | B11: Bas-Rhin | C11: =VLOOKUP($A11,'RECAP DIRCOM'!$G$6:$CU$12,3,FALSE) -> 221 | D11: =VLOOKUP($A11,'RECAP DIRCOM'!$G$6:$CU$12,67,FALSE) -> 16,057 | E11: =VLOOKUP($A11,'RECAP DIRCOM'!$G$6:$CU$12,68,FALSE) -> 72.51 | F11: =VLOOKUP($A11,'RECAP DIRCOM'!$G$6:$CU$12,69,FALSE) -> 40% | G11: =VLOOKUP($A11,'RECAP DIRCOM'!$G$6:$CU$12,70,FALSE) -> 5 | H11: =VLOOKUP($A11,'RECAP DIRCOM'!$G$6:$CU$12,71,FALSE) -> 6,531 | I11: =VLOOKUP($A11,'RECAP DIRCOM'!$G$6:$CU$12,72,FALSE) -> 29.49 | J11: =VLOOKUP($A11,'RECAP DIRCOM'!$G$6:$CU$12,73,FALSE) -> 18% | K11: =VLOOKUP($A11,'RECAP DIRCOM'!$G$6:$CU$12,74,FALSE) -> 4 | L11: =VLOOKUP($A11,'RECAP DIRCOM'!$G$6:$CU$12,75,FALSE) -> 31% | M11: =VLOOKUP($A11,'RECAP DIRCOM'!$G$6:$CU$12,76,FALSE) -> 31% | N11: =VLOOKUP($A11,'RECAP DIRCOM'!$G$6:$CU$12,77,FALSE) -> 5
A12: 264 | B12: Haut-Rhin | C12: =VLOOKUP($A12,'RECAP DIRCOM'!$G$6:$CU$12,3,FALSE) -> 123 | D12: =VLOOKUP($A12,'RECAP DIRCOM'!$G$6:$CU$12,67,FALSE) -> 2,830 | E12: =VLOOKUP($A12,'RECAP DIRCOM'!$G$6:$CU$12,68,FALSE) -> 22.97 | F12: =VLOOKUP($A12,'RECAP DIRCOM'!$G$6:$CU$12,69,FALSE) -> 81% | G12: =VLOOKUP($A12,'RECAP DIRCOM'!$G$6:$CU$12,70,FALSE) -> 7 | H12: =VLOOKUP($A12,'RECAP DIRCOM'!$G$6:$CU$12,71,FALSE) -> 2,875 | I12: =VLOOKUP($A12,'RECAP DIRCOM'!$G$6:$CU$12,72,FALSE) -> 23.33 | J12: =VLOOKUP($A12,'RECAP DIRCOM'!$G$6:$CU$12,73,FALSE) -> 35% | K12: =VLOOKUP($A12,'RECAP DIRCOM'!$G$6:$CU$12,74,FALSE) -> 7 | L12: =VLOOKUP($A12,'RECAP DIRCOM'!$G$6:$CU$12,75,FALSE) -> 63% | M12: =VLOOKUP($A12,'RECAP DIRCOM'!$G$6:$CU$12,76,FALSE) -> 63% | N12: =VLOOKUP($A12,'RECAP DIRCOM'!$G$6:$CU$12,77,FALSE) -> 7
A13: 30 | B13: Marne-Ardennes | C13: =VLOOKUP($A13,'RECAP DIRCOM'!$G$6:$CU$12,3,FALSE) -> 193 | D13: =VLOOKUP($A13,'RECAP DIRCOM'!$G$6:$CU$12,67,FALSE) -> 23,312 | E13: =VLOOKUP($A13,'RECAP DIRCOM'!$G$6:$CU$12,68,FALSE) -> 120.67 | F13: =VLOOKUP($A13,'RECAP DIRCOM'!$G$6:$CU$12,69,FALSE) -> 0% | G13: =VLOOKUP($A13,'RECAP DIRCOM'!$G$6:$CU$12,70,FALSE) -> 1 | H13: =VLOOKUP($A13,'RECAP DIRCOM'!$G$6:$CU$12,71,FALSE) -> 6,946 | I13: =VLOOKUP($A13,'RECAP DIRCOM'!$G$6:$CU$12,72,FALSE) -> 35.95 | J13: =VLOOKUP($A13,'RECAP DIRCOM'!$G$6:$CU$12,73,FALSE) -> 0% | K13: =VLOOKUP($A13,'RECAP DIRCOM'!$G$6:$CU$12,74,FALSE) -> 1 | L13: =VLOOKUP($A13,'RECAP DIRCOM'!$G$6:$CU$12,75,FALSE) -> 0% | M13: =VLOOKUP($A13,'RECAP DIRCOM'!$G$6:$CU$12,76,FALSE) -> 0% | N13: =VLOOKUP($A13,'RECAP DIRCOM'!$G$6:$CU$12,77,FALSE) -> 1
A14: 110 | B14: Meurthe et Moselle Meuse | C14: =VLOOKUP($A14,'RECAP DIRCOM'!$G$6:$CU$12,3,FALSE) -> 203 | D14: =VLOOKUP($A14,'RECAP DIRCOM'!$G$6:$CU$12,67,FALSE) -> 17,743 | E14: =VLOOKUP($A14,'RECAP DIRCOM'!$G$6:$CU$12,68,FALSE) -> 87.46 | F14: =VLOOKUP($A14,'RECAP DIRCOM'!$G$6:$CU$12,69,FALSE) -> 28% | G14: =VLOOKUP($A14,'RECAP DIRCOM'!$G$6:$CU$12,70,FALSE) -> 3 | H14: =VLOOKUP($A14,'RECAP DIRCOM'!$G$6:$CU$12,71,FALSE) -> 6,538 | I14: =VLOOKUP($A14,'RECAP DIRCOM'!$G$6:$CU$12,72,FALSE) -> 32.23 | J14: =VLOOKUP($A14,'RECAP DIRCOM'!$G$6:$CU$12,73,FALSE) -> 10% | K14: =VLOOKUP($A14,'RECAP DIRCOM'!$G$6:$CU$12,74,FALSE) -> 3 | L14: =VLOOKUP($A14,'RECAP DIRCOM'!$G$6:$CU$12,75,FALSE) -> 21% | M14: =VLOOKUP($A14,'RECAP DIRCOM'!$G$6:$CU$12,76,FALSE) -> 21% | N14: =VLOOKUP($A14,'RECAP DIRCOM'!$G$6:$CU$12,77,FALSE) -> 3
A15: 160 | B15: Moselle | C15: =VLOOKUP($A15,'RECAP DIRCOM'!$G$6:$CU$12,3,FALSE) -> 225 | D15: =VLOOKUP($A15,'RECAP DIRCOM'!$G$6:$CU$12,67,FALSE) -> 26,410 | E15: =VLOOKUP($A15,'RECAP DIRCOM'!$G$6:$CU$12,68,FALSE) -> 117.18 | F15: =VLOOKUP($A15,'RECAP DIRCOM'!$G$6:$CU$12,69,FALSE) -> 3% | G15: =VLOOKUP($A15,'RECAP DIRCOM'!$G$6:$CU$12,70,FALSE) -> 2 | H15: =VLOOKUP($A15,'RECAP DIRCOM'!$G$6:$CU$12,71,FALSE) -> 7,989 | I15: =VLOOKUP($A15,'RECAP DIRCOM'!$G$6:$CU$12,72,FALSE) -> 35.45 | J15: =VLOOKUP($A15,'RECAP DIRCOM'!$G$6:$CU$12,73,FALSE) -> 1% | K15: =VLOOKUP($A15,'RECAP DIRCOM'!$G$6:$CU$12,74,FALSE) -> 2 | L15: =VLOOKUP($A15,'RECAP DIRCOM'!$G$6:$CU$12,75,FALSE) -> 2% | M15: =VLOOKUP($A15,'RECAP DIRCOM'!$G$6:$CU$12,76,FALSE) -> 2% | N15: =VLOOKUP($A15,'RECAP DIRCOM'!$G$6:$CU$12,77,FALSE) -> 2
A16: 80 | B16: Vosges | C16: =VLOOKUP($A16,'RECAP DIRCOM'!$G$6:$CU$12,3,FALSE) -> 117 | D16: =VLOOKUP($A16,'RECAP DIRCOM'!$G$6:$CU$12,67,FALSE) -> 8,323 | E16: =VLOOKUP($A16,'RECAP DIRCOM'!$G$6:$CU$12,68,FALSE) -> 71.14 | F16: =VLOOKUP($A16,'RECAP DIRCOM'!$G$6:$CU$12,69,FALSE) -> 41% | G16: =VLOOKUP($A16,'RECAP DIRCOM'!$G$6:$CU$12,70,FALSE) -> 6 | H16: =VLOOKUP($A16,'RECAP DIRCOM'!$G$6:$CU$12,71,FALSE) -> 3,008 | I16: =VLOOKUP($A16,'RECAP DIRCOM'!$G$6:$CU$12,72,FALSE) -> 25.71 | J16: =VLOOKUP($A16,'RECAP DIRCOM'!$G$6:$CU$12,73,FALSE) -> 28% | K16: =VLOOKUP($A16,'RECAP DIRCOM'!$G$6:$CU$12,74,FALSE) -> 6 | L16: =VLOOKUP($A16,'RECAP DIRCOM'!$G$6:$CU$12,75,FALSE) -> 36% | M16: =VLOOKUP($A16,'RECAP DIRCOM'!$G$6:$CU$12,76,FALSE) -> 36% | N16: =VLOOKUP($A16,'RECAP DIRCOM'!$G$6:$CU$12,77,FALSE) -> 6
B17: Total CEGEE Directions Régionales | C17: =SUM(C10:C16) -> 1196

Sheet DC_SATISFACTION
B1: Accueil | D1: BAROMETRE BDD - DIRECTIONS REGIONALES
D2: SATISFACTION
D3: =ACCUEIL!F7 -> 2022-09-11
D7: NPS à froid (SAE) | G7: NPS à chaud (QHD) | J7: Total Satisfaction Clients
D8: =DATEMAJ!E4 -> au 31/07 | E8: coef | F8: ='RECAP DIRCOM'!M4 -> 10% | G8: =DATEMAJ!C5 -> au 31/07 | H8: coef | I8: ='RECAP DIRCOM'!P4 -> 10% | K8: coef | L8: ='RECAP DIRCOM'!S4 -> 20%
B9: Direction | C9: ="ETP perf "&DATEMAJ!$C$28 -> ETP perf 11-sept | E9: % Ecart au 1er | F9: Rang | H9: % Ecart au 1er | I9: Rang | J9: Moyenne ecart au 1er | K9: % Ecart au 1er | L9: Rang CEGEE
A10: 50 | B10: Aube Haute Marne | C10: =VLOOKUP($A10,'RECAP DIRCOM'!$G$6:$CU$12,3,FALSE) -> 112 | D10: =VLOOKUP($A10,'RECAP DIRCOM'!$G$6:$CU$12,5,FALSE) -> 4.25 | E10: =VLOOKUP($A10,'RECAP DIRCOM'!$G$6:$CU$12,6,FALSE) -> 82% | F10: =VLOOKUP($A10,'RECAP DIRCOM'!$G$6:$CU$12,7,FALSE) -> 6 | G10: =VLOOKUP($A10,'RECAP DIRCOM'!$G$6:$CU$12,8,FALSE) -> 55% | H10: =VLOOKUP($A10,'RECAP DIRCOM'!$G$6:$CU$12,9,FALSE) -> 21% | I10: =VLOOKUP($A10,'RECAP DIRCOM'!$G$6:$CU$12,10,FALSE) -> 6 | J10: =VLOOKUP($A10,'RECAP DIRCOM'!$G$6:$CU$12,11,FALSE) -> 51% | K10: =VLOOKUP($A10,'RECAP DIRCOM'!$G$6:$CU$12,12,FALSE) -> 51% | L10: =VLOOKUP($A10,'RECAP DIRCOM'!$G$6:$CU$12,13,FALSE) -> 6
A11: 262 | B11: Bas-Rhin | C11: =VLOOKUP($A11,'RECAP DIRCOM'!$G$6:$CU$12,3,FALSE) -> 221 | D11: =VLOOKUP($A11,'RECAP DIRCOM'!$G$6:$CU$12,5,FALSE) -> 5.75 | E11: =VLOOKUP($A11,'RECAP DIRCOM'!$G$6:$CU$12,6,FALSE) -> 75% | F11: =VLOOKUP($A11,'RECAP DIRCOM'!$G$6:$CU$12,7,FALSE) -> 5 | G11: =VLOOKUP($A11,'RECAP DIRCOM'!$G$6:$CU$12,8,FALSE) -> 62% | H11: =VLOOKUP($A11,'RECAP DIRCOM'!$G$6:$CU$12,9,FALSE) -> 11% | I11: =VLOOKUP($A11,'RECAP DIRCOM'!$G$6:$CU$12,10,FALSE) -> 4 | J11: =VLOOKUP($A11,'RECAP DIRCOM'!$G$6:$CU$12,11,FALSE) -> 43% | K11: =VLOOKUP($A11,'RECAP DIRCOM'!$G$6:$CU$12,12,FALSE) -> 43% | L11: =VLOOKUP($A11,'RECAP DIRCOM'!$G$6:$CU$12,13,FALSE) -> 5
A12: 264 | B12: Haut-Rhin | C12: =VLOOKUP($A12,'RECAP DIRCOM'!$G$6:$CU$12,3,FALSE) -> 123 | D12: =VLOOKUP($A12,'RECAP DIRCOM'!$G$6:$CU$12,5,FALSE) -> 3 | E12: =VLOOKUP($A12,'RECAP DIRCOM'!$G$6:$CU$12,6,FALSE) -> 87% | F12: =VLOOKUP($A12,'RECAP DIRCOM'!$G$6:$CU$12,7,FALSE) -> 7 | G12: =VLOOKUP($A12,'RECAP DIRCOM'!$G$6:$CU$12,8,FALSE) -> 48% | H12: =VLOOKUP($A12,'RECAP DIRCOM'!$G$6:$CU$12,9,FALSE) -> 30% | I12: =VLOOKUP($A12,'RECAP DIRCOM'!$G$6:$CU$12,10,FALSE) -> 7 | J12: =VLOOKUP($A12,'RECAP DIRCOM'!$G$6:$CU$12,11,FALSE) -> 59% | K12: =VLOOKUP($A12,'RECAP DIRCOM'!$G$6:$CU$12,12,FALSE) -> 59% | L12: =VLOOKUP($A12,'RECAP DIRCOM'!$G$6:$CU$12,13,FALSE) -> 7
A13: 30 | B13: Marne-Ardennes | C13: =VLOOKUP($A13,'RECAP DIRCOM'!$G$6:$CU$12,3,FALSE) -> 193 | D13: =VLOOKUP($A13,'RECAP DIRCOM'!$G$6:$CU$12,5,FALSE) -> 17.25 | E13: =VLOOKUP($A13,'RECAP DIRCOM'!$G$6:$CU$12,6,FALSE) -> 26% | F13: =VLOOKUP($A13,'RECAP DIRCOM'!$G$6:$CU$12,7,FALSE) -> 2 | G13: =VLOOKUP($A13,'RECAP DIRCOM'!$G$6:$CU$12,8,FALSE) -> 66% | H13: =VLOOKUP($A13,'RECAP DIRCOM'!$G$6:$CU$12,9,FALSE) -> 4% | I13: =VLOOKUP($A13,'RECAP DIRCOM'!$G$6:$CU$12,10,FALSE) -> 2 | J13: =VLOOKUP($A13,'RECAP DIRCOM'!$G$6:$CU$12,11,FALSE) -> 15% | K13: =VLOOKUP($A13,'RECAP DIRCOM'!$G$6:$CU$12,12,FALSE) -> 15% | L13: =VLOOKUP($A13,'RECAP DIRCOM'!$G$6:$CU$12,13,FALSE) -> 2
A14: 110 | B14: Meurthe et Moselle Meuse | C14: =VLOOKUP($A14,'RECAP DIRCOM'!$G$6:$CU$12,3,FALSE) -> 203 | D14: =VLOOKUP($A14,'RECAP DIRCOM'!$G$6:$CU$12,5,FALSE) -> 10.75 | E14: =VLOOKUP($A14,'RECAP DIRCOM'!$G$6:$CU$12,6,FALSE) -> 54% | F14: =VLOOKUP($A14,'RECAP DIRCOM'!$G$6:$CU$12,7,FALSE) -> 4 | G14: =VLOOKUP($A14,'RECAP DIRCOM'!$G$6:$CU$12,8,FALSE) -> 61% | H14: =VLOOKUP($A14,'RECAP DIRCOM'!$G$6:$CU$12,9,FALSE) -> 12% | I14: =VLOOKUP($A14,'RECAP DIRCOM'!$G$6:$CU$12,10,FALSE) -> 5 | J14: =VLOOKUP($A14,'RECAP DIRCOM'!$G$6:$CU$12,11,FALSE) -> 33% | K14: =VLOOKUP($A14,'RECAP DIRCOM'!$G$6:$CU$12,12,FALSE) -> 33% | L14: =VLOOKUP($A14,'RECAP DIRCOM'!$G$6:$CU$12,13,FALSE) -> 4
A15: 160 | B15: Moselle | C15: =VLOOKUP($A15,'RECAP DIRCOM'!$G$6:$CU$12,3,FALSE) -> 225 | D15: =VLOOKUP($A15,'RECAP DIRCOM'!$G$6:$CU$12,5,FALSE) -> 15.25 | E15: =VLOOKUP($A15,'RECAP DIRCOM'!$G$6:$CU$12,6,FALSE) -> 34% | F15: =VLOOKUP($A15,'RECAP DIRCOM'!$G$6:$CU$12,7,FALSE) -> 3 | G15: =VLOOKUP($A15,'RECAP DIRCOM'!$G$6:$CU$12,8,FALSE) -> 63% | H15: =VLOOKUP($A15,'RECAP DIRCOM'!$G$6:$CU$12,9,FALSE) -> 9% | I15: =VLOOKUP($A15,'RECAP DIRCOM'!$G$6:$CU$12,10,FALSE) -> 3 | J15: =VLOOKUP($A15,'RECAP DIRCOM'!$G$6:$CU$12,11,FALSE) -> 22% | K15: =VLOOKUP($A15,'RECAP DIRCOM'!$G$6:$CU$12,12,FALSE) -> 22% | L15: =VLOOKUP($A15,'RECAP DIRCOM'!$G$6:$CU$12,13,FALSE) -> 3
A16: 80 | B16: Vosges | C16: =VLOOKUP($A16,'RECAP DIRCOM'!$G$6:$CU$12,3,FALSE) -> 117 | D16: =VLOOKUP($A16,'RECAP DIRCOM'!$G$6:$CU$12,5,FALSE) -> 23.25 | E16: =VLOOKUP($A16,'RECAP DIRCOM'!$G$6:$CU$12,6,FALSE) -> 0% | F16: =VLOOKUP($A16,'RECAP DIRCOM'!$G$6:$CU$12,7,FALSE) -> 1 | G16: =VLOOKUP($A16,'RECAP DIRCOM'!$G$6:$CU$12,8,FALSE) -> 69% | H16: =VLOOKUP($A16,'RECAP DIRCOM'!$G$6:$CU$12,9,FALSE) -> 0% | I16: =VLOOKUP($A16,'RECAP DIRCOM'!$G$6:$CU$12,10,FALSE) -> 1 | J16: =VLOOKUP($A16,'RECAP DIRCOM'!$G$6:$CU$12,11,FALSE) -> 0% | K16: =VLOOKUP($A16,'RECAP DIRCOM'!$G$6:$CU$12,12,FALSE) -> 0% | L16: =VLOOKUP($A16,'RECAP DIRCOM'!$G$6:$CU$12,13,FALSE) -> 1
B17: Total CEGEE Directions Régionales | C17: =SUM(C10:C16) -> 1196

Sheet SE_FICHE
A1: Accueil
A2: BAROMETRE BDD
A4: UNITE: | B4: TERRITOIRE | E4: ETP perf : | F4: =VLOOKUP(A5,'RECAP SECT'!$G$6:$I$23,3,FALSE) -> 47.09
A5: =VLOOKUP(B5,LISTES!$H$6:$I$23,2,FALSE) -> 5130 | B5: COLMAR
C6: Coefficient du critére | E6: Résultats | I6: Ecart au 1ier | M6: Evolution | O6: Rang
E7: du 1ier | G7: du territoire | I7: Du mois | K7: Au 31/12/2019
A9: RANG au CLASSEMENT GENERAL | K9: =VLOOKUP($A$5,#REF!,168,FALSE) ->  | M9: =+K9-O9 ->  | O9: =VLOOKUP($A$5,'RECAP SECT'!$G$6:$CY$312,168,FALSE) ->  | S9: =VLOOKUP($A$5,#REF!,154,FALSE) ->  | U9: =+S9-O9 -> 
A11: CRITERE CONQUETE | C11: 15% | O11: =VLOOKUP($A$5,'RECAP SECT'!$G$6:$CY$312,23,FALSE) -> 41.7286048
B12: PNB Evolution nette Clients BP | C12: 4% | E12: ='RECAP SECT'!#REF! ->  | G12: =VLOOKUP($A$5,'RECAP SECT'!$G$6:$CY$312,6,FALSE) -> 0.9 | I12: =VLOOKUP($A$5,'RECAP SECT'!$G$6:$CY$312,7,FALSE) -> 1500% | K12: =VLOOKUP($A$5,#REF!,7,FALSE) ->  | M12: =+K12-I12 ->  | O12: =VLOOKUP($A$5,'RECAP SECT'!$G$6:$CY$312,8,FALSE) -> 0.5209893936 | S12: =VLOOKUP($A$5,#REF!,6,FALSE) ->  | U12: =+S12-I12 -> 
B13: PNB Evolution nette Clients PREMIUM | C13: 5% | E13: ='RECAP SECT'!#REF! ->  | G13: =VLOOKUP($A$5,'RECAP SECT'!$G$6:$CY$312,10,FALSE) -> 16.0 | I13: =VLOOKUP($A$5,'RECAP SECT'!$G$6:$CY$312,11,FALSE) -> 60% | K13: =VLOOKUP($A$5,#REF!,11,FALSE) ->  | M13: =+K13-I13 ->  | O13: =VLOOKUP($A$5,'RECAP SECT'!$G$6:$CY$312,12,FALSE) -> 0.5682290136 | S13: =VLOOKUP($A$5,#REF!,9,FALSE) ->  | U13: =+S13-I13 -> 
B14: PNB Evolution nette Clients Jeunes Equipés | C14: 3% | E14: ='RECAP SECT'!#REF! ->  | G14: =VLOOKUP($A$5,'RECAP SECT'!$G$6:$CY$312,14,FALSE) -> 0.0 | I14: =VLOOKUP($A$5,'RECAP SECT'!$G$6:$CY$312,15,FALSE) -> 0% | K14: =VLOOKUP($A$5,#REF!,15,FALSE) ->  | M14: =+K14-I14 ->  | O14: =VLOOKUP($A$5,'RECAP SECT'!$G$6:$CY$312,16,FALSE) -> 0 | S14: =VLOOKUP($A$5,#REF!,12,FALSE) ->  | U14: =+S14-I14 -> 
B15: PNB Evolution nette Clients Pro Actifs Equipés | C15: 3% | E15: ='RECAP SECT'!W4 -> 0.0 | G15: =VLOOKUP($A$5,'RECAP SECT'!$G$6:$CY$312,18,FALSE) -> 447.9 | I15: =VLOOKUP($A$5,'RECAP SECT'!$G$6:$CY$312,19,FALSE) -> 951% | K15: =VLOOKUP($A$5,#REF!,19,FALSE) ->  | M15: =+K15-I15 ->  | O15: =VLOOKUP($A$5,'RECAP SECT'!$G$6:$CY$312,20,FALSE) -> 0.7218945681 | S15: =VLOOKUP($A$5,#REF!,15,FALSE) ->  | U15: =+S15-I15 -> 
A17: CRITERE BANCARISATION | C17: 15% | O17: =VLOOKUP($A$5,'RECAP SECT'!$G$6:$CY$312,48,FALSE) -> 7693.817234
B18: PNB Ventes nettes forfaits | C18: 4% | E18: ='RECAP SECT'!X4 -> 34.2 | G18: =VLOOKUP($A$5,'RECAP SECT'!$G$6:$CY$312,31,FALSE) -> 0.0 | I18: =VLOOKUP($A$5,'RECAP SECT'!$G$6:$CY$312,32,FALSE) -> 0% | K18: =VLOOKUP($A$5,#REF!,32,FALSE) ->  | M18: =+K18-I18 ->  | O18: =VLOOKUP($A$5,'RECAP SECT'!$G$6:$CY$312,33,FALSE) -> 7806.183011 | S18: =VLOOKUP($A$5,#REF!,27,FALSE) ->  | U18: =+S18-I18 -> 
B19: PNB Ventes nettes IZICARTES Débit Différé | C19: 4% | E19: ='RECAP SECT'!AB4 -> 77.2 | G19: =VLOOKUP($A$5,'RECAP SECT'!$G$6:$CY$312,35,FALSE) -> 0.7 | I19: =VLOOKUP($A$5,'RECAP SECT'!$G$6:$CY$312,36,FALSE) -> 1500% | K19: =VLOOKUP($A$5,#REF!,36,FALSE) ->  | M19: =+K19-I19 ->  | O19: =VLOOKUP($A$5,'RECAP SECT'!$G$6:$CY$312,37,FALSE) -> 1730 | S19: =VLOOKUP($A$5,#REF!,30,FALSE) ->  | U19: =+S19-I19 -> 
B20: PNB Ventes nettes cartes HDG Débit Différé | C20: 4% | E20: ='RECAP SECT'!#REF! ->  | G20: =VLOOKUP($A$5,'RECAP SECT'!$G$6:$CY$312,39,FALSE) -> 0.5 | I20: =VLOOKUP($A$5,'RECAP SECT'!$G$6:$CY$312,40,FALSE) -> 1800% | K20: =VLOOKUP($A$5,#REF!,40,FALSE) ->  | M20: =+K20-I20 ->  | O20: =VLOOKUP($A$5,'RECAP SECT'!$G$6:$CY$312,41,FALSE) -> 0.5946640123 | S20: =VLOOKUP($A$5,#REF!,33,FALSE) ->  | U20: =+S20-I20 -> 
B21: PNB Ventes nettes Forfaits Pro, Carte pro | C21: 3% | E21: ='RECAP SECT'!#REF! ->  | G21: =VLOOKUP($A$5,'RECAP SECT'!$G$6:$CY$312,43,FALSE) -> 16.0 | I21: =VLOOKUP($A$5,'RECAP SECT'!$G$6:$CY$312,44,FALSE) -> 0% | K21: =VLOOKUP($A$5,#REF!,44,FALSE) ->  | M21: =+K21-I21 ->  | O21: =VLOOKUP($A$5,'RECAP SECT'!$G$6:$CY$312,45,FALSE) -> 0 | S21: =VLOOKUP($A$5,#REF!,39,FALSE) ->  | U21: =+S21-I21 -> 
A23: CRITERE EPARGNE | C23: 10% | O23: =VLOOKUP($A$5,'RECAP SECT'!$G$6:$CY$312,69,FALSE) -> 0.6959295395
B24: PNB Epargne Liquide | C24: 3% | E24: ='RECAP SECT'!AM4 -> 485.0 | G24: =VLOOKUP($A$5,'RECAP SECT'!$G$6:$CY$312,56,FALSE) -> 745.0 | I24: =VLOOKUP($A$5,'RECAP SECT'!$G$6:$CY$312,57,FALSE) -> 1582% | K24: =VLOOKUP($A$5,#REF!,57,FALSE) ->  | M24: =+K24-I24 ->  | O24: =VLOOKUP($A$5,'RECAP SECT'!$G$6:$CY$312,58,FALSE) -> 0.5797801277 | S24: =VLOOKUP($A$5,#REF!,51,FALSE) ->  | U24: =+S24-I24 -> 
B25: PNB CA UC + arbitrage | C25: 4% | E25: ='RECAP SECT'!AQ4 -> 73.4 | G25: =VLOOKUP($A$5,'RECAP SECT'!$G$6:$CY$312,60,FALSE) -> 0.5 | I25: =VLOOKUP($A$5,'RECAP SECT'!$G$6:$CY$312,61,FALSE) -> 47% | K25: =VLOOKUP($A$5,#REF!,61,FALSE) ->  | M25: =+K25-I25 ->  | O25: =VLOOKUP($A$5,'RECAP SECT'!$G$6:$CY$312,62,FALSE) -> 18 | S25: =VLOOKUP($A$5,#REF!,57,FALSE) ->  | U25: =+S25-I25 -> 
B26: PNB Excédent assurance vie | C26: 3% | E26: ='RECAP SECT'!#REF! ->  | G26: =VLOOKUP($A$5,'RECAP SECT'!$G$6:$CY$312,64,FALSE) -> 0.0 | I26: =VLOOKUP($A$5,'RECAP SECT'!$G$6:$CY$312,65,FALSE) -> 0% | K26: =VLOOKUP($A$5,#REF!,65,FALSE) ->  | M26: =+K26-I26 ->  | O26: =VLOOKUP($A$5,'RECAP SECT'!$G$6:$CY$312,66,FALSE) -> 0 | S26: =VLOOKUP($A$5,#REF!,60,FALSE) ->  | U26: =+S26-I26 -> 
A28: CRITERE CREDITS | C28: 15% | O28: =VLOOKUP($A$5,'RECAP SECT'!$G$6:$CY$312,102,FALSE) -> 
B29: PNB crédit conso | C29: 4% | E29: ='RECAP SECT'!BB4 -> 528.1 | G29: =VLOOKUP($A$5,'RECAP SECT'!$G$6:$CY$312,77,FALSE) -> 17.0 | I29: =VLOOKUP($A$5,'RECAP SECT'!$G$6:$CY$312,78,FALSE) -> 0% | K29: =VLOOKUP($A$5,#REF!,78,FALSE) ->  | M29: =+K29-I29 ->  | O29: =VLOOKUP($A$5,'RECAP SECT'!$G$6:$CY$312,79,FALSE) -> 0 | S29: =VLOOKUP($A$5,#REF!,75,FALSE) ->  | U29: =+S29-I29 -> 
B30: PNB ADE crédit conso | C30: 1% | E30: ='RECAP SECT'!#REF! ->  | G30: =VLOOKUP($A$5,'RECAP SECT'!$G$6:$CY$312,81,FALSE) -> 0.0 | I30: =VLOOKUP($A$5,'RECAP SECT'!$G$6:$CY$312,82,FALSE) -> 0% | K30: =VLOOKUP($A$5,#REF!,82,FALSE) ->  | O30: =VLOOKUP($A$5,'RECAP SECT'!$G$6:$CY$312,83,FALSE) -> 0 | S30: =VLOOKUP($A$5,#REF!,78,FALSE) -> 
B31: PNB crédit immo | C31: 4% | E31: ='RECAP SECT'!BF4 -> 56.8 | G31: =VLOOKUP($A$5,'RECAP SECT'!$G$6:$CY$312,85,FALSE) -> 0.0 | I31: =VLOOKUP($A$5,'RECAP SECT'!$G$6:$CY$312,86,FALSE) -> 0% | K31: =VLOOKUP($A$5,#REF!,86,FALSE) ->  | O31: =VLOOKUP($A$5,'RECAP SECT'!$G$6:$CY$312,87,FALSE) -> 0 | S31: =VLOOKUP($A$5,#REF!,81,FALSE) -> 
B32: PNB ADE crédit immo | C32: 2% | E32: ='RECAP SECT'!#REF! ->  | G32: =VLOOKUP($A$5,'RECAP SECT'!$G$6:$CY$312,89,FALSE) -> 0.0 | I32: =VLOOKUP($A$5,'RECAP SECT'!$G$6:$CY$312,90,FALSE) -> 0% | K32: =VLOOKUP($A$5,#REF!,90,FALSE) ->  | O32: =VLOOKUP($A$5,'RECAP SECT'!$G$6:$CY$312,91,FALSE) -> 0 | S32: =VLOOKUP($A$5,#REF!,84,FALSE) -> 
B33: PNB SACCEF | C33: 2% | E33: ='RECAP SECT'!#REF! ->  | G33: =VLOOKUP($A$5,'RECAP SECT'!$G$6:$CY$312,93,FALSE) -> 0.0 | I33: =VLOOKUP($A$5,'RECAP SECT'!$G$6:$CY$312,94,FALSE) -> 55% | K33: =VLOOKUP($A$5,#REF!,94,FALSE) ->  | O33: =VLOOKUP($A$5,'RECAP SECT'!$G$6:$CY$312,95,FALSE) -> 0.4565033393 | S33: =VLOOKUP($A$5,#REF!,87,FALSE) -> 
B34: PNB Crédit MLT + Crédit Bail | C34: 2% | E34: ='RECAP SECT'!BJ4 -> 37.6 | G34: =VLOOKUP($A$5,'RECAP SECT'!$G$6:$CY$312,97,FALSE) -> 0.0 | I34: =VLOOKUP($A$5,'RECAP SECT'!$G$6:$CY$312,98,FALSE) ->  | K34: =VLOOKUP($A$5,#REF!,98,FALSE) ->  | O34: =VLOOKUP($A$5,'RECAP SECT'!$G$6:$CY$312,99,FALSE) ->  | S34: =VLOOKUP($A$5,#REF!,90,FALSE) -> 
A36: CRITERE IARD PREVOYANCE | C36: 15% | O36: =VLOOKUP($A$5,'RECAP SECT'!$G$6:$CY$312,119,FALSE) -> 
B37: PNB Ventes nettes IARD | C37: 9% | E37: ='RECAP SECT'!BU4 -> 172.9 | G37: =VLOOKUP($A$5,'RECAP SECT'!$G$6:$CY$312,110,FALSE) ->  | I37: =VLOOKUP($A$5,'RECAP SECT'!$G$6:$CY$312,111,FALSE) ->  | K37: =VLOOKUP($A$5,#REF!,111,FALSE) ->  | M37: =+K37-I37 ->  | O37: =VLOOKUP($A$5,'RECAP SECT'!$G$6:$CY$312,112,FALSE) ->  | S37: =VLOOKUP($A$5,#REF!,102,FALSE) ->  | U37: =+S37-I37 -> 
B38: PNB Ventes nettes Prévoyance | C38: 6% | E38: ='RECAP SECT'!BY4 -> 49.8 | G38: =VLOOKUP($A$5,'RECAP SECT'!$G$6:$CY$312,114,FALSE) ->  | I38: =VLOOKUP($A$5,'RECAP SECT'!$G$6:$CY$312,115,FALSE) ->  | K38: =VLOOKUP($A$5,#REF!,115,FALSE) ->  | M38: =+K38-I38 ->  | O38: =VLOOKUP($A$5,'RECAP SECT'!$G$6:$CY$312,116,FALSE) ->  | S38: =VLOOKUP($A$5,#REF!,105,FALSE) ->  | U38: =+S38-I38 -> 
A40: CRITERE ACCELERATEURS PNB | C40: 15% | O40: =VLOOKUP($A$5,'RECAP SECT'!$G$6:$CY$312,144,FALSE) -> 
B41: PNB Ventes brutes SED Finalisées | C41: 6% | E41: ='RECAP SECT'!#REF! ->  | G41: =VLOOKUP($A$5,'RECAP SECT'!$G$6:$CY$312,127,FALSE) ->  | I41: =VLOOKUP($A$5,'RECAP SECT'!$G$6:$CY$312,128,FALSE) ->  | K41: =VLOOKUP($A$5,#REF!,128,FALSE) ->  | M41: =+K41-I41 ->  | O41: =VLOOKUP($A$5,'RECAP SECT'!$G$6:$CY$312,129,FALSE) ->  | S41: =VLOOKUP($A$5,#REF!,120,FALSE) ->  | U41: =+S41-I41 -> 
B42: PNB clients équipés E documents | C42: 3% | E42: ='RECAP SECT'!#REF! ->  | G42: =VLOOKUP($A$5,'RECAP SECT'!$G$6:$CY$312,131,FALSE) ->  | I42: =VLOOKUP($A$5,'RECAP SECT'!$G$6:$CY$312,132,FALSE) ->  | K42: =VLOOKUP($A$5,#REF!,132,FALSE) ->  | M42: =+K42-I42 ->  | O42: =VLOOKUP($A$5,'RECAP SECT'!$G$6:$CY$312,133,FALSE) ->  | S42: =VLOOKUP($A$5,#REF!,123,FALSE) ->  | U42: =+S42-I42 -> 
B43: Economie opt'in | C43: 3% | E43: ='RECAP SECT'!#REF! ->  | G43: =VLOOKUP($A$5,'RECAP SECT'!$G$6:$CY$312,135,FALSE) ->  | I43: =VLOOKUP($A$5,'RECAP SECT'!$G$6:$CY$312,136,FALSE) ->  | K43: =VLOOKUP($A$5,#REF!,136,FALSE) ->  | M43: =+K43-I43 ->  | O43: =VLOOKUP($A$5,'RECAP SECT'!$G$6:$CY$312,137,FALSE) -> 
B44: Remises commerciales | C44: 3% | E44: ='RECAP SECT'!#REF! ->  | G44: =VLOOKUP($A$5,'RECAP SECT'!$G$6:$CY$312,139,FALSE) ->  | I44: =VLOOKUP($A$5,'RECAP SECT'!$G$6:$CY$312,140,FALSE) ->  | K44: =VLOOKUP($A$5,#REF!,140,FALSE) ->  | M44: =+K44-I44 ->  | O44: =VLOOKUP($A$5,'RECAP SECT'!$G$6:$CY$312,141,FALSE) ->  | S44: =VLOOKUP($A$5,#REF!,126,FALSE) ->  | U44: =+S44-I44 -> 
A46: CRITERE Satisfaction Clients | C46: 15% | O46: =VLOOKUP($A$5,'RECAP SECT'!$G$6:$CY$312,159,FALSE) -> 
B47: Objectifs NPS* | C47: 8% | E47: ='RECAP SECT'!K4 -> 25 | G47: =VLOOKUP($A$5,'RECAP SECT'!$G$6:$CY$312,151,FALSE) ->  | I47: =VLOOKUP($A$5,'RECAP SECT'!$G$6:$CY$312,152,FALSE) ->  | K47: =VLOOKUP($A$5,#REF!,152,FALSE) ->  | M47: =+K47-I47 ->  | O47: =VLOOKUP($A$5,'RECAP SECT'!$G$6:$CY$312,153,FALSE) ->  | S47: =VLOOKUP($A$5,#REF!,138,FALSE) ->  | U47: =+S47-I47 -> 
B48: Enquête Qualité Haute Définition | C48: 7% | E48: ='RECAP SECT'!N4 -> 74% | G48: =VLOOKUP($A$5,'RECAP SECT'!$G$6:$CY$312,154,FALSE) ->  | I48: =VLOOKUP($A$5,'RECAP SECT'!$G$6:$CY$312,155,FALSE) ->  | K48: =VLOOKUP($A$5,#REF!,155,FALSE) ->  | M48: =+K48-I48 ->  | O48: =VLOOKUP($A$5,'RECAP SECT'!$G$6:$CY$312,156,FALSE) ->  | S48: =VLOOKUP($A$5,#REF!,141,FALSE) ->  | U48: =+S48-I48 -> 

Sheet SE_TOTAL
B1: Accueil | F1: BAROMETRE BDD - TERRITOIRES
F2: TOTAL GENERAL
F3: =ACCUEIL!F7 -> 2022-09-11
F7: TOTAL GENERAL | I7: Total Satisfaction Clients | L7: Total Bancarisation | O7: Total Epargne | R7: Total IARD Prévoyance | U7: Total Crédits
G8: coef | H8: =K8+N8+Q8+T8+W8 -> 100% | J8: coef | K8: =SE_SATISFACTION!N8 -> 20% | M8: coef | N8: =SE_BANCA!P8 -> 20% | P8: coef | Q8: =SE_EPARGNE!P8 -> 20% | S8: coef | T8: =SE_IARD!P8 -> 20% | V8: coef | W8: =SE_CREDIT!T8 -> 20%
B9: Direction | C9: eds | D9: Territoire | E9: ="ETP perf "&DATEMAJ!$C$28 -> ETP perf 11-sept | F9: Moyenne ecart au 1er | G9: % Ecart au 1er | H9: Rang CEGEE | I9: Moyenne ecart au 1er | J9: % Ecart au 1er | K9: Rang CEGEE | L9: Moyenne ecart au 1er | M9: % Ecart au 1er | N9: Rang CEGEE | O9: Moyenne ecart au 1er | P9: % Ecart au 1er | Q9: Rang CEGEE | R9: Moyenne ecart au 1er | S9: % Ecart au 1er | T9: Rang CEGEE | U9: Moyenne ecart au 1er | V9: % Ecart au 1er | W9: Rang CEGEE
A10: 50 | B10: MARNE-ARDENNES | C10: 11 | D10: REIMS | E10: 68.1 | F10: 10% | G10: 0% | H10: 1 | I10: 23% | J10: 20% | K10: 7 | L10: 0% | M10: 0% | N10: 1 | O10: 27% | P10: 22% | Q10: 5 | R10: 6% | S10: 5% | T10: 2 | U10: 5% | V10: 0% | W10: 1
A11: 50 | B11: MOSELLE | C11: 44 | D11: MOSELLE NORD | E11: 57.2 | F11: 18% | G11: 8% | H11: 2 | I11: 42% | J11: 39% | K11: 13 | L11: 8% | M11: 8% | N11: 2 | O11: 43% | P11: 38% | Q11: 12 | R11: 1% | S11: 0% | T11: 1 | U11: 8% | V11: 3% | W11: 2
A12: 262 | B12: MARNE-ARDENNES | C12: 6 | D12: CHALONS EN CHAMPAGNE | E12: 38.0 | F12: 19% | G12: 9% | H12: 3 | I12: 3% | J12: 0% | K12: 1 | L12: 23% | M12: 23% | N12: 3 | O12: 39% | P12: 34% | Q12: 10 | R12: 15% | S12: 14% | T12: 3 | U12: 27% | V12: 22% | W12: 7
A13: 262 | B13: MOSELLE | C13: 42 | D13: MOSELLE EST | E13: 59.9 | F13: 22% | G13: 12% | H13: 4 | I13: 12% | J13: 10% | K13: 4 | L13: 25% | M13: 25% | N13: 4 | O13: 41% | P13: 36% | Q13: 11 | R13: 17% | S13: 15% | T13: 5 | U13: 27% | V13: 22% | W13: 6
A14: 262 | B14: MARNE-ARDENNES | C14: 2 | D14: CHARLEVILLE MEZIERES | E14: 48.9 | F14: 23% | G14: 13% | H14: 5 | I14: 26% | J14: 23% | K14: 8 | L14: 40% | M14: 40% | N14: 11 | O14: 23% | P14: 18% | Q14: 3 | R14: 16% | S14: 15% | T14: 4 | U14: 23% | V14: 18% | W14: 4
A15: 264 | B15: BAS-RHIN | C15: 5006 | D15: STRASBOURG | E15: 65.5 | F15: 23% | G15: 14% | H15: 6 | I15: 36% | J15: 33% | K15: 11 | L15: 31% | M15: 31% | N15: 5 | O15: 5% | P15: 0% | Q15: 1 | R15: 20% | S15: 18% | T15: 7 | U15: 40% | V15: 35% | W15: 11
A16: 264 | B16: MOSELLE | C16: 45 | D16: METZ | E16: 72.7 | F16: 26% | G16: 17% | H16: 7 | I16: 29% | J16: 26% | K16: 9 | L16: 38% | M16: 38% | N16: 9 | O16: 17% | P16: 12% | Q16: 2 | R16: 32% | S16: 30% | T16: 9 | U16: 30% | V16: 25% | W16: 8
A17: 30 | B17: AUBE HAUTE MARNE | C17: 21 | D17: CHAUMONT | E17: 33.8 | F17: 28% | G17: 18% | H17: 8 | I17: 18% | J17: 15% | K17: 6 | L17: 44% | M17: 44% | N17: 14 | O17: 32% | P17: 27% | Q17: 6 | R17: 21% | S17: 19% | T17: 8 | U17: 38% | V17: 33% | W17: 10
A18: 30 | B18: MEURTHE ET MOSELLE MEUSE | C18: 26 | D18: NANCY | E18: 54.8 | F18: 29% | G18: 19% | H18: 9 | I18: 31% | J18: 28% | K18: 10 | L18: 37% | M18: 37% | N18: 7 | O18: 33% | P18: 28% | Q18: 7 | R18: 36% | S18: 34% | T18: 11 | U18: 22% | V18: 17% | W18: 3
A19: 30 | B19: MEURTHE ET MOSELLE MEUSE | C19: 31 | D19: VERDUN | E19: 48.1 | F19: 29% | G19: 20% | H19: 10 | I19: 13% | J19: 10% | K19: 5 | L19: 34% | M19: 34% | N19: 6 | O19: 47% | P19: 42% | Q19: 14 | R19: 35% | S19: 34% | T19: 10 | U19: 32% | V19: 27% | W19: 9
A20: 110 | B20: VOSGES | C20: 57 | D20: EPINAL | E20: 52.9 | F20: 30% | G20: 21% | H20: 11 | I20: 9% | J20: 6% | K20: 3 | L20: 39% | M20: 39% | N20: 10 | O20: 36% | P20: 31% | Q20: 9 | R20: 41% | S20: 39% | T20: 12 | U20: 41% | V20: 36% | W20: 13
A21: 110 | B21: MEURTHE ET MOSELLE MEUSE | C21: 27 | D21: PONT A MOUSSON | E21: 59.5 | F21: 32% | G21: 23% | H21: 12 | I21: 59% | J21: 56% | K21: 15 | L21: 38% | M21: 38% | N21: 8 | O21: 35% | P21: 30% | Q21: 8 | R21: 20% | S21: 18% | T21: 6 | U21: 24% | V21: 19% | W21: 5
A22: 110 | B22: VOSGES | C22: 55 | D22: SAINT DIE | E22: 40.2 | F22: 36% | G22: 27% | H22: 13 | I22: 4% | J22: 1% | K22: 2 | L22: 52% | M22: 52% | N22: 15 | O22: 53% | P22: 49% | Q22: 15 | R22: 46% | S22: 45% | T22: 14 | U22: 41% | V22: 35% | W22: 12
A23: 160 | B23: BAS-RHIN | C23: 5060 | D23: HAGUENAU | E23: 56.4 | F23: 38% | G23: 29% | H23: 14 | I23: 38% | J23: 35% | K23: 12 | L23: 44% | M23: 44% | N23: 13 | O23: 25% | P23: 20% | Q23: 4 | R23: 49% | S23: 47% | T23: 16 | U23: 49% | V23: 44% | W23: 17
A24: 160 | B24: BAS-RHIN | C24: 5101 | D24: SELESTAT | E24: 51.4 | F24: 44% | G24: 35% | H24: 15 | I24: 56% | J24: 53% | K24: 14 | L24: 42% | M24: 42% | N24: 12 | O24: 44% | P24: 40% | Q24: 13 | R24: 48% | S24: 46% | T24: 15 | U24: 46% | V24: 41% | W24: 15
A25: 160 | B25: AUBE HAUTE MARNE | C25: 14 | D25: TROYES | E25: 54.1 | F25: 53% | G25: 44% | H25: 16 | I25: 67% | J25: 64% | K25: 18 | L25: 56% | M25: 56% | N25: 16 | O25: 71% | P25: 66% | Q25: 17 | R25: 44% | S25: 43% | T25: 13 | U25: 42% | V25: 37% | W25: 14
A26: 80 | B26: HAUT-RHIN | C26: 5130 | D26: COLMAR | E26: 47.1 | F26: 55% | G26: 46% | H26: 17 | I26: 60% | J26: 57% | K26: 16 | L26: 62% | M26: 62% | N26: 17 | O26: 59% | P26: 55% | Q26: 16 | R26: 57% | S26: 56% | T26: 17 | U26: 52% | V26: 47% | W26: 18
A27: 80 | B27: HAUT-RHIN | C27: 5169 | D27: MULHOUSE | E27: 46.4 | F27: 65% | G27: 55% | H27: 18 | I27: 63% | J27: 60% | K27: 17 | L27: 72% | M27: 72% | N27: 18 | O27: 83% | P27: 78% | Q27: 18 | R27: 72% | S27: 71% | T27: 18 | U27: 48% | V27: 43% | W27: 16
A28: Total CEGEE Directions Régionales | E28: =SUM(E10:E27) -> 955

Sheet SE_BANCA
B1: Accueil | F1: BAROMETRE BDD - TERRITOIRES
F2: BANCARISATION
F3: =ACCUEIL!F7 -> 2022-09-11
F7: Ventes Nettes produits pondérés | J7: Ventes sur client non détenteur de l’univers | N7: Total Bancarisation
F8: =DATEMAJ!C8 -> au 11/09 | H8: coef | I8: ='RECAP DIRCOM'!AA4 -> 12% | J8: =DATEMAJ!C9 -> au 11/09 | L8: coef | M8: ='RECAP DIRCOM'!AE4 -> 8% | O8: coef | P8: ='RECAP DIRCOM'!AH4 -> 20%
B9: Direction | C9: eds | D9: Territoire | E9: ="ETP perf "&DATEMAJ!$C$28 -> ETP perf 11-sept | F9: VN | G9: VN / ETP | H9: % Ecart au 1er | I9: Rang | J9: VB | K9: VB / ETP | L9: % Ecart au 1er | M9: Rang | N9: Moyenne ecart au 1er | O9: % Ecart au 1er | P9: Rang CEGEE
A10: 50 | B10: AUBE HAUTE MARNE | C10: 21 | D10: CHAUMONT | E10: =VLOOKUP($C10,'RECAP SECT'!$G$6:$CU$253,3,FALSE) -> 33.8 | F10: =VLOOKUP($C10,'RECAP SECT'!$G$6:$CU$253,18,FALSE) -> 545 | G10: =VLOOKUP($C10,'RECAP SECT'!$G$6:$CU$253,19,FALSE) -> 16.14 | H10: =VLOOKUP($C10,'RECAP SECT'!$G$6:$CU$253,20,FALSE) -> 53% | I10: =VLOOKUP($C10,'RECAP SECT'!$G$6:$CU$253,21,FALSE) -> 14 | J10: =VLOOKUP($C10,'RECAP SECT'!$G$6:$CU$253,22,FALSE) -> 1,794 | K10: =VLOOKUP($C10,'RECAP SECT'!$G$6:$CU$253,23,FALSE) -> 53.12 | L10: =VLOOKUP($C10,'RECAP SECT'!$G$6:$CU$253,24,FALSE) -> 31% | M10: =VLOOKUP($C10,'RECAP SECT'!$G$6:$CU$253,25,FALSE) -> 12 | N10: =VLOOKUP($C10,'RECAP SECT'!$G$6:$CU$253,26,FALSE) -> 44% | O10: =VLOOKUP($C10,'RECAP SECT'!$G$6:$CU$253,27,FALSE) -> 44% | P10: =VLOOKUP($C10,'RECAP SECT'!$G$6:$CU$253,28,FALSE) -> 14
A11: 50 | B11: AUBE HAUTE MARNE | C11: 14 | D11: TROYES | E11: =VLOOKUP($C11,'RECAP SECT'!$G$6:$CU$253,3,FALSE) -> 54.1 | F11: =VLOOKUP($C11,'RECAP SECT'!$G$6:$CU$253,18,FALSE) -> 493 | G11: =VLOOKUP($C11,'RECAP SECT'!$G$6:$CU$253,19,FALSE) -> 9.11 | H11: =VLOOKUP($C11,'RECAP SECT'!$G$6:$CU$253,20,FALSE) -> 73% | I11: =VLOOKUP($C11,'RECAP SECT'!$G$6:$CU$253,21,FALSE) -> 17 | J11: =VLOOKUP($C11,'RECAP SECT'!$G$6:$CU$253,22,FALSE) -> 2,875 | K11: =VLOOKUP($C11,'RECAP SECT'!$G$6:$CU$253,23,FALSE) -> 53.14 | L11: =VLOOKUP($C11,'RECAP SECT'!$G$6:$CU$253,24,FALSE) -> 31% | M11: =VLOOKUP($C11,'RECAP SECT'!$G$6:$CU$253,25,FALSE) -> 11 | N11: =VLOOKUP($C11,'RECAP SECT'!$G$6:$CU$253,26,FALSE) -> 56% | O11: =VLOOKUP($C11,'RECAP SECT'!$G$6:$CU$253,27,FALSE) -> 56% | P11: =VLOOKUP($C11,'RECAP SECT'!$G$6:$CU$253,28,FALSE) -> 16
A12: 262 | B12: BAS-RHIN | C12: 5060 | D12: HAGUENAU | E12: =VLOOKUP($C12,'RECAP SECT'!$G$6:$CU$253,3,FALSE) -> 56.4 | F12: =VLOOKUP($C12,'RECAP SECT'!$G$6:$CU$253,18,FALSE) -> 1,046 | G12: =VLOOKUP($C12,'RECAP SECT'!$G$6:$CU$253,19,FALSE) -> 18.56 | H12: =VLOOKUP($C12,'RECAP SECT'!$G$6:$CU$253,20,FALSE) -> 46% | I12: =VLOOKUP($C12,'RECAP SECT'!$G$6:$CU$253,21,FALSE) -> 9 | J12: =VLOOKUP($C12,'RECAP SECT'!$G$6:$CU$253,22,FALSE) -> 2,588 | K12: =VLOOKUP($C12,'RECAP SECT'!$G$6:$CU$253,23,FALSE) -> 45.89 | L12: =VLOOKUP($C12,'RECAP SECT'!$G$6:$CU$253,24,FALSE) -> 41% | M12: =VLOOKUP($C12,'RECAP SECT'!$G$6:$CU$253,25,FALSE) -> 16 | N12: =VLOOKUP($C12,'RECAP SECT'!$G$6:$CU$253,26,FALSE) -> 44% | O12: =VLOOKUP($C12,'RECAP SECT'!$G$6:$CU$253,27,FALSE) -> 44% | P12: =VLOOKUP($C12,'RECAP SECT'!$G$6:$CU$253,28,FALSE) -> 13
A13: 262 | B13: BAS-RHIN | C13: 5101 | D13: SELESTAT | E13: =VLOOKUP($C13,'RECAP SECT'!$G$6:$CU$253,3,FALSE) -> 51.4 | F13: =VLOOKUP($C13,'RECAP SECT'!$G$6:$CU$253,18,FALSE) -> 978 | G13: =VLOOKUP($C13,'RECAP SECT'!$G$6:$CU$253,19,FALSE) -> 19.04 | H13: =VLOOKUP($C13,'RECAP SECT'!$G$6:$CU$253,20,FALSE) -> 44% | I13: =VLOOKUP($C13,'RECAP SECT'!$G$6:$CU$253,21,FALSE) -> 8 | J13: =VLOOKUP($C13,'RECAP SECT'!$G$6:$CU$253,22,FALSE) -> 2,415 | K13: =VLOOKUP($C13,'RECAP SECT'!$G$6:$CU$253,23,FALSE) -> 46.99 | L13: =VLOOKUP($C13,'RECAP SECT'!$G$6:$CU$253,24,FALSE) -> 39% | M13: =VLOOKUP($C13,'RECAP SECT'!$G$6:$CU$253,25,FALSE) -> 15 | N13: =VLOOKUP($C13,'RECAP SECT'!$G$6:$CU$253,26,FALSE) -> 42% | O13: =VLOOKUP($C13,'RECAP SECT'!$G$6:$CU$253,27,FALSE) -> 42% | P13: =VLOOKUP($C13,'RECAP SECT'!$G$6:$CU$253,28,FALSE) -> 12
A14: 262 | B14: BAS-RHIN | C14: 5006 | D14: STRASBOURG | E14: =VLOOKUP($C14,'RECAP SECT'!$G$6:$CU$253,3,FALSE) -> 65.5 | F14: =VLOOKUP($C14,'RECAP SECT'!$G$6:$CU$253,18,FALSE) -> 1,297 | G14: =VLOOKUP($C14,'RECAP SECT'!$G$6:$CU$253,19,FALSE) -> 19.78 | H14: =VLOOKUP($C14,'RECAP SECT'!$G$6:$CU$253,20,FALSE) -> 42% | I14: =VLOOKUP($C14,'RECAP SECT'!$G$6:$CU$253,21,FALSE) -> 6 | J14: =VLOOKUP($C14,'RECAP SECT'!$G$6:$CU$253,22,FALSE) -> 4,321 | K14: =VLOOKUP($C14,'RECAP SECT'!$G$6:$CU$253,23,FALSE) -> 65.93 | L14: =VLOOKUP($C14,'RECAP SECT'!$G$6:$CU$253,24,FALSE) -> 15% | M14: =VLOOKUP($C14,'RECAP SECT'!$G$6:$CU$253,25,FALSE) -> 3 | N14: =VLOOKUP($C14,'RECAP SECT'!$G$6:$CU$253,26,FALSE) -> 31% | O14: =VLOOKUP($C14,'RECAP SECT'!$G$6:$CU$253,27,FALSE) -> 31% | P14: =VLOOKUP($C14,'RECAP SECT'!$G$6:$CU$253,28,FALSE) -> 5
A15: 264 | B15: HAUT-RHIN | C15: 5130 | D15: COLMAR | E15: =VLOOKUP($C15,'RECAP SECT'!$G$6:$CU$253,3,FALSE) -> 47.1 | F15: =VLOOKUP($C15,'RECAP SECT'!$G$6:$CU$253,18,FALSE) -> 448 | G15: =VLOOKUP($C15,'RECAP SECT'!$G$6:$CU$253,19,FALSE) -> 9.51 | H15: =VLOOKUP($C15,'RECAP SECT'!$G$6:$CU$253,20,FALSE) -> 72% | I15: =VLOOKUP($C15,'RECAP SECT'!$G$6:$CU$253,21,FALSE) -> 16 | J15: =VLOOKUP($C15,'RECAP SECT'!$G$6:$CU$253,22,FALSE) -> 1,965 | K15: =VLOOKUP($C15,'RECAP SECT'!$G$6:$CU$253,23,FALSE) -> 41.73 | L15: =VLOOKUP($C15,'RECAP SECT'!$G$6:$CU$253,24,FALSE) -> 46% | M15: =VLOOKUP($C15,'RECAP SECT'!$G$6:$CU$253,25,FALSE) -> 18 | N15: =VLOOKUP($C15,'RECAP SECT'!$G$6:$CU$253,26,FALSE) -> 62% | O15: =VLOOKUP($C15,'RECAP SECT'!$G$6:$CU$253,27,FALSE) -> 62% | P15: =VLOOKUP($C15,'RECAP SECT'!$G$6:$CU$253,28,FALSE) -> 17
A16: 264 | B16: HAUT-RHIN | C16: 5169 | D16: MULHOUSE | E16: =VLOOKUP($C16,'RECAP SECT'!$G$6:$CU$253,3,FALSE) -> 46.4 | F16: =VLOOKUP($C16,'RECAP SECT'!$G$6:$CU$253,18,FALSE) -> 69 | G16: =VLOOKUP($C16,'RECAP SECT'!$G$6:$CU$253,19,FALSE) -> 1.48 | H16: =VLOOKUP($C16,'RECAP SECT'!$G$6:$CU$253,20,FALSE) -> 96% | I16: =VLOOKUP($C16,'RECAP SECT'!$G$6:$CU$253,21,FALSE) -> 18 | J16: =VLOOKUP($C16,'RECAP SECT'!$G$6:$CU$253,22,FALSE) -> 2,294 | K16: =VLOOKUP($C16,'RECAP SECT'!$G$6:$CU$253,23,FALSE) -> 49.41 | L16: =VLOOKUP($C16,'RECAP SECT'!$G$6:$CU$253,24,FALSE) -> 36% | M16: =VLOOKUP($C16,'RECAP SECT'!$G$6:$CU$253,25,FALSE) -> 14 | N16: =VLOOKUP($C16,'RECAP SECT'!$G$6:$CU$253,26,FALSE) -> 72% | O16: =VLOOKUP($C16,'RECAP SECT'!$G$6:$CU$253,27,FALSE) -> 72% | P16: =VLOOKUP($C16,'RECAP SECT'!$G$6:$CU$253,28,FALSE) -> 18
A17: 30 | B17: MARNE-ARDENNES | C17: 6 | D17: CHALONS EN CHAMPAGNE | E17: =VLOOKUP($C17,'RECAP SECT'!$G$6:$CU$253,3,FALSE) -> 38.0 | F17: =VLOOKUP($C17,'RECAP SECT'!$G$6:$CU$253,18,FALSE) -> 1,025 | G17: =VLOOKUP($C17,'RECAP SECT'!$G$6:$CU$253,19,FALSE) -> 26.97 | H17: =VLOOKUP($C17,'RECAP SECT'!$G$6:$CU$253,20,FALSE) -> 21% | I17: =VLOOKUP($C17,'RECAP SECT'!$G$6:$CU$253,21,FALSE) -> 3 | J17: =VLOOKUP($C17,'RECAP SECT'!$G$6:$CU$253,22,FALSE) -> 2,151 | K17: =VLOOKUP($C17,'RECAP SECT'!$G$6:$CU$253,23,FALSE) -> 56.61 | L17: =VLOOKUP($C17,'RECAP SECT'!$G$6:$CU$253,24,FALSE) -> 27% | M17: =VLOOKUP($C17,'RECAP SECT'!$G$6:$CU$253,25,FALSE) -> 10 | N17: =VLOOKUP($C17,'RECAP SECT'!$G$6:$CU$253,26,FALSE) -> 23% | O17: =VLOOKUP($C17,'RECAP SECT'!$G$6:$CU$253,27,FALSE) -> 23% | P17: =VLOOKUP($C17,'RECAP SECT'!$G$6:$CU$253,28,FALSE) -> 3
A18: 30 | B18: MARNE-ARDENNES | C18: 2 | D18: CHARLEVILLE MEZIERES | E18: =VLOOKUP($C18,'RECAP SECT'!$G$6:$CU$253,3,FALSE) -> 48.9 | F18: =VLOOKUP($C18,'RECAP SECT'!$G$6:$CU$253,18,FALSE) -> 793 | G18: =VLOOKUP($C18,'RECAP SECT'!$G$6:$CU$253,19,FALSE) -> 16.22 | H18: =VLOOKUP($C18,'RECAP SECT'!$G$6:$CU$253,20,FALSE) -> 53% | I18: =VLOOKUP($C18,'RECAP SECT'!$G$6:$CU$253,21,FALSE) -> 13 | J18: =VLOOKUP($C18,'RECAP SECT'!$G$6:$CU$253,22,FALSE) -> 2,995 | K18: =VLOOKUP($C18,'RECAP SECT'!$G$6:$CU$253,23,FALSE) -> 61.27 | L18: =VLOOKUP($C18,'RECAP SECT'!$G$6:$CU$253,24,FALSE) -> 21% | M18: =VLOOKUP($C18,'RECAP SECT'!$G$6:$CU$253,25,FALSE) -> 5 | N18: =VLOOKUP($C18,'RECAP SECT'!$G$6:$CU$253,26,FALSE) -> 40% | O18: =VLOOKUP($C18,'RECAP SECT'!$G$6:$CU$253,27,FALSE) -> 40% | P18: =VLOOKUP($C18,'RECAP SECT'!$G$6:$CU$253,28,FALSE) -> 11
A19: 30 | B19: MARNE-ARDENNES | C19: 11 | D19: REIMS | E19: =VLOOKUP($C19,'RECAP SECT'!$G$6:$CU$253,3,FALSE) -> 68.1 | F19: =VLOOKUP($C19,'RECAP SECT'!$G$6:$CU$253,18,FALSE) -> 2,327 | G19: =VLOOKUP($C19,'RECAP SECT'!$G$6:$CU$253,19,FALSE) -> 34.20 | H19: =VLOOKUP($C19,'RECAP SECT'!$G$6:$CU$253,20,FALSE) -> 0% | I19: =VLOOKUP($C19,'RECAP SECT'!$G$6:$CU$253,21,FALSE) -> 1 | J19: =VLOOKUP($C19,'RECAP SECT'!$G$6:$CU$253,22,FALSE) -> 5,251 | K19: =VLOOKUP($C19,'RECAP SECT'!$G$6:$CU$253,23,FALSE) -> 77.16 | L19: =VLOOKUP($C19,'RECAP SECT'!$G$6:$CU$253,24,FALSE) -> 0% | M19: =VLOOKUP($C19,'RECAP SECT'!$G$6:$CU$253,25,FALSE) -> 1 | N19: =VLOOKUP($C19,'RECAP SECT'!$G$6:$CU$253,26,FALSE) -> 0% | O19: =VLOOKUP($C19,'RECAP SECT'!$G$6:$CU$253,27,FALSE) -> 0% | P19: =VLOOKUP($C19,'RECAP SECT'!$G$6:$CU$253,28,FALSE) -> 1
A20: 110 | B20: MEURTHE ET MOSELLE MEUSE | C20: 26 | D20: NANCY | E20: =VLOOKUP($C20,'RECAP SECT'!$G$6:$CU$253,3,FALSE) -> 54.8 | F20: =VLOOKUP($C20,'RECAP SECT'!$G$6:$CU$253,18,FALSE) -> 975 | G20: =VLOOKUP($C20,'RECAP SECT'!$G$6:$CU$253,19,FALSE) -> 17.81 | H20: =VLOOKUP($C20,'RECAP SECT'!$G$6:$CU$253,20,FALSE) -> 48% | I20: =VLOOKUP($C20,'RECAP SECT'!$G$6:$CU$253,21,FALSE) -> 11 | J20: =VLOOKUP($C20,'RECAP SECT'!$G$6:$CU$253,22,FALSE) -> 3,320 | K20: =VLOOKUP($C20,'RECAP SECT'!$G$6:$CU$253,23,FALSE) -> 60.64 | L20: =VLOOKUP($C20,'RECAP SECT'!$G$6:$CU$253,24,FALSE) -> 21% | M20: =VLOOKUP($C20,'RECAP SECT'!$G$6:$CU$253,25,FALSE) -> 7 | N20: =VLOOKUP($C20,'RECAP SECT'!$G$6:$CU$253,26,FALSE) -> 37% | O20: =VLOOKUP($C20,'RECAP SECT'!$G$6:$CU$253,27,FALSE) -> 37% | P20: =VLOOKUP($C20,'RECAP SECT'!$G$6:$CU$253,28,FALSE) -> 7
A21: 110 | B21: MEURTHE ET MOSELLE MEUSE | C21: 27 | D21: PONT A MOUSSON | E21: =VLOOKUP($C21,'RECAP SECT'!$G$6:$CU$253,3,FALSE) -> 59.5 | F21: =VLOOKUP($C21,'RECAP SECT'!$G$6:$CU$253,18,FALSE) -> 1,030 | G21: =VLOOKUP($C21,'RECAP SECT'!$G$6:$CU$253,19,FALSE) -> 17.29 | H21: =VLOOKUP($C21,'RECAP SECT'!$G$6:$CU$253,20,FALSE) -> 49% | I21: =VLOOKUP($C21,'RECAP SECT'!$G$6:$CU$253,21,FALSE) -> 12 | J21: =VLOOKUP($C21,'RECAP SECT'!$G$6:$CU$253,22,FALSE) -> 3,633 | K21: =VLOOKUP($C21,'RECAP SECT'!$G$6:$CU$253,23,FALSE) -> 61.02 | L21: =VLOOKUP($C21,'RECAP SECT'!$G$6:$CU$253,24,FALSE) -> 21% | M21: =VLOOKUP($C21,'RECAP SECT'!$G$6:$CU$253,25,FALSE) -> 6 | N21: =VLOOKUP($C21,'RECAP SECT'!$G$6:$CU$253,26,FALSE) -> 38% | O21: =VLOOKUP($C21,'RECAP SECT'!$G$6:$CU$253,27,FALSE) -> 38% | P21: =VLOOKUP($C21,'RECAP SECT'!$G$6:$CU$253,28,FALSE) -> 8
A22: 110 | B22: MEURTHE ET MOSELLE MEUSE | C22: 31 | D22: VERDUN | E22: =VLOOKUP($C22,'RECAP SECT'!$G$6:$CU$253,3,FALSE) -> 48.1 | F22: =VLOOKUP($C22,'RECAP SECT'!$G$6:$CU$253,18,FALSE) -> 993 | G22: =VLOOKUP($C22,'RECAP SECT'!$G$6:$CU$253,19,FALSE) -> 20.67 | H22: =VLOOKUP($C22,'RECAP SECT'!$G$6:$CU$253,20,FALSE) -> 40% | I22: =VLOOKUP($C22,'RECAP SECT'!$G$6:$CU$253,21,FALSE) -> 5 | J22: =VLOOKUP($C22,'RECAP SECT'!$G$6:$CU$253,22,FALSE) -> 2,773 | K22: =VLOOKUP($C22,'RECAP SECT'!$G$6:$CU$253,23,FALSE) -> 57.70 | L22: =VLOOKUP($C22,'RECAP SECT'!$G$6:$CU$253,24,FALSE) -> 25% | M22: =VLOOKUP($C22,'RECAP SECT'!$G$6:$CU$253,25,FALSE) -> 8 | N22: =VLOOKUP($C22,'RECAP SECT'!$G$6:$CU$253,26,FALSE) -> 34% | O22: =VLOOKUP($C22,'RECAP SECT'!$G$6:$CU$253,27,FALSE) -> 34% | P22: =VLOOKUP($C22,'RECAP SECT'!$G$6:$CU$253,28,FALSE) -> 6
A23: 160 | B23: MOSELLE | C23: 45 | D23: METZ | E23: =VLOOKUP($C23,'RECAP SECT'!$G$6:$CU$253,3,FALSE) -> 72.7 | F23: =VLOOKUP($C23,'RECAP SECT'!$G$6:$CU$253,18,FALSE) -> 1,312 | G23: =VLOOKUP($C23,'RECAP SECT'!$G$6:$CU$253,19,FALSE) -> 18.04 | H23: =VLOOKUP($C23,'RECAP SECT'!$G$6:$CU$253,20,FALSE) -> 47% | I23: =VLOOKUP($C23,'RECAP SECT'!$G$6:$CU$253,21,FALSE) -> 10 | J23: =VLOOKUP($C23,'RECAP SECT'!$G$6:$CU$253,22,FALSE) -> 4,195 | K23: =VLOOKUP($C23,'RECAP SECT'!$G$6:$CU$253,23,FALSE) -> 57.68 | L23: =VLOOKUP($C23,'RECAP SECT'!$G$6:$CU$253,24,FALSE) -> 25% | M23: =VLOOKUP($C23,'RECAP SECT'!$G$6:$CU$253,25,FALSE) -> 9 | N23: =VLOOKUP($C23,'RECAP SECT'!$G$6:$CU$253,26,FALSE) -> 38% | O23: =VLOOKUP($C23,'RECAP SECT'!$G$6:$CU$253,27,FALSE) -> 38% | P23: =VLOOKUP($C23,'RECAP SECT'!$G$6:$CU$253,28,FALSE) -> 9
A24: 160 | B24: MOSELLE | C24: 42 | D24: MOSELLE EST | E24: =VLOOKUP($C24,'RECAP SECT'!$G$6:$CU$253,3,FALSE) -> 59.9 | F24: =VLOOKUP($C24,'RECAP SECT'!$G$6:$CU$253,18,FALSE) -> 1,453 | G24: =VLOOKUP($C24,'RECAP SECT'!$G$6:$CU$253,19,FALSE) -> 24.28 | H24: =VLOOKUP($C24,'RECAP SECT'!$G$6:$CU$253,20,FALSE) -> 29% | I24: =VLOOKUP($C24,'RECAP SECT'!$G$6:$CU$253,21,FALSE) -> 4 | J24: =VLOOKUP($C24,'RECAP SECT'!$G$6:$CU$253,22,FALSE) -> 3,714 | K24: =VLOOKUP($C24,'RECAP SECT'!$G$6:$CU$253,23,FALSE) -> 62.04 | L24: =VLOOKUP($C24,'RECAP SECT'!$G$6:$CU$253,24,FALSE) -> 20% | M24: =VLOOKUP($C24,'RECAP SECT'!$G$6:$CU$253,25,FALSE) -> 4 | N24: =VLOOKUP($C24,'RECAP SECT'!$G$6:$CU$253,26,FALSE) -> 25% | O24: =VLOOKUP($C24,'RECAP SECT'!$G$6:$CU$253,27,FALSE) -> 25% | P24: =VLOOKUP($C24,'RECAP SECT'!$G$6:$CU$253,28,FALSE) -> 4
A25: 160 | B25: MOSELLE | C25: 44 | D25: MOSELLE NORD | E25: =VLOOKUP($C25,'RECAP SECT'!$G$6:$CU$253,3,FALSE) -> 57.2 | F25: =VLOOKUP($C25,'RECAP SECT'!$G$6:$CU$253,18,FALSE) -> 1,827 | G25: =VLOOKUP($C25,'RECAP SECT'!$G$6:$CU$253,19,FALSE) -> 31.92 | H25: =VLOOKUP($C25,'RECAP SECT'!$G$6:$CU$253,20,FALSE) -> 7% | I25: =VLOOKUP($C25,'RECAP SECT'!$G$6:$CU$253,21,FALSE) -> 2 | J25: =VLOOKUP($C25,'RECAP SECT'!$G$6:$CU$253,22,FALSE) -> 3,973 | K25: =VLOOKUP($C25,'RECAP SECT'!$G$6:$CU$253,23,FALSE) -> 69.41 | L25: =VLOOKUP($C25,'RECAP SECT'!$G$6:$CU$253,24,FALSE) -> 10% | M25: =VLOOKUP($C25,'RECAP SECT'!$G$6:$CU$253,25,FALSE) -> 2 | N25: =VLOOKUP($C25,'RECAP SECT'!$G$6:$CU$253,26,FALSE) -> 8% | O25: =VLOOKUP($C25,'RECAP SECT'!$G$6:$CU$253,27,FALSE) -> 8% | P25: =VLOOKUP($C25,'RECAP SECT'!$G$6:$CU$253,28,FALSE) -> 2
A26: 80 | B26: VOSGES | C26: 57 | D26: EPINAL | E26: =VLOOKUP($C26,'RECAP SECT'!$G$6:$CU$253,3,FALSE) -> 52.9 | F26: =VLOOKUP($C26,'RECAP SECT'!$G$6:$CU$253,18,FALSE) -> 1,036 | G26: =VLOOKUP($C26,'RECAP SECT'!$G$6:$CU$253,19,FALSE) -> 19.59 | H26: =VLOOKUP($C26,'RECAP SECT'!$G$6:$CU$253,20,FALSE) -> 43% | I26: =VLOOKUP($C26,'RECAP SECT'!$G$6:$CU$253,21,FALSE) -> 7 | J26: =VLOOKUP($C26,'RECAP SECT'!$G$6:$CU$253,22,FALSE) -> 2,720 | K26: =VLOOKUP($C26,'RECAP SECT'!$G$6:$CU$253,23,FALSE) -> 51.41 | L26: =VLOOKUP($C26,'RECAP SECT'!$G$6:$CU$253,24,FALSE) -> 33% | M26: =VLOOKUP($C26,'RECAP SECT'!$G$6:$CU$253,25,FALSE) -> 13 | N26: =VLOOKUP($C26,'RECAP SECT'!$G$6:$CU$253,26,FALSE) -> 39% | O26: =VLOOKUP($C26,'RECAP SECT'!$G$6:$CU$253,27,FALSE) -> 39% | P26: =VLOOKUP($C26,'RECAP SECT'!$G$6:$CU$253,28,FALSE) -> 10
A27: 80 | B27: VOSGES | C27: 55 | D27: SAINT DIE | E27: =VLOOKUP($C27,'RECAP SECT'!$G$6:$CU$253,3,FALSE) -> 40.2 | F27: =VLOOKUP($C27,'RECAP SECT'!$G$6:$CU$253,18,FALSE) -> 581 | G27: =VLOOKUP($C27,'RECAP SECT'!$G$6:$CU$253,19,FALSE) -> 14.44 | H27: =VLOOKUP($C27,'RECAP SECT'!$G$6:$CU$253,20,FALSE) -> 58% | I27: =VLOOKUP($C27,'RECAP SECT'!$G$6:$CU$253,21,FALSE) -> 15 | J27: =VLOOKUP($C27,'RECAP SECT'!$G$6:$CU$253,22,FALSE) -> 1,788 | K27: =VLOOKUP($C27,'RECAP SECT'!$G$6:$CU$253,23,FALSE) -> 44.44 | L27: =VLOOKUP($C27,'RECAP SECT'!$G$6:$CU$253,24,FALSE) -> 42% | M27: =VLOOKUP($C27,'RECAP SECT'!$G$6:$CU$253,25,FALSE) -> 17 | N27: =VLOOKUP($C27,'RECAP SECT'!$G$6:$CU$253,26,FALSE) -> 52% | O27: =VLOOKUP($C27,'RECAP SECT'!$G$6:$CU$253,27,FALSE) -> 52% | P27: =VLOOKUP($C27,'RECAP SECT'!$G$6:$CU$253,28,FALSE) -> 15
A28: Total CEGEE Directions Régionales | E28: =SUM(E10:E27) -> 955

Sheet SE_EPARGNE
B1: Accueil | F1: BAROMETRE BDD - TERRITOIRES
F2: EPARGNE
F3: =ACCUEIL!F7 -> 2022-09-11
F7: Excédent Epargne hors DAV pondéré | J7: Ventes sur client non détenteur de l’univers | N7: Total Epargne
F8: =DATEMAJ!C14 -> au 11/09 | H8: coef | I8: ='RECAP DIRCOM'!AP4 -> 12% | J8: =DATEMAJ!C15 -> au 11/09 | L8: coef | M8: ='RECAP DIRCOM'!AT4 -> 8% | O8: coef | P8: ='RECAP DIRCOM'!AW4 -> 20%
A9: eds | B9: Direction | C9: eds | D9: Territoire | E9: ="ETP perf "&DATEMAJ!$C$28 -> ETP perf 11-sept | F9: Excédent | G9: Excédent / ETP | H9: % Ecart au 1er | I9: Rang | J9: VB | K9: VB / ETP | L9: % Ecart au 1er | M9: Rang | N9: Moyenne ecart au 1er | O9: % Ecart au 1er | P9: Rang CEGEE
A10: 50 | B10: AUBE HAUTE MARNE | C10: 21 | D10: CHAUMONT | E10: =VLOOKUP($C10,'RECAP SECT'!$G$6:$CU$253,3,FALSE) -> 33.8 | F10: =VLOOKUP($C10,'RECAP SECT'!$G$6:$CU$253,33,FALSE) -> 11,266 | G10: =VLOOKUP($C10,'RECAP SECT'!$G$6:$CU$253,34,FALSE) -> 333.60 | H10: =VLOOKUP($C10,'RECAP SECT'!$G$6:$CU$253,35,FALSE) -> 31% | I10: =VLOOKUP($C10,'RECAP SECT'!$G$6:$CU$253,36,FALSE) -> 4 | J10: =VLOOKUP($C10,'RECAP SECT'!$G$6:$CU$253,37,FALSE) -> 1,684 | K10: =VLOOKUP($C10,'RECAP SECT'!$G$6:$CU$253,38,FALSE) -> 49.87 | L10: =VLOOKUP($C10,'RECAP SECT'!$G$6:$CU$253,39,FALSE) -> 32% | M10: =VLOOKUP($C10,'RECAP SECT'!$G$6:$CU$253,40,FALSE) -> 10 | N10: =VLOOKUP($C10,'RECAP SECT'!$G$6:$CU$253,41,FALSE) -> 32% | O10: =VLOOKUP($C10,'RECAP SECT'!$G$6:$CU$253,42,FALSE) -> 27% | P10: =VLOOKUP($C10,'RECAP SECT'!$G$6:$CU$253,43,FALSE) -> 6
A11: 50 | B11: AUBE HAUTE MARNE | C11: 14 | D11: TROYES | E11: =VLOOKUP($C11,'RECAP SECT'!$G$6:$CU$253,3,FALSE) -> 54.1 | F11: =VLOOKUP($C11,'RECAP SECT'!$G$6:$CU$253,33,FALSE) -> 777 | G11: =VLOOKUP($C11,'RECAP SECT'!$G$6:$CU$253,34,FALSE) -> 14.35 | H11: =VLOOKUP($C11,'RECAP SECT'!$G$6:$CU$253,35,FALSE) -> 97% | I11: =VLOOKUP($C11,'RECAP SECT'!$G$6:$CU$253,36,FALSE) -> 17 | J11: =VLOOKUP($C11,'RECAP SECT'!$G$6:$CU$253,37,FALSE) -> 2,687 | K11: =VLOOKUP($C11,'RECAP SECT'!$G$6:$CU$253,38,FALSE) -> 49.67 | L11: =VLOOKUP($C11,'RECAP SECT'!$G$6:$CU$253,39,FALSE) -> 32% | M11: =VLOOKUP($C11,'RECAP SECT'!$G$6:$CU$253,40,FALSE) -> 11 | N11: =VLOOKUP($C11,'RECAP SECT'!$G$6:$CU$253,41,FALSE) -> 71% | O11: =VLOOKUP($C11,'RECAP SECT'!$G$6:$CU$253,42,FALSE) -> 66% | P11: =VLOOKUP($C11,'RECAP SECT'!$G$6:$CU$253,43,FALSE) -> 17
A12: 262 | B12: BAS-RHIN | C12: 5060 | D12: HAGUENAU | E12: =VLOOKUP($C12,'RECAP SECT'!$G$6:$CU$253,3,FALSE) -> 56.4 | F12: =VLOOKUP($C12,'RECAP SECT'!$G$6:$CU$253,33,FALSE) -> 23,082 | G12: =VLOOKUP($C12,'RECAP SECT'!$G$6:$CU$253,34,FALSE) -> 409.32 | H12: =VLOOKUP($C12,'RECAP SECT'!$G$6:$CU$253,35,FALSE) -> 16% | I12: =VLOOKUP($C12,'RECAP SECT'!$G$6:$CU$253,36,FALSE) -> 2 | J12: =VLOOKUP($C12,'RECAP SECT'!$G$6:$CU$253,37,FALSE) -> 2,507 | K12: =VLOOKUP($C12,'RECAP SECT'!$G$6:$CU$253,38,FALSE) -> 44.46 | L12: =VLOOKUP($C12,'RECAP SECT'!$G$6:$CU$253,39,FALSE) -> 39% | M12: =VLOOKUP($C12,'RECAP SECT'!$G$6:$CU$253,40,FALSE) -> 15 | N12: =VLOOKUP($C12,'RECAP SECT'!$G$6:$CU$253,41,FALSE) -> 25% | O12: =VLOOKUP($C12,'RECAP SECT'!$G$6:$CU$253,42,FALSE) -> 20% | P12: =VLOOKUP($C12,'RECAP SECT'!$G$6:$CU$253,43,FALSE) -> 4
A13: 262 | B13: BAS-RHIN | C13: 5101 | D13: SELESTAT | E13: =VLOOKUP($C13,'RECAP SECT'!$G$6:$CU$253,3,FALSE) -> 51.4 | F13: =VLOOKUP($C13,'RECAP SECT'!$G$6:$CU$253,33,FALSE) -> 12,724 | G13: =VLOOKUP($C13,'RECAP SECT'!$G$6:$CU$253,34,FALSE) -> 247.59 | H13: =VLOOKUP($C13,'RECAP SECT'!$G$6:$CU$253,35,FALSE) -> 49% | I13: =VLOOKUP($C13,'RECAP SECT'!$G$6:$CU$253,36,FALSE) -> 10 | J13: =VLOOKUP($C13,'RECAP SECT'!$G$6:$CU$253,37,FALSE) -> 2,350 | K13: =VLOOKUP($C13,'RECAP SECT'!$G$6:$CU$253,38,FALSE) -> 45.73 | L13: =VLOOKUP($C13,'RECAP SECT'!$G$6:$CU$253,39,FALSE) -> 38% | M13: =VLOOKUP($C13,'RECAP SECT'!$G$6:$CU$253,40,FALSE) -> 14 | N13: =VLOOKUP($C13,'RECAP SECT'!$G$6:$CU$253,41,FALSE) -> 44% | O13: =VLOOKUP($C13,'RECAP SECT'!$G$6:$CU$253,42,FALSE) -> 40% | P13: =VLOOKUP($C13,'RECAP SECT'!$G$6:$CU$253,43,FALSE) -> 13
A14: 262 | B14: BAS-RHIN | C14: 5006 | D14: STRASBOURG | E14: =VLOOKUP($C14,'RECAP SECT'!$G$6:$CU$253,3,FALSE) -> 65.5 | F14: =VLOOKUP($C14,'RECAP SECT'!$G$6:$CU$253,33,FALSE) -> 31,790 | G14: =VLOOKUP($C14,'RECAP SECT'!$G$6:$CU$253,34,FALSE) -> 485.04 | H14: =VLOOKUP($C14,'RECAP SECT'!$G$6:$CU$253,35,FALSE) -> 0% | I14: =VLOOKUP($C14,'RECAP SECT'!$G$6:$CU$253,36,FALSE) -> 1 | J14: =VLOOKUP($C14,'RECAP SECT'!$G$6:$CU$253,37,FALSE) -> 4,216 | K14: =VLOOKUP($C14,'RECAP SECT'!$G$6:$CU$253,38,FALSE) -> 64.33 | L14: =VLOOKUP($C14,'RECAP SECT'!$G$6:$CU$253,39,FALSE) -> 12% | M14: =VLOOKUP($C14,'RECAP SECT'!$G$6:$CU$253,40,FALSE) -> 4 | N14: =VLOOKUP($C14,'RECAP SECT'!$G$6:$CU$253,41,FALSE) -> 5% | O14: =VLOOKUP($C14,'RECAP SECT'!$G$6:$CU$253,42,FALSE) -> 0% | P14: =VLOOKUP($C14,'RECAP SECT'!$G$6:$CU$253,43,FALSE) -> 1
A15: 264 | B15: HAUT-RHIN | C15: 5130 | D15: COLMAR | E15: =VLOOKUP($C15,'RECAP SECT'!$G$6:$CU$253,3,FALSE) -> 47.1 | F15: =VLOOKUP($C15,'RECAP SECT'!$G$6:$CU$253,33,FALSE) -> 7,806 | G15: =VLOOKUP($C15,'RECAP SECT'!$G$6:$CU$253,34,FALSE) -> 165.77 | H15: =VLOOKUP($C15,'RECAP SECT'!$G$6:$CU$253,35,FALSE) -> 66% | I15: =VLOOKUP($C15,'RECAP SECT'!$G$6:$CU$253,36,FALSE) -> 15 | J15: =VLOOKUP($C15,'RECAP SECT'!$G$6:$CU$253,37,FALSE) -> 1,730 | K15: =VLOOKUP($C15,'RECAP SECT'!$G$6:$CU$253,38,FALSE) -> 36.74 | L15: =VLOOKUP($C15,'RECAP SECT'!$G$6:$CU$253,39,FALSE) -> 50% | M15: =VLOOKUP($C15,'RECAP SECT'!$G$6:$CU$253,40,FALSE) -> 18 | N15: =VLOOKUP($C15,'RECAP SECT'!$G$6:$CU$253,41,FALSE) -> 59% | O15: =VLOOKUP($C15,'RECAP SECT'!$G$6:$CU$253,42,FALSE) -> 55% | P15: =VLOOKUP($C15,'RECAP SECT'!$G$6:$CU$253,43,FALSE) -> 16
A16: 264 | B16: HAUT-RHIN | C16: 5169 | D16: MULHOUSE | E16: =VLOOKUP($C16,'RECAP SECT'!$G$6:$CU$253,3,FALSE) -> 46.4 | F16: =VLOOKUP($C16,'RECAP SECT'!$G$6:$CU$253,33,FALSE) -> -2,313 | G16: =VLOOKUP($C16,'RECAP SECT'!$G$6:$CU$253,34,FALSE) -> -49.81 | H16: =VLOOKUP($C16,'RECAP SECT'!$G$6:$CU$253,35,FALSE) -> 110% | I16: =VLOOKUP($C16,'RECAP SECT'!$G$6:$CU$253,36,FALSE) -> 18 | J16: =VLOOKUP($C16,'RECAP SECT'!$G$6:$CU$253,37,FALSE) -> 1,982 | K16: =VLOOKUP($C16,'RECAP SECT'!$G$6:$CU$253,38,FALSE) -> 42.69 | L16: =VLOOKUP($C16,'RECAP SECT'!$G$6:$CU$253,39,FALSE) -> 42% | M16: =VLOOKUP($C16,'RECAP SECT'!$G$6:$CU$253,40,FALSE) -> 16 | N16: =VLOOKUP($C16,'RECAP SECT'!$G$6:$CU$253,41,FALSE) -> 83% | O16: =VLOOKUP($C16,'RECAP SECT'!$G$6:$CU$253,42,FALSE) -> 78% | P16: =VLOOKUP($C16,'RECAP SECT'!$G$6:$CU$253,43,FALSE) -> 18
A17: 30 | B17: MARNE-ARDENNES | C17: 6 | D17: CHALONS EN CHAMPAGNE | E17: =VLOOKUP($C17,'RECAP SECT'!$G$6:$CU$253,3,FALSE) -> 38.0 | F17: =VLOOKUP($C17,'RECAP SECT'!$G$6:$CU$253,33,FALSE) -> 8,542 | G17: =VLOOKUP($C17,'RECAP SECT'!$G$6:$CU$253,34,FALSE) -> 224.79 | H17: =VLOOKUP($C17,'RECAP SECT'!$G$6:$CU$253,35,FALSE) -> 54% | I17: =VLOOKUP($C17,'RECAP SECT'!$G$6:$CU$253,36,FALSE) -> 11 | J17: =VLOOKUP($C17,'RECAP SECT'!$G$6:$CU$253,37,FALSE) -> 2,286 | K17: =VLOOKUP($C17,'RECAP SECT'!$G$6:$CU$253,38,FALSE) -> 60.16 | L17: =VLOOKUP($C17,'RECAP SECT'!$G$6:$CU$253,39,FALSE) -> 18% | M17: =VLOOKUP($C17,'RECAP SECT'!$G$6:$CU$253,40,FALSE) -> 6 | N17: =VLOOKUP($C17,'RECAP SECT'!$G$6:$CU$253,41,FALSE) -> 39% | O17: =VLOOKUP($C17,'RECAP SECT'!$G$6:$CU$253,42,FALSE) -> 34% | P17: =VLOOKUP($C17,'RECAP SECT'!$G$6:$CU$253,43,FALSE) -> 10
A18: 30 | B18: MARNE-ARDENNES | C18: 2 | D18: CHARLEVILLE MEZIERES | E18: =VLOOKUP($C18,'RECAP SECT'!$G$6:$CU$253,3,FALSE) -> 48.9 | F18: =VLOOKUP($C18,'RECAP SECT'!$G$6:$CU$253,33,FALSE) -> 16,214 | G18: =VLOOKUP($C18,'RECAP SECT'!$G$6:$CU$253,34,FALSE) -> 331.71 | H18: =VLOOKUP($C18,'RECAP SECT'!$G$6:$CU$253,35,FALSE) -> 32% | I18: =VLOOKUP($C18,'RECAP SECT'!$G$6:$CU$253,36,FALSE) -> 5 | J18: =VLOOKUP($C18,'RECAP SECT'!$G$6:$CU$253,37,FALSE) -> 3,212 | K18: =VLOOKUP($C18,'RECAP SECT'!$G$6:$CU$253,38,FALSE) -> 65.71 | L18: =VLOOKUP($C18,'RECAP SECT'!$G$6:$CU$253,39,FALSE) -> 10% | M18: =VLOOKUP($C18,'RECAP SECT'!$G$6:$CU$253,40,FALSE) -> 3 | N18: =VLOOKUP($C18,'RECAP SECT'!$G$6:$CU$253,41,FALSE) -> 23% | O18: =VLOOKUP($C18,'RECAP SECT'!$G$6:$CU$253,42,FALSE) -> 18% | P18: =VLOOKUP($C18,'RECAP SECT'!$G$6:$CU$253,43,FALSE) -> 3
A19: 30 | B19: MARNE-ARDENNES | C19: 11 | D19: REIMS | E19: =VLOOKUP($C19,'RECAP SECT'!$G$6:$CU$253,3,FALSE) -> 68.1 | F19: =VLOOKUP($C19,'RECAP SECT'!$G$6:$CU$253,33,FALSE) -> 19,897 | G19: =VLOOKUP($C19,'RECAP SECT'!$G$6:$CU$253,34,FALSE) -> 292.39 | H19: =VLOOKUP($C19,'RECAP SECT'!$G$6:$CU$253,35,FALSE) -> 40% | I19: =VLOOKUP($C19,'RECAP SECT'!$G$6:$CU$253,36,FALSE) -> 9 | J19: =VLOOKUP($C19,'RECAP SECT'!$G$6:$CU$253,37,FALSE) -> 4,544 | K19: =VLOOKUP($C19,'RECAP SECT'!$G$6:$CU$253,38,FALSE) -> 66.77 | L19: =VLOOKUP($C19,'RECAP SECT'!$G$6:$CU$253,39,FALSE) -> 9% | M19: =VLOOKUP($C19,'RECAP SECT'!$G$6:$CU$253,40,FALSE) -> 2 | N19: =VLOOKUP($C19,'RECAP SECT'!$G$6:$CU$253,41,FALSE) -> 27% | O19: =VLOOKUP($C19,'RECAP SECT'!$G$6:$CU$253,42,FALSE) -> 22% | P19: =VLOOKUP($C19,'RECAP SECT'!$G$6:$CU$253,43,FALSE) -> 5
A20: 110 | B20: MEURTHE ET MOSELLE MEUSE | C20: 26 | D20: NANCY | E20: =VLOOKUP($C20,'RECAP SECT'!$G$6:$CU$253,3,FALSE) -> 54.8 | F20: =VLOOKUP($C20,'RECAP SECT'!$G$6:$CU$253,33,FALSE) -> 16,129 | G20: =VLOOKUP($C20,'RECAP SECT'!$G$6:$CU$253,34,FALSE) -> 294.59 | H20: =VLOOKUP($C20,'RECAP SECT'!$G$6:$CU$253,35,FALSE) -> 39% | I20: =VLOOKUP($C20,'RECAP SECT'!$G$6:$CU$253,36,FALSE) -> 8 | J20: =VLOOKUP($C20,'RECAP SECT'!$G$6:$CU$253,37,FALSE) -> 3,083 | K20: =VLOOKUP($C20,'RECAP SECT'!$G$6:$CU$253,38,FALSE) -> 56.31 | L20: =VLOOKUP($C20,'RECAP SECT'!$G$6:$CU$253,39,FALSE) -> 23% | M20: =VLOOKUP($C20,'RECAP SECT'!$G$6:$CU$253,40,FALSE) -> 8 | N20: =VLOOKUP($C20,'RECAP SECT'!$G$6:$CU$253,41,FALSE) -> 33% | O20: =VLOOKUP($C20,'RECAP SECT'!$G$6:$CU$253,42,FALSE) -> 28% | P20: =VLOOKUP($C20,'RECAP SECT'!$G$6:$CU$253,43,FALSE) -> 7
A21: 110 | B21: MEURTHE ET MOSELLE MEUSE | C21: 27 | D21: PONT A MOUSSON | E21: =VLOOKUP($C21,'RECAP SECT'!$G$6:$CU$253,3,FALSE) -> 59.5 | F21: =VLOOKUP($C21,'RECAP SECT'!$G$6:$CU$253,33,FALSE) -> 18,264 | G21: =VLOOKUP($C21,'RECAP SECT'!$G$6:$CU$253,34,FALSE) -> 306.75 | H21: =VLOOKUP($C21,'RECAP SECT'!$G$6:$CU$253,35,FALSE) -> 37% | I21: =VLOOKUP($C21,'RECAP SECT'!$G$6:$CU$253,36,FALSE) -> 6 | J21: =VLOOKUP($C21,'RECAP SECT'!$G$6:$CU$253,37,FALSE) -> 2,939 | K21: =VLOOKUP($C21,'RECAP SECT'!$G$6:$CU$253,38,FALSE) -> 49.36 | L21: =VLOOKUP($C21,'RECAP SECT'!$G$6:$CU$253,39,FALSE) -> 33% | M21: =VLOOKUP($C21,'RECAP SECT'!$G$6:$CU$253,40,FALSE) -> 12 | N21: =VLOOKUP($C21,'RECAP SECT'!$G$6:$CU$253,41,FALSE) -> 35% | O21: =VLOOKUP($C21,'RECAP SECT'!$G$6:$CU$253,42,FALSE) -> 30% | P21: =VLOOKUP($C21,'RECAP SECT'!$G$6:$CU$253,43,FALSE) -> 8
A22: 110 | B22: MEURTHE ET MOSELLE MEUSE | C22: 31 | D22: VERDUN | E22: =VLOOKUP($C22,'RECAP SECT'!$G$6:$CU$253,3,FALSE) -> 48.1 | F22: =VLOOKUP($C22,'RECAP SECT'!$G$6:$CU$253,33,FALSE) -> 10,061 | G22: =VLOOKUP($C22,'RECAP SECT'!$G$6:$CU$253,34,FALSE) -> 209.35 | H22: =VLOOKUP($C22,'RECAP SECT'!$G$6:$CU$253,35,FALSE) -> 57% | I22: =VLOOKUP($C22,'RECAP SECT'!$G$6:$CU$253,36,FALSE) -> 12 | J22: =VLOOKUP($C22,'RECAP SECT'!$G$6:$CU$253,37,FALSE) -> 2,428 | K22: =VLOOKUP($C22,'RECAP SECT'!$G$6:$CU$253,38,FALSE) -> 50.52 | L22: =VLOOKUP($C22,'RECAP SECT'!$G$6:$CU$253,39,FALSE) -> 31% | M22: =VLOOKUP($C22,'RECAP SECT'!$G$6:$CU$253,40,FALSE) -> 9 | N22: =VLOOKUP($C22,'RECAP SECT'!$G$6:$CU$253,41,FALSE) -> 47% | O22: =VLOOKUP($C22,'RECAP SECT'!$G$6:$CU$253,42,FALSE) -> 42% | P22: =VLOOKUP($C22,'RECAP SECT'!$G$6:$CU$253,43,FALSE) -> 14
A23: 160 | B23: MOSELLE | C23: 45 | D23: METZ | E23: =VLOOKUP($C23,'RECAP SECT'!$G$6:$CU$253,3,FALSE) -> 72.7 | F23: =VLOOKUP($C23,'RECAP SECT'!$G$6:$CU$253,33,FALSE) -> 29,590 | G23: =VLOOKUP($C23,'RECAP SECT'!$G$6:$CU$253,34,FALSE) -> 406.84 | H23: =VLOOKUP($C23,'RECAP SECT'!$G$6:$CU$253,35,FALSE) -> 16% | I23: =VLOOKUP($C23,'RECAP SECT'!$G$6:$CU$253,36,FALSE) -> 3 | J23: =VLOOKUP($C23,'RECAP SECT'!$G$6:$CU$253,37,FALSE) -> 4,361 | K23: =VLOOKUP($C23,'RECAP SECT'!$G$6:$CU$253,38,FALSE) -> 59.96 | L23: =VLOOKUP($C23,'RECAP SECT'!$G$6:$CU$253,39,FALSE) -> 18% | M23: =VLOOKUP($C23,'RECAP SECT'!$G$6:$CU$253,40,FALSE) -> 7 | N23: =VLOOKUP($C23,'RECAP SECT'!$G$6:$CU$253,41,FALSE) -> 17% | O23: =VLOOKUP($C23,'RECAP SECT'!$G$6:$CU$253,42,FALSE) -> 12% | P23: =VLOOKUP($C23,'RECAP SECT'!$G$6:$CU$253,43,FALSE) -> 2
A24: 160 | B24: MOSELLE | C24: 42 | D24: MOSELLE EST | E24: =VLOOKUP($C24,'RECAP SECT'!$G$6:$CU$253,3,FALSE) -> 59.9 | F24: =VLOOKUP($C24,'RECAP SECT'!$G$6:$CU$253,33,FALSE) -> 11,909 | G24: =VLOOKUP($C24,'RECAP SECT'!$G$6:$CU$253,34,FALSE) -> 198.95 | H24: =VLOOKUP($C24,'RECAP SECT'!$G$6:$CU$253,35,FALSE) -> 59% | I24: =VLOOKUP($C24,'RECAP SECT'!$G$6:$CU$253,36,FALSE) -> 14 | J24: =VLOOKUP($C24,'RECAP SECT'!$G$6:$CU$253,37,FALSE) -> 3,757 | K24: =VLOOKUP($C24,'RECAP SECT'!$G$6:$CU$253,38,FALSE) -> 62.76 | L24: =VLOOKUP($C24,'RECAP SECT'!$G$6:$CU$253,39,FALSE) -> 14% | M24: =VLOOKUP($C24,'RECAP SECT'!$G$6:$CU$253,40,FALSE) -> 5 | N24: =VLOOKUP($C24,'RECAP SECT'!$G$6:$CU$253,41,FALSE) -> 41% | O24: =VLOOKUP($C24,'RECAP SECT'!$G$6:$CU$253,42,FALSE) -> 36% | P24: =VLOOKUP($C24,'RECAP SECT'!$G$6:$CU$253,43,FALSE) -> 11
A25: 160 | B25: MOSELLE | C25: 44 | D25: MOSELLE NORD | E25: =VLOOKUP($C25,'RECAP SECT'!$G$6:$CU$253,3,FALSE) -> 57.2 | F25: =VLOOKUP($C25,'RECAP SECT'!$G$6:$CU$253,33,FALSE) -> 7,788 | G25: =VLOOKUP($C25,'RECAP SECT'!$G$6:$CU$253,34,FALSE) -> 136.06 | H25: =VLOOKUP($C25,'RECAP SECT'!$G$6:$CU$253,35,FALSE) -> 72% | I25: =VLOOKUP($C25,'RECAP SECT'!$G$6:$CU$253,36,FALSE) -> 16 | J25: =VLOOKUP($C25,'RECAP SECT'!$G$6:$CU$253,37,FALSE) -> 4,200 | K25: =VLOOKUP($C25,'RECAP SECT'!$G$6:$CU$253,38,FALSE) -> 73.38 | L25: =VLOOKUP($C25,'RECAP SECT'!$G$6:$CU$253,39,FALSE) -> 0% | M25: =VLOOKUP($C25,'RECAP SECT'!$G$6:$CU$253,40,FALSE) -> 1 | N25: =VLOOKUP($C25,'RECAP SECT'!$G$6:$CU$253,41,FALSE) -> 43% | O25: =VLOOKUP($C25,'RECAP SECT'!$G$6:$CU$253,42,FALSE) -> 38% | P25: =VLOOKUP($C25,'RECAP SECT'!$G$6:$CU$253,43,FALSE) -> 12
A26: 80 | B26: VOSGES | C26: 57 | D26: EPINAL | E26: =VLOOKUP($C26,'RECAP SECT'!$G$6:$CU$253,3,FALSE) -> 52.9 | F26: =VLOOKUP($C26,'RECAP SECT'!$G$6:$CU$253,33,FALSE) -> 16,210 | G26: =VLOOKUP($C26,'RECAP SECT'!$G$6:$CU$253,34,FALSE) -> 306.37 | H26: =VLOOKUP($C26,'RECAP SECT'!$G$6:$CU$253,35,FALSE) -> 37% | I26: =VLOOKUP($C26,'RECAP SECT'!$G$6:$CU$253,36,FALSE) -> 7 | J26: =VLOOKUP($C26,'RECAP SECT'!$G$6:$CU$253,37,FALSE) -> 2,563 | K26: =VLOOKUP($C26,'RECAP SECT'!$G$6:$CU$253,38,FALSE) -> 48.44 | L26: =VLOOKUP($C26,'RECAP SECT'!$G$6:$CU$253,39,FALSE) -> 34% | M26: =VLOOKUP($C26,'RECAP SECT'!$G$6:$CU$253,40,FALSE) -> 13 | N26: =VLOOKUP($C26,'RECAP SECT'!$G$6:$CU$253,41,FALSE) -> 36% | O26: =VLOOKUP($C26,'RECAP SECT'!$G$6:$CU$253,42,FALSE) -> 31% | P26: =VLOOKUP($C26,'RECAP SECT'!$G$6:$CU$253,43,FALSE) -> 9
A27: 80 | B27: VOSGES | C27: 55 | D27: SAINT DIE | E27: =VLOOKUP($C27,'RECAP SECT'!$G$6:$CU$253,3,FALSE) -> 40.2 | F27: =VLOOKUP($C27,'RECAP SECT'!$G$6:$CU$253,33,FALSE) -> 8,009 | G27: =VLOOKUP($C27,'RECAP SECT'!$G$6:$CU$253,34,FALSE) -> 199.09 | H27: =VLOOKUP($C27,'RECAP SECT'!$G$6:$CU$253,35,FALSE) -> 59% | I27: =VLOOKUP($C27,'RECAP SECT'!$G$6:$CU$253,36,FALSE) -> 13 | J27: =VLOOKUP($C27,'RECAP SECT'!$G$6:$CU$253,37,FALSE) -> 1,617 | K27: =VLOOKUP($C27,'RECAP SECT'!$G$6:$CU$253,38,FALSE) -> 40.19 | L27: =VLOOKUP($C27,'RECAP SECT'!$G$6:$CU$253,39,FALSE) -> 45% | M27: =VLOOKUP($C27,'RECAP SECT'!$G$6:$CU$253,40,FALSE) -> 17 | N27: =VLOOKUP($C27,'RECAP SECT'!$G$6:$CU$253,41,FALSE) -> 53% | O27: =VLOOKUP($C27,'RECAP SECT'!$G$6:$CU$253,42,FALSE) -> 49% | P27: =VLOOKUP($C27,'RECAP SECT'!$G$6:$CU$253,43,FALSE) -> 15
A28: Total CEGEE Directions Régionales | E28: =SUM(E10:E27) -> 955

Sheet SE_CREDIT
B1: Accueil | F1: BAROMETRE BDD - TERRITOIRES
F2: CREDITS
F3: =ACCUEIL!F7 -> 2022-09-11
F7: Engagements et ventes accessoires pondérés Immo | J7: Engagements et ventes accessoires pondérés Conso | N7: Ventes sur client non détenteur de l’univers | R7: Total Crédits
F8: =DATEMAJ!C18 -> au 11/09 | H8: coef | I8: ='RECAP DIRCOM'!BE4 -> 6% | J8: =DATEMAJ!C19 -> au 11/09 | L8: coef | M8: ='RECAP DIRCOM'!BI4 -> 6% | N8: =DATEMAJ!C20 -> au 11/09 | P8: coef | Q8: ='RECAP DIRCOM'!BM4 -> 8% | S8: coef | T8: ='RECAP DIRCOM'!BP4 -> 20%
B9: Direction | C9: eds | D9: Territoire | E9: ="ETP perf "&DATEMAJ!$C$28 -> ETP perf 11-sept | F9: PNB | G9: PNB / ETP | H9: % Ecart au 1er | I9: Rang | J9: PNB | K9: PNB / ETP | L9: % Ecart au 1er | M9: Rang | N9: VB | O9: VB / ETP | P9: % Ecart au 1er | Q9: Rang | R9: Moyenne ecart au 1er | S9: % Ecart au 1er | T9: Rang CEGEE
A10: 50 | B10: AUBE HAUTE MARNE | C10: 21 | D10: CHAUMONT | E10: =VLOOKUP($C10,'RECAP SECT'!$G$6:$CU$253,3,FALSE) -> 33.8 | F10: =VLOOKUP($C10,'RECAP SECT'!$G$6:$CU$253,48,FALSE) -> 6,611 | G10: =VLOOKUP($C10,'RECAP SECT'!$G$6:$CU$253,49,FALSE) -> 195.77 | H10: =VLOOKUP($C10,'RECAP SECT'!$G$6:$CU$253,50,FALSE) -> 63% | I10: =VLOOKUP($C10,'RECAP SECT'!$G$6:$CU$253,51,FALSE) -> 15 | J10: =VLOOKUP($C10,'RECAP SECT'!$G$6:$CU$253,52,FALSE) -> 1,805 | K10: =VLOOKUP($C10,'RECAP SECT'!$G$6:$CU$253,53,FALSE) -> 53.44 | L10: =VLOOKUP($C10,'RECAP SECT'!$G$6:$CU$253,54,FALSE) -> 6% | M10: =VLOOKUP($C10,'RECAP SECT'!$G$6:$CU$253,55,FALSE) -> 4 | N10: =VLOOKUP($C10,'RECAP SECT'!$G$6:$CU$253,56,FALSE) -> 723 | O10: =VLOOKUP($C10,'RECAP SECT'!$G$6:$CU$253,57,FALSE) -> 21.41 | P10: =VLOOKUP($C10,'RECAP SECT'!$G$6:$CU$253,58,FALSE) -> 43% | Q10: =VLOOKUP($C10,'RECAP SECT'!$G$6:$CU$253,59,FALSE) -> 12 | R10: =VLOOKUP($C10,'RECAP SECT'!$G$6:$CU$253,60,FALSE) -> 38% | S10: =VLOOKUP($C10,'RECAP SECT'!$G$6:$CU$253,61,FALSE) -> 33% | T10: =VLOOKUP($C10,'RECAP SECT'!$G$6:$CU$253,62,FALSE) -> 10
A11: 50 | B11: AUBE HAUTE MARNE | C11: 14 | D11: TROYES | E11: =VLOOKUP($C11,'RECAP SECT'!$G$6:$CU$253,3,FALSE) -> 54.1 | F11: =VLOOKUP($C11,'RECAP SECT'!$G$6:$CU$253,48,FALSE) -> 11,724 | G11: =VLOOKUP($C11,'RECAP SECT'!$G$6:$CU$253,49,FALSE) -> 216.72 | H11: =VLOOKUP($C11,'RECAP SECT'!$G$6:$CU$253,50,FALSE) -> 59% | I11: =VLOOKUP($C11,'RECAP SECT'!$G$6:$CU$253,51,FALSE) -> 12 | J11: =VLOOKUP($C11,'RECAP SECT'!$G$6:$CU$253,52,FALSE) -> 2,575 | K11: =VLOOKUP($C11,'RECAP SECT'!$G$6:$CU$253,53,FALSE) -> 47.59 | L11: =VLOOKUP($C11,'RECAP SECT'!$G$6:$CU$253,54,FALSE) -> 16% | M11: =VLOOKUP($C11,'RECAP SECT'!$G$6:$CU$253,55,FALSE) -> 11 | N11: =VLOOKUP($C11,'RECAP SECT'!$G$6:$CU$253,56,FALSE) -> 1,036 | O11: =VLOOKUP($C11,'RECAP SECT'!$G$6:$CU$253,57,FALSE) -> 19.15 | P11: =VLOOKUP($C11,'RECAP SECT'!$G$6:$CU$253,58,FALSE) -> 49% | Q11: =VLOOKUP($C11,'RECAP SECT'!$G$6:$CU$253,59,FALSE) -> 14 | R11: =VLOOKUP($C11,'RECAP SECT'!$G$6:$CU$253,60,FALSE) -> 42% | S11: =VLOOKUP($C11,'RECAP SECT'!$G$6:$CU$253,61,FALSE) -> 37% | T11: =VLOOKUP($C11,'RECAP SECT'!$G$6:$CU$253,62,FALSE) -> 14
A12: 262 | B12: BAS-RHIN | C12: 5060 | D12: HAGUENAU | E12: =VLOOKUP($C12,'RECAP SECT'!$G$6:$CU$253,3,FALSE) -> 56.4 | F12: =VLOOKUP($C12,'RECAP SECT'!$G$6:$CU$253,48,FALSE) -> 9,002 | G12: =VLOOKUP($C12,'RECAP SECT'!$G$6:$CU$253,49,FALSE) -> 159.64 | H12: =VLOOKUP($C12,'RECAP SECT'!$G$6:$CU$253,50,FALSE) -> 70% | I12: =VLOOKUP($C12,'RECAP SECT'!$G$6:$CU$253,51,FALSE) -> 18 | J12: =VLOOKUP($C12,'RECAP SECT'!$G$6:$CU$253,52,FALSE) -> 2,607 | K12: =VLOOKUP($C12,'RECAP SECT'!$G$6:$CU$253,53,FALSE) -> 46.23 | L12: =VLOOKUP($C12,'RECAP SECT'!$G$6:$CU$253,54,FALSE) -> 19% | M12: =VLOOKUP($C12,'RECAP SECT'!$G$6:$CU$253,55,FALSE) -> 13 | N12: =VLOOKUP($C12,'RECAP SECT'!$G$6:$CU$253,56,FALSE) -> 903 | O12: =VLOOKUP($C12,'RECAP SECT'!$G$6:$CU$253,57,FALSE) -> 16.01 | P12: =VLOOKUP($C12,'RECAP SECT'!$G$6:$CU$253,58,FALSE) -> 57% | Q12: =VLOOKUP($C12,'RECAP SECT'!$G$6:$CU$253,59,FALSE) -> 17 | R12: =VLOOKUP($C12,'RECAP SECT'!$G$6:$CU$253,60,FALSE) -> 49% | S12: =VLOOKUP($C12,'RECAP SECT'!$G$6:$CU$253,61,FALSE) -> 44% | T12: =VLOOKUP($C12,'RECAP SECT'!$G$6:$CU$253,62,FALSE) -> 17
A13: 262 | B13: BAS-RHIN | C13: 5101 | D13: SELESTAT | E13: =VLOOKUP($C13,'RECAP SECT'!$G$6:$CU$253,3,FALSE) -> 51.4 | F13: =VLOOKUP($C13,'RECAP SECT'!$G$6:$CU$253,48,FALSE) -> 10,711 | G13: =VLOOKUP($C13,'RECAP SECT'!$G$6:$CU$253,49,FALSE) -> 208.42 | H13: =VLOOKUP($C13,'RECAP SECT'!$G$6:$CU$253,50,FALSE) -> 61% | I13: =VLOOKUP($C13,'RECAP SECT'!$G$6:$CU$253,51,FALSE) -> 14 | J13: =VLOOKUP($C13,'RECAP SECT'!$G$6:$CU$253,52,FALSE) -> 2,214 | K13: =VLOOKUP($C13,'RECAP SECT'!$G$6:$CU$253,53,FALSE) -> 43.09 | L13: =VLOOKUP($C13,'RECAP SECT'!$G$6:$CU$253,54,FALSE) -> 24% | M13: =VLOOKUP($C13,'RECAP SECT'!$G$6:$CU$253,55,FALSE) -> 14 | N13: =VLOOKUP($C13,'RECAP SECT'!$G$6:$CU$253,56,FALSE) -> 950 | O13: =VLOOKUP($C13,'RECAP SECT'!$G$6:$CU$253,57,FALSE) -> 18.49 | P13: =VLOOKUP($C13,'RECAP SECT'!$G$6:$CU$253,58,FALSE) -> 51% | Q13: =VLOOKUP($C13,'RECAP SECT'!$G$6:$CU$253,59,FALSE) -> 15 | R13: =VLOOKUP($C13,'RECAP SECT'!$G$6:$CU$253,60,FALSE) -> 46% | S13: =VLOOKUP($C13,'RECAP SECT'!$G$6:$CU$253,61,FALSE) -> 41% | T13: =VLOOKUP($C13,'RECAP SECT'!$G$6:$CU$253,62,FALSE) -> 15
A14: 262 | B14: BAS-RHIN | C14: 5006 | D14: STRASBOURG | E14: =VLOOKUP($C14,'RECAP SECT'!$G$6:$CU$253,3,FALSE) -> 65.5 | F14: =VLOOKUP($C14,'RECAP SECT'!$G$6:$CU$253,48,FALSE) -> 18,229 | G14: =VLOOKUP($C14,'RECAP SECT'!$G$6:$CU$253,49,FALSE) -> 278.14 | H14: =VLOOKUP($C14,'RECAP SECT'!$G$6:$CU$253,50,FALSE) -> 47% | I14: =VLOOKUP($C14,'RECAP SECT'!$G$6:$CU$253,51,FALSE) -> 9 | J14: =VLOOKUP($C14,'RECAP SECT'!$G$6:$CU$253,52,FALSE) -> 2,493 | K14: =VLOOKUP($C14,'RECAP SECT'!$G$6:$CU$253,53,FALSE) -> 38.03 | L14: =VLOOKUP($C14,'RECAP SECT'!$G$6:$CU$253,54,FALSE) -> 33% | M14: =VLOOKUP($C14,'RECAP SECT'!$G$6:$CU$253,55,FALSE) -> 18 | N14: =VLOOKUP($C14,'RECAP SECT'!$G$6:$CU$253,56,FALSE) -> 1,511 | O14: =VLOOKUP($C14,'RECAP SECT'!$G$6:$CU$253,57,FALSE) -> 23.05 | P14: =VLOOKUP($C14,'RECAP SECT'!$G$6:$CU$253,58,FALSE) -> 39% | Q14: =VLOOKUP($C14,'RECAP SECT'!$G$6:$CU$253,59,FALSE) -> 9 | R14: =VLOOKUP($C14,'RECAP SECT'!$G$6:$CU$253,60,FALSE) -> 40% | S14: =VLOOKUP($C14,'RECAP SECT'!$G$6:$CU$253,61,FALSE) -> 35% | T14: =VLOOKUP($C14,'RECAP SECT'!$G$6:$CU$253,62,FALSE) -> 11
A15: 264 | B15: HAUT-RHIN | C15: 5130 | D15: COLMAR | E15: =VLOOKUP($C15,'RECAP SECT'!$G$6:$CU$253,3,FALSE) -> 47.1 | F15: =VLOOKUP($C15,'RECAP SECT'!$G$6:$CU$253,48,FALSE) -> 7,694 | G15: =VLOOKUP($C15,'RECAP SECT'!$G$6:$CU$253,49,FALSE) -> 163.39 | H15: =VLOOKUP($C15,'RECAP SECT'!$G$6:$CU$253,50,FALSE) -> 69% | I15: =VLOOKUP($C15,'RECAP SECT'!$G$6:$CU$253,51,FALSE) -> 17 | J15: =VLOOKUP($C15,'RECAP SECT'!$G$6:$CU$253,52,FALSE) -> 1,965 | K15: =VLOOKUP($C15,'RECAP SECT'!$G$6:$CU$253,53,FALSE) -> 41.72 | L15: =VLOOKUP($C15,'RECAP SECT'!$G$6:$CU$253,54,FALSE) -> 26% | M15: =VLOOKUP($C15,'RECAP SECT'!$G$6:$CU$253,55,FALSE) -> 16 | N15: =VLOOKUP($C15,'RECAP SECT'!$G$6:$CU$253,56,FALSE) -> 745 | O15: =VLOOKUP($C15,'RECAP SECT'!$G$6:$CU$253,57,FALSE) -> 15.82 | P15: =VLOOKUP($C15,'RECAP SECT'!$G$6:$CU$253,58,FALSE) -> 58% | Q15: =VLOOKUP($C15,'RECAP SECT'!$G$6:$CU$253,59,FALSE) -> 18 | R15: =VLOOKUP($C15,'RECAP SECT'!$G$6:$CU$253,60,FALSE) -> 52% | S15: =VLOOKUP($C15,'RECAP SECT'!$G$6:$CU$253,61,FALSE) -> 47% | T15: =VLOOKUP($C15,'RECAP SECT'!$G$6:$CU$253,62,FALSE) -> 18
A16: 264 | B16: HAUT-RHIN | C16: 5169 | D16: MULHOUSE | E16: =VLOOKUP($C16,'RECAP SECT'!$G$6:$CU$253,3,FALSE) -> 46.4 | F16: =VLOOKUP($C16,'RECAP SECT'!$G$6:$CU$253,48,FALSE) -> 9,882 | G16: =VLOOKUP($C16,'RECAP SECT'!$G$6:$CU$253,49,FALSE) -> 212.84 | H16: =VLOOKUP($C16,'RECAP SECT'!$G$6:$CU$253,50,FALSE) -> 60% | I16: =VLOOKUP($C16,'RECAP SECT'!$G$6:$CU$253,51,FALSE) -> 13 | J16: =VLOOKUP($C16,'RECAP SECT'!$G$6:$CU$253,52,FALSE) -> 1,899 | K16: =VLOOKUP($C16,'RECAP SECT'!$G$6:$CU$253,53,FALSE) -> 40.90 | L16: =VLOOKUP($C16,'RECAP SECT'!$G$6:$CU$253,54,FALSE) -> 28% | M16: =VLOOKUP($C16,'RECAP SECT'!$G$6:$CU$253,55,FALSE) -> 17 | N16: =VLOOKUP($C16,'RECAP SECT'!$G$6:$CU$253,56,FALSE) -> 779 | O16: =VLOOKUP($C16,'RECAP SECT'!$G$6:$CU$253,57,FALSE) -> 16.78 | P16: =VLOOKUP($C16,'RECAP SECT'!$G$6:$CU$253,58,FALSE) -> 55% | Q16: =VLOOKUP($C16,'RECAP SECT'!$G$6:$CU$253,59,FALSE) -> 16 | R16: =VLOOKUP($C16,'RECAP SECT'!$G$6:$CU$253,60,FALSE) -> 48% | S16: =VLOOKUP($C16,'RECAP SECT'!$G$6:$CU$253,61,FALSE) -> 43% | T16: =VLOOKUP($C16,'RECAP SECT'!$G$6:$CU$253,62,FALSE) -> 16
A17: 30 | B17: MARNE-ARDENNES | C17: 6 | D17: CHALONS EN CHAMPAGNE | E17: =VLOOKUP($C17,'RECAP SECT'!$G$6:$CU$253,3,FALSE) -> 38.0 | F17: =VLOOKUP($C17,'RECAP SECT'!$G$6:$CU$253,48,FALSE) -> 11,869 | G17: =VLOOKUP($C17,'RECAP SECT'!$G$6:$CU$253,49,FALSE) -> 312.33 | H17: =VLOOKUP($C17,'RECAP SECT'!$G$6:$CU$253,50,FALSE) -> 41% | I17: =VLOOKUP($C17,'RECAP SECT'!$G$6:$CU$253,51,FALSE) -> 8 | J17: =VLOOKUP($C17,'RECAP SECT'!$G$6:$CU$253,52,FALSE) -> 1,999 | K17: =VLOOKUP($C17,'RECAP SECT'!$G$6:$CU$253,53,FALSE) -> 52.61 | L17: =VLOOKUP($C17,'RECAP SECT'!$G$6:$CU$253,54,FALSE) -> 7% | M17: =VLOOKUP($C17,'RECAP SECT'!$G$6:$CU$253,55,FALSE) -> 5 | N17: =VLOOKUP($C17,'RECAP SECT'!$G$6:$CU$253,56,FALSE) -> 972 | O17: =VLOOKUP($C17,'RECAP SECT'!$G$6:$CU$253,57,FALSE) -> 25.58 | P17: =VLOOKUP($C17,'RECAP SECT'!$G$6:$CU$253,58,FALSE) -> 32% | Q17: =VLOOKUP($C17,'RECAP SECT'!$G$6:$CU$253,59,FALSE) -> 6 | R17: =VLOOKUP($C17,'RECAP SECT'!$G$6:$CU$253,60,FALSE) -> 27% | S17: =VLOOKUP($C17,'RECAP SECT'!$G$6:$CU$253,61,FALSE) -> 22% | T17: =VLOOKUP($C17,'RECAP SECT'!$G$6:$CU$253,62,FALSE) -> 7
A18: 30 | B18: MARNE-ARDENNES | C18: 2 | D18: CHARLEVILLE MEZIERES | E18: =VLOOKUP($C18,'RECAP SECT'!$G$6:$CU$253,3,FALSE) -> 48.9 | F18: =VLOOKUP($C18,'RECAP SECT'!$G$6:$CU$253,48,FALSE) -> 17,697 | G18: =VLOOKUP($C18,'RECAP SECT'!$G$6:$CU$253,49,FALSE) -> 362.05 | H18: =VLOOKUP($C18,'RECAP SECT'!$G$6:$CU$253,50,FALSE) -> 31% | I18: =VLOOKUP($C18,'RECAP SECT'!$G$6:$CU$253,51,FALSE) -> 5 | J18: =VLOOKUP($C18,'RECAP SECT'!$G$6:$CU$253,52,FALSE) -> 2,337 | K18: =VLOOKUP($C18,'RECAP SECT'!$G$6:$CU$253,53,FALSE) -> 47.81 | L18: =VLOOKUP($C18,'RECAP SECT'!$G$6:$CU$253,54,FALSE) -> 16% | M18: =VLOOKUP($C18,'RECAP SECT'!$G$6:$CU$253,55,FALSE) -> 10 | N18: =VLOOKUP($C18,'RECAP SECT'!$G$6:$CU$253,56,FALSE) -> 1,422 | O18: =VLOOKUP($C18,'RECAP SECT'!$G$6:$CU$253,57,FALSE) -> 29.09 | P18: =VLOOKUP($C18,'RECAP SECT'!$G$6:$CU$253,58,FALSE) -> 23% | Q18: =VLOOKUP($C18,'RECAP SECT'!$G$6:$CU$253,59,FALSE) -> 3 | R18: =VLOOKUP($C18,'RECAP SECT'!$G$6:$CU$253,60,FALSE) -> 23% | S18: =VLOOKUP($C18,'RECAP SECT'!$G$6:$CU$253,61,FALSE) -> 18% | T18: =VLOOKUP($C18,'RECAP SECT'!$G$6:$CU$253,62,FALSE) -> 4
A19: 30 | B19: MARNE-ARDENNES | C19: 11 | D19: REIMS | E19: =VLOOKUP($C19,'RECAP SECT'!$G$6:$CU$253,3,FALSE) -> 68.1 | F19: =VLOOKUP($C19,'RECAP SECT'!$G$6:$CU$253,48,FALSE) -> 35,938 | G19: =VLOOKUP($C19,'RECAP SECT'!$G$6:$CU$253,49,FALSE) -> 528.12 | H19: =VLOOKUP($C19,'RECAP SECT'!$G$6:$CU$253,50,FALSE) -> 0% | I19: =VLOOKUP($C19,'RECAP SECT'!$G$6:$CU$253,51,FALSE) -> 1 | J19: =VLOOKUP($C19,'RECAP SECT'!$G$6:$CU$253,52,FALSE) -> 3,207 | K19: =VLOOKUP($C19,'RECAP SECT'!$G$6:$CU$253,53,FALSE) -> 47.13 | L19: =VLOOKUP($C19,'RECAP SECT'!$G$6:$CU$253,54,FALSE) -> 17% | M19: =VLOOKUP($C19,'RECAP SECT'!$G$6:$CU$253,55,FALSE) -> 12 | N19: =VLOOKUP($C19,'RECAP SECT'!$G$6:$CU$253,56,FALSE) -> 2,562 | O19: =VLOOKUP($C19,'RECAP SECT'!$G$6:$CU$253,57,FALSE) -> 37.65 | P19: =VLOOKUP($C19,'RECAP SECT'!$G$6:$CU$253,58,FALSE) -> 0% | Q19: =VLOOKUP($C19,'RECAP SECT'!$G$6:$CU$253,59,FALSE) -> 1 | R19: =VLOOKUP($C19,'RECAP SECT'!$G$6:$CU$253,60,FALSE) -> 5% | S19: =VLOOKUP($C19,'RECAP SECT'!$G$6:$CU$253,61,FALSE) -> 0% | T19: =VLOOKUP($C19,'RECAP SECT'!$G$6:$CU$253,62,FALSE) -> 1
A20: 110 | B20: MEURTHE ET MOSELLE MEUSE | C20: 26 | D20: NANCY | E20: =VLOOKUP($C20,'RECAP SECT'!$G$6:$CU$253,3,FALSE) -> 54.8 | F20: =VLOOKUP($C20,'RECAP SECT'!$G$6:$CU$253,48,FALSE) -> 21,392 | G20: =VLOOKUP($C20,'RECAP SECT'!$G$6:$CU$253,49,FALSE) -> 390.72 | H20: =VLOOKUP($C20,'RECAP SECT'!$G$6:$CU$253,50,FALSE) -> 26% | I20: =VLOOKUP($C20,'RECAP SECT'!$G$6:$CU$253,51,FALSE) -> 3 | J20: =VLOOKUP($C20,'RECAP SECT'!$G$6:$CU$253,52,FALSE) -> 2,753 | K20: =VLOOKUP($C20,'RECAP SECT'!$G$6:$CU$253,53,FALSE) -> 50.28 | L20: =VLOOKUP($C20,'RECAP SECT'!$G$6:$CU$253,54,FALSE) -> 11% | M20: =VLOOKUP($C20,'RECAP SECT'!$G$6:$CU$253,55,FALSE) -> 8 | N20: =VLOOKUP($C20,'RECAP SECT'!$G$6:$CU$253,56,FALSE) -> 1,504 | O20: =VLOOKUP($C20,'RECAP SECT'!$G$6:$CU$253,57,FALSE) -> 27.47 | P20: =VLOOKUP($C20,'RECAP SECT'!$G$6:$CU$253,58,FALSE) -> 27% | Q20: =VLOOKUP($C20,'RECAP SECT'!$G$6:$CU$253,59,FALSE) -> 4 | R20: =VLOOKUP($C20,'RECAP SECT'!$G$6:$CU$253,60,FALSE) -> 22% | S20: =VLOOKUP($C20,'RECAP SECT'!$G$6:$CU$253,61,FALSE) -> 17% | T20: =VLOOKUP($C20,'RECAP SECT'!$G$6:$CU$253,62,FALSE) -> 3
A21: 110 | B21: MEURTHE ET MOSELLE MEUSE | C21: 27 | D21: PONT A MOUSSON | E21: =VLOOKUP($C21,'RECAP SECT'!$G$6:$CU$253,3,FALSE) -> 59.5 | F21: =VLOOKUP($C21,'RECAP SECT'!$G$6:$CU$253,48,FALSE) -> 22,015 | G21: =VLOOKUP($C21,'RECAP SECT'!$G$6:$CU$253,49,FALSE) -> 369.74 | H21: =VLOOKUP($C21,'RECAP SECT'!$G$6:$CU$253,50,FALSE) -> 30% | I21: =VLOOKUP($C21,'RECAP SECT'!$G$6:$CU$253,51,FALSE) -> 4 | J21: =VLOOKUP($C21,'RECAP SECT'!$G$6:$CU$253,52,FALSE) -> 3,038 | K21: =VLOOKUP($C21,'RECAP SECT'!$G$6:$CU$253,53,FALSE) -> 51.03 | L21: =VLOOKUP($C21,'RECAP SECT'!$G$6:$CU$253,54,FALSE) -> 10% | M21: =VLOOKUP($C21,'RECAP SECT'!$G$6:$CU$253,55,FALSE) -> 7 | N21: =VLOOKUP($C21,'RECAP SECT'!$G$6:$CU$253,56,FALSE) -> 1,549 | O21: =VLOOKUP($C21,'RECAP SECT'!$G$6:$CU$253,57,FALSE) -> 26.02 | P21: =VLOOKUP($C21,'RECAP SECT'!$G$6:$CU$253,58,FALSE) -> 31% | Q21: =VLOOKUP($C21,'RECAP SECT'!$G$6:$CU$253,59,FALSE) -> 5 | R21: =VLOOKUP($C21,'RECAP SECT'!$G$6:$CU$253,60,FALSE) -> 24% | S21: =VLOOKUP($C21,'RECAP SECT'!$G$6:$CU$253,61,FALSE) -> 19% | T21: =VLOOKUP($C21,'RECAP SECT'!$G$6:$CU$253,62,FALSE) -> 5
A22: 110 | B22: MEURTHE ET MOSELLE MEUSE | C22: 31 | D22: VERDUN | E22: =VLOOKUP($C22,'RECAP SECT'!$G$6:$CU$253,3,FALSE) -> 48.1 | F22: =VLOOKUP($C22,'RECAP SECT'!$G$6:$CU$253,48,FALSE) -> 12,589 | G22: =VLOOKUP($C22,'RECAP SECT'!$G$6:$CU$253,49,FALSE) -> 261.93 | H22: =VLOOKUP($C22,'RECAP SECT'!$G$6:$CU$253,50,FALSE) -> 50% | I22: =VLOOKUP($C22,'RECAP SECT'!$G$6:$CU$253,51,FALSE) -> 10 | J22: =VLOOKUP($C22,'RECAP SECT'!$G$6:$CU$253,52,FALSE) -> 2,728 | K22: =VLOOKUP($C22,'RECAP SECT'!$G$6:$CU$253,53,FALSE) -> 56.75 | L22: =VLOOKUP($C22,'RECAP SECT'!$G$6:$CU$253,54,FALSE) -> 0% | M22: =VLOOKUP($C22,'RECAP SECT'!$G$6:$CU$253,55,FALSE) -> 1 | N22: =VLOOKUP($C22,'RECAP SECT'!$G$6:$CU$253,56,FALSE) -> 1,031 | O22: =VLOOKUP($C22,'RECAP SECT'!$G$6:$CU$253,57,FALSE) -> 21.45 | P22: =VLOOKUP($C22,'RECAP SECT'!$G$6:$CU$253,58,FALSE) -> 43% | Q22: =VLOOKUP($C22,'RECAP SECT'!$G$6:$CU$253,59,FALSE) -> 11 | R22: =VLOOKUP($C22,'RECAP SECT'!$G$6:$CU$253,60,FALSE) -> 32% | S22: =VLOOKUP($C22,'RECAP SECT'!$G$6:$CU$253,61,FALSE) -> 27% | T22: =VLOOKUP($C22,'RECAP SECT'!$G$6:$CU$253,62,FALSE) -> 9
A23: 160 | B23: MOSELLE | C23: 45 | D23: METZ | E23: =VLOOKUP($C23,'RECAP SECT'!$G$6:$CU$253,3,FALSE) -> 72.7 | F23: =VLOOKUP($C23,'RECAP SECT'!$G$6:$CU$253,48,FALSE) -> 23,253 | G23: =VLOOKUP($C23,'RECAP SECT'!$G$6:$CU$253,49,FALSE) -> 319.71 | H23: =VLOOKUP($C23,'RECAP SECT'!$G$6:$CU$253,50,FALSE) -> 39% | I23: =VLOOKUP($C23,'RECAP SECT'!$G$6:$CU$253,51,FALSE) -> 7 | J23: =VLOOKUP($C23,'RECAP SECT'!$G$6:$CU$253,52,FALSE) -> 3,723 | K23: =VLOOKUP($C23,'RECAP SECT'!$G$6:$CU$253,53,FALSE) -> 51.19 | L23: =VLOOKUP($C23,'RECAP SECT'!$G$6:$CU$253,54,FALSE) -> 10% | M23: =VLOOKUP($C23,'RECAP SECT'!$G$6:$CU$253,55,FALSE) -> 6 | N23: =VLOOKUP($C23,'RECAP SECT'!$G$6:$CU$253,56,FALSE) -> 1,704 | O23: =VLOOKUP($C23,'RECAP SECT'!$G$6:$CU$253,57,FALSE) -> 23.43 | P23: =VLOOKUP($C23,'RECAP SECT'!$G$6:$CU$253,58,FALSE) -> 38% | Q23: =VLOOKUP($C23,'RECAP SECT'!$G$6:$CU$253,59,FALSE) -> 8 | R23: =VLOOKUP($C23,'RECAP SECT'!$G$6:$CU$253,60,FALSE) -> 30% | S23: =VLOOKUP($C23,'RECAP SECT'!$G$6:$CU$253,61,FALSE) -> 25% | T23: =VLOOKUP($C23,'RECAP SECT'!$G$6:$CU$253,62,FALSE) -> 8
A24: 160 | B24: MOSELLE | C24: 42 | D24: MOSELLE EST | E24: =VLOOKUP($C24,'RECAP SECT'!$G$6:$CU$253,3,FALSE) -> 59.9 | F24: =VLOOKUP($C24,'RECAP SECT'!$G$6:$CU$253,48,FALSE) -> 19,538 | G24: =VLOOKUP($C24,'RECAP SECT'!$G$6:$CU$253,49,FALSE) -> 326.39 | H24: =VLOOKUP($C24,'RECAP SECT'!$G$6:$CU$253,50,FALSE) -> 38% | I24: =VLOOKUP($C24,'RECAP SECT'!$G$6:$CU$253,51,FALSE) -> 6 | J24: =VLOOKUP($C24,'RECAP SECT'!$G$6:$CU$253,52,FALSE) -> 3,287 | K24: =VLOOKUP($C24,'RECAP SECT'!$G$6:$CU$253,53,FALSE) -> 54.92 | L24: =VLOOKUP($C24,'RECAP SECT'!$G$6:$CU$253,54,FALSE) -> 3% | M24: =VLOOKUP($C24,'RECAP SECT'!$G$6:$CU$253,55,FALSE) -> 3 | N24: =VLOOKUP($C24,'RECAP SECT'!$G$6:$CU$253,56,FALSE) -> 1,452 | O24: =VLOOKUP($C24,'RECAP SECT'!$G$6:$CU$253,57,FALSE) -> 24.26 | P24: =VLOOKUP($C24,'RECAP SECT'!$G$6:$CU$253,58,FALSE) -> 36% | Q24: =VLOOKUP($C24,'RECAP SECT'!$G$6:$CU$253,59,FALSE) -> 7 | R24: =VLOOKUP($C24,'RECAP SECT'!$G$6:$CU$253,60,FALSE) -> 27% | S24: =VLOOKUP($C24,'RECAP SECT'!$G$6:$CU$253,61,FALSE) -> 22% | T24: =VLOOKUP($C24,'RECAP SECT'!$G$6:$CU$253,62,FALSE) -> 6
A25: 160 | B25: MOSELLE | C25: 44 | D25: MOSELLE NORD | E25: =VLOOKUP($C25,'RECAP SECT'!$G$6:$CU$253,3,FALSE) -> 57.2 | F25: =VLOOKUP($C25,'RECAP SECT'!$G$6:$CU$253,48,FALSE) -> 28,749 | G25: =VLOOKUP($C25,'RECAP SECT'!$G$6:$CU$253,49,FALSE) -> 502.25 | H25: =VLOOKUP($C25,'RECAP SECT'!$G$6:$CU$253,50,FALSE) -> 5% | I25: =VLOOKUP($C25,'RECAP SECT'!$G$6:$CU$253,51,FALSE) -> 2 | J25: =VLOOKUP($C25,'RECAP SECT'!$G$6:$CU$253,52,FALSE) -> 3,213 | K25: =VLOOKUP($C25,'RECAP SECT'!$G$6:$CU$253,53,FALSE) -> 56.13 | L25: =VLOOKUP($C25,'RECAP SECT'!$G$6:$CU$253,54,FALSE) -> 1% | M25: =VLOOKUP($C25,'RECAP SECT'!$G$6:$CU$253,55,FALSE) -> 2 | N25: =VLOOKUP($C25,'RECAP SECT'!$G$6:$CU$253,56,FALSE) -> 1,797 | O25: =VLOOKUP($C25,'RECAP SECT'!$G$6:$CU$253,57,FALSE) -> 31.39 | P25: =VLOOKUP($C25,'RECAP SECT'!$G$6:$CU$253,58,FALSE) -> 17% | Q25: =VLOOKUP($C25,'RECAP SECT'!$G$6:$CU$253,59,FALSE) -> 2 | R25: =VLOOKUP($C25,'RECAP SECT'!$G$6:$CU$253,60,FALSE) -> 8% | S25: =VLOOKUP($C25,'RECAP SECT'!$G$6:$CU$253,61,FALSE) -> 3% | T25: =VLOOKUP($C25,'RECAP SECT'!$G$6:$CU$253,62,FALSE) -> 2
A26: 80 | B26: VOSGES | C26: 57 | D26: EPINAL | E26: =VLOOKUP($C26,'RECAP SECT'!$G$6:$CU$253,3,FALSE) -> 52.9 | F26: =VLOOKUP($C26,'RECAP SECT'!$G$6:$CU$253,48,FALSE) -> 11,741 | G26: =VLOOKUP($C26,'RECAP SECT'!$G$6:$CU$253,49,FALSE) -> 221.90 | H26: =VLOOKUP($C26,'RECAP SECT'!$G$6:$CU$253,50,FALSE) -> 58% | I26: =VLOOKUP($C26,'RECAP SECT'!$G$6:$CU$253,51,FALSE) -> 11 | J26: =VLOOKUP($C26,'RECAP SECT'!$G$6:$CU$253,52,FALSE) -> 2,243 | K26: =VLOOKUP($C26,'RECAP SECT'!$G$6:$CU$253,53,FALSE) -> 42.40 | L26: =VLOOKUP($C26,'RECAP SECT'!$G$6:$CU$253,54,FALSE) -> 25% | M26: =VLOOKUP($C26,'RECAP SECT'!$G$6:$CU$253,55,FALSE) -> 15 | N26: =VLOOKUP($C26,'RECAP SECT'!$G$6:$CU$253,56,FALSE) -> 1,189 | O26: =VLOOKUP($C26,'RECAP SECT'!$G$6:$CU$253,57,FALSE) -> 22.47 | P26: =VLOOKUP($C26,'RECAP SECT'!$G$6:$CU$253,58,FALSE) -> 40% | Q26: =VLOOKUP($C26,'RECAP SECT'!$G$6:$CU$253,59,FALSE) -> 10 | R26: =VLOOKUP($C26,'RECAP SECT'!$G$6:$CU$253,60,FALSE) -> 41% | S26: =VLOOKUP($C26,'RECAP SECT'!$G$6:$CU$253,61,FALSE) -> 36% | T26: =VLOOKUP($C26,'RECAP SECT'!$G$6:$CU$253,62,FALSE) -> 13
A27: 80 | B27: VOSGES | C27: 55 | D27: SAINT DIE | E27: =VLOOKUP($C27,'RECAP SECT'!$G$6:$CU$253,3,FALSE) -> 40.2 | F27: =VLOOKUP($C27,'RECAP SECT'!$G$6:$CU$253,48,FALSE) -> 7,834 | G27: =VLOOKUP($C27,'RECAP SECT'!$G$6:$CU$253,49,FALSE) -> 194.72 | H27: =VLOOKUP($C27,'RECAP SECT'!$G$6:$CU$253,50,FALSE) -> 63% | I27: =VLOOKUP($C27,'RECAP SECT'!$G$6:$CU$253,51,FALSE) -> 16 | J27: =VLOOKUP($C27,'RECAP SECT'!$G$6:$CU$253,52,FALSE) -> 1,956 | K27: =VLOOKUP($C27,'RECAP SECT'!$G$6:$CU$253,53,FALSE) -> 48.62 | L27: =VLOOKUP($C27,'RECAP SECT'!$G$6:$CU$253,54,FALSE) -> 14% | M27: =VLOOKUP($C27,'RECAP SECT'!$G$6:$CU$253,55,FALSE) -> 9 | N27: =VLOOKUP($C27,'RECAP SECT'!$G$6:$CU$253,56,FALSE) -> 858 | O27: =VLOOKUP($C27,'RECAP SECT'!$G$6:$CU$253,57,FALSE) -> 21.33 | P27: =VLOOKUP($C27,'RECAP SECT'!$G$6:$CU$253,58,FALSE) -> 43% | Q27: =VLOOKUP($C27,'RECAP SECT'!$G$6:$CU$253,59,FALSE) -> 13 | R27: =VLOOKUP($C27,'RECAP SECT'!$G$6:$CU$253,60,FALSE) -> 41% | S27: =VLOOKUP($C27,'RECAP SECT'!$G$6:$CU$253,61,FALSE) -> 35% | T27: =VLOOKUP($C27,'RECAP SECT'!$G$6:$CU$253,62,FALSE) -> 12
A28: Total CEGEE Directions Régionales | E28: =SUM(E10:E27) -> 955

Sheet SE_IARD
B1: Accueil | F1: BAROMETRE BDD - TERRITOIRES
F2: IARD ET PREVOYANCE
F3: =ACCUEIL!F7 -> 2022-09-11
F7: Ventes Nettes produits pondérés | J7: Ventes sur client non détenteur de l’univers | N7: Total IARD Prévoyance
F8: =DATEMAJ!C23 -> au 11/09 | H8: coef | I8: ='RECAP DIRCOM'!BX4 -> 12% | J8: =DATEMAJ!C24 -> au 11/09 | L8: coef | M8: ='RECAP DIRCOM'!CB4 -> 8% | O8: coef | P8: ='RECAP DIRCOM'!CE4 -> 20%
B9: Direction | C9: eds | D9: Territoire | E9: ="ETP perf "&DATEMAJ!$C$28 -> ETP perf 11-sept | F9: VN | G9: VN / ETP | H9: % Ecart au 1er | I9: Rang | J9: VB | K9: VB / ETP | L9: % Ecart au 1er | M9: Rang | N9: Moyenne ecart au 1er | O9: % Ecart au 1er | P9: Rang CEGEE
A10: 50 | B10: AUBE HAUTE MARNE | C10: 21 | D10: CHAUMONT | E10: =VLOOKUP($C10,'RECAP SECT'!$G$6:$CU$253,3,FALSE) -> 33.8 | F10: =VLOOKUP($C10,'RECAP SECT'!$G$6:$CU$253,67,FALSE) -> 4,885 | G10: =VLOOKUP($C10,'RECAP SECT'!$G$6:$CU$253,68,FALSE) -> 144.66 | H10: =VLOOKUP($C10,'RECAP SECT'!$G$6:$CU$253,69,FALSE) -> 16% | I10: =VLOOKUP($C10,'RECAP SECT'!$G$6:$CU$253,70,FALSE) -> 5 | J10: =VLOOKUP($C10,'RECAP SECT'!$G$6:$CU$253,71,FALSE) -> 1,226 | K10: =VLOOKUP($C10,'RECAP SECT'!$G$6:$CU$253,72,FALSE) -> 36.30 | L10: =VLOOKUP($C10,'RECAP SECT'!$G$6:$CU$253,73,FALSE) -> 27% | M10: =VLOOKUP($C10,'RECAP SECT'!$G$6:$CU$253,74,FALSE) -> 10 | N10: =VLOOKUP($C10,'RECAP SECT'!$G$6:$CU$253,75,FALSE) -> 21% | O10: =VLOOKUP($C10,'RECAP SECT'!$G$6:$CU$253,76,FALSE) -> 19% | P10: =VLOOKUP($C10,'RECAP SECT'!$G$6:$CU$253,77,FALSE) -> 8
A11: 50 | B11: AUBE HAUTE MARNE | C11: 14 | D11: TROYES | E11: =VLOOKUP($C11,'RECAP SECT'!$G$6:$CU$253,3,FALSE) -> 54.1 | F11: =VLOOKUP($C11,'RECAP SECT'!$G$6:$CU$253,67,FALSE) -> 4,325 | G11: =VLOOKUP($C11,'RECAP SECT'!$G$6:$CU$253,68,FALSE) -> 79.94 | H11: =VLOOKUP($C11,'RECAP SECT'!$G$6:$CU$253,69,FALSE) -> 54% | I11: =VLOOKUP($C11,'RECAP SECT'!$G$6:$CU$253,70,FALSE) -> 14 | J11: =VLOOKUP($C11,'RECAP SECT'!$G$6:$CU$253,71,FALSE) -> 1,878 | K11: =VLOOKUP($C11,'RECAP SECT'!$G$6:$CU$253,72,FALSE) -> 34.71 | L11: =VLOOKUP($C11,'RECAP SECT'!$G$6:$CU$253,73,FALSE) -> 30% | M11: =VLOOKUP($C11,'RECAP SECT'!$G$6:$CU$253,74,FALSE) -> 12 | N11: =VLOOKUP($C11,'RECAP SECT'!$G$6:$CU$253,75,FALSE) -> 44% | O11: =VLOOKUP($C11,'RECAP SECT'!$G$6:$CU$253,76,FALSE) -> 43% | P11: =VLOOKUP($C11,'RECAP SECT'!$G$6:$CU$253,77,FALSE) -> 13
A12: 262 | B12: BAS-RHIN | C12: 5060 | D12: HAGUENAU | E12: =VLOOKUP($C12,'RECAP SECT'!$G$6:$CU$253,3,FALSE) -> 56.4 | F12: =VLOOKUP($C12,'RECAP SECT'!$G$6:$CU$253,67,FALSE) -> 4,190 | G12: =VLOOKUP($C12,'RECAP SECT'!$G$6:$CU$253,68,FALSE) -> 74.30 | H12: =VLOOKUP($C12,'RECAP SECT'!$G$6:$CU$253,69,FALSE) -> 57% | I12: =VLOOKUP($C12,'RECAP SECT'!$G$6:$CU$253,70,FALSE) -> 16 | J12: =VLOOKUP($C12,'RECAP SECT'!$G$6:$CU$253,71,FALSE) -> 1,775 | K12: =VLOOKUP($C12,'RECAP SECT'!$G$6:$CU$253,72,FALSE) -> 31.48 | L12: =VLOOKUP($C12,'RECAP SECT'!$G$6:$CU$253,73,FALSE) -> 37% | M12: =VLOOKUP($C12,'RECAP SECT'!$G$6:$CU$253,74,FALSE) -> 15 | N12: =VLOOKUP($C12,'RECAP SECT'!$G$6:$CU$253,75,FALSE) -> 49% | O12: =VLOOKUP($C12,'RECAP SECT'!$G$6:$CU$253,76,FALSE) -> 47% | P12: =VLOOKUP($C12,'RECAP SECT'!$G$6:$CU$253,77,FALSE) -> 16
A13: 262 | B13: BAS-RHIN | C13: 5101 | D13: SELESTAT | E13: =VLOOKUP($C13,'RECAP SECT'!$G$6:$CU$253,3,FALSE) -> 51.4 | F13: =VLOOKUP($C13,'RECAP SECT'!$G$6:$CU$253,67,FALSE) -> 3,902 | G13: =VLOOKUP($C13,'RECAP SECT'!$G$6:$CU$253,68,FALSE) -> 75.93 | H13: =VLOOKUP($C13,'RECAP SECT'!$G$6:$CU$253,69,FALSE) -> 56% | I13: =VLOOKUP($C13,'RECAP SECT'!$G$6:$CU$253,70,FALSE) -> 15 | J13: =VLOOKUP($C13,'RECAP SECT'!$G$6:$CU$253,71,FALSE) -> 1,658 | K13: =VLOOKUP($C13,'RECAP SECT'!$G$6:$CU$253,72,FALSE) -> 32.26 | L13: =VLOOKUP($C13,'RECAP SECT'!$G$6:$CU$253,73,FALSE) -> 35% | M13: =VLOOKUP($C13,'RECAP SECT'!$G$6:$CU$253,74,FALSE) -> 14 | N13: =VLOOKUP($C13,'RECAP SECT'!$G$6:$CU$253,75,FALSE) -> 48% | O13: =VLOOKUP($C13,'RECAP SECT'!$G$6:$CU$253,76,FALSE) -> 46% | P13: =VLOOKUP($C13,'RECAP SECT'!$G$6:$CU$253,77,FALSE) -> 15
A14: 262 | B14: BAS-RHIN | C14: 5006 | D14: STRASBOURG | E14: =VLOOKUP($C14,'RECAP SECT'!$G$6:$CU$253,3,FALSE) -> 65.5 | F14: =VLOOKUP($C14,'RECAP SECT'!$G$6:$CU$253,67,FALSE) -> 7,965 | G14: =VLOOKUP($C14,'RECAP SECT'!$G$6:$CU$253,68,FALSE) -> 121.53 | H14: =VLOOKUP($C14,'RECAP SECT'!$G$6:$CU$253,69,FALSE) -> 30% | I14: =VLOOKUP($C14,'RECAP SECT'!$G$6:$CU$253,70,FALSE) -> 8 | J14: =VLOOKUP($C14,'RECAP SECT'!$G$6:$CU$253,71,FALSE) -> 3,098 | K14: =VLOOKUP($C14,'RECAP SECT'!$G$6:$CU$253,72,FALSE) -> 47.27 | L14: =VLOOKUP($C14,'RECAP SECT'!$G$6:$CU$253,73,FALSE) -> 5% | M14: =VLOOKUP($C14,'RECAP SECT'!$G$6:$CU$253,74,FALSE) -> 3 | N14: =VLOOKUP($C14,'RECAP SECT'!$G$6:$CU$253,75,FALSE) -> 20% | O14: =VLOOKUP($C14,'RECAP SECT'!$G$6:$CU$253,76,FALSE) -> 18% | P14: =VLOOKUP($C14,'RECAP SECT'!$G$6:$CU$253,77,FALSE) -> 7
A15: 264 | B15: HAUT-RHIN | C15: 5130 | D15: COLMAR | E15: =VLOOKUP($C15,'RECAP SECT'!$G$6:$CU$253,3,FALSE) -> 47.1 | F15: =VLOOKUP($C15,'RECAP SECT'!$G$6:$CU$253,67,FALSE) -> 2,475 | G15: =VLOOKUP($C15,'RECAP SECT'!$G$6:$CU$253,68,FALSE) -> 52.56 | H15: =VLOOKUP($C15,'RECAP SECT'!$G$6:$CU$253,69,FALSE) -> 70% | I15: =VLOOKUP($C15,'RECAP SECT'!$G$6:$CU$253,70,FALSE) -> 17 | J15: =VLOOKUP($C15,'RECAP SECT'!$G$6:$CU$253,71,FALSE) -> 1,424 | K15: =VLOOKUP($C15,'RECAP SECT'!$G$6:$CU$253,72,FALSE) -> 30.24 | L15: =VLOOKUP($C15,'RECAP SECT'!$G$6:$CU$253,73,FALSE) -> 39% | M15: =VLOOKUP($C15,'RECAP SECT'!$G$6:$CU$253,74,FALSE) -> 18 | N15: =VLOOKUP($C15,'RECAP SECT'!$G$6:$CU$253,75,FALSE) -> 57% | O15: =VLOOKUP($C15,'RECAP SECT'!$G$6:$CU$253,76,FALSE) -> 56% | P15: =VLOOKUP($C15,'RECAP SECT'!$G$6:$CU$253,77,FALSE) -> 17
A16: 264 | B16: HAUT-RHIN | C16: 5169 | D16: MULHOUSE | E16: =VLOOKUP($C16,'RECAP SECT'!$G$6:$CU$253,3,FALSE) -> 46.4 | F16: =VLOOKUP($C16,'RECAP SECT'!$G$6:$CU$253,67,FALSE) -> 355 | G16: =VLOOKUP($C16,'RECAP SECT'!$G$6:$CU$253,68,FALSE) -> 7.65 | H16: =VLOOKUP($C16,'RECAP SECT'!$G$6:$CU$253,69,FALSE) -> 96% | I16: =VLOOKUP($C16,'RECAP SECT'!$G$6:$CU$253,70,FALSE) -> 18 | J16: =VLOOKUP($C16,'RECAP SECT'!$G$6:$CU$253,71,FALSE) -> 1,451 | K16: =VLOOKUP($C16,'RECAP SECT'!$G$6:$CU$253,72,FALSE) -> 31.25 | L16: =VLOOKUP($C16,'RECAP SECT'!$G$6:$CU$253,73,FALSE) -> 37% | M16: =VLOOKUP($C16,'RECAP SECT'!$G$6:$CU$253,74,FALSE) -> 16 | N16: =VLOOKUP($C16,'RECAP SECT'!$G$6:$CU$253,75,FALSE) -> 72% | O16: =VLOOKUP($C16,'RECAP SECT'!$G$6:$CU$253,76,FALSE) -> 71% | P16: =VLOOKUP($C16,'RECAP SECT'!$G$6:$CU$253,77,FALSE) -> 18
A17: 30 | B17: MARNE-ARDENNES | C17: 6 | D17: CHALONS EN CHAMPAGNE | E17: =VLOOKUP($C17,'RECAP SECT'!$G$6:$CU$253,3,FALSE) -> 38.0 | F17: =VLOOKUP($C17,'RECAP SECT'!$G$6:$CU$253,67,FALSE) -> 5,611 | G17: =VLOOKUP($C17,'RECAP SECT'!$G$6:$CU$253,68,FALSE) -> 147.66 | H17: =VLOOKUP($C17,'RECAP SECT'!$G$6:$CU$253,69,FALSE) -> 15% | I17: =VLOOKUP($C17,'RECAP SECT'!$G$6:$CU$253,70,FALSE) -> 3 | J17: =VLOOKUP($C17,'RECAP SECT'!$G$6:$CU$253,71,FALSE) -> 1,587 | K17: =VLOOKUP($C17,'RECAP SECT'!$G$6:$CU$253,72,FALSE) -> 41.76 | L17: =VLOOKUP($C17,'RECAP SECT'!$G$6:$CU$253,73,FALSE) -> 16% | M17: =VLOOKUP($C17,'RECAP SECT'!$G$6:$CU$253,74,FALSE) -> 6 | N17: =VLOOKUP($C17,'RECAP SECT'!$G$6:$CU$253,75,FALSE) -> 15% | O17: =VLOOKUP($C17,'RECAP SECT'!$G$6:$CU$253,76,FALSE) -> 14% | P17: =VLOOKUP($C17,'RECAP SECT'!$G$6:$CU$253,77,FALSE) -> 3
A18: 30 | B18: MARNE-ARDENNES | C18: 2 | D18: CHARLEVILLE MEZIERES | E18: =VLOOKUP($C18,'RECAP SECT'!$G$6:$CU$253,3,FALSE) -> 48.9 | F18: =VLOOKUP($C18,'RECAP SECT'!$G$6:$CU$253,67,FALSE) -> 7,199 | G18: =VLOOKUP($C18,'RECAP SECT'!$G$6:$CU$253,68,FALSE) -> 147.28 | H18: =VLOOKUP($C18,'RECAP SECT'!$G$6:$CU$253,69,FALSE) -> 15% | I18: =VLOOKUP($C18,'RECAP SECT'!$G$6:$CU$253,70,FALSE) -> 4 | J18: =VLOOKUP($C18,'RECAP SECT'!$G$6:$CU$253,71,FALSE) -> 1,973 | K18: =VLOOKUP($C18,'RECAP SECT'!$G$6:$CU$253,72,FALSE) -> 40.36 | L18: =VLOOKUP($C18,'RECAP SECT'!$G$6:$CU$253,73,FALSE) -> 19% | M18: =VLOOKUP($C18,'RECAP SECT'!$G$6:$CU$253,74,FALSE) -> 7 | N18: =VLOOKUP($C18,'RECAP SECT'!$G$6:$CU$253,75,FALSE) -> 16% | O18: =VLOOKUP($C18,'RECAP SECT'!$G$6:$CU$253,76,FALSE) -> 15% | P18: =VLOOKUP($C18,'RECAP SECT'!$G$6:$CU$253,77,FALSE) -> 4
A19: 30 | B19: MARNE-ARDENNES | C19: 11 | D19: REIMS | E19: =VLOOKUP($C19,'RECAP SECT'!$G$6:$CU$253,3,FALSE) -> 68.1 | F19: =VLOOKUP($C19,'RECAP SECT'!$G$6:$CU$253,67,FALSE) -> 10,502 | G19: =VLOOKUP($C19,'RECAP SECT'!$G$6:$CU$253,68,FALSE) -> 154.33 | H19: =VLOOKUP($C19,'RECAP SECT'!$G$6:$CU$253,69,FALSE) -> 11% | I19: =VLOOKUP($C19,'RECAP SECT'!$G$6:$CU$253,70,FALSE) -> 2 | J19: =VLOOKUP($C19,'RECAP SECT'!$G$6:$CU$253,71,FALSE) -> 3,386 | K19: =VLOOKUP($C19,'RECAP SECT'!$G$6:$CU$253,72,FALSE) -> 49.76 | L19: =VLOOKUP($C19,'RECAP SECT'!$G$6:$CU$253,73,FALSE) -> 0% | M19: =VLOOKUP($C19,'RECAP SECT'!$G$6:$CU$253,74,FALSE) -> 1 | N19: =VLOOKUP($C19,'RECAP SECT'!$G$6:$CU$253,75,FALSE) -> 6% | O19: =VLOOKUP($C19,'RECAP SECT'!$G$6:$CU$253,76,FALSE) -> 5% | P19: =VLOOKUP($C19,'RECAP SECT'!$G$6:$CU$253,77,FALSE) -> 2
A20: 110 | B20: MEURTHE ET MOSELLE MEUSE | C20: 26 | D20: NANCY | E20: =VLOOKUP($C20,'RECAP SECT'!$G$6:$CU$253,3,FALSE) -> 54.8 | F20: =VLOOKUP($C20,'RECAP SECT'!$G$6:$CU$253,67,FALSE) -> 5,056 | G20: =VLOOKUP($C20,'RECAP SECT'!$G$6:$CU$253,68,FALSE) -> 92.35 | H20: =VLOOKUP($C20,'RECAP SECT'!$G$6:$CU$253,69,FALSE) -> 47% | I20: =VLOOKUP($C20,'RECAP SECT'!$G$6:$CU$253,70,FALSE) -> 12 | J20: =VLOOKUP($C20,'RECAP SECT'!$G$6:$CU$253,71,FALSE) -> 2,186 | K20: =VLOOKUP($C20,'RECAP SECT'!$G$6:$CU$253,72,FALSE) -> 39.93 | L20: =VLOOKUP($C20,'RECAP SECT'!$G$6:$CU$253,73,FALSE) -> 20% | M20: =VLOOKUP($C20,'RECAP SECT'!$G$6:$CU$253,74,FALSE) -> 8 | N20: =VLOOKUP($C20,'RECAP SECT'!$G$6:$CU$253,75,FALSE) -> 36% | O20: =VLOOKUP($C20,'RECAP SECT'!$G$6:$CU$253,76,FALSE) -> 34% | P20: =VLOOKUP($C20,'RECAP SECT'!$G$6:$CU$253,77,FALSE) -> 11
A21: 110 | B21: MEURTHE ET MOSELLE MEUSE | C21: 27 | D21: PONT A MOUSSON | E21: =VLOOKUP($C21,'RECAP SECT'!$G$6:$CU$253,3,FALSE) -> 59.5 | F21: =VLOOKUP($C21,'RECAP SECT'!$G$6:$CU$253,67,FALSE) -> 7,699 | G21: =VLOOKUP($C21,'RECAP SECT'!$G$6:$CU$253,68,FALSE) -> 129.31 | H21: =VLOOKUP($C21,'RECAP SECT'!$G$6:$CU$253,69,FALSE) -> 25% | I21: =VLOOKUP($C21,'RECAP SECT'!$G$6:$CU$253,70,FALSE) -> 7 | J21: =VLOOKUP($C21,'RECAP SECT'!$G$6:$CU$253,71,FALSE) -> 2,623 | K21: =VLOOKUP($C21,'RECAP SECT'!$G$6:$CU$253,72,FALSE) -> 44.05 | L21: =VLOOKUP($C21,'RECAP SECT'!$G$6:$CU$253,73,FALSE) -> 11% | M21: =VLOOKUP($C21,'RECAP SECT'!$G$6:$CU$253,74,FALSE) -> 4 | N21: =VLOOKUP($C21,'RECAP SECT'!$G$6:$CU$253,75,FALSE) -> 20% | O21: =VLOOKUP($C21,'RECAP SECT'!$G$6:$CU$253,76,FALSE) -> 18% | P21: =VLOOKUP($C21,'RECAP SECT'!$G$6:$CU$253,77,FALSE) -> 6
A22: 110 | B22: MEURTHE ET MOSELLE MEUSE | C22: 31 | D22: VERDUN | E22: =VLOOKUP($C22,'RECAP SECT'!$G$6:$CU$253,3,FALSE) -> 48.1 | F22: =VLOOKUP($C22,'RECAP SECT'!$G$6:$CU$253,67,FALSE) -> 4,988 | G22: =VLOOKUP($C22,'RECAP SECT'!$G$6:$CU$253,68,FALSE) -> 103.79 | H22: =VLOOKUP($C22,'RECAP SECT'!$G$6:$CU$253,69,FALSE) -> 40% | I22: =VLOOKUP($C22,'RECAP SECT'!$G$6:$CU$253,70,FALSE) -> 10 | J22: =VLOOKUP($C22,'RECAP SECT'!$G$6:$CU$253,71,FALSE) -> 1,729 | K22: =VLOOKUP($C22,'RECAP SECT'!$G$6:$CU$253,72,FALSE) -> 35.98 | L22: =VLOOKUP($C22,'RECAP SECT'!$G$6:$CU$253,73,FALSE) -> 28% | M22: =VLOOKUP($C22,'RECAP SECT'!$G$6:$CU$253,74,FALSE) -> 11 | N22: =VLOOKUP($C22,'RECAP SECT'!$G$6:$CU$253,75,FALSE) -> 35% | O22: =VLOOKUP($C22,'RECAP SECT'!$G$6:$CU$253,76,FALSE) -> 34% | P22: =VLOOKUP($C22,'RECAP SECT'!$G$6:$CU$253,77,FALSE) -> 10
A23: 160 | B23: MOSELLE | C23: 45 | D23: METZ | E23: =VLOOKUP($C23,'RECAP SECT'!$G$6:$CU$253,3,FALSE) -> 72.7 | F23: =VLOOKUP($C23,'RECAP SECT'!$G$6:$CU$253,67,FALSE) -> 7,973 | G23: =VLOOKUP($C23,'RECAP SECT'!$G$6:$CU$253,68,FALSE) -> 109.62 | H23: =VLOOKUP($C23,'RECAP SECT'!$G$6:$CU$253,69,FALSE) -> 37% | I23: =VLOOKUP($C23,'RECAP SECT'!$G$6:$CU$253,70,FALSE) -> 9 | J23: =VLOOKUP($C23,'RECAP SECT'!$G$6:$CU$253,71,FALSE) -> 2,731 | K23: =VLOOKUP($C23,'RECAP SECT'!$G$6:$CU$253,72,FALSE) -> 37.55 | L23: =VLOOKUP($C23,'RECAP SECT'!$G$6:$CU$253,73,FALSE) -> 25% | M23: =VLOOKUP($C23,'RECAP SECT'!$G$6:$CU$253,74,FALSE) -> 9 | N23: =VLOOKUP($C23,'RECAP SECT'!$G$6:$CU$253,75,FALSE) -> 32% | O23: =VLOOKUP($C23,'RECAP SECT'!$G$6:$CU$253,76,FALSE) -> 30% | P23: =VLOOKUP($C23,'RECAP SECT'!$G$6:$CU$253,77,FALSE) -> 9
A24: 160 | B24: MOSELLE | C24: 42 | D24: MOSELLE EST | E24: =VLOOKUP($C24,'RECAP SECT'!$G$6:$CU$253,3,FALSE) -> 59.9 | F24: =VLOOKUP($C24,'RECAP SECT'!$G$6:$CU$253,67,FALSE) -> 8,543 | G24: =VLOOKUP($C24,'RECAP SECT'!$G$6:$CU$253,68,FALSE) -> 142.72 | H24: =VLOOKUP($C24,'RECAP SECT'!$G$6:$CU$253,69,FALSE) -> 17% | I24: =VLOOKUP($C24,'RECAP SECT'!$G$6:$CU$253,70,FALSE) -> 6 | J24: =VLOOKUP($C24,'RECAP SECT'!$G$6:$CU$253,71,FALSE) -> 2,513 | K24: =VLOOKUP($C24,'RECAP SECT'!$G$6:$CU$253,72,FALSE) -> 41.98 | L24: =VLOOKUP($C24,'RECAP SECT'!$G$6:$CU$253,73,FALSE) -> 16% | M24: =VLOOKUP($C24,'RECAP SECT'!$G$6:$CU$253,74,FALSE) -> 5 | N24: =VLOOKUP($C24,'RECAP SECT'!$G$6:$CU$253,75,FALSE) -> 17% | O24: =VLOOKUP($C24,'RECAP SECT'!$G$6:$CU$253,76,FALSE) -> 15% | P24: =VLOOKUP($C24,'RECAP SECT'!$G$6:$CU$253,77,FALSE) -> 5
A25: 160 | B25: MOSELLE | C25: 44 | D25: MOSELLE NORD | E25: =VLOOKUP($C25,'RECAP SECT'!$G$6:$CU$253,3,FALSE) -> 57.2 | F25: =VLOOKUP($C25,'RECAP SECT'!$G$6:$CU$253,67,FALSE) -> 9,894 | G25: =VLOOKUP($C25,'RECAP SECT'!$G$6:$CU$253,68,FALSE) -> 172.85 | H25: =VLOOKUP($C25,'RECAP SECT'!$G$6:$CU$253,69,FALSE) -> 0% | I25: =VLOOKUP($C25,'RECAP SECT'!$G$6:$CU$253,70,FALSE) -> 1 | J25: =VLOOKUP($C25,'RECAP SECT'!$G$6:$CU$253,71,FALSE) -> 2,745 | K25: =VLOOKUP($C25,'RECAP SECT'!$G$6:$CU$253,72,FALSE) -> 47.96 | L25: =VLOOKUP($C25,'RECAP SECT'!$G$6:$CU$253,73,FALSE) -> 4% | M25: =VLOOKUP($C25,'RECAP SECT'!$G$6:$CU$253,74,FALSE) -> 2 | N25: =VLOOKUP($C25,'RECAP SECT'!$G$6:$CU$253,75,FALSE) -> 1% | O25: =VLOOKUP($C25,'RECAP SECT'!$G$6:$CU$253,76,FALSE) -> 0% | P25: =VLOOKUP($C25,'RECAP SECT'!$G$6:$CU$253,77,FALSE) -> 1
A26: 80 | B26: VOSGES | C26: 57 | D26: EPINAL | E26: =VLOOKUP($C26,'RECAP SECT'!$G$6:$CU$253,3,FALSE) -> 52.9 | F26: =VLOOKUP($C26,'RECAP SECT'!$G$6:$CU$253,67,FALSE) -> 4,977 | G26: =VLOOKUP($C26,'RECAP SECT'!$G$6:$CU$253,68,FALSE) -> 94.07 | H26: =VLOOKUP($C26,'RECAP SECT'!$G$6:$CU$253,69,FALSE) -> 46% | I26: =VLOOKUP($C26,'RECAP SECT'!$G$6:$CU$253,70,FALSE) -> 11 | J26: =VLOOKUP($C26,'RECAP SECT'!$G$6:$CU$253,71,FALSE) -> 1,762 | K26: =VLOOKUP($C26,'RECAP SECT'!$G$6:$CU$253,72,FALSE) -> 33.30 | L26: =VLOOKUP($C26,'RECAP SECT'!$G$6:$CU$253,73,FALSE) -> 33% | M26: =VLOOKUP($C26,'RECAP SECT'!$G$6:$CU$253,74,FALSE) -> 13 | N26: =VLOOKUP($C26,'RECAP SECT'!$G$6:$CU$253,75,FALSE) -> 41% | O26: =VLOOKUP($C26,'RECAP SECT'!$G$6:$CU$253,76,FALSE) -> 39% | P26: =VLOOKUP($C26,'RECAP SECT'!$G$6:$CU$253,77,FALSE) -> 12
A27: 80 | B27: VOSGES | C27: 55 | D27: SAINT DIE | E27: =VLOOKUP($C27,'RECAP SECT'!$G$6:$CU$253,3,FALSE) -> 40.2 | F27: =VLOOKUP($C27,'RECAP SECT'!$G$6:$CU$253,67,FALSE) -> 3,346 | G27: =VLOOKUP($C27,'RECAP SECT'!$G$6:$CU$253,68,FALSE) -> 83.17 | H27: =VLOOKUP($C27,'RECAP SECT'!$G$6:$CU$253,69,FALSE) -> 52% | I27: =VLOOKUP($C27,'RECAP SECT'!$G$6:$CU$253,70,FALSE) -> 13 | J27: =VLOOKUP($C27,'RECAP SECT'!$G$6:$CU$253,71,FALSE) -> 1,246 | K27: =VLOOKUP($C27,'RECAP SECT'!$G$6:$CU$253,72,FALSE) -> 30.97 | L27: =VLOOKUP($C27,'RECAP SECT'!$G$6:$CU$253,73,FALSE) -> 38% | M27: =VLOOKUP($C27,'RECAP SECT'!$G$6:$CU$253,74,FALSE) -> 17 | N27: =VLOOKUP($C27,'RECAP SECT'!$G$6:$CU$253,75,FALSE) -> 46% | O27: =VLOOKUP($C27,'RECAP SECT'!$G$6:$CU$253,76,FALSE) -> 45% | P27: =VLOOKUP($C27,'RECAP SECT'!$G$6:$CU$253,77,FALSE) -> 14
A28: Total CEGEE Directions Régionales | E28: =SUM(E10:E27) -> 955

Sheet SE_SATISFACTION
B1: Accueil | F1: BAROMETRE BDD - TERRITOIRES
F2: SATISFACTION
F3: =ACCUEIL!F7 -> 2022-09-11
F7: NPS à froid (SAE) | I7: NPS à chaud (QHD) | L7: Total Satisfaction Clients
F8: =DATEMAJ!E4 -> au 31/07 | G8: coef | H8: ='RECAP DIRCOM'!M4 -> 10% | I8: =DATEMAJ!C5 -> au 31/07 | J8: coef | K8: ='RECAP DIRCOM'!P4 -> 10% | M8: coef | N8: ='RECAP DIRCOM'!S4 -> 20%
B9: Direction | C9: eds | D9: Territoire | E9: ="ETP perf "&DATEMAJ!$C$28 -> ETP perf 11-sept | G9: % Ecart au 1er | H9: Rang | J9: % Ecart au 1er | K9: Rang | L9: Moyenne ecart au 1er | M9: % Ecart au 1er | N9: Rang CEGEE
A10: 50 | B10: AUBE HAUTE MARNE | C10: 21 | D10: CHAUMONT | E10: =VLOOKUP($C10,'RECAP SECT'!$G$6:$CU$253,3,FALSE) -> 33.8 | F10: =VLOOKUP($C10,'RECAP SECT'!$G$6:$CU$253,5,FALSE) -> 19 | G10: =VLOOKUP($C10,'RECAP SECT'!$G$6:$CU$253,6,FALSE) -> 25% | H10: =VLOOKUP($C10,'RECAP SECT'!$G$6:$CU$253,7,FALSE) -> 6 | I10: =VLOOKUP($C10,'RECAP SECT'!$G$6:$CU$253,8,FALSE) -> 65% | J10: =VLOOKUP($C10,'RECAP SECT'!$G$6:$CU$253,9,FALSE) -> 11% | K10: =VLOOKUP($C10,'RECAP SECT'!$G$6:$CU$253,10,FALSE) -> 8 | L10: =VLOOKUP($C10,'RECAP SECT'!$G$6:$CU$253,11,FALSE) -> 18% | M10: =VLOOKUP($C10,'RECAP SECT'!$G$6:$CU$253,12,FALSE) -> 15% | N10: =VLOOKUP($C10,'RECAP SECT'!$G$6:$CU$253,13,FALSE) -> 6
A11: 50 | B11: AUBE HAUTE MARNE | C11: 14 | D11: TROYES | E11: =VLOOKUP($C11,'RECAP SECT'!$G$6:$CU$253,3,FALSE) -> 54.1 | F11: =VLOOKUP($C11,'RECAP SECT'!$G$6:$CU$253,5,FALSE) -> 0 | G11: =VLOOKUP($C11,'RECAP SECT'!$G$6:$CU$253,6,FALSE) -> 100% | H11: =VLOOKUP($C11,'RECAP SECT'!$G$6:$CU$253,7,FALSE) -> 18 | I11: =VLOOKUP($C11,'RECAP SECT'!$G$6:$CU$253,8,FALSE) -> 48% | J11: =VLOOKUP($C11,'RECAP SECT'!$G$6:$CU$253,9,FALSE) -> 35% | K11: =VLOOKUP($C11,'RECAP SECT'!$G$6:$CU$253,10,FALSE) -> 17 | L11: =VLOOKUP($C11,'RECAP SECT'!$G$6:$CU$253,11,FALSE) -> 67% | M11: =VLOOKUP($C11,'RECAP SECT'!$G$6:$CU$253,12,FALSE) -> 64% | N11: =VLOOKUP($C11,'RECAP SECT'!$G$6:$CU$253,13,FALSE) -> 18
A12: 262 | B12: BAS-RHIN | C12: 5060 | D12: HAGUENAU | E12: =VLOOKUP($C12,'RECAP SECT'!$G$6:$CU$253,3,FALSE) -> 56.4 | F12: =VLOOKUP($C12,'RECAP SECT'!$G$6:$CU$253,5,FALSE) -> 10 | G12: =VLOOKUP($C12,'RECAP SECT'!$G$6:$CU$253,6,FALSE) -> 60% | H12: =VLOOKUP($C12,'RECAP SECT'!$G$6:$CU$253,7,FALSE) -> 11 | I12: =VLOOKUP($C12,'RECAP SECT'!$G$6:$CU$253,8,FALSE) -> 62% | J12: =VLOOKUP($C12,'RECAP SECT'!$G$6:$CU$253,9,FALSE) -> 17% | K12: =VLOOKUP($C12,'RECAP SECT'!$G$6:$CU$253,10,FALSE) -> 11 | L12: =VLOOKUP($C12,'RECAP SECT'!$G$6:$CU$253,11,FALSE) -> 38% | M12: =VLOOKUP($C12,'RECAP SECT'!$G$6:$CU$253,12,FALSE) -> 35% | N12: =VLOOKUP($C12,'RECAP SECT'!$G$6:$CU$253,13,FALSE) -> 12
A13: 262 | B13: BAS-RHIN | C13: 5101 | D13: SELESTAT | E13: =VLOOKUP($C13,'RECAP SECT'!$G$6:$CU$253,3,FALSE) -> 51.4 | F13: =VLOOKUP($C13,'RECAP SECT'!$G$6:$CU$253,5,FALSE) -> 1.75 | G13: =VLOOKUP($C13,'RECAP SECT'!$G$6:$CU$253,6,FALSE) -> 93% | H13: =VLOOKUP($C13,'RECAP SECT'!$G$6:$CU$253,7,FALSE) -> 17 | I13: =VLOOKUP($C13,'RECAP SECT'!$G$6:$CU$253,8,FALSE) -> 59% | J13: =VLOOKUP($C13,'RECAP SECT'!$G$6:$CU$253,9,FALSE) -> 19% | K13: =VLOOKUP($C13,'RECAP SECT'!$G$6:$CU$253,10,FALSE) -> 14 | L13: =VLOOKUP($C13,'RECAP SECT'!$G$6:$CU$253,11,FALSE) -> 56% | M13: =VLOOKUP($C13,'RECAP SECT'!$G$6:$CU$253,12,FALSE) -> 53% | N13: =VLOOKUP($C13,'RECAP SECT'!$G$6:$CU$253,13,FALSE) -> 14
A14: 262 | B14: BAS-RHIN | C14: 5006 | D14: STRASBOURG | E14: =VLOOKUP($C14,'RECAP SECT'!$G$6:$CU$253,3,FALSE) -> 65.5 | F14: =VLOOKUP($C14,'RECAP SECT'!$G$6:$CU$253,5,FALSE) -> 9.75 | G14: =VLOOKUP($C14,'RECAP SECT'!$G$6:$CU$253,6,FALSE) -> 61% | H14: =VLOOKUP($C14,'RECAP SECT'!$G$6:$CU$253,7,FALSE) -> 12 | I14: =VLOOKUP($C14,'RECAP SECT'!$G$6:$CU$253,8,FALSE) -> 66% | J14: =VLOOKUP($C14,'RECAP SECT'!$G$6:$CU$253,9,FALSE) -> 10% | K14: =VLOOKUP($C14,'RECAP SECT'!$G$6:$CU$253,10,FALSE) -> 7 | L14: =VLOOKUP($C14,'RECAP SECT'!$G$6:$CU$253,11,FALSE) -> 36% | M14: =VLOOKUP($C14,'RECAP SECT'!$G$6:$CU$253,12,FALSE) -> 33% | N14: =VLOOKUP($C14,'RECAP SECT'!$G$6:$CU$253,13,FALSE) -> 11
A15: 264 | B15: HAUT-RHIN | C15: 5130 | D15: COLMAR | E15: =VLOOKUP($C15,'RECAP SECT'!$G$6:$CU$253,3,FALSE) -> 47.1 | F15: =VLOOKUP($C15,'RECAP SECT'!$G$6:$CU$253,5,FALSE) -> 2.5 | G15: =VLOOKUP($C15,'RECAP SECT'!$G$6:$CU$253,6,FALSE) -> 90% | H15: =VLOOKUP($C15,'RECAP SECT'!$G$6:$CU$253,7,FALSE) -> 15 | I15: =VLOOKUP($C15,'RECAP SECT'!$G$6:$CU$253,8,FALSE) -> 52% | J15: =VLOOKUP($C15,'RECAP SECT'!$G$6:$CU$253,9,FALSE) -> 29% | K15: =VLOOKUP($C15,'RECAP SECT'!$G$6:$CU$253,10,FALSE) -> 16 | L15: =VLOOKUP($C15,'RECAP SECT'!$G$6:$CU$253,11,FALSE) -> 60% | M15: =VLOOKUP($C15,'RECAP SECT'!$G$6:$CU$253,12,FALSE) -> 57% | N15: =VLOOKUP($C15,'RECAP SECT'!$G$6:$CU$253,13,FALSE) -> 16
A16: 264 | B16: HAUT-RHIN | C16: 5169 | D16: MULHOUSE | E16: =VLOOKUP($C16,'RECAP SECT'!$G$6:$CU$253,3,FALSE) -> 46.4 | F16: =VLOOKUP($C16,'RECAP SECT'!$G$6:$CU$253,5,FALSE) -> 3 | G16: =VLOOKUP($C16,'RECAP SECT'!$G$6:$CU$253,6,FALSE) -> 88% | H16: =VLOOKUP($C16,'RECAP SECT'!$G$6:$CU$253,7,FALSE) -> 14 | I16: =VLOOKUP($C16,'RECAP SECT'!$G$6:$CU$253,8,FALSE) -> 46% | J16: =VLOOKUP($C16,'RECAP SECT'!$G$6:$CU$253,9,FALSE) -> 38% | K16: =VLOOKUP($C16,'RECAP SECT'!$G$6:$CU$253,10,FALSE) -> 18 | L16: =VLOOKUP($C16,'RECAP SECT'!$G$6:$CU$253,11,FALSE) -> 63% | M16: =VLOOKUP($C16,'RECAP SECT'!$G$6:$CU$253,12,FALSE) -> 60% | N16: =VLOOKUP($C16,'RECAP SECT'!$G$6:$CU$253,13,FALSE) -> 17
A17: 30 | B17: MARNE-ARDENNES | C17: 6 | D17: CHALONS EN CHAMPAGNE | E17: =VLOOKUP($C17,'RECAP SECT'!$G$6:$CU$253,3,FALSE) -> 38.0 | F17: =VLOOKUP($C17,'RECAP SECT'!$G$6:$CU$253,5,FALSE) -> 23.75 | G17: =VLOOKUP($C17,'RECAP SECT'!$G$6:$CU$253,6,FALSE) -> 6% | H17: =VLOOKUP($C17,'RECAP SECT'!$G$6:$CU$253,7,FALSE) -> 2 | I17: =VLOOKUP($C17,'RECAP SECT'!$G$6:$CU$253,8,FALSE) -> 74% | J17: =VLOOKUP($C17,'RECAP SECT'!$G$6:$CU$253,9,FALSE) -> 0% | K17: =VLOOKUP($C17,'RECAP SECT'!$G$6:$CU$253,10,FALSE) -> 1 | L17: =VLOOKUP($C17,'RECAP SECT'!$G$6:$CU$253,11,FALSE) -> 3% | M17: =VLOOKUP($C17,'RECAP SECT'!$G$6:$CU$253,12,FALSE) -> 0% | N17: =VLOOKUP($C17,'RECAP SECT'!$G$6:$CU$253,13,FALSE) -> 1
A18: 30 | B18: MARNE-ARDENNES | C18: 2 | D18: CHARLEVILLE MEZIERES | E18: =VLOOKUP($C18,'RECAP SECT'!$G$6:$CU$253,3,FALSE) -> 48.9 | F18: =VLOOKUP($C18,'RECAP SECT'!$G$6:$CU$253,5,FALSE) -> 14.5 | G18: =VLOOKUP($C18,'RECAP SECT'!$G$6:$CU$253,6,FALSE) -> 43% | H18: =VLOOKUP($C18,'RECAP SECT'!$G$6:$CU$253,7,FALSE) -> 9 | I18: =VLOOKUP($C18,'RECAP SECT'!$G$6:$CU$253,8,FALSE) -> 66% | J18: =VLOOKUP($C18,'RECAP SECT'!$G$6:$CU$253,9,FALSE) -> 10% | K18: =VLOOKUP($C18,'RECAP SECT'!$G$6:$CU$253,10,FALSE) -> 6 | L18: =VLOOKUP($C18,'RECAP SECT'!$G$6:$CU$253,11,FALSE) -> 26% | M18: =VLOOKUP($C18,'RECAP SECT'!$G$6:$CU$253,12,FALSE) -> 23% | N18: =VLOOKUP($C18,'RECAP SECT'!$G$6:$CU$253,13,FALSE) -> 8
A19: 30 | B19: MARNE-ARDENNES | C19: 11 | D19: REIMS | E19: =VLOOKUP($C19,'RECAP SECT'!$G$6:$CU$253,3,FALSE) -> 68.1 | F19: =VLOOKUP($C19,'RECAP SECT'!$G$6:$CU$253,5,FALSE) -> 17.5 | G19: =VLOOKUP($C19,'RECAP SECT'!$G$6:$CU$253,6,FALSE) -> 31% | H19: =VLOOKUP($C19,'RECAP SECT'!$G$6:$CU$253,7,FALSE) -> 7 | I19: =VLOOKUP($C19,'RECAP SECT'!$G$6:$CU$253,8,FALSE) -> 63% | J19: =VLOOKUP($C19,'RECAP SECT'!$G$6:$CU$253,9,FALSE) -> 15% | K19: =VLOOKUP($C19,'RECAP SECT'!$G$6:$CU$253,10,FALSE) -> 10 | L19: =VLOOKUP($C19,'RECAP SECT'!$G$6:$CU$253,11,FALSE) -> 23% | M19: =VLOOKUP($C19,'RECAP SECT'!$G$6:$CU$253,12,FALSE) -> 20% | N19: =VLOOKUP($C19,'RECAP SECT'!$G$6:$CU$253,13,FALSE) -> 7
A20: 110 | B20: MEURTHE ET MOSELLE MEUSE | C20: 26 | D20: NANCY | E20: =VLOOKUP($C20,'RECAP SECT'!$G$6:$CU$253,3,FALSE) -> 54.8 | F20: =VLOOKUP($C20,'RECAP SECT'!$G$6:$CU$253,5,FALSE) -> 13.25 | G20: =VLOOKUP($C20,'RECAP SECT'!$G$6:$CU$253,6,FALSE) -> 48% | H20: =VLOOKUP($C20,'RECAP SECT'!$G$6:$CU$253,7,FALSE) -> 10 | I20: =VLOOKUP($C20,'RECAP SECT'!$G$6:$CU$253,8,FALSE) -> 63% | J20: =VLOOKUP($C20,'RECAP SECT'!$G$6:$CU$253,9,FALSE) -> 15% | K20: =VLOOKUP($C20,'RECAP SECT'!$G$6:$CU$253,10,FALSE) -> 9 | L20: =VLOOKUP($C20,'RECAP SECT'!$G$6:$CU$253,11,FALSE) -> 31% | M20: =VLOOKUP($C20,'RECAP SECT'!$G$6:$CU$253,12,FALSE) -> 28% | N20: =VLOOKUP($C20,'RECAP SECT'!$G$6:$CU$253,13,FALSE) -> 10
A21: 110 | B21: MEURTHE ET MOSELLE MEUSE | C21: 27 | D21: PONT A MOUSSON | E21: =VLOOKUP($C21,'RECAP SECT'!$G$6:$CU$253,3,FALSE) -> 59.5 | F21: =VLOOKUP($C21,'RECAP SECT'!$G$6:$CU$253,5,FALSE) -> 2.25 | G21: =VLOOKUP($C21,'RECAP SECT'!$G$6:$CU$253,6,FALSE) -> 91% | H21: =VLOOKUP($C21,'RECAP SECT'!$G$6:$CU$253,7,FALSE) -> 16 | I21: =VLOOKUP($C21,'RECAP SECT'!$G$6:$CU$253,8,FALSE) -> 55% | J21: =VLOOKUP($C21,'RECAP SECT'!$G$6:$CU$253,9,FALSE) -> 26% | K21: =VLOOKUP($C21,'RECAP SECT'!$G$6:$CU$253,10,FALSE) -> 15 | L21: =VLOOKUP($C21,'RECAP SECT'!$G$6:$CU$253,11,FALSE) -> 59% | M21: =VLOOKUP($C21,'RECAP SECT'!$G$6:$CU$253,12,FALSE) -> 56% | N21: =VLOOKUP($C21,'RECAP SECT'!$G$6:$CU$253,13,FALSE) -> 15
A22: 110 | B22: MEURTHE ET MOSELLE MEUSE | C22: 31 | D22: VERDUN | E22: =VLOOKUP($C22,'RECAP SECT'!$G$6:$CU$253,3,FALSE) -> 48.1 | F22: =VLOOKUP($C22,'RECAP SECT'!$G$6:$CU$253,5,FALSE) -> 20.75 | G22: =VLOOKUP($C22,'RECAP SECT'!$G$6:$CU$253,6,FALSE) -> 18% | H22: =VLOOKUP($C22,'RECAP SECT'!$G$6:$CU$253,7,FALSE) -> 5 | I22: =VLOOKUP($C22,'RECAP SECT'!$G$6:$CU$253,8,FALSE) -> 67% | J22: =VLOOKUP($C22,'RECAP SECT'!$G$6:$CU$253,9,FALSE) -> 9% | K22: =VLOOKUP($C22,'RECAP SECT'!$G$6:$CU$253,10,FALSE) -> 4 | L22: =VLOOKUP($C22,'RECAP SECT'!$G$6:$CU$253,11,FALSE) -> 13% | M22: =VLOOKUP($C22,'RECAP SECT'!$G$6:$CU$253,12,FALSE) -> 10% | N22: =VLOOKUP($C22,'RECAP SECT'!$G$6:$CU$253,13,FALSE) -> 5
A23: 160 | B23: MOSELLE | C23: 45 | D23: METZ | E23: =VLOOKUP($C23,'RECAP SECT'!$G$6:$CU$253,3,FALSE) -> 72.7 | F23: =VLOOKUP($C23,'RECAP SECT'!$G$6:$CU$253,5,FALSE) -> 15.25 | G23: =VLOOKUP($C23,'RECAP SECT'!$G$6:$CU$253,6,FALSE) -> 40% | H23: =VLOOKUP($C23,'RECAP SECT'!$G$6:$CU$253,7,FALSE) -> 8 | I23: =VLOOKUP($C23,'RECAP SECT'!$G$6:$CU$253,8,FALSE) -> 60% | J23: =VLOOKUP($C23,'RECAP SECT'!$G$6:$CU$253,9,FALSE) -> 19% | K23: =VLOOKUP($C23,'RECAP SECT'!$G$6:$CU$253,10,FALSE) -> 13 | L23: =VLOOKUP($C23,'RECAP SECT'!$G$6:$CU$253,11,FALSE) -> 29% | M23: =VLOOKUP($C23,'RECAP SECT'!$G$6:$CU$253,12,FALSE) -> 26% | N23: =VLOOKUP($C23,'RECAP SECT'!$G$6:$CU$253,13,FALSE) -> 9
A24: 160 | B24: MOSELLE | C24: 42 | D24: MOSELLE EST | E24: =VLOOKUP($C24,'RECAP SECT'!$G$6:$CU$253,3,FALSE) -> 59.9 | F24: =VLOOKUP($C24,'RECAP SECT'!$G$6:$CU$253,5,FALSE) -> 21.25 | G24: =VLOOKUP($C24,'RECAP SECT'!$G$6:$CU$253,6,FALSE) -> 16% | H24: =VLOOKUP($C24,'RECAP SECT'!$G$6:$CU$253,7,FALSE) -> 4 | I24: =VLOOKUP($C24,'RECAP SECT'!$G$6:$CU$253,8,FALSE) -> 67% | J24: =VLOOKUP($C24,'RECAP SECT'!$G$6:$CU$253,9,FALSE) -> 9% | K24: =VLOOKUP($C24,'RECAP SECT'!$G$6:$CU$253,10,FALSE) -> 5 | L24: =VLOOKUP($C24,'RECAP SECT'!$G$6:$CU$253,11,FALSE) -> 12% | M24: =VLOOKUP($C24,'RECAP SECT'!$G$6:$CU$253,12,FALSE) -> 10% | N24: =VLOOKUP($C24,'RECAP SECT'!$G$6:$CU$253,13,FALSE) -> 4
A25: 160 | B25: MOSELLE | C25: 44 | D25: MOSELLE NORD | E25: =VLOOKUP($C25,'RECAP SECT'!$G$6:$CU$253,3,FALSE) -> 57.2 | F25: =VLOOKUP($C25,'RECAP SECT'!$G$6:$CU$253,5,FALSE) -> 8.25 | G25: =VLOOKUP($C25,'RECAP SECT'!$G$6:$CU$253,6,FALSE) -> 67% | H25: =VLOOKUP($C25,'RECAP SECT'!$G$6:$CU$253,7,FALSE) -> 13 | I25: =VLOOKUP($C25,'RECAP SECT'!$G$6:$CU$253,8,FALSE) -> 61% | J25: =VLOOKUP($C25,'RECAP SECT'!$G$6:$CU$253,9,FALSE) -> 17% | K25: =VLOOKUP($C25,'RECAP SECT'!$G$6:$CU$253,10,FALSE) -> 12 | L25: =VLOOKUP($C25,'RECAP SECT'!$G$6:$CU$253,11,FALSE) -> 42% | M25: =VLOOKUP($C25,'RECAP SECT'!$G$6:$CU$253,12,FALSE) -> 39% | N25: =VLOOKUP($C25,'RECAP SECT'!$G$6:$CU$253,13,FALSE) -> 13
A26: 80 | B26: VOSGES | C26: 57 | D26: EPINAL | E26: =VLOOKUP($C26,'RECAP SECT'!$G$6:$CU$253,3,FALSE) -> 52.9 | F26: =VLOOKUP($C26,'RECAP SECT'!$G$6:$CU$253,5,FALSE) -> 22.25 | G26: =VLOOKUP($C26,'RECAP SECT'!$G$6:$CU$253,6,FALSE) -> 12% | H26: =VLOOKUP($C26,'RECAP SECT'!$G$6:$CU$253,7,FALSE) -> 3 | I26: =VLOOKUP($C26,'RECAP SECT'!$G$6:$CU$253,8,FALSE) -> 70% | J26: =VLOOKUP($C26,'RECAP SECT'!$G$6:$CU$253,9,FALSE) -> 6% | K26: =VLOOKUP($C26,'RECAP SECT'!$G$6:$CU$253,10,FALSE) -> 2 | L26: =VLOOKUP($C26,'RECAP SECT'!$G$6:$CU$253,11,FALSE) -> 9% | M26: =VLOOKUP($C26,'RECAP SECT'!$G$6:$CU$253,12,FALSE) -> 6% | N26: =VLOOKUP($C26,'RECAP SECT'!$G$6:$CU$253,13,FALSE) -> 3
A27: 80 | B27: VOSGES | C27: 55 | D27: SAINT DIE | E27: =VLOOKUP($C27,'RECAP SECT'!$G$6:$CU$253,3,FALSE) -> 40.2 | F27: =VLOOKUP($C27,'RECAP SECT'!$G$6:$CU$253,5,FALSE) -> 25.25 | G27: =VLOOKUP($C27,'RECAP SECT'!$G$6:$CU$253,6,FALSE) -> 0% | H27: =VLOOKUP($C27,'RECAP SECT'!$G$6:$CU$253,7,FALSE) -> 1 | I27: =VLOOKUP($C27,'RECAP SECT'!$G$6:$CU$253,8,FALSE) -> 69% | J27: =VLOOKUP($C27,'RECAP SECT'!$G$6:$CU$253,9,FALSE) -> 7% | K27: =VLOOKUP($C27,'RECAP SECT'!$G$6:$CU$253,10,FALSE) -> 3 | L27: =VLOOKUP($C27,'RECAP SECT'!$G$6:$CU$253,11,FALSE) -> 4% | M27: =VLOOKUP($C27,'RECAP SECT'!$G$6:$CU$253,12,FALSE) -> 1% | N27: =VLOOKUP($C27,'RECAP SECT'!$G$6:$CU$253,13,FALSE) -> 2
A28: Total CEGEE Directions Régionales | E28: =SUM(E10:E27) -> 955

Sheet AG_CLASS
B1: Accueil | H1: BAROMETRE BDD - AGENCES
H2: CLASSEMENTS
H3: =ACCUEIL!F7 -> 2022-09-11
H8: CLASSEMENT GENERAL | I8: CRITERE Satisfaction Clients | J8: NPS à froid (SAE) | K8: NPS à chaud (QHD) | L8: CRITERE BANCARISATION | M8: Ventes Nettes produits pondérés | N8: Ventes sur client non détenteur de l’univers | O8: CRITERE EPARGNE | P8: Excédent Epargne hors DAV pondéré | Q8: Ventes sur client non détenteur de l’univers | R8: CRITERE IARD PREVOYANCE | S8: Ventes Nettes produits pondérés | T8: Ventes sur client non détenteur de l’univers | U8: CRITERE CREDITS | V8: Engagements et ventes accessoires pondérés Immo | W8: Engagements et ventes accessoires pondérés Conso | X8: Ventes sur client non détenteur de l’univers
B9: Direction | C9: eds | D9: Territoire | E9: eds | F9: Agence | G9: ="ETP perf "&DATEMAJ!$C$28 -> ETP perf 11-sept | H9: Rang | I9: Rang | J9: Rang | K9: Rang | L9: Rang | M9: Rang | N9: Rang | O9: Rang | P9: Rang | Q9: Rang | R9: Rang | S9: Rang | T9: Rang | U9: Rang | V9: Rang | W9: Rang | X9: Rang
A10: 50 | B10: MOSELLE | C10: 44 | D10: MOSELLE NORD | E10: 557508 | F10: NILVANGE | G10: 1.6 | H10: 1 | I10: 67 | J10: 74 | K10: 50 | L10: 1 | M10: 1 | N10: 1 | O10: 2 | P10: 114 | Q10: 1 | R10: 1 | S10: 1 | T10: 1 | U10: 1 | V10: 1 | W10: 2 | X10: 1
A11: 50 | B11: MOSELLE | C11: 42 | D11: MOSELLE EST | E11: 457163 | F11: BEHREN LES FORBACH | G11: 1.8 | H11: 2 | I11: 8 | J11: 9 | K11: 14 | L11: 2 | M11: 3 | N11: 3 | O11: 30 | P11: 105 | Q11: 3 | R11: 16 | S11: 65 | T11: 5 | U11: 2 | V11: 2 | W11: 1 | X11: 3
A12: 50 | B12: VOSGES | C12: 57 | D12: EPINAL | E12: 488288 | F12: EPINAL LEOPOLD BOURG | G12: 2.0 | H12: 3 | I12: 2 | J12: 2 | K12: 3 | L12: 24 | M12: 13 | N12: 52 | O12: 5 | P12: 4 | Q12: 30 | R12: 52 | S12: 21 | T12: 152 | U12: 27 | V12: 23 | W12: 56 | X12: 33
A13: 50 | B13: MARNE ARDENNES | C13: 11 | D13: REIMS | E13: 551305 | F13: REIMS HIPPODROME | G13: 5.2 | H13: 4 | I13: 69 | J13: 68 | K13: 77 | L13: 15 | M13: 41 | N13: 7 | O13: 17 | P13: 24 | Q13: 20 | R13: 7 | S13: 12 | T13: 10 | U13: 8 | V13: 10 | W13: 64 | X13: 6
A14: 50 | B14: MOSELLE | C14: 44 | D14: MOSELLE NORD | E14: 557660 | F14: UCKANGE | G14: 1.8 | H14: 5 | I14: 222 | J14: 180 | K14: 227 | L14: 11 | M14: 30 | N14: 6 | O14: 23 | P14: 161 | Q14: 2 | R14: 2 | S14: 2 | T14: 4 | U14: 3 | V14: 3 | W14: 41 | X14: 2
A15: 50 | B15: MARNE ARDENNES | C15: 6 | D15: CHALONS EN CHAMPAGNE | E15: 451115 | F15: MOURMELON LE GRAND | G15: 2.8 | H15: 6 | I15: 80 | J15: 118 | K15: 11 | L15: 3 | M15: 2 | N15: 11 | O15: 19 | P15: 44 | Q15: 8 | R15: 23 | S15: 48 | T15: 11 | U15: 20 | V15: 41 | W15: 6 | X15: 46
A16: 50 | B16: MARNE ARDENNES | C16: 6 | D16: CHALONS EN CHAMPAGNE | E16: 551330 | F16: MONTMIRAIL | G16: 2.8 | H16: 7 | I16: 12 | J16: 16 | K16: 18 | L16: 20 | M16: 9 | N16: 50 | O16: 44 | P16: 41 | Q16: 81 | R16: 10 | S16: 8 | T16: 23 | U16: 70 | V16: 59 | W16: 188 | X16: 40
A17: 50 | B17: MEURTHE ET MOSELLE MEUSE | C17: 26 | D17: NANCY | E17: 554476 | F17: NANCY ARTEM | G17: 2.8 | H17: 8 | I17: 41 | J17: 51 | K17: 20 | L17: 12 | M17: 18 | N17: 19 | O17: 134 | P17: 135 | Q17: 95 | R17: 53 | S17: 42 | T17: 84 | U17: 4 | V17: 4 | W17: 100 | X17: 4
A18: 50 | B18: MARNE ARDENNES | C18: 11 | D18: REIMS | E18: 551340 | F18: BETHENY | G18: 2.3 | H18: 9 | I18: 46 | J18: 35 | K18: 109 | L18: 6 | M18: 8 | N18: 12 | O18: 28 | P18: 57 | Q18: 14 | R18: 96 | S18: 107 | T18: 81 | U18: 14 | V18: 6 | W18: 124 | X18: 18
A19: 50 | B19: MARNE ARDENNES | C19: 2 | D19: CHARLEVILLE MEZIERES | E19: 508820 | F19: VOUZIERS | G19: 2.9 | H19: 10 | I19: 30 | J19: 21 | K19: 85 | L19: 34 | M19: 45 | N19: 44 | O19: 37 | P19: 23 | Q19: 140 | R19: 3 | S19: 3 | T19: 15 | U19: 44 | V19: 88 | W19: 16 | X19: 66
A20: 50 | B20: MOSELLE | C20: 44 | D20: MOSELLE NORD | E20: 557113 | F20: AUDUN LE TICHE | G20: 2.1 | H20: 11 | I20: 120 | J20: 168 | K20: 15 | L20: 10 | M20: 23 | N20: 9 | O20: 22 | P20: 61 | Q20: 6 | R20: 18 | S20: 35 | T20: 13 | U20: 16 | V20: 17 | W20: 15 | X20: 37
A21: 50 | B21: MARNE ARDENNES | C21: 6 | D21: CHALONS EN CHAMPAGNE | E21: 451120 | F21: SARRY | G21: 2.3 | H21: 12 | I21: 6 | J21: 7 | K21: 5 | L21: 28 | M21: 17 | N21: 68 | O21: 123 | P21: 162 | Q21: 38 | R21: 54 | S21: 41 | T21: 98 | U21: 74 | V21: 55 | W21: 104 | X21: 81
A22: 50 | B22: MARNE ARDENNES | C22: 11 | D22: REIMS | E22: 551365 | F22: DORMANS | G22: 2.6 | H22: 13 | I22: 57 | J22: 57 | K22: 69 | L22: 5 | M22: 5 | N22: 20 | O22: 124 | P22: 178 | Q22: 27 | R22: 39 | S22: 47 | T22: 37 | U22: 25 | V22: 28 | W22: 152 | X22: 11
A23: 50 | B23: MARNE ARDENNES | C23: 11 | D23: REIMS | E23: 551349 | F23: REIMS SAINT REMI | G23: 2.9 | H23: 14 | I23: 125 | J23: 136 | K23: 88 | L23: 4 | M23: 6 | N23: 15 | O23: 91 | P23: 144 | Q23: 17 | R23: 17 | S23: 25 | T23: 16 | U23: 12 | V23: 11 | W23: 73 | X23: 16
A24: 50 | B24: MOSELLE | C24: 42 | D24: MOSELLE EST | E24: 457165 | F24: BITCHE | G24: 2.5 | H24: 15 | I24: 16 | J24: 13 | K24: 39 | L24: 14 | M24: 4 | N24: 55 | O24: 90 | P24: 147 | Q24: 16 | R24: 27 | S24: 19 | T24: 49 | U24: 120 | V24: 118 | W24: 54 | X24: 176
A25: 50 | B25: MOSELLE | C25: 45 | D25: METZ | E25: 457443 | F25: METZ REPUBLIQUE | G25: 3.5 | H25: 16 | I25: 42 | J25: 41 | K25: 46 | L25: 90 | M25: 80 | N25: 124 | O25: 3 | P25: 2 | Q25: 78 | R25: 13 | S25: 9 | T25: 41 | U25: 116 | V25: 117 | W25: 97 | X25: 119
A26: 50 | B26: BAS RHIN | C26: 5006 | D26: STRASBOURG | E26: 4048 | F26: STRASBOURG KOENIGSHOFFEN | G26: 1.7 | H26: 17 | I26: 177 | J26: 210 | K26: 158 | L26: 9 | M26: 15 | N26: 18 | O26: 9 | P26: 33 | Q26: 5 | R26: 9 | S26: 74 | T26: 3 | U26: 21 | V26: 71 | W26: 18 | X26: 13
A27: 50 | B27: MEURTHE ET MOSELLE MEUSE | C27: 27 | D27: PONT A MOUSSON | E27: 554381 | F27: LAXOU ARISTIDE BRIAND | G27: 2.3 | H27: 18 | I27: 165 | J27: 187 | K27: 150 | L27: 7 | M27: 14 | N27: 10 | O27: 64 | P27: 124 | Q27: 13 | R27: 15 | S27: 33 | T27: 9 | U27: 9 | V27: 9 | W27: 34 | X27: 9
A28: 262 | B28: BAS RHIN | C28: 5006 | D28: STRASBOURG | E28: 4037 | F28: MUNDOLSHEIM | G28: 3.7 | H28: 19 | I28: 55 | J28: 46 | K28: 89 | L28: 25 | M28: 33 | N28: 26 | O28: 166 | P28: 221 | Q28: 21 | R28: 12 | S28: 13 | T28: 21 | U28: 24 | V28: 27 | W28: 133 | X28: 17
A29: 262 | B29: MOSELLE | C29: 45 | D29: METZ | E29: 457453 | F29: MONTIGNY LES METZ | G29: 6.9 | H29: 20 | I29: 11 | J29: 15 | K29: 21 | L29: 45 | M29: 35 | N29: 91 | O29: 60 | P29: 118 | Q29: 12 | R29: 105 | S29: 86 | T29: 155 | U29: 41 | V29: 29 | W29: 74 | X29: 54
A30: 262 | B30: MARNE ARDENNES | C30: 11 | D30: REIMS | E30: 451350 | F30: REIMS CENTRE VILLE | G30: 6.4 | H30: 21 | I30: 186 | J30: 196 | K30: 170 | L30: 8 | M30: 11 | N30: 14 | O30: 78 | P30: 103 | Q30: 35 | R30: 21 | S30: 26 | T30: 26 | U30: 5 | V30: 8 | W30: 40 | X30: 5
A31: 262 | B31: MEURTHE ET MOSELLE MEUSE | C31: 26 | D31: NANCY | E31: 554601 | F31: SAINT MAX | G31: 3.5 | H31: 22 | I31: 23 | J31: 27 | K31: 31 | L31: 105 | M31: 86 | N31: 141 | O31: 14 | P31: 11 | Q31: 90 | R31: 44 | S31: 32 | T31: 104 | U31: 76 | V31: 67 | W31: 88 | X31: 97
A32: 262 | B32: MARNE ARDENNES | C32: 2 | D32: CHARLEVILLE MEZIERES | E32: 408801 | F32: CHARLEVILLE JEAN JAURES | G32: 8.8 | H32: 23 | I32: 65 | J32: 76 | K32: 36 | L32: 68 | M32: 77 | N32: 54 | O32: 31 | P32: 42 | Q32: 23 | R32: 31 | S32: 22 | T32: 79 | U32: 38 | V32: 21 | W32: 174 | X32: 32
A33: 262 | B33: MEURTHE ET MOSELLE MEUSE | C33: 27 | D33: PONT A MOUSSON | E33: 554531 | F33: POMPEY | G33: 3.0 | H33: 24 | I33: 209 | J33: 187 | K33: 211 | L33: 13 | M33: 21 | N33: 13 | O33: 42 | P33: 73 | Q33: 15 | R33: 33 | S33: 49 | T33: 22 | U33: 6 | V33: 13 | W33: 5 | X33: 15
A34: 262 | B34: MOSELLE | C34: 45 | D34: METZ | E34: 557439 | F34: METZ POMPIDOU | G34: 2.5 | H34: 25 | I34: 53 | J34: 52 | K34: 74 | L34: 53 | M34: 88 | N34: 28 | O34: 8 | P34: 12 | Q34: 36 | R34: 116 | S34: 156 | T34: 48 | U34: 65 | V34: 43 | W34: 112 | X34: 79
A35: 262 | B35: AUBE HAUTE MARNE | C35: 21 | D35: CHAUMONT | E35: 510590 | F35: CHAUMONT REPUBLIQUE | G35: 2.9 | H35: 26 | I35: 45 | J35: 60 | K35: 22 | L35: 113 | M35: 149 | N35: 67 | O35: 33 | P35: 39 | Q35: 47 | R35: 25 | S35: 18 | T35: 63 | U35: 53 | V35: 105 | W35: 22 | X35: 56
A36: 262 | B36: MEURTHE ET MOSELLE MEUSE | C36: 26 | D36: NANCY | E36: 554356 | F36: JARVILLE LA MALGRANGE | G36: 4.2 | H36: 27 | I36: 34 | J36: 42 | K36: 27 | L36: 29 | M36: 12 | N36: 86 | O36: 171 | P36: 209 | Q36: 51 | R36: 68 | S36: 67 | T36: 69 | U36: 48 | V36: 49 | W36: 131 | X36: 44
A37: 262 | B37: MOSELLE | C37: 45 | D37: METZ | E37: 457446 | F37: METZ SAINT LOUIS | G37: 5.7 | H37: 28 | I37: 104 | J37: 111 | K37: 81 | L37: 27 | M37: 25 | N37: 41 | O37: 56 | P37: 110 | Q37: 11 | R37: 64 | S37: 53 | T37: 82 | U37: 30 | V37: 18 | W37: 116 | X37: 29
A38: 262 | B38: MARNE ARDENNES | C38: 11 | D38: REIMS | E38: 551369 | F38: DAMERY | G38: 1.5 | H38: 29 | I38: 82 | J38: 57 | K38: 155 | L38: 18 | M38: 32 | N38: 16 | O38: 239 | P38: 237 | Q38: 156 | R38: 29 | S38: 43 | T38: 18 | U38: 13 | V38: 19 | W38: 51 | X38: 10
A39: 262 | B39: MARNE ARDENNES | C39: 6 | D39: CHALONS EN CHAMPAGNE | E39: 551354 | F39: VERTUS | G39: 2.0 | H39: 30 | I39: 1 | J39: 1 | K39: 1 | L39: 151 | M39: 119 | N39: 210 | O39: 34 | P39: 20 | Q39: 147 | R39: 194 | S39: 196 | T39: 159 | U39: 145 | V39: 178 | W39: 78 | X39: 160
A40: 262 | B40: MEURTHE ET MOSELLE MEUSE | C40: 27 | D40: PONT A MOUSSON | E40: 554506 | F40: CHALIGNY NEUVES MAISONS | G40: 3.4 | H40: 31 | I40: 161 | J40: 152 | K40: 179 | L40: 16 | M40: 20 | N40: 22 | O40: 168 | P40: 211 | Q40: 49 | R40: 8 | S40: 7 | T40: 20 | U40: 17 | V40: 20 | W40: 29 | X40: 19
A41: 262 | B41: MOSELLE | C41: 42 | D41: MOSELLE EST | E41: 557250 | F41: CREUTZWALD | G41: 2.5 | H41: 32 | I41: 21 | J41: 18 | K41: 44 | L41: 140 | M41: 163 | N41: 100 | O41: 66 | P41: 82 | Q41: 41 | R41: 47 | S41: 29 | T41: 112 | U41: 68 | V41: 80 | W41: 19 | X41: 146
A42: 262 | B42: MARNE ARDENNES | C42: 11 | D42: REIMS | E42: 451301 | F42: REIMS HOTEL DE VILLE | G42: 7.0 | H42: 33 | I42: 98 | J42: 98 | K42: 99 | L42: 56 | M42: 62 | N42: 57 | O42: 80 | P42: 109 | Q42: 33 | R42: 14 | S42: 14 | T42: 28 | U42: 40 | V42: 25 | W42: 147 | X42: 39
A43: 262 | B43: MARNE ARDENNES | C43: 11 | D43: REIMS | E43: 451370 | F43: EPERNAY | G43: 8.9 | H43: 34 | I43: 70 | J43: 79 | K43: 42 | L43: 35 | M43: 29 | N43: 74 | O43: 47 | P43: 48 | Q43: 65 | R43: 90 | S43: 99 | T43: 92 | U43: 54 | V43: 62 | W43: 82 | X43: 45
A44: 262 | B44: MOSELLE | C44: 45 | D44: METZ | E44: 557432 | F44: MAIZIERES LES METZ | G44: 2.5 | H44: 35 | I44: 195 | J44: 196 | K44: 177 | L44: 22 | M44: 63 | N44: 4 | O44: 74 | P44: 120 | Q44: 18 | R44: 57 | S44: 69 | T44: 44 | U44: 7 | V44: 5 | W44: 81 | X44: 7
A45: 262 | B45: MARNE ARDENNES | C45: 2 | D45: CHARLEVILLE MEZIERES | E45: 508839 | F45: GIVET | G45: 3.4 | H45: 36 | I45: 75 | J45: 73 | K45: 101 | L45: 66 | M45: 83 | N45: 48 | O45: 145 | P45: 188 | Q45: 39 | R45: 11 | S45: 4 | T45: 53 | U45: 45 | V45: 60 | W45: 37 | X45: 61
A46: 262 | B46: VOSGES | C46: 57 | D46: EPINAL | E46: 588336 | F46: GOLBEY | G46: 2.8 | H46: 37 | I46: 40 | J46: 39 | K46: 38 | L46: 103 | M46: 101 | N46: 106 | O46: 53 | P46: 45 | Q46: 111 | R46: 56 | S46: 44 | T46: 86 | U46: 67 | V46: 104 | W46: 72 | X46: 47
A47: 262 | B47: MARNE ARDENNES | C47: 11 | D47: REIMS | E47: 551314 | F47: FISMES | G47: 2.7 | H47: 38 | I47: 19 | J47: 30 | K47: 9 | L47: 26 | M47: 27 | N47: 34 | O47: 231 | P47: 236 | Q47: 40 | R47: 129 | S47: 168 | T47: 54 | U47: 50 | V47: 36 | W47: 187 | X47: 34
A48: 262 | B48: MEURTHE ET MOSELLE MEUSE | C48: 31 | D48: VERDUN | E48: 455678 | F48: VERDUN CENTRALE | G48: 10.0 | H48: 39 | I48: 22 | J48: 17 | K48: 60 | L48: 60 | M48: 67 | N48: 63 | O48: 189 | P48: 210 | Q48: 82 | R48: 132 | S48: 140 | T48: 115 | U48: 37 | V48: 40 | W48: 76 | X48: 41
A49: 262 | B49: MEURTHE ET MOSELLE MEUSE | C49: 31 | D49: VERDUN | E49: 554413 | F49: LONGWY BAS | G49: 3.4 | H49: 40 | I49: 13 | J49: 10 | K49: 55 | L49: 72 | M49: 56 | N49: 107 | O49: 152 | P49: 137 | Q49: 157 | R49: 107 | S49: 84 | T49: 168 | U49: 90 | V49: 72 | W49: 69 | X49: 153
A50: 262 | B50: MARNE ARDENNES | C50: 11 | D50: REIMS | E50: 551367 | F50: AY CHAMPAGNE | G50: 2.7 | H50: 41 | I50: 44 | J50: 37 | K50: 75 | L50: 102 | M50: 136 | N50: 64 | O50: 107 | P50: 81 | Q50: 177 | R50: 66 | S50: 73 | T50: 57 | U50: 43 | V50: 26 | W50: 200 | X50: 31
A51: 262 | B51: MARNE ARDENNES | C51: 2 | D51: CHARLEVILLE MEZIERES | E51: 508833 | F51: VILLERS SEMEUSE CORA | G51: 3.2 | H51: 42 | I51: 194 | J51: 210 | K51: 171 | L51: 81 | M51: 130 | N51: 39 | O51: 26 | P51: 38 | Q51: 24 | R51: 5 | S51: 6 | T51: 14 | U51: 22 | V51: 38 | W51: 24 | X51: 26
A52: 262 | B52: MARNE ARDENNES | C52: 11 | D52: REIMS | E52: 451361 | F52: PIERRY LECLERC | G52: 1.8 | H52: 43 | I52: 58 | J52: 59 | K52: 67 | L52: 64 | M52: 57 | N52: 89 | O52: 21 | P52: 16 | Q52: 75 | R52: 123 | S52: 97 | T52: 169 | U52: 98 | V52: 58 | W52: 192 | X52: 83
A53: 262 | B53: BAS RHIN | C53: 5101 | D53: SELESTAT | E53: 4113 | F53: BARR | G53: 2.9 | H53: 44 | I53: 28 | J53: 46 | K53: 4 | L53: 33 | M53: 24 | N53: 84 | O53: 101 | P53: 121 | Q53: 43 | R53: 139 | S53: 116 | T53: 176 | U53: 130 | V53: 48 | W53: 243 | X53: 77
A54: 262 | B54: MOSELLE | C54: 45 | D54: METZ | E54: 457574 | F54: ROMBAS | G54: 2.6 | H54: 45 | I54: 49 | J54: 38 | K54: 98 | L54: 83 | M54: 79 | N54: 103 | O54: 93 | P54: 112 | Q54: 45 | R54: 19 | S54: 15 | T54: 68 | U54: 139 | V54: 122 | W54: 107 | X54: 155
A55: 262 | B55: MOSELLE | C55: 44 | D55: MOSELLE NORD | E55: 557352 | F55: HETTANGE GRANDE | G55: 3.0 | H55: 46 | I55: 145 | J55: 114 | K55: 192 | L55: 39 | M55: 81 | N55: 23 | O55: 116 | P55: 141 | Q55: 44 | R55: 45 | S55: 50 | T55: 38 | U55: 15 | V55: 44 | W55: 7 | X55: 23
A56: 262 | B56: MARNE ARDENNES | C56: 11 | D56: REIMS | E56: 551310 | F56: REIMS CHATILLONS | G56: 3.9 | H56: 47 | I56: 126 | J56: 104 | K56: 160 | L56: 30 | M56: 28 | N56: 38 | O56: 110 | P56: 101 | Q56: 107 | R56: 59 | S56: 76 | T56: 43 | U56: 36 | V56: 46 | W56: 146 | X56: 22
A57: 262 | B57: MARNE ARDENNES | C57: 6 | D57: CHALONS EN CHAMPAGNE | E57: 551110 | F57: CHALONS ROOSEVELT | G57: 4.3 | H57: 48 | I57: 32 | J57: 27 | K57: 80 | L57: 118 | M57: 99 | N57: 139 | O57: 138 | P57: 160 | Q57: 70 | R57: 22 | S57: 10 | T57: 105 | U57: 113 | V57: 78 | W57: 151 | X57: 114
A58: 262 | B58: BAS RHIN | C58: 5006 | D58: STRASBOURG | E58: 4038 | F58: OBERHAUSBERGEN | G58: 3.4 | H58: 49 | I58: 62 | J58: 65 | K58: 66 | L58: 65 | M58: 98 | N58: 33 | O58: 11 | P58: 14 | Q58: 34 | R58: 215 | S58: 235 | T58: 67 | U58: 75 | V58: 50 | W58: 140 | X58: 82
A59: 262 | B59: MOSELLE | C59: 42 | D59: MOSELLE EST | E59: 457583 | F59: SAINT AVOLD | G59: 7.0 | H59: 50 | I59: 61 | J59: 72 | K59: 49 | L59: 44 | M59: 44 | N59: 70 | O59: 114 | P59: 131 | Q59: 58 | R59: 69 | S59: 60 | T59: 78 | U59: 91 | V59: 83 | W59: 119 | X59: 92
A60: 262 | B60: MEURTHE ET MOSELLE MEUSE | C60: 27 | D60: PONT A MOUSSON | E60: 554516 | F60: PAGNY SUR MOSELLE | G60: 2.7 | H60: 51 | I60: 111 | J60: 100 | K60: 120 | L60: 77 | M60: 72 | N60: 109 | O60: 52 | P60: 47 | Q60: 97 | R60: 26 | S60: 27 | T60: 31 | U60: 62 | V60: 51 | W60: 89 | X60: 71
A61: 262 | B61: MOSELLE | C61: 42 | D61: MOSELLE EST | E61: 457308 | F61: FORBACH CENTRALE | G61: 9.4 | H61: 52 | I61: 91 | J61: 74 | K61: 132 | L61: 38 | M61: 34 | N61: 72 | O61: 104 | P61: 107 | Q61: 76 | R61: 41 | S61: 36 | T61: 74 | U61: 81 | V61: 99 | W61: 48 | X61: 122
A62: 262 | B62: BAS RHIN | C62: 5006 | D62: STRASBOURG | E62: 4024 | F62: STRASBOURG AUSTERLITZ | G62: 1.1 | H62: 53 | I62: 241 | J62: 196 | K62: 242 | L62: 42 | M62: 157 | N62: 2 | O62: 4 | P62: 5 | Q62: 7 | R62: 40 | S62: 212 | T62: 2 | U62: 23 | V62: 15 | W62: 101 | X62: 27
A63: 262 | B63: MEURTHE ET MOSELLE MEUSE | C63: 31 | D63: VERDUN | E63: 555406 | F63: LIGNY EN BARROIS | G63: 2.5 | H63: 54 | I63: 17 | J63: 12 | K63: 63 | L63: 120 | M63: 122 | N63: 117 | O63: 12 | P63: 6 | Q63: 139 | R63: 207 | S63: 198 | T63: 190 | U63: 184 | V63: 218 | W63: 134 | X63: 171
A64: 262 | B64: MARNE ARDENNES | C64: 11 | D64: REIMS | E64: 551306 | F64: REIMS SAINT MARCEAUX | G64: 3.9 | H64: 55 | I64: 59 | J64: 44 | K64: 111 | L64: 21 | M64: 10 | N64: 49 | O64: 238 | P64: 240 | Q64: 57 | R64: 74 | S64: 87 | T64: 61 | U64: 61 | V64: 56 | W64: 149 | X64: 43
A65: 262 | B65: MOSELLE | C65: 44 | D65: MOSELLE NORD | E65: 457350 | F65: HAYANGE | G65: 6.4 | H65: 56 | I65: 117 | J65: 103 | K65: 147 | L65: 50 | M65: 48 | N65: 71 | O65: 129 | P65: 187 | Q65: 22 | R65: 28 | S65: 24 | T65: 35 | U65: 55 | V65: 37 | W65: 122 | X65: 59
A66: 262 | B66: MARNE ARDENNES | C66: 11 | D66: REIMS | E66: 451336 | F66: TINQUEUX | G66: 4.9 | H66: 57 | I66: 147 | J66: 135 | K66: 172 | L66: 47 | M66: 42 | N66: 80 | O66: 10 | P66: 9 | Q66: 62 | R66: 101 | S66: 117 | T66: 86 | U66: 52 | V66: 24 | W66: 162 | X66: 53
A67: 262 | B67: MEURTHE ET MOSELLE MEUSE | C67: 27 | D67: PONT A MOUSSON | E67: 554686 | F67: VEZELISE | G67: 1.9 | H67: 58 | I67: 3 | J67: 3 | K67: 13 | L67: 138 | M67: 138 | N67: 134 | O67: 87 | P67: 63 | Q67: 201 | R67: 143 | S67: 134 | T67: 165 | U67: 227 | V67: 213 | W67: 168 | X67: 229
A68: 262 | B68: VOSGES | C68: 55 | D68: SAINT DIE | E68: 488326 | F68: GERARDMER | G68: 3.8 | H68: 59 | I68: 86 | J68: 76 | K68: 119 | L68: 101 | M68: 100 | N68: 105 | O68: 29 | P68: 17 | Q68: 128 | R68: 106 | S68: 111 | T68: 108 | U68: 59 | V68: 63 | W68: 55 | X68: 73
A69: 262 | B69: MEURTHE ET MOSELLE MEUSE | C69: 26 | D69: NANCY | E69: 554636 | F69: TOMBLAINE | G69: 2.6 | H69: 60 | I69: 15 | J69: 25 | K69: 6 | L69: 176 | M69: 177 | N69: 145 | O69: 50 | P69: 50 | Q69: 73 | R69: 140 | S69: 149 | T69: 117 | U69: 128 | V69: 142 | W69: 129 | X69: 103
A70: 262 | B70: MOSELLE | C70: 45 | D70: METZ | E70: 557447 | F70: METZ SAINT MAXIMIN | G70: 2.3 | H70: 61 | I70: 156 | J70: 172 | K70: 143 | L70: 73 | M70: 121 | N70: 31 | O70: 38 | P70: 86 | Q70: 9 | R70: 4 | S70: 5 | T70: 12 | U70: 96 | V70: 110 | W70: 28 | X70: 194
A71: 262 | B71: MEURTHE ET MOSELLE MEUSE | C71: 26 | D71: NANCY | E71: 454481 | F71: NANCY PLACE DOMBASLE | G71: 7.9 | H71: 62 | I71: 142 | J71: 140 | K71: 156 | L71: 59 | M71: 89 | N71: 36 | O71: 67 | P71: 136 | Q71: 10 | R71: 88 | S71: 125 | T71: 56 | U71: 19 | V71: 14 | W71: 113 | X71: 21
A72: 262 | B72: MEURTHE ET MOSELLE MEUSE | C72: 26 | D72: NANCY | E72: 554116 | F72: BACCARAT | G72: 2.8 | H72: 63 | I72: 4 | J72: 4 | K72: 19 | L72: 147 | M72: 118 | N72: 200 | O72: 125 | P72: 89 | Q72: 223 | R72: 135 | S72: 128 | T72: 150 | U72: 203 | V72: 146 | W72: 179 | X72: 215
A73: 262 | B73: MOSELLE | C73: 44 | D73: MOSELLE NORD | E73: 457632 | F73: THIONVILLE CENTRALE | G73: 10.6 | H73: 64 | I73: 134 | J73: 140 | K73: 113 | L73: 31 | M73: 26 | N73: 45 | O73: 159 | P73: 203 | Q73: 42 | R73: 34 | S73: 40 | T73: 40 | U73: 46 | V73: 34 | W73: 109 | X73: 55
A74: 262 | B74: MOSELLE | C74: 42 | D74: MOSELLE EST | E74: 457617 | F74: SARREGUEMINES | G74: 6.6 | H74: 65 | I74: 148 | J74: 157 | K74: 129 | L74: 54 | M74: 58 | N74: 53 | O74: 55 | P74: 79 | Q74: 26 | R74: 58 | S74: 57 | T74: 58 | U74: 35 | V74: 30 | W74: 92 | X74: 38
A75: 264 | B75: BAS RHIN | C75: 5006 | D75: STRASBOURG | E75: 4054 | F75: STRASBOURG MONTAGNE VERTE | G75: 2.7 | H75: 66 | I75: 43 | J75: 20 | K75: 141 | L75: 96 | M75: 162 | N75: 37 | O75: 65 | P75: 64 | Q75: 79 | R75: 46 | S75: 56 | T75: 30 | U75: 225 | V75: 244 | W75: 193 | X75: 150
A76: 264 | B76: MOSELLE | C76: 42 | D76: MOSELLE EST | E76: 557668 | F76: VALMONT | G76: 2.7 | H76: 67 | I76: 37 | J76: 24 | K76: 107 | L76: 173 | M76: 175 | N76: 143 | O76: 25 | P76: 15 | Q76: 109 | R76: 91 | S76: 79 | T76: 133 | U76: 157 | V76: 187 | W76: 61 | X76: 198
A77: 264 | B77: MOSELLE | C77: 44 | D77: MOSELLE NORD | E77: 457348 | F77: HAGONDANGE | G77: 8.1 | H77: 68 | I77: 119 | J77: 122 | K77: 106 | L77: 57 | M77: 54 | N77: 82 | O77: 115 | P77: 115 | Q77: 83 | R77: 49 | S77: 39 | T77: 90 | U77: 49 | V77: 42 | W77: 105 | X77: 52
A78: 264 | B78: MEURTHE ET MOSELLE MEUSE | C78: 31 | D78: VERDUN | E78: 555679 | F78: VERDUN MAZEL | G78: 3.6 | H78: 69 | I78: 20 | J78: 27 | K78: 16 | L78: 119 | M78: 107 | N78: 129 | O78: 95 | P78: 71 | Q78: 175 | R78: 127 | S78: 98 | T78: 175 | U78: 172 | V78: 145 | W78: 190 | X78: 126
A79: 264 | B79: BAS RHIN | C79: 5006 | D79: STRASBOURG | E79: 4043 | F79: STRASBOURG HALLES | G79: 7.8 | H79: 70 | I79: 154 | J79: 210 | K79: 100 | L79: 36 | M79: 75 | N79: 24 | O79: 84 | P79: 134 | Q79: 19 | R79: 6 | S79: 11 | T79: 7 | U79: 133 | V79: 76 | W79: 238 | X79: 63
A80: 264 | B80: MOSELLE | C80: 42 | D80: MOSELLE EST | E80: 557305 | F80: FAULQUEMONT | G80: 4.1 | H80: 71 | I80: 229 | J80: 172 | K80: 232 | L80: 19 | M80: 36 | N80: 17 | O80: 178 | P80: 227 | Q80: 25 | R80: 37 | S80: 61 | T80: 25 | U80: 11 | V80: 12 | W80: 96 | X80: 8
A81: 264 | B81: BAS RHIN | C81: 5060 | D81: HAGUENAU | E81: 4092 | F81: HOCHFELDEN | G81: 1.9 | H81: 72 | I81: 87 | J81: 100 | K81: 51 | L81: 97 | M81: 134 | N81: 59 | O81: 35 | P81: 27 | Q81: 99 | R81: 98 | S81: 126 | T81: 64 | U81: 88 | V81: 61 | W81: 135 | X81: 111
A82: 264 | B82: MOSELLE | C82: 42 | D82: MOSELLE EST | E82: 557523 | F82: PHALSBOURG | G82: 2.5 | H82: 73 | I82: 110 | J82: 112 | K82: 95 | L82: 130 | M82: 152 | N82: 101 | O82: 32 | P82: 29 | Q82: 68 | R82: 32 | S82: 16 | T82: 134 | U82: 97 | V82: 138 | W82: 60 | X82: 100
A83: 264 | B83: AUBE HAUTE MARNE | C83: 21 | D83: CHAUMONT | E83: 410541 | F83: LANGRES | G83: 8.2 | H83: 74 | I83: 68 | J83: 67 | K83: 76 | L83: 95 | M83: 69 | N83: 171 | O83: 100 | P83: 91 | Q83: 126 | R83: 60 | S83: 38 | T83: 129 | U83: 119 | V83: 179 | W83: 44 | X83: 145
A84: 264 | B84: MARNE ARDENNES | C84: 6 | D84: CHALONS EN CHAMPAGNE | E84: 451101 | F84: CHALONS VIVIERS | G84: 9.6 | H84: 75 | I84: 33 | J84: 44 | K84: 17 | L84: 132 | M84: 112 | N84: 163 | O84: 147 | P84: 159 | Q84: 88 | R84: 85 | S84: 83 | T84: 114 | U84: 92 | V84: 86 | W84: 127 | X84: 86
A85: 264 | B85: VOSGES | C85: 55 | D85: SAINT DIE | E85: 488246 | F85: CORNIMONT LA BRESSE | G85: 2.7 | H85: 76 | I85: 18 | J85: 21 | K85: 23 | L85: 94 | M85: 96 | N85: 95 | O85: 207 | P85: 183 | Q85: 228 | R85: 94 | S85: 68 | T85: 164 | U85: 163 | V85: 212 | W85: 66 | X85: 185
A86: 264 | B86: MARNE ARDENNES | C86: 11 | D86: REIMS | E86: 551341 | F86: REIMS JEAN JAURES | G86: 3.0 | H86: 77 | I86: 178 | J86: 160 | K86: 186 | L86: 46 | M86: 71 | N86: 32 | O86: 36 | P86: 34 | Q86: 77 | R86: 84 | S86: 127 | T86: 39 | U86: 33 | V86: 33 | W86: 199 | X86: 14
A87: 264 | B87: VOSGES | C87: 55 | D87: SAINT DIE | E87: 588551 | F87: RAMBERVILLERS | G87: 2.6 | H87: 78 | I87: 25 | J87: 23 | K87: 58 | L87: 160 | M87: 192 | N87: 93 | O87: 122 | P87: 95 | Q87: 189 | R87: 210 | S87: 207 | T87: 180 | U87: 42 | V87: 66 | W87: 68 | X87: 30
A88: 264 | B88: VOSGES | C88: 57 | D88: EPINAL | E88: 588396 | F88: LE VAL D AJOL | G88: 2.5 | H88: 79 | I88: 5 | J88: 5 | K88: 10 | L88: 177 | M88: 153 | N88: 202 | O88: 103 | P88: 76 | Q88: 181 | R88: 166 | S88: 137 | T88: 221 | U88: 226 | V88: 176 | W88: 230 | X88: 181
A89: 264 | B89: MOSELLE | C89: 44 | D89: MOSELLE NORD | E89: 557303 | F89: FAMECK | G89: 2.8 | H89: 80 | I89: 50 | J89: 53 | K89: 41 | L89: 85 | M89: 184 | N89: 21 | O89: 112 | P89: 125 | Q89: 64 | R89: 225 | S89: 228 | T89: 174 | U89: 39 | V89: 53 | W89: 32 | X89: 50
A90: 264 | B90: MEURTHE ET MOSELLE MEUSE | C90: 31 | D90: VERDUN | E90: 454414 | F90: LONGWY HAUT | G90: 3.3 | H90: 81 | I90: 114 | J90: 120 | K90: 86 | L90: 87 | M90: 114 | N90: 62 | O90: 76 | P90: 66 | Q90: 112 | R90: 35 | S90: 45 | T90: 36 | U90: 87 | V90: 85 | W90: 98 | X90: 96
A91: 264 | B91: VOSGES | C91: 57 | D91: EPINAL | E91: 488561 | F91: REMIREMONT | G91: 7.2 | H91: 82 | I91: 14 | J91: 14 | K91: 35 | L91: 106 | M91: 70 | N91: 188 | O91: 162 | P91: 151 | Q91: 174 | R91: 138 | S91: 89 | T91: 219 | U91: 187 | V91: 103 | W91: 235 | X91: 130
A92: 264 | B92: MOSELLE | C92: 44 | D92: MOSELLE NORD | E92: 457306 | F92: FLORANGE | G92: 4.7 | H92: 83 | I92: 231 | J92: 208 | K92: 224 | L92: 32 | M92: 39 | N92: 40 | O92: 98 | P92: 138 | Q92: 28 | R92: 79 | S92: 101 | T92: 55 | U92: 10 | V92: 7 | W92: 25 | X92: 20
A93: 264 | B93: BAS RHIN | C93: 5060 | D93: HAGUENAU | E93: 4079 | F93: SOULTZ SOUS FORETS | G93: 1.9 | H93: 84 | I93: 71 | J93: 87 | K93: 32 | L93: 55 | M93: 43 | N93: 111 | O93: 71 | P93: 58 | Q93: 149 | R93: 102 | S93: 121 | T93: 83 | U93: 223 | V93: 240 | W93: 145 | X93: 223
A94: 264 | B94: BAS RHIN | C94: 5101 | D94: SELESTAT | E94: 4104 | F94: ERSTEIN | G94: 4.3 | H94: 85 | I94: 210 | J94: 193 | K94: 209 | L94: 17 | M94: 7 | N94: 79 | O94: 57 | P94: 51 | Q94: 101 | R94: 55 | S94: 23 | T94: 158 | U94: 82 | V94: 54 | W94: 169 | X94: 85
A95: 264 | B95: MARNE ARDENNES | C95: 2 | D95: CHARLEVILLE MEZIERES | E95: 408840 | F95: RETHEL | G95: 4.3 | H95: 86 | I95: 135 | J95: 130 | K95: 125 | L95: 62 | M95: 59 | N95: 81 | O95: 85 | P95: 72 | Q95: 132 | R95: 77 | S95: 52 | T95: 132 | U95: 71 | V95: 84 | W95: 85 | X95: 58
A96: 264 | B96: MARNE ARDENNES | C96: 6 | D96: CHALONS EN CHAMPAGNE | E96: 551103 | F96: FAGNIERES LECLERC | G96: 2.9 | H96: 87 | I96: 101 | J96: 130 | K96: 29 | L96: 128 | M96: 131 | N96: 127 | O96: 143 | P96: 174 | Q96: 52 | R96: 20 | S96: 17 | T96: 46 | U96: 86 | V96: 112 | W96: 62 | X96: 101
A97: 30 | B97: MOSELLE | C97: 45 | D97: METZ | E97: 557434 | F97: MARLY | G97: 3.1 | H97: 88 | I97: 36 | J97: 32 | K97: 79 | L97: 123 | M97: 94 | N97: 170 | O97: 113 | P97: 90 | Q97: 186 | R97: 181 | S97: 151 | T97: 220 | U97: 104 | V97: 73 | W97: 165 | X97: 90
A98: 30 | B98: BAS RHIN | C98: 5006 | D98: STRASBOURG | E98: 4047 | F98: STRASBOURG CRONENBOURG | G98: 4.5 | H98: 89 | I98: 115 | J98: 150 | K98: 37 | L98: 51 | M98: 38 | N98: 97 | O98: 48 | P98: 53 | Q98: 54 | R98: 117 | S98: 115 | T98: 118 | U98: 153 | V98: 95 | W98: 189 | X98: 135
A99: 30 | B99: AUBE HAUTE MARNE | C99: 14 | D99: TROYES | E99: 510570 | F99: NOGENT SUR SEINE | G99: 4.2 | H99: 90 | I99: 27 | J99: 25 | K99: 54 | L99: 112 | M99: 106 | N99: 115 | O99: 163 | P99: 179 | Q99: 98 | R99: 148 | S99: 124 | T99: 192 | U99: 152 | V99: 94 | W99: 180 | X99: 144
A100: 30 | B100: VOSGES | C100: 55 | D100: SAINT DIE | E100: 588186 | F100: BRUYERES | G100: 3.5 | H100: 91 | I100: 31 | J100: 31 | K100: 59 | L100: 127 | M100: 132 | N100: 125 | O100: 186 | P100: 195 | Q100: 105 | R100: 144 | S100: 183 | T100: 65 | U100: 89 | V100: 128 | W100: 126 | X100: 57
A101: 30 | B101: BAS RHIN | C101: 5060 | D101: HAGUENAU | E101: 4030 | F101: BRUMATH | G101: 3.9 | H101: 92 | I101: 221 | J101: 210 | K101: 215 | L101: 98 | M101: 65 | N101: 190 | O101: 1 | P101: 1 | Q101: 103 | R101: 222 | S101: 216 | T101: 222 | U101: 200 | V101: 154 | W101: 172 | X101: 211
A102: 30 | B102: VOSGES | C102: 57 | D102: EPINAL | E102: 588631 | F102: THAON LES VOSGES | G102: 4.4 | H102: 93 | I102: 99 | J102: 82 | K102: 133 | L102: 79 | M102: 61 | N102: 133 | O102: 111 | P102: 100 | Q102: 123 | R102: 100 | S102: 131 | T102: 62 | U102: 83 | V102: 156 | W102: 42 | X102: 102
A103: 30 | B103: AUBE HAUTE MARNE | C103: 21 | D103: CHAUMONT | E103: 451154 | F103: JOINVILLE | G103: 1.8 | H103: 94 | I103: 77 | J103: 89 | K103: 52 | L103: 78 | M103: 95 | N103: 58 | O103: 235 | P103: 235 | Q103: 93 | R103: 24 | S103: 28 | T103: 29 | U103: 111 | V103: 171 | W103: 118 | X103: 69
A104: 30 | B104: MOSELLE | C104: 44 | D104: MOSELLE NORD | E104: 557347 | F104: GUENANGE | G104: 4.6 | H104: 95 | I104: 206 | J104: 196 | K104: 199 | L104: 37 | M104: 31 | N104: 76 | O104: 142 | P104: 163 | Q104: 69 | R104: 43 | S104: 34 | T104: 97 | U104: 31 | V104: 22 | W104: 83 | X104: 36
A105: 30 | B105: MEURTHE ET MOSELLE MEUSE | C105: 31 | D105: VERDUN | E105: 554700 | F105: VILLERUPT | G105: 2.8 | H105: 96 | I105: 60 | J105: 55 | K105: 83 | L105: 82 | M105: 78 | N105: 104 | O105: 88 | P105: 97 | Q105: 72 | R105: 122 | S105: 104 | T105: 148 | U105: 204 | V105: 199 | W105: 95 | X105: 240
A106: 30 | B106: BAS RHIN | C106: 5006 | D106: STRASBOURG | E106: 4010 | F106: STRASBOURG MEINAU | G106: 2.9 | H106: 97 | I106: 97 | J106: 79 | K106: 144 | L106: 104 | M106: 139 | N106: 61 | O106: 97 | P106: 93 | Q106: 106 | R106: 51 | S106: 91 | T106: 17 | U106: 149 | V106: 201 | W106: 67 | X106: 165
A107: 30 | B107: BAS RHIN | C107: 5006 | D107: STRASBOURG | E107: 4006 | F107: STRASBOURG NEUDORF | G107: 8.1 | H107: 98 | I107: 26 | J107: 39 | K107: 8 | L107: 185 | M107: 191 | N107: 136 | O107: 109 | P107: 84 | Q107: 179 | R107: 95 | S107: 96 | T107: 107 | U107: 194 | V107: 140 | W107: 232 | X107: 125
A108: 30 | B108: VOSGES | C108: 55 | D108: SAINT DIE | E108: 588666 | F108: VAGNEY | G108: 3.4 | H108: 99 | I108: 29 | J108: 33 | K108: 48 | L108: 161 | M108: 125 | N108: 227 | O108: 58 | P108: 37 | Q108: 185 | R108: 184 | S108: 136 | T108: 240 | U108: 175 | V108: 194 | W108: 125 | X108: 170
A109: 30 | B109: MARNE ARDENNES | C109: 2 | D109: CHARLEVILLE MEZIERES | E109: 408822 | F109: CHARLEVILLE MEZIERES | G109: 5.1 | H109: 100 | I109: 174 | J109: 153 | K109: 197 | L109: 141 | M109: 208 | N109: 35 | O109: 7 | P109: 31 | Q109: 4 | R109: 80 | S109: 130 | T109: 27 | U109: 47 | V109: 45 | W109: 206 | X109: 24
A110: 30 | B110: MEURTHE ET MOSELLE MEUSE | C110: 27 | D110: PONT A MOUSSON | E110: 554416 | F110: LUDRES | G110: 3.6 | H110: 101 | I110: 78 | J110: 82 | K110: 61 | L110: 131 | M110: 115 | N110: 159 | O110: 69 | P110: 52 | Q110: 170 | R110: 130 | S110: 85 | T110: 217 | U110: 112 | V110: 82 | W110: 142 | X110: 112
A111: 30 | B111: MARNE ARDENNES | C111: 6 | D111: CHALONS EN CHAMPAGNE | E111: 451381 | F111: SEZANNE | G111: 4.8 | H111: 102 | I111: 83 | J111: 78 | K111: 104 | L111: 91 | M111: 85 | N111: 113 | O111: 49 | P111: 35 | Q111: 127 | R111: 209 | S111: 214 | T111: 170 | U111: 103 | V111: 79 | W111: 166 | X111: 84
A112: 30 | B112: VOSGES | C112: 57 | D112: EPINAL | E112: 488281 | F112: ELOYES | G112: 3.3 | H112: 103 | I112: 47 | J112: 36 | K112: 92 | L112: 158 | M112: 135 | N112: 205 | O112: 45 | P112: 30 | Q112: 134 | R112: 218 | S112: 199 | T112: 227 | U112: 115 | V112: 172 | W112: 33 | X112: 167
A113: 30 | B113: MOSELLE | C113: 45 | D113: METZ | E113: 557444 | F113: SAINT JULIEN LES METZ | G113: 3.7 | H113: 104 | I113: 228 | J113: 172 | K113: 229 | L113: 76 | M113: 103 | N113: 46 | O113: 15 | P113: 19 | Q113: 31 | R113: 63 | S113: 114 | T113: 19 | U113: 56 | V113: 123 | W113: 8 | X113: 88
A114: 30 | B114: VOSGES | C114: 55 | D114: SAINT DIE | E114: 588386 | F114: LE THILLOT | G114: 2.6 | H114: 105 | I114: 10 | J114: 11 | K114: 25 | L114: 142 | M114: 76 | N114: 239 | O114: 204 | P114: 176 | Q114: 232 | R114: 191 | S114: 161 | T114: 218 | U114: 193 | V114: 215 | W114: 163 | X114: 169
A115: 30 | B115: BAS RHIN | C115: 5060 | D115: HAGUENAU | E115: 4041 | F115: HOERDT | G115: 1.7 | H115: 106 | I115: 72 | J115: 68 | K115: 84 | L115: 156 | M115: 143 | N115: 169 | O115: 16 | P115: 8 | Q115: 180 | R115: 145 | S115: 105 | T115: 212 | U115: 217 | V115: 106 | W115: 224 | X115: 219
A116: 30 | B116: MARNE ARDENNES | C116: 6 | D116: CHALONS EN CHAMPAGNE | E116: 551128 | F116: SAINTE MENEHOULD | G116: 3.0 | H116: 107 | I116: 56 | J116: 55 | K116: 71 | L116: 108 | M116: 51 | N116: 233 | O116: 175 | P116: 146 | Q116: 218 | R116: 83 | S116: 63 | T116: 137 | U116: 174 | V116: 181 | W116: 77 | X116: 218
A117: 30 | B117: MOSELLE | C117: 44 | D117: MOSELLE NORD | E117: 457158 | F117: YUTZ | G117: 4.4 | H117: 108 | I117: 157 | J117: 187 | K117: 130 | L117: 63 | M117: 40 | N117: 144 | O117: 108 | P117: 96 | Q117: 130 | R117: 38 | S117: 30 | T117: 88 | U117: 77 | V117: 65 | W117: 87 | X117: 116
A118: 30 | B118: BAS RHIN | C118: 5101 | D118: SELESTAT | E118: 4121 | F118: SCHIRMECK | G118: 2.8 | H118: 109 | I118: 54 | J118: 82 | K118: 12 | L118: 61 | M118: 47 | N118: 123 | O118: 210 | P118: 222 | Q118: 85 | R118: 196 | S118: 179 | T118: 207 | U118: 93 | V118: 100 | W118: 86 | X118: 98
A119: 30 | B119: MEURTHE ET MOSELLE MEUSE | C119: 27 | D119: PONT A MOUSSON | E119: 554376 | F119: LAXOU BOUFFLERS | G119: 2.8 | H119: 110 | I119: 238 | J119: 210 | K119: 237 | L119: 23 | M119: 64 | N119: 5 | O119: 205 | P119: 212 | Q119: 135 | R119: 61 | S119: 143 | T119: 6 | U119: 18 | V119: 31 | W119: 43 | X119: 12
A120: 30 | B120: BAS RHIN | C120: 5060 | D120: HAGUENAU | E120: 4071 | F120: WISSEMBOURG | G120: 7.0 | H120: 111 | I120: 39 | J120: 43 | K120: 28 | L120: 137 | M120: 133 | N120: 135 | O120: 86 | P120: 69 | Q120: 146 | R120: 153 | S120: 154 | T120: 140 | U120: 229 | V120: 230 | W120: 203 | X120: 206
A121: 30 | B121: BAS RHIN | C121: 5060 | D121: HAGUENAU | E121: 4057 | F121: BISCHWILLER | G121: 7.1 | H121: 112 | I121: 81 | J121: 89 | K121: 64 | L121: 74 | M121: 37 | N121: 183 | O121: 158 | P121: 133 | Q121: 200 | R121: 109 | S121: 90 | T121: 149 | U121: 177 | V121: 227 | W121: 50 | X121: 222
A122: 30 | B122: MOSELLE | C122: 45 | D122: METZ | E122: 557105 | F122: ARS SUR MOSELLE | G122: 3.1 | H122: 113 | I122: 103 | J122: 53 | K122: 196 | L122: 125 | M122: 161 | N122: 77 | O122: 154 | P122: 171 | Q122: 80 | R122: 168 | S122: 204 | T122: 89 | U122: 34 | V122: 32 | W122: 53 | X122: 48
A123: 30 | B123: VOSGES | C123: 57 | D123: EPINAL | E123: 488286 | F123: EPINAL ARISTIDE BRIAND | G123: 8.3 | H123: 114 | I123: 167 | J123: 172 | K123: 159 | L123: 40 | M123: 50 | N123: 42 | O123: 62 | P123: 67 | Q123: 56 | R123: 89 | S123: 120 | T123: 60 | U123: 126 | V123: 109 | W123: 205 | X123: 62
A124: 30 | B124: MEURTHE ET MOSELLE MEUSE | C124: 26 | D124: NANCY | E124: 454426 | F124: LUNEVILLE CARNOT | G124: 8.3 | H124: 115 | I124: 163 | J124: 142 | K124: 198 | L124: 89 | M124: 117 | N124: 66 | O124: 54 | P124: 49 | Q124: 100 | R124: 152 | S124: 189 | T124: 76 | U124: 32 | V124: 57 | W124: 23 | X124: 42
A125: 30 | B125: MEURTHE ET MOSELLE MEUSE | C125: 27 | D125: PONT A MOUSSON | E125: 454535 | F125: PONT A MOUSSON CENTRALE | G125: 5.3 | H125: 116 | I125: 235 | J125: 196 | K125: 230 | L125: 41 | M125: 68 | N125: 29 | O125: 146 | P125: 119 | Q125: 184 | R125: 50 | S125: 66 | T125: 32 | U125: 29 | V125: 16 | W125: 158 | X125: 25
A126: 30 | B126: VOSGES | C126: 57 | D126: EPINAL | E126: 588716 | F126: XERTIGNY | G126: 2.8 | H126: 117 | I126: 66 | J126: 82 | K126: 26 | L126: 155 | M126: 111 | N126: 218 | O126: 70 | P126: 60 | Q126: 131 | R126: 119 | S126: 64 | T126: 229 | U126: 190 | V126: 185 | W126: 153 | X126: 191
A127: 30 | B127: MEURTHE ET MOSELLE MEUSE | C127: 31 | D127: VERDUN | E127: 455151 | F127: BAR LE DUC | G127: 9.9 | H127: 118 | I127: 64 | J127: 79 | K127: 30 | L127: 134 | M127: 109 | N127: 168 | O127: 153 | P127: 145 | Q127: 121 | R127: 118 | S127: 100 | T127: 143 | U127: 147 | V127: 175 | W127: 65 | X127: 180
A128: 30 | B128: BAS RHIN | C128: 5006 | D128: STRASBOURG | E128: 4019 | F128: STRASBOURG ANVERS | G128: 4.5 | H128: 119 | I128: 176 | J128: 192 | K128: 166 | L128: 48 | M128: 53 | N128: 51 | O128: 77 | P128: 106 | Q128: 29 | R128: 76 | S128: 82 | T128: 80 | U128: 95 | V128: 35 | W128: 229 | X128: 87
A129: 30 | B129: MARNE ARDENNES | C129: 2 | D129: CHARLEVILLE MEZIERES | E129: 508802 | F129: CHARLEVILLE NEVERS | G129: 2.8 | H129: 120 | I129: 24 | J129: 34 | K129: 24 | L129: 213 | M129: 200 | N129: 214 | O129: 221 | P129: 220 | Q129: 171 | R129: 87 | S129: 59 | T129: 160 | U129: 118 | V129: 75 | W129: 80 | X129: 189
A130: 30 | B130: MEURTHE ET MOSELLE MEUSE | C130: 27 | D130: PONT A MOUSSON | E130: 554357 | F130: JOEUF | G130: 3.1 | H130: 121 | I130: 73 | J130: 62 | K130: 108 | L130: 129 | M130: 160 | N130: 83 | O130: 195 | P130: 194 | Q130: 161 | R130: 158 | S130: 186 | T130: 99 | U130: 66 | V130: 102 | W130: 13 | X130: 120
A131: 30 | B131: MEURTHE ET MOSELLE MEUSE | C131: 31 | D131: VERDUN | E131: 554412 | F131: LONGUYON | G131: 2.8 | H131: 122 | I131: 90 | J131: 106 | K131: 40 | L131: 75 | M131: 90 | N131: 60 | O131: 157 | P131: 156 | Q131: 117 | R131: 128 | S131: 102 | T131: 166 | U131: 156 | V131: 133 | W131: 157 | X131: 129
A132: 30 | B132: MOSELLE | C132: 42 | D132: MOSELLE EST | E132: 457543 | F132: PUTTELANGE AUX LACS | G132: 2.5 | H132: 123 | I132: 122 | J132: 129 | K132: 102 | L132: 93 | M132: 93 | N132: 99 | O132: 160 | P132: 192 | Q132: 62 | R132: 73 | S132: 94 | T132: 47 | U132: 84 | V132: 52 | W132: 228 | X132: 51
A133: 30 | B133: MOSELLE | C133: 45 | D133: METZ | E133: 557612 | F133: SAINTE MARIE AUX CHENES | G133: 3.7 | H133: 124 | I133: 35 | J133: 66 | K133: 2 | L133: 223 | M133: 204 | N133: 237 | O133: 63 | P133: 26 | Q133: 242 | R133: 114 | S133: 75 | T133: 196 | U133: 213 | V133: 224 | W133: 211 | X133: 131
A134: 30 | B134: VOSGES | C134: 55 | D134: SAINT DIE | E134: 588316 | F134: FRAIZE | G134: 3.6 | H134: 125 | I134: 94 | J134: 109 | K134: 56 | L134: 164 | M134: 155 | N134: 178 | O134: 83 | P134: 68 | Q134: 141 | R134: 92 | S134: 55 | T134: 178 | U134: 123 | V134: 163 | W134: 94 | X134: 108
A135: 30 | B135: MOSELLE | C135: 44 | D135: MOSELLE NORD | E135: 557307 | F135: FONTOY | G135: 1.8 | H135: 126 | I135: 63 | J135: 62 | K135: 70 | L135: 186 | M135: 180 | N135: 173 | O135: 105 | P135: 75 | Q135: 188 | R135: 217 | S135: 210 | T135: 194 | U135: 64 | V135: 89 | W135: 11 | X135: 139
A136: 110 | B136: BAS RHIN | C136: 5006 | D136: STRASBOURG | E136: 4023 | F136: STRASBOURG VOSGES | G136: 2.9 | H136: 127 | I136: 108 | J136: 89 | K136: 146 | L136: 110 | M136: 102 | N136: 114 | O136: 20 | P136: 18 | Q136: 55 | R136: 189 | S136: 174 | T136: 198 | U136: 202 | V136: 111 | W136: 239 | X136: 142
A137: 110 | B137: MEURTHE ET MOSELLE MEUSE | C137: 31 | D137: VERDUN | E137: 555624 | F137: STENAY | G137: 3.3 | H137: 128 | I137: 179 | J137: 210 | K137: 161 | L137: 49 | M137: 82 | N137: 27 | O137: 144 | P137: 150 | Q137: 91 | R137: 175 | S137: 209 | T137: 94 | U137: 26 | V137: 81 | W137: 4 | X137: 60
A138: 110 | B138: MEURTHE ET MOSELLE MEUSE | C138: 26 | D138: NANCY | E138: 554296 | F138: ESSEY LES NANCY | G138: 3.6 | H138: 129 | I138: 48 | J138: 48 | K138: 47 | L138: 124 | M138: 129 | N138: 120 | O138: 164 | P138: 143 | Q138: 193 | R138: 204 | S138: 194 | T138: 197 | U138: 144 | V138: 147 | W138: 201 | X138: 72
A139: 110 | B139: MOSELLE | C139: 44 | D139: MOSELLE NORD | E139: 457192 | F139: CATTENOM | G139: 1.6 | H139: 130 | I139: 127 | J139: 118 | K139: 138 | L139: 80 | M139: 66 | N139: 126 | O139: 141 | P139: 170 | Q139: 53 | R139: 151 | S139: 150 | T139: 146 | U139: 79 | V139: 64 | W139: 58 | X139: 152
A140: 110 | B140: MEURTHE ET MOSELLE MEUSE | C140: 27 | D140: PONT A MOUSSON | E140: 554496 | F140: NANCY TROIS MAISONS | G140: 2.3 | H140: 131 | I140: 168 | J140: 207 | K140: 134 | L140: 109 | M140: 124 | N140: 85 | O140: 140 | P140: 126 | Q140: 142 | R140: 65 | S140: 78 | T140: 52 | U140: 58 | V140: 116 | W140: 21 | X140: 67
A141: 110 | B141: AUBE HAUTE MARNE | C141: 21 | D141: CHAUMONT | E141: 451156 | F141: SAINT DIZIER CENTRE | G141: 8.6 | H141: 132 | I141: 137 | J141: 122 | K141: 153 | L141: 122 | M141: 147 | N141: 94 | O141: 132 | P141: 123 | Q141: 115 | R141: 72 | S141: 70 | T141: 85 | U141: 109 | V141: 144 | W141: 117 | X141: 78
A142: 110 | B142: VOSGES | C142: 57 | D142: EPINAL | E142: 588201 | F142: CHANTRAINE | G142: 3.7 | H142: 133 | I142: 92 | J142: 95 | K142: 91 | L142: 92 | M142: 73 | N142: 149 | O142: 92 | P142: 83 | Q142: 110 | R142: 187 | S142: 152 | T142: 232 | U142: 189 | V142: 137 | W142: 220 | X142: 136
A143: 110 | B143: MOSELLE | C143: 42 | D143: MOSELLE EST | E143: 457435 | F143: MERLEBACH | G143: 2.8 | H143: 134 | I143: 96 | J143: 100 | K143: 78 | L143: 136 | M143: 195 | N143: 43 | O143: 209 | P143: 228 | Q143: 60 | R143: 137 | S143: 191 | T143: 33 | U143: 72 | V143: 162 | W143: 14 | X143: 104
A144: 110 | B144: BAS RHIN | C144: 5006 | D144: STRASBOURG | E144: 4027 | F144: SCHILTIGHEIM CENTRE | G144: 4.1 | H144: 135 | I144: 204 | J144: 210 | K144: 183 | L144: 52 | M144: 49 | N144: 78 | O144: 73 | P144: 70 | Q144: 89 | R144: 75 | S144: 93 | T144: 50 | U144: 135 | V144: 114 | W144: 154 | X144: 107
A145: 110 | B145: HAUT RHIN | C145: 5130 | D145: COLMAR | E145: 4143 | F145: MUNSTER | G145: 4.3 | H145: 136 | I145: 141 | J145: 172 | K145: 73 | L145: 84 | M145: 46 | N145: 204 | O145: 118 | P145: 77 | Q145: 220 | R145: 99 | S145: 71 | T145: 171 | U145: 138 | V145: 169 | W145: 57 | X145: 174
A146: 110 | B146: BAS RHIN | C146: 5060 | D146: HAGUENAU | E146: 4031 | F146: TRUCHTERSHEIM | G146: 2.3 | H146: 137 | I146: 52 | J146: 48 | K146: 82 | L146: 58 | M146: 16 | N146: 224 | O146: 126 | P146: 88 | Q146: 224 | R146: 230 | S146: 219 | T146: 235 | U146: 236 | V146: 211 | W146: 212 | X146: 238
A147: 110 | B147: MEURTHE ET MOSELLE MEUSE | C147: 31 | D147: VERDUN | E147: 455566 | F147: REVIGNY SUR ORNAIN | G147: 2.7 | H147: 138 | I147: 106 | J147: 106 | K147: 94 | L147: 157 | M147: 126 | N147: 211 | O147: 81 | P147: 55 | Q147: 221 | R147: 112 | S147: 81 | T147: 177 | U147: 169 | V147: 236 | W147: 36 | X147: 224
A148: 110 | B148: BAS RHIN | C148: 5101 | D148: SELESTAT | E148: 4126 | F148: MUTZIG | G148: 2.7 | H148: 139 | I148: 158 | J148: 210 | K148: 112 | L148: 43 | M148: 22 | N148: 116 | O148: 75 | P148: 87 | Q148: 61 | R148: 165 | S148: 164 | T148: 141 | U148: 151 | V148: 87 | W148: 241 | X148: 70
A149: 110 | B149: VOSGES | C149: 55 | D149: SAINT DIE | E149: 588461 | F149: MOYENMOUTIER | G149: 4.3 | H149: 140 | I149: 89 | J149: 88 | K149: 93 | L149: 107 | M149: 52 | N149: 232 | O149: 150 | P149: 117 | Q149: 206 | R149: 133 | S149: 118 | T149: 162 | U149: 211 | V149: 243 | W149: 111 | X149: 216
A150: 110 | B150: BAS RHIN | C150: 5006 | D150: STRASBOURG | E150: 4039 | F150: REICHSTETT | G150: 1.6 | H150: 141 | I150: 129 | J150: 122 | K150: 127 | L150: 144 | M150: 140 | N150: 152 | O150: 41 | P150: 32 | Q150: 107 | R150: 115 | S150: 108 | T150: 121 | U150: 206 | V150: 159 | W150: 214 | X150: 161
A151: 110 | B151: BAS RHIN | C151: 5006 | D151: STRASBOURG | E151: 4020 | F151: STRASBOURG ROBERTSAU | G151: 5.3 | H151: 142 | I151: 131 | J151: 142 | K151: 96 | L151: 169 | M151: 168 | N151: 158 | O151: 6 | P151: 3 | Q151: 114 | R151: 211 | S151: 181 | T151: 233 | U151: 212 | V151: 180 | W151: 185 | X151: 207
A152: 110 | B152: MEURTHE ET MOSELLE MEUSE | C152: 26 | D152: NANCY | E152: 554486 | F152: NANCY POINT CENTRAL | G152: 2.9 | H152: 143 | I152: 136 | J152: 96 | K152: 188 | L152: 195 | M152: 223 | N152: 90 | O152: 27 | P152: 22 | Q152: 74 | R152: 157 | S152: 176 | T152: 110 | U152: 117 | V152: 90 | W152: 79 | X152: 166
A153: 110 | B153: MARNE ARDENNES | C153: 2 | D153: CHARLEVILLE MEZIERES | E153: 408862 | F153: REVIN | G153: 3.9 | H153: 144 | I153: 85 | J153: 98 | K153: 53 | L153: 188 | M153: 179 | N153: 186 | O153: 193 | P153: 197 | Q153: 120 | R153: 81 | S153: 58 | T153: 127 | U153: 142 | V153: 124 | W153: 155 | X153: 115
A154: 110 | B154: MOSELLE | C154: 42 | D154: MOSELLE EST | E154: 557503 | F154: NEUNKIRCH | G154: 3.3 | H154: 145 | I154: 7 | J154: 6 | K154: 7 | L154: 222 | M154: 206 | N154: 234 | O154: 220 | P154: 204 | Q154: 227 | R154: 234 | S154: 227 | T154: 237 | U154: 215 | V154: 198 | W154: 159 | X154: 220
A155: 110 | B155: MEURTHE ET MOSELLE MEUSE | C155: 26 | D155: NANCY | E155: 554166 | F155: BLAINVILLE | G155: 2.8 | H155: 146 | I155: 180 | J155: 210 | K155: 162 | L155: 67 | M155: 55 | N155: 96 | O155: 174 | P155: 167 | Q155: 168 | R155: 62 | S155: 54 | T155: 73 | U155: 124 | V155: 108 | W155: 150 | X155: 98
A156: 110 | B156: MOSELLE | C156: 45 | D156: METZ | E156: 557441 | F156: METZ PLAPPEVILLE | G156: 2.4 | H156: 147 | I156: 166 | J156: 142 | K156: 200 | L156: 179 | M156: 198 | N156: 102 | O156: 13 | P156: 7 | Q156: 125 | R156: 170 | S156: 160 | T156: 172 | U156: 108 | V156: 174 | W156: 26 | X156: 178
A157: 110 | B157: BAS RHIN | C157: 5006 | D157: STRASBOURG | E157: 4045 | F157: STRASBOURG FRANCS BOURGEOIS | G157: 4.1 | H157: 148 | I157: 121 | J157: 142 | K157: 65 | L157: 71 | M157: 74 | N157: 73 | O157: 184 | P157: 218 | Q157: 48 | R157: 142 | S157: 133 | T157: 167 | U157: 199 | V157: 126 | W157: 221 | X157: 164
A158: 110 | B158: AUBE HAUTE MARNE | C158: 21 | D158: CHAUMONT | E158: 410566 | F158: CHAUMONT HOTEL DE VILLE | G158: 10.4 | H158: 149 | I158: 95 | J158: 89 | K158: 110 | L158: 184 | M158: 178 | N158: 161 | O158: 96 | P158: 74 | Q158: 166 | R158: 156 | S158: 129 | T158: 202 | U158: 179 | V158: 165 | W158: 137 | X158: 195
A159: 110 | B159: VOSGES | C159: 57 | D159: EPINAL | E159: 588206 | F159: CHARMES | G159: 2.7 | H159: 150 | I159: 112 | J159: 147 | K159: 34 | L159: 190 | M159: 202 | N159: 128 | O159: 68 | P159: 40 | Q159: 212 | R159: 155 | S159: 172 | T159: 111 | U159: 158 | V159: 241 | W159: 70 | X159: 132
A160: 110 | B160: MOSELLE | C160: 42 | D160: MOSELLE EST | E160: 557210 | F160: CHATEAU SALINS | G160: 1.6 | H160: 151 | I160: 175 | J160: 210 | K160: 154 | L160: 100 | M160: 97 | N160: 112 | O160: 173 | P160: 166 | Q160: 167 | R160: 30 | S160: 20 | T160: 66 | U160: 143 | V160: 210 | W160: 39 | X160: 197
A161: 110 | B161: BAS RHIN | C161: 5101 | D161: SELESTAT | E161: 4127 | F161: ROSHEIM | G161: 1.7 | H161: 152 | I161: 130 | J161: 133 | K161: 117 | L161: 199 | M161: 193 | N161: 195 | O161: 24 | P161: 13 | Q161: 164 | R161: 195 | S161: 175 | T161: 213 | U161: 131 | V161: 135 | W161: 194 | X161: 65
A162: 110 | B162: VOSGES | C162: 57 | D162: EPINAL | E162: 488706 | F162: VITTEL | G162: 3.1 | H162: 153 | I162: 113 | J162: 126 | K162: 68 | L162: 175 | M162: 144 | N162: 209 | O162: 177 | P162: 153 | Q162: 215 | R162: 103 | S162: 95 | T162: 124 | U162: 127 | V162: 151 | W162: 138 | X162: 89
A163: 110 | B163: MEURTHE ET MOSELLE MEUSE | C163: 27 | D163: PONT A MOUSSON | E163: 454355 | F163: JARNY | G163: 4.1 | H163: 154 | I163: 105 | J163: 115 | K163: 72 | L163: 146 | M163: 148 | N163: 142 | O163: 135 | P163: 113 | Q163: 172 | R163: 126 | S163: 113 | T163: 135 | U163: 209 | V163: 202 | W163: 178 | X163: 200
A164: 110 | B164: MOSELLE | C164: 45 | D164: METZ | E164: 557459 | F164: MOULINS LES METZ | G164: 2.5 | H164: 155 | I164: 74 | J164: 48 | K164: 148 | L164: 196 | M164: 167 | N164: 226 | O164: 161 | P164: 149 | Q164: 176 | R164: 150 | S164: 109 | T164: 216 | U164: 176 | V164: 189 | W164: 106 | X164: 187
A165: 110 | B165: HAUT RHIN | C165: 5130 | D165: COLMAR | E165: 4157 | F165: NEUF BRISACH | G165: 2.7 | H165: 156 | I165: 198 | J165: 184 | K165: 194 | L165: 126 | M165: 169 | N165: 75 | O165: 119 | P165: 140 | Q165: 46 | R165: 71 | S165: 72 | T165: 75 | U165: 99 | V165: 166 | W165: 49 | X165: 110
A166: 110 | B166: AUBE HAUTE MARNE | C166: 14 | D166: TROYES | E166: 510513 | F166: SAINT PARRES AUX TERTRES | G166: 2.5 | H166: 157 | I166: 239 | J166: 210 | K166: 238 | L166: 69 | M166: 110 | N166: 30 | O166: 131 | P166: 181 | Q166: 32 | R166: 48 | S166: 51 | T166: 42 | U166: 101 | V166: 98 | W166: 123 | X166: 91
A167: 110 | B167: MARNE ARDENNES | C167: 11 | D167: REIMS | E167: 551309 | F167: REIMS EUROPE | G167: 2.9 | H167: 158 | I167: 140 | J167: 82 | K167: 213 | L167: 133 | M167: 182 | N167: 56 | O167: 211 | P167: 224 | Q167: 84 | R167: 93 | S167: 132 | T167: 45 | U167: 132 | V167: 70 | W167: 236 | X167: 68
A168: 110 | B168: BAS RHIN | C168: 5060 | D168: HAGUENAU | E168: 4085 | F168: INGWILLER | G168: 3.5 | H168: 159 | I168: 128 | J168: 109 | K168: 163 | L168: 152 | M168: 158 | N168: 138 | O168: 169 | P168: 168 | Q168: 153 | R168: 134 | S168: 141 | T168: 116 | U168: 134 | V168: 164 | W168: 47 | X168: 184
A169: 110 | B169: MEURTHE ET MOSELLE MEUSE | C169: 27 | D169: PONT A MOUSSON | E169: 454651 | F169: TOUL | G169: 9.7 | H169: 160 | I169: 213 | J169: 164 | K169: 221 | L169: 172 | M169: 183 | N169: 130 | O169: 94 | P169: 94 | Q169: 92 | R169: 82 | S169: 103 | T169: 59 | U169: 63 | V169: 47 | W169: 93 | X169: 80
A170: 110 | B170: AUBE HAUTE MARNE | C170: 14 | D170: TROYES | E170: 510523 | F170: LA CHAPELLE ST LUC | G170: 4.6 | H170: 161 | I170: 236 | J170: 196 | K170: 233 | L170: 116 | M170: 165 | N170: 47 | O170: 99 | P170: 130 | Q170: 37 | R170: 36 | S170: 62 | T170: 24 | U170: 122 | V170: 132 | W170: 128 | X170: 94
A171: 110 | B171: VOSGES | C171: 55 | D171: SAINT DIE | E171: 488556 | F171: RAON L ETAPE | G171: 2.2 | H171: 162 | I171: 76 | J171: 62 | K171: 126 | L171: 229 | M171: 234 | N171: 147 | O171: 233 | P171: 231 | Q171: 191 | R171: 149 | S171: 170 | T171: 103 | U171: 73 | V171: 235 | W171: 9 | X171: 75
A172: 110 | B172: BAS RHIN | C172: 5101 | D172: SELESTAT | E172: 4007 | F172: ILLKIRCH CENTRE | G172: 6.6 | H172: 163 | I172: 185 | J172: 167 | K172: 184 | L172: 139 | M172: 123 | N172: 165 | O172: 172 | P172: 173 | Q172: 152 | R172: 42 | S172: 31 | T172: 102 | U172: 137 | V172: 96 | W172: 144 | X172: 138
A173: 110 | B173: MARNE ARDENNES | C173: 2 | D173: CHARLEVILLE MEZIERES | E173: 408806 | F173: SEDAN | G173: 7.6 | H173: 164 | I173: 100 | J173: 120 | K173: 43 | L173: 162 | M173: 154 | N173: 175 | O173: 170 | P173: 186 | Q173: 96 | R173: 221 | S173: 197 | T173: 236 | U173: 105 | V173: 107 | W173: 120 | X173: 93
A174: 110 | B174: BAS RHIN | C174: 5006 | D174: STRASBOURG | E174: 4028 | F174: BISCHHEIM | G174: 3.2 | H174: 165 | I174: 173 | J174: 210 | K174: 149 | L174: 178 | M174: 176 | N174: 150 | O174: 43 | P174: 46 | Q174: 67 | R174: 78 | S174: 88 | T174: 70 | U174: 210 | V174: 203 | W174: 181 | X174: 196
A175: 110 | B175: MEURTHE ET MOSELLE MEUSE | C175: 26 | D175: NANCY | E175: 554266 | F175: DOMBASLE SUR MEURTHE | G175: 3.3 | H175: 166 | I175: 184 | J175: 210 | K175: 164 | L175: 217 | M175: 219 | N175: 187 | O175: 39 | P175: 28 | Q175: 133 | R175: 108 | S175: 135 | T175: 71 | U175: 80 | V175: 139 | W175: 20 | X175: 158
A176: 110 | B176: HAUT RHIN | C176: 5169 | D176: MULHOUSE | E176: 4180 | F176: RIEDISHEIM | G176: 3.4 | H176: 167 | I176: 88 | J176: 68 | K176: 151 | L176: 166 | M176: 141 | N176: 206 | O176: 226 | P176: 219 | Q176: 208 | R176: 113 | S176: 92 | T176: 150 | U176: 219 | V176: 115 | W176: 233 | X176: 213
A177: 110 | B177: MOSELLE | C177: 45 | D177: METZ | E177: 557559 | F177: REMILLY | G177: 3.5 | H177: 168 | I177: 146 | J177: 130 | K177: 174 | L177: 150 | M177: 128 | N177: 196 | O177: 128 | P177: 102 | Q177: 165 | R177: 193 | S177: 200 | T177: 154 | U177: 100 | V177: 129 | W177: 63 | X177: 117
A178: 160 | B178: MARNE ARDENNES | C178: 6 | D178: CHALONS EN CHAMPAGNE | E178: 451166 | F178: VITRY LE FRANCOIS | G178: 3.6 | H178: 169 | I178: 220 | J178: 210 | K178: 214 | L178: 88 | M178: 104 | N178: 69 | O178: 237 | P178: 238 | Q178: 50 | R178: 136 | S178: 144 | T178: 109 | U178: 28 | V178: 74 | W178: 12 | X178: 28
A179: 160 | B179: MOSELLE | C179: 42 | D179: MOSELLE EST | E179: 457614 | F179: SARREBOURG | G179: 7.6 | H179: 170 | I179: 138 | J179: 136 | K179: 121 | L179: 163 | M179: 151 | N179: 189 | O179: 155 | P179: 148 | Q179: 129 | R179: 146 | S179: 122 | T179: 191 | U179: 171 | V179: 157 | W179: 108 | X179: 205
A180: 160 | B180: BAS RHIN | C180: 5060 | D180: HAGUENAU | E180: 4082 | F180: BOUXWILLER | G180: 2.3 | H180: 171 | I180: 51 | J180: 60 | K180: 45 | L180: 203 | M180: 196 | N180: 194 | O180: 242 | P180: 242 | Q180: 122 | R180: 121 | S180: 138 | T180: 91 | U180: 107 | V180: 93 | W180: 130 | X180: 105
A181: 160 | B181: MOSELLE | C181: 45 | D181: METZ | E181: 557436 | F181: METZ CATHEDRALE | G181: 4.0 | H181: 172 | I181: 224 | J181: 210 | K181: 218 | L181: 111 | M181: 91 | N181: 140 | O181: 72 | P181: 56 | Q181: 162 | R181: 97 | S181: 80 | T181: 136 | U181: 170 | V181: 182 | W181: 136 | X181: 157
A182: 160 | B182: MARNE ARDENNES | C182: 2 | D182: CHARLEVILLE MEZIERES | E182: 508815 | F182: CARIGNAN | G182: 2.7 | H182: 173 | I182: 84 | J182: 71 | K182: 123 | L182: 167 | M182: 187 | N182: 110 | O182: 165 | P182: 175 | Q182: 113 | R182: 227 | S182: 230 | T182: 199 | U182: 183 | V182: 125 | W182: 209 | X182: 141
A183: 160 | B183: BAS RHIN | C183: 5101 | D183: SELESTAT | E183: 4008 | F183: FEGERSHEIM | G183: 2.4 | H183: 174 | I183: 116 | J183: 117 | K183: 114 | L183: 115 | M183: 60 | N183: 225 | O183: 120 | P183: 80 | Q183: 214 | R183: 205 | S183: 184 | T183: 224 | U183: 238 | V183: 220 | W183: 231 | X183: 226
A184: 160 | B184: BAS RHIN | C184: 5101 | D184: SELESTAT | E184: 4107 | F184: VILLE | G184: 2.2 | H184: 175 | I184: 214 | J184: 210 | K184: 202 | L184: 70 | M184: 19 | N184: 221 | O184: 40 | P184: 21 | Q184: 199 | R184: 167 | S184: 139 | T184: 215 | U184: 233 | V184: 237 | W184: 186 | X184: 233
A185: 160 | B185: HAUT RHIN | C185: 5169 | D185: MULHOUSE | E185: 4170 | F185: MULHOUSE REUNION | G185: 7.7 | H185: 176 | I185: 149 | J185: 126 | K185: 193 | L185: 154 | M185: 170 | N185: 121 | O185: 202 | P185: 202 | Q185: 150 | R185: 111 | S185: 147 | T185: 51 | U185: 125 | V185: 97 | W185: 121 | X185: 137
A186: 160 | B186: MOSELLE | C186: 45 | D186: METZ | E186: 557712 | F186: WOIPPY | G186: 4.5 | H186: 177 | I186: 205 | J186: 136 | K186: 234 | L186: 114 | M186: 105 | N186: 122 | O186: 133 | P186: 152 | Q186: 66 | R186: 110 | S186: 106 | T186: 120 | U186: 160 | V186: 131 | W186: 139 | X186: 172
A187: 160 | B187: HAUT RHIN | C187: 5130 | D187: COLMAR | E187: 4132 | F187: COLMAR MARAICHERS | G187: 3.8 | H187: 178 | I187: 143 | J187: 147 | K187: 157 | L187: 135 | M187: 116 | N187: 166 | O187: 106 | P187: 92 | Q187: 143 | R187: 182 | S187: 159 | T187: 203 | U187: 216 | V187: 221 | W187: 141 | X187: 228
A188: 160 | B188: AUBE HAUTE MARNE | C188: 14 | D188: TROYES | E188: 410550 | F188: BAR SUR AUBE | G188: 5.2 | H188: 179 | I188: 93 | J188: 94 | K188: 105 | L188: 174 | M188: 159 | N188: 179 | O188: 229 | P188: 223 | Q188: 205 | R188: 198 | S188: 192 | T188: 188 | U188: 165 | V188: 214 | W188: 59 | X188: 202
A189: 160 | B189: MOSELLE | C189: 44 | D189: MOSELLE NORD | E189: 457180 | F189: BOUSSE | G189: 2.5 | H189: 180 | I189: 9 | J189: 8 | K189: 33 | L189: 225 | M189: 172 | N189: 244 | O189: 191 | P189: 129 | Q189: 244 | R189: 240 | S189: 232 | T189: 244 | U189: 244 | V189: 238 | W189: 244 | X189: 244
A190: 160 | B190: BAS RHIN | C190: 5101 | D190: SELESTAT | E190: 4109 | F190: MARCKOLSHEIM | G190: 2.5 | H190: 181 | I190: 144 | J190: 196 | K190: 62 | L190: 143 | M190: 120 | N190: 184 | O190: 196 | P190: 208 | Q190: 116 | R190: 160 | S190: 182 | T190: 106 | U190: 159 | V190: 192 | W190: 132 | X190: 124
A191: 160 | B191: MARNE ARDENNES | C191: 2 | D191: CHARLEVILLE MEZIERES | E191: 508860 | F191: ROCROI | G191: 2.3 | H191: 182 | I191: 216 | J191: 208 | K191: 205 | L191: 86 | M191: 92 | N191: 88 | O191: 187 | P191: 190 | Q191: 136 | R191: 141 | S191: 146 | T191: 122 | U191: 106 | V191: 91 | W191: 170 | X191: 76
A192: 160 | B192: BAS RHIN | C192: 5006 | D192: STRASBOURG | E192: 4029 | F192: SCHILTIGHEIM KLEBER | G192: 0.9 | H192: 183 | I192: 151 | J192: 151 | K192: 167 | L192: 239 | M192: 236 | N192: 182 | O192: 59 | P192: 43 | Q192: 145 | R192: 125 | S192: 221 | T192: 8 | U192: 141 | V192: 177 | W192: 110 | X192: 123
A193: 160 | B193: MEURTHE ET MOSELLE MEUSE | C193: 27 | D193: PONT A MOUSSON | E193: 454696 | F193: VILLERS GENERAL LECLERC | G193: 4.0 | H193: 184 | I193: 170 | J193: 210 | K193: 131 | L193: 206 | M193: 211 | N193: 154 | O193: 18 | P193: 10 | Q193: 159 | R193: 186 | S193: 180 | T193: 179 | U193: 220 | V193: 190 | W193: 215 | X193: 188
A194: 160 | B194: MEURTHE ET MOSELLE MEUSE | C194: 27 | D194: PONT A MOUSSON | E194: 554196 | F194: CHAMPIGNEULLES | G194: 2.5 | H194: 185 | I194: 172 | J194: 210 | K194: 140 | L194: 202 | M194: 181 | N194: 220 | O194: 151 | P194: 127 | Q194: 183 | R194: 70 | S194: 46 | T194: 119 | U194: 181 | V194: 101 | W194: 202 | X194: 177
A195: 160 | B195: MARNE ARDENNES | C195: 11 | D195: REIMS | E195: 451308 | F195: REIMS SAINT THOMAS | G195: 5.4 | H195: 186 | I195: 240 | J195: 193 | K195: 240 | L195: 99 | M195: 113 | N195: 92 | O195: 219 | P195: 230 | Q195: 87 | R195: 104 | S195: 119 | T195: 100 | U195: 60 | V195: 39 | W195: 164 | X195: 49
A196: 160 | B196: MOSELLE | C196: 45 | D196: METZ | E196: 557440 | F196: METZ MOZART | G196: 3.0 | H196: 187 | I196: 160 | J196: 210 | K196: 118 | L196: 170 | M196: 137 | N196: 212 | O196: 82 | P196: 59 | Q196: 209 | R196: 154 | S196: 112 | T196: 223 | U196: 230 | V196: 161 | W196: 237 | X196: 204
A197: 160 | B197: HAUT RHIN | C197: 5169 | D197: MULHOUSE | E197: 4178 | F197: SAINT LOUIS | G197: 6.6 | H197: 188 | I197: 183 | J197: 161 | K197: 191 | L197: 148 | M197: 156 | N197: 132 | O197: 79 | P197: 62 | Q197: 148 | R197: 163 | S197: 162 | T197: 144 | U197: 218 | V197: 150 | W197: 216 | X197: 209
A198: 160 | B198: MARNE ARDENNES | C198: 2 | D198: CHARLEVILLE MEZIERES | E198: 508819 | F198: MOUZON | G198: 1.9 | H198: 189 | I198: 133 | J198: 136 | K198: 116 | L198: 233 | M198: 239 | N198: 108 | O198: 61 | P198: 54 | Q198: 104 | R198: 236 | S198: 241 | T198: 101 | U198: 129 | V198: 153 | W198: 234 | X198: 35
A199: 160 | B199: BAS RHIN | C199: 5060 | D199: HAGUENAU | E199: 4060 | F199: HAGUENAU HOUBLON | G199: 8.7 | H199: 190 | I199: 188 | J199: 164 | K199: 190 | L199: 183 | M199: 164 | N199: 197 | O199: 89 | P199: 65 | Q199: 192 | R199: 131 | S199: 110 | T199: 163 | U199: 195 | V199: 200 | W199: 148 | X199: 201
A200: 160 | B200: AUBE HAUTE MARNE | C200: 14 | D200: TROYES | E200: 410510 | F200: TROYES GAMBETTA | G200: 8.8 | H200: 191 | I200: 200 | J200: 187 | K200: 195 | L200: 149 | M200: 150 | N200: 151 | O200: 188 | P200: 180 | Q200: 173 | R200: 124 | S200: 123 | T200: 125 | U200: 136 | V200: 92 | W200: 182 | X200: 109
A201: 160 | B201: VOSGES | C201: 57 | D201: EPINAL | E201: 488256 | F201: DARNEY | G201: 1.6 | H201: 192 | I201: 38 | J201: 19 | K201: 137 | L201: 228 | M201: 228 | N201: 180 | O201: 240 | P201: 239 | Q201: 240 | R201: 173 | S201: 188 | T201: 128 | U201: 231 | V201: 217 | W201: 176 | X201: 236
A202: 160 | B202: MEURTHE ET MOSELLE MEUSE | C202: 26 | D202: NANCY | E202: 554491 | F202: NANCY SAINT SEBASTIEN | G202: 3.6 | H202: 193 | I202: 124 | J202: 116 | K202: 136 | L202: 207 | M202: 218 | N202: 137 | O202: 180 | P202: 155 | Q202: 211 | R202: 213 | S202: 211 | T202: 182 | U202: 166 | V202: 120 | W202: 171 | X202: 162
A203: 160 | B203: AUBE HAUTE MARNE | C203: 14 | D203: TROYES | E203: 510520 | F203: SAINT ANDRE LES VERGERS | G203: 3.0 | H203: 194 | I203: 237 | J203: 210 | K203: 235 | L203: 180 | M203: 216 | N203: 65 | O203: 148 | P203: 164 | Q203: 86 | R203: 120 | S203: 167 | T203: 34 | U203: 69 | V203: 127 | W203: 17 | X203: 106
A204: 160 | B204: MOSELLE | C204: 45 | D204: METZ | E204: 557433 | F204: MARANGE SILVANGE | G204: 2.8 | H204: 195 | I204: 182 | J204: 168 | K204: 182 | L204: 192 | M204: 174 | N204: 200 | O204: 182 | P204: 165 | Q204: 197 | R204: 159 | S204: 148 | T204: 161 | U204: 102 | V204: 196 | W204: 27 | X204: 140
... 50 more rows

Sheet AG_FICHE
A1: Accueil
A2: BAROMETRE GRAND PUBLIC
A4: UNITE: | B4: Agence | E4: ETP perf : | F4: =VLOOKUP(A5,'RECAP AG'!$G$6:$CY$251,3,FALSE) -> 5.42
A5: =VLOOKUP(B5,LISTES!$C$6:$D$249,2,FALSE) -> 4189 | B5: ALTKIRCH
C6: Coefficient du critère | E6: Résultats | I6: Ecart au 1ier | K6: =IF(OR(A5=4017,A5=4022),"Rang estimé","Rang") -> Rang
E7: du 1ier | G7: de l'Agence
A9: RANG GRAND PUBLIC | K9: =VLOOKUP($A$5,'RECAP AG'!$G$6:$CY$251,96,FALSE) -> 244
A11: SATISFACTION CLIENTS | C11: 20% | K11: =VLOOKUP($A$5,'RECAP AG'!$G$6:$CY$251,13,FALSE) -> 244
B12: NPS à froid (SAE) | C12: 10% | E12: =+'RECAP AG'!K4 -> 57 | G12: =VLOOKUP($A$5,'RECAP AG'!$G$6:$CY$251,5,FALSE) -> 0.0 | I12: =VLOOKUP($A$5,'RECAP AG'!$G$6:$CY$251,6,FALSE) -> 100% | K12: =VLOOKUP($A$5,'RECAP AG'!$G$6:$CY$251,7,FALSE) -> 210
B13: NPS à chaud (QHD) | C13: 10% | E13: =+'RECAP AG'!N4 -> 89% | G13: =VLOOKUP($A$5,'RECAP AG'!$G$6:$CY$251,8,FALSE) -> 10% | I13: =VLOOKUP($A$5,'RECAP AG'!$G$6:$CY$251,9,FALSE) -> 88% | K13: =VLOOKUP($A$5,'RECAP AG'!$G$6:$CY$251,10,FALSE) -> 244
A15: BANCARISATION | C15: 20% | K15: =VLOOKUP($A$5,'RECAP AG'!$G$6:$CY$251,28,FALSE) -> 241
B16: Ventes Nettes produits pondérés | C16: 12% | E16: ='RECAP AG'!X4 -> 100.4 | G16: =VLOOKUP($A$5,'RECAP AG'!$G$6:$CY$251,19,FALSE) -> -10.4 | I16: =VLOOKUP($A$5,'RECAP AG'!$G$6:$CY$251,20,FALSE) -> 110% | K16: =VLOOKUP($A$5,'RECAP AG'!$G$6:$CY$251,21,FALSE) -> 237
B17: Ventes sur client non détenteur de l’univers | C17: 8% | E17: ='RECAP AG'!AB4 -> 136.9 | G17: =VLOOKUP($A$5,'RECAP AG'!$G$6:$CY$251,23,FALSE) -> 32.1 | I17: =VLOOKUP($A$5,'RECAP AG'!$G$6:$CY$251,24,FALSE) -> 77% | K17: =VLOOKUP($A$5,'RECAP AG'!$G$6:$CY$251,25,FALSE) -> 238
A19: EPARGNE | C19: 20% | K19: =VLOOKUP($A$5,'RECAP AG'!$G$6:$CY$251,43,FALSE) -> 236
B20: Excédent Epargne hors DAV pondéré | C20: 12% | E20: ='RECAP AG'!AM4 -> 3174.5 | G20: =VLOOKUP($A$5,'RECAP AG'!$G$6:$CY$251,34,FALSE) -> -308.1 | I20: =VLOOKUP($A$5,'RECAP AG'!$G$6:$CY$251,35,FALSE) -> 109% | K20: =VLOOKUP($A$5,'RECAP AG'!$G$6:$CY$251,36,FALSE) -> 233
B21: Ventes sur client non détenteur de l’univers | C21: 8% | E21: ='RECAP AG'!AQ4 -> 263.7 | G21: =VLOOKUP($A$5,'RECAP AG'!$G$6:$CY$251,38,FALSE) -> 30.4 | I21: =VLOOKUP($A$5,'RECAP AG'!$G$6:$CY$251,39,FALSE) -> 88% | K21: =VLOOKUP($A$5,'RECAP AG'!$G$6:$CY$251,40,FALSE) -> 235
A23: IARD PREVOYANCE | C23: 20% | K23: =VLOOKUP($A$5,'RECAP AG'!$G$6:$CY$251,77,FALSE) -> 241
B24: Ventes Nettes produits pondérés | C24: 12% | E24: ='RECAP AG'!BU4 -> 640.8 | G24: =VLOOKUP($A$5,'RECAP AG'!$G$6:$CY$251,68,FALSE) -> -82.8 | I24: =VLOOKUP($A$5,'RECAP AG'!$G$6:$CY$251,69,FALSE) -> 103% | K24: =VLOOKUP($A$5,'RECAP AG'!$G$6:$CY$251,70,FALSE) -> 240
B25: Ventes sur client non détenteur de l’univers | C25: 8% | E25: ='RECAP AG'!BY4 -> 143.9 | G25: =VLOOKUP($A$5,'RECAP AG'!$G$6:$CY$251,72,FALSE) -> 23.2 | I25: =VLOOKUP($A$5,'RECAP AG'!$G$6:$CY$251,73,FALSE) -> 84% | K25: =VLOOKUP($A$5,'RECAP AG'!$G$6:$CY$251,74,FALSE) -> 228
A27: CREDITS | C27: 20% | K27: =VLOOKUP($A$5,'RECAP AG'!$G$6:$CY$251,62,FALSE) -> 241
B28: Engagements et ventes accessoires pondérés Immo | C28: 6% | E28: ='RECAP AG'!BB4 -> 1227.0 | G28: =VLOOKUP($A$5,'RECAP AG'!$G$6:$CY$251,49,FALSE) -> 86.2 | I28: =VLOOKUP($A$5,'RECAP AG'!$G$6:$CY$251,50,FALSE) -> 93% | K28: =VLOOKUP($A$5,'RECAP AG'!$G$6:$CY$251,51,FALSE) -> 242
B29: Engagements et ventes accessoires pondérés Conso | C29: 6% | E29: ='RECAP AG'!BF4 -> 110.2 | G29: =VLOOKUP($A$5,'RECAP AG'!$G$6:$CY$251,53,FALSE) -> 32.8 | I29: =VLOOKUP($A$5,'RECAP AG'!$G$6:$CY$251,54,FALSE) -> 70% | K29: =VLOOKUP($A$5,'RECAP AG'!$G$6:$CY$251,55,FALSE) -> 218
B30: Ventes sur client non détenteur de l’univers | C30: 8% | E30: ='RECAP AG'!BJ4 -> 81.5 | G30: =VLOOKUP($A$5,'RECAP AG'!$G$6:$CY$251,57,FALSE) -> 11.1 | I30: =VLOOKUP($A$5,'RECAP AG'!$G$6:$CY$251,58,FALSE) -> 86% | K30: =VLOOKUP($A$5,'RECAP AG'!$G$6:$CY$251,59,FALSE) -> 235

Sheet AG_TOTAL
B1: Accueil | H1: BAROMETRE BDD - AGENCES
H2: TOTAL GENERAL
H3: =ACCUEIL!F7 -> 2022-09-11
H7: TOTAL GENERAL | K7: Total Satisfaction Clients | N7: Total Bancarisation | Q7: Total Epargne | T7: Total IARD Prévoyance | W7: Total Crédits
I8: coef | J8: =M8+P8+S8+V8+Y8 -> 100% | L8: coef | M8: =AG_SATISFACTION!P8 -> 20% | O8: coef | P8: =AG_BANCA!R8 -> 20% | R8: coef | S8: =AG_EPARGNE!R8 -> 20% | U8: coef | V8: =AG_IARD!R8 -> 20% | X8: coef | Y8: =AG_CREDIT!V8 -> 20%
B9: Direction | C9: eds | D9: Territoire | E9: eds | F9: Agence | G9: ="ETP perf "&DATEMAJ!$C$28 -> ETP perf 11-sept | H9: Moyenne ecart au 1er | I9: % Ecart au 1er | J9: Rang CEGEE | K9: Moyenne ecart au 1er | L9: % Ecart au 1er | M9: Rang CEGEE | N9: Moyenne ecart au 1er | O9: % Ecart au 1er | P9: Rang CEGEE | Q9: Moyenne ecart au 1er | R9: % Ecart au 1er | S9: Rang CEGEE | T9: Moyenne ecart au 1er | U9: % Ecart au 1er | V9: Rang CEGEE | W9: Moyenne ecart au 1er | X9: % Ecart au 1er | Y9: Rang CEGEE
A10: 50 | B10: MOSELLE | C10: 44 | D10: MOSELLE NORD | E10: 557508 | F10: NILVANGE | G10: 1.6 | H10: 12% | I10: 0% | J10: 1 | K10: 38% | L10: 38% | M10: 67 | N10: 0% | O10: 0% | P10: 1 | Q10: 55% | R10: 23% | S10: 2 | T10: 0% | U10: 0% | V10: 1 | W10: 3% | X10: 0% | Y10: 1
A11: 50 | B11: MOSELLE | C11: 42 | D11: MOSELLE EST | E11: 457163 | F11: BEHREN LES FORBACH | G11: 1.8 | H11: 32% | I11: 20% | J11: 2 | K11: 14% | L11: 14% | M11: 8 | N11: 33% | O11: 33% | P11: 2 | Q11: 75% | R11: 43% | S11: 30 | T11: 60% | U11: 60% | V11: 16 | W11: 14% | X11: 10% | Y11: 2
A12: 50 | B12: VOSGES | C12: 57 | D12: EPINAL | E12: 488288 | F12: EPINAL LEOPOLD BOURG | G12: 2.0 | H12: 42% | I12: 30% | J12: 3 | K12: 5% | L12: 5% | M12: 2 | N12: 53% | O12: 53% | P12: 24 | Q12: 65% | R12: 33% | S12: 5 | T12: 67% | U12: 67% | V12: 52 | W12: 54% | X12: 50% | Y12: 27
A13: 50 | B13: MARNE ARDENNES | C13: 11 | D13: REIMS | E13: 551305 | F13: REIMS HIPPODROME | G13: 5.2 | H13: 44% | I13: 32% | J13: 4 | K13: 39% | L13: 39% | M13: 69 | N13: 49% | O13: 49% | P13: 15 | Q13: 72% | R13: 40% | S13: 17 | T13: 55% | U13: 55% | V13: 7 | W13: 41% | X13: 38% | Y13: 8
A14: 50 | B14: MOSELLE | C14: 44 | D14: MOSELLE NORD | E14: 557660 | F14: UCKANGE | G14: 1.8 | H14: 45% | I14: 33% | J14: 5 | K14: 75% | L14: 75% | M14: 222 | N14: 48% | O14: 48% | P14: 11 | Q14: 73% | R14: 41% | S14: 23 | T14: 38% | U14: 38% | V14: 2 | W14: 29% | X14: 25% | Y14: 3
A15: 50 | B15: MARNE ARDENNES | C15: 6 | D15: CHALONS EN CHAMPAGNE | E15: 451115 | F15: MOURMELON LE GRAND | G15: 2.8 | H15: 46% | I15: 34% | J15: 6 | K15: 43% | L15: 43% | M15: 80 | N15: 36% | O15: 36% | P15: 3 | Q15: 73% | R15: 41% | S15: 19 | T15: 62% | U15: 62% | V15: 23 | W15: 51% | X15: 47% | Y15: 20
A16: 50 | B16: MARNE ARDENNES | C16: 6 | D16: CHALONS EN CHAMPAGNE | E16: 551330 | F16: MONTMIRAIL | G16: 2.8 | H16: 47% | I16: 35% | J16: 7 | K16: 18% | L16: 18% | M16: 12 | N16: 52% | O16: 52% | P16: 20 | Q16: 78% | R16: 46% | S16: 44 | T16: 57% | U16: 57% | V16: 10 | W16: 64% | X16: 60% | Y16: 70
A17: 50 | B17: MEURTHE ET MOSELLE MEUSE | C17: 26 | D17: NANCY | E17: 554476 | F17: NANCY ARTEM | G17: 2.8 | H17: 47% | I17: 35% | J17: 8 | K17: 30% | L17: 30% | M17: 41 | N17: 48% | O17: 48% | P17: 12 | Q17: 88% | R17: 56% | S17: 134 | T17: 67% | U17: 67% | V17: 53 | W17: 36% | X17: 33% | Y17: 4
A18: 50 | B18: MARNE ARDENNES | C18: 11 | D18: REIMS | E18: 551340 | F18: BETHENY | G18: 2.3 | H18: 47% | I18: 35% | J18: 9 | K18: 33% | L18: 33% | M18: 46 | N18: 43% | O18: 43% | P18: 6 | Q18: 75% | R18: 43% | S18: 28 | T18: 73% | U18: 73% | V18: 96 | W18: 48% | X18: 44% | Y18: 14
A19: 50 | B19: MARNE ARDENNES | C19: 2 | D19: CHARLEVILLE MEZIERES | E19: 508820 | F19: VOUZIERS | G19: 2.9 | H19: 47% | I19: 35% | J19: 10 | K19: 28% | L19: 28% | M19: 30 | N19: 59% | O19: 59% | P19: 34 | Q19: 77% | R19: 45% | S19: 37 | T19: 50% | U19: 50% | V19: 3 | W19: 60% | X19: 56% | Y19: 44
A20: 50 | B20: MOSELLE | C20: 44 | D20: MOSELLE NORD | E20: 557113 | F20: AUDUN LE TICHE | G20: 2.1 | H20: 49% | I20: 37% | J20: 11 | K20: 52% | L20: 52% | M20: 120 | N20: 47% | O20: 47% | P20: 10 | Q20: 73% | R20: 41% | S20: 22 | T20: 61% | U20: 61% | V20: 18 | W20: 49% | X20: 45% | Y20: 16
A21: 50 | B21: MARNE ARDENNES | C21: 6 | D21: CHALONS EN CHAMPAGNE | E21: 451120 | F21: SARRY | G21: 2.3 | H21: 50% | I21: 38% | J21: 12 | K21: 10% | L21: 10% | M21: 6 | N21: 55% | O21: 55% | P21: 28 | Q21: 87% | R21: 55% | S21: 123 | T21: 68% | U21: 68% | V21: 54 | W21: 64% | X21: 61% | Y21: 74
A22: 50 | B22: MARNE ARDENNES | C22: 11 | D22: REIMS | E22: 551365 | F22: DORMANS | G22: 2.6 | H22: 50% | I22: 38% | J22: 13 | K22: 36% | L22: 36% | M22: 57 | N22: 42% | O22: 42% | P22: 5 | Q22: 87% | R22: 55% | S22: 124 | T22: 66% | U22: 66% | V22: 39 | W22: 54% | X22: 50% | Y22: 25
A23: 50 | B23: MARNE ARDENNES | C23: 11 | D23: REIMS | E23: 551349 | F23: REIMS SAINT REMI | G23: 2.9 | H23: 50% | I23: 38% | J23: 14 | K23: 53% | L23: 53% | M23: 125 | N23: 41% | O23: 41% | P23: 4 | Q23: 84% | R23: 52% | S23: 91 | T23: 60% | U23: 60% | V23: 17 | W23: 47% | X23: 43% | Y23: 12
A24: 50 | B24: MOSELLE | C24: 42 | D24: MOSELLE EST | E24: 457165 | F24: BITCHE | G24: 2.5 | H24: 50% | I24: 38% | J24: 15 | K24: 20% | L24: 20% | M24: 16 | N24: 49% | O24: 49% | P24: 14 | Q24: 84% | R24: 52% | S24: 90 | T24: 63% | U24: 63% | V24: 27 | W24: 69% | X24: 66% | Y24: 120
A25: 50 | B25: MOSELLE | C25: 45 | D25: METZ | E25: 457443 | F25: METZ REPUBLIQUE | G25: 3.5 | H25: 50% | I25: 38% | J25: 16 | K25: 31% | L25: 31% | M25: 42 | N25: 69% | O25: 69% | P25: 90 | Q25: 60% | R25: 28% | S25: 3 | T25: 59% | U25: 59% | V25: 13 | W25: 69% | X25: 66% | Y25: 116
A26: 50 | B26: BAS RHIN | C26: 5006 | D26: STRASBOURG | E26: 4048 | F26: STRASBOURG KOENIGSHOFFEN | G26: 1.7 | H26: 51% | I26: 39% | J26: 17 | K26: 67% | L26: 67% | M26: 177 | N26: 47% | O26: 47% | P26: 9 | Q26: 69% | R26: 37% | S26: 9 | T26: 56% | U26: 56% | V26: 9 | W26: 51% | X26: 48% | Y26: 21
A27: 50 | B27: MEURTHE ET MOSELLE MEUSE | C27: 27 | D27: PONT A MOUSSON | E27: 554381 | F27: LAXOU ARISTIDE BRIAND | G27: 2.3 | H27: 51% | I27: 39% | J27: 18 | K27: 64% | L27: 64% | M27: 165 | N27: 45% | O27: 45% | P27: 7 | Q27: 81% | R27: 49% | S27: 64 | T27: 59% | U27: 59% | V27: 15 | W27: 41% | X27: 38% | Y27: 9
A28: 262 | B28: BAS RHIN | C28: 5006 | D28: STRASBOURG | E28: 4037 | F28: MUNDOLSHEIM | G28: 3.7 | H28: 51% | I28: 39% | J28: 19 | K28: 36% | L28: 36% | M28: 55 | N28: 54% | O28: 54% | P28: 25 | Q28: 91% | R28: 59% | S28: 166 | T28: 58% | U28: 58% | V28: 12 | W28: 54% | X28: 50% | Y28: 24
A29: 262 | B29: MOSELLE | C29: 45 | D29: METZ | E29: 457453 | F29: MONTIGNY LES METZ | G29: 6.9 | H29: 51% | I29: 39% | J29: 20 | K29: 18% | L29: 18% | M29: 11 | N29: 61% | O29: 61% | P29: 45 | Q29: 81% | R29: 49% | S29: 60 | T29: 74% | U29: 74% | V29: 105 | W29: 58% | X29: 55% | Y29: 41
A30: 262 | B30: MARNE ARDENNES | C30: 11 | D30: REIMS | E30: 451350 | F30: REIMS CENTRE VILLE | G30: 6.4 | H30: 52% | I30: 40% | J30: 21 | K30: 68% | L30: 68% | M30: 186 | N30: 46% | O30: 46% | P30: 8 | Q30: 83% | R30: 51% | S30: 78 | T30: 62% | U30: 62% | V30: 21 | W30: 39% | X30: 36% | Y30: 5
A31: 262 | B31: MEURTHE ET MOSELLE MEUSE | C31: 26 | D31: NANCY | E31: 554601 | F31: SAINT MAX | G31: 3.5 | H31: 53% | I31: 40% | J31: 22 | K31: 24% | L31: 24% | M31: 23 | N31: 71% | O31: 71% | P31: 105 | Q31: 71% | R31: 39% | S31: 14 | T31: 67% | U31: 67% | V31: 44 | W31: 66% | X31: 62% | Y31: 76
A32: 262 | B32: MARNE ARDENNES | C32: 2 | D32: CHARLEVILLE MEZIERES | E32: 408801 | F32: CHARLEVILLE JEAN JAURES | G32: 8.8 | H32: 53% | I32: 41% | J32: 23 | K32: 38% | L32: 38% | M32: 65 | N32: 65% | O32: 65% | P32: 68 | Q32: 75% | R32: 43% | S32: 31 | T32: 65% | U32: 65% | V32: 31 | W32: 58% | X32: 54% | Y32: 38
A33: 262 | B33: MEURTHE ET MOSELLE MEUSE | C33: 27 | D33: PONT A MOUSSON | E33: 554531 | F33: POMPEY | G33: 3.0 | H33: 53% | I33: 41% | J33: 24 | K33: 72% | L33: 72% | M33: 209 | N33: 48% | O33: 48% | P33: 13 | Q33: 78% | R33: 46% | S33: 42 | T33: 65% | U33: 65% | V33: 33 | W33: 39% | X33: 36% | Y33: 6
A34: 262 | B34: MOSELLE | C34: 45 | D34: METZ | E34: 557439 | F34: METZ POMPIDOU | G34: 2.5 | H34: 54% | I34: 42% | J34: 25 | K34: 36% | L34: 36% | M34: 53 | N34: 62% | O34: 62% | P34: 53 | Q34: 69% | R34: 37% | S34: 8 | T34: 75% | U34: 75% | V34: 116 | W34: 63% | X34: 59% | Y34: 65
A35: 262 | B35: AUBE HAUTE MARNE | C35: 21 | D35: CHAUMONT | E35: 510590 | F35: CHAUMONT REPUBLIQUE | G35: 2.9 | H35: 54% | I35: 42% | J35: 26 | K35: 32% | L35: 32% | M35: 45 | N35: 72% | O35: 72% | P35: 113 | Q35: 77% | R35: 45% | S35: 33 | T35: 63% | U35: 63% | V35: 25 | W35: 61% | X35: 57% | Y35: 53
A36: 262 | B36: MEURTHE ET MOSELLE MEUSE | C36: 26 | D36: NANCY | E36: 554356 | F36: JARVILLE LA MALGRANGE | G36: 4.2 | H36: 54% | I36: 42% | J36: 27 | K36: 29% | L36: 29% | M36: 34 | N36: 56% | O36: 56% | P36: 29 | Q36: 91% | R36: 59% | S36: 171 | T36: 69% | U36: 69% | V36: 68 | W36: 61% | X36: 57% | Y36: 48
A37: 262 | B37: MOSELLE | C37: 45 | D37: METZ | E37: 457446 | F37: METZ SAINT LOUIS | G37: 5.7 | H37: 54% | I37: 42% | J37: 28 | K37: 48% | L37: 48% | M37: 104 | N37: 55% | O37: 55% | P37: 27 | Q37: 80% | R37: 48% | S37: 56 | T37: 69% | U37: 69% | V37: 64 | W37: 54% | X37: 51% | Y37: 30
A38: 262 | B38: MARNE ARDENNES | C38: 11 | D38: REIMS | E38: 551369 | F38: DAMERY | G38: 1.5 | H38: 55% | I38: 42% | J38: 29 | K38: 43% | L38: 43% | M38: 82 | N38: 51% | O38: 51% | P38: 18 | Q38: 104% | R38: 72% | S38: 239 | T38: 63% | U38: 63% | V38: 29 | W38: 48% | X38: 44% | Y38: 13
A39: 262 | B39: MARNE ARDENNES | C39: 6 | D39: CHALONS EN CHAMPAGNE | E39: 551354 | F39: VERTUS | G39: 2.0 | H39: 55% | I39: 42% | J39: 30 | K39: 0% | L39: 0% | M39: 1 | N39: 77% | O39: 77% | P39: 151 | Q39: 77% | R39: 45% | S39: 34 | T39: 83% | U39: 83% | V39: 194 | W39: 72% | X39: 68% | Y39: 145
A40: 262 | B40: MEURTHE ET MOSELLE MEUSE | C40: 27 | D40: PONT A MOUSSON | E40: 554506 | F40: CHALIGNY NEUVES MAISONS | G40: 3.4 | H40: 55% | I40: 43% | J40: 31 | K40: 64% | L40: 64% | M40: 161 | N40: 50% | O40: 50% | P40: 16 | Q40: 91% | R40: 59% | S40: 168 | T40: 56% | U40: 56% | V40: 8 | W40: 49% | X40: 45% | Y40: 17
A41: 262 | B41: MOSELLE | C41: 42 | D41: MOSELLE EST | E41: 557250 | F41: CREUTZWALD | G41: 2.5 | H41: 55% | I41: 43% | J41: 32 | K41: 23% | L41: 23% | M41: 21 | N41: 76% | O41: 76% | P41: 140 | Q41: 81% | R41: 49% | S41: 66 | T41: 67% | U41: 67% | V41: 47 | W41: 63% | X41: 60% | Y41: 68
A42: 262 | B42: MARNE ARDENNES | C42: 11 | D42: REIMS | E42: 451301 | F42: REIMS HOTEL DE VILLE | G42: 7.0 | H42: 55% | I42: 43% | J42: 33 | K42: 47% | L42: 47% | M42: 98 | N42: 63% | O42: 63% | P42: 56 | Q42: 83% | R42: 51% | S42: 80 | T42: 59% | U42: 59% | V42: 14 | W42: 58% | X42: 55% | Y42: 40
A43: 262 | B43: MARNE ARDENNES | C43: 11 | D43: REIMS | E43: 451370 | F43: EPERNAY | G43: 8.9 | H43: 55% | I43: 43% | J43: 34 | K43: 39% | L43: 39% | M43: 70 | N43: 59% | O43: 59% | P43: 35 | Q43: 79% | R43: 47% | S43: 47 | T43: 73% | U43: 73% | V43: 90 | W43: 61% | X43: 57% | Y43: 54
A44: 262 | B44: MOSELLE | C44: 45 | D44: METZ | E44: 557432 | F44: MAIZIERES LES METZ | G44: 2.5 | H44: 55% | I44: 43% | J44: 35 | K44: 69% | L44: 69% | M44: 195 | N44: 52% | O44: 52% | P44: 22 | Q44: 83% | R44: 51% | S44: 74 | T44: 68% | U44: 68% | V44: 57 | W44: 39% | X44: 36% | Y44: 7
A45: 262 | B45: MARNE ARDENNES | C45: 2 | D45: CHARLEVILLE MEZIERES | E45: 508839 | F45: GIVET | G45: 3.4 | H45: 55% | I45: 43% | J45: 36 | K45: 41% | L45: 41% | M45: 75 | N45: 65% | O45: 65% | P45: 66 | Q45: 89% | R45: 57% | S45: 145 | T45: 57% | U45: 57% | V45: 11 | W45: 60% | X45: 56% | Y45: 45
A46: 262 | B46: VOSGES | C46: 57 | D46: EPINAL | E46: 588336 | F46: GOLBEY | G46: 2.8 | H46: 55% | I46: 43% | J46: 37 | K46: 30% | L46: 30% | M46: 40 | N46: 71% | O46: 71% | P46: 103 | Q46: 80% | R46: 48% | S46: 53 | T46: 68% | U46: 68% | V46: 56 | W46: 63% | X46: 60% | Y46: 67
A47: 262 | B47: MARNE ARDENNES | C47: 11 | D47: REIMS | E47: 551314 | F47: FISMES | G47: 2.7 | H47: 55% | I47: 43% | J47: 38 | K47: 22% | L47: 22% | M47: 19 | N47: 55% | O47: 55% | P47: 26 | Q47: 98% | R47: 66% | S47: 231 | T47: 76% | U47: 76% | V47: 129 | W47: 61% | X47: 57% | Y47: 50
A48: 262 | B48: MEURTHE ET MOSELLE MEUSE | C48: 31 | D48: VERDUN | E48: 455678 | F48: VERDUN CENTRALE | G48: 10.0 | H48: 56% | I48: 44% | J48: 39 | K48: 24% | L48: 24% | M48: 22 | N48: 64% | O48: 64% | P48: 60 | Q48: 93% | R48: 61% | S48: 189 | T48: 77% | U48: 77% | V48: 132 | W48: 58% | X48: 54% | Y48: 37
A49: 262 | B49: MEURTHE ET MOSELLE MEUSE | C49: 31 | D49: VERDUN | E49: 554413 | F49: LONGWY BAS | G49: 3.4 | H49: 56% | I49: 44% | J49: 40 | K49: 19% | L49: 19% | M49: 13 | N49: 65% | O49: 65% | P49: 72 | Q49: 89% | R49: 58% | S49: 152 | T49: 74% | U49: 74% | V49: 107 | W49: 67% | X49: 64% | Y49: 90
A50: 262 | B50: MARNE ARDENNES | C50: 11 | D50: REIMS | E50: 551367 | F50: AY CHAMPAGNE | G50: 2.7 | H50: 56% | I50: 44% | J50: 41 | K50: 32% | L50: 32% | M50: 44 | N50: 71% | O50: 71% | P50: 102 | Q50: 86% | R50: 54% | S50: 107 | T50: 69% | U50: 69% | V50: 66 | W50: 59% | X50: 56% | Y50: 43
A51: 262 | B51: MARNE ARDENNES | C51: 2 | D51: CHARLEVILLE MEZIERES | E51: 508833 | F51: VILLERS SEMEUSE CORA | G51: 3.2 | H51: 56% | I51: 44% | J51: 42 | K51: 69% | L51: 69% | M51: 194 | N51: 68% | O51: 68% | P51: 81 | Q51: 75% | R51: 43% | S51: 26 | T51: 54% | U51: 54% | V51: 5 | W51: 51% | X51: 48% | Y51: 22
A52: 262 | B52: MARNE ARDENNES | C52: 11 | D52: REIMS | E52: 451361 | F52: PIERRY LECLERC | G52: 1.8 | H52: 56% | I52: 44% | J52: 43 | K52: 36% | L52: 36% | M52: 58 | N52: 65% | O52: 65% | P52: 64 | Q52: 73% | R52: 41% | S52: 21 | T52: 76% | U52: 76% | V52: 123 | W52: 68% | X52: 64% | Y52: 98
A53: 262 | B53: BAS RHIN | C53: 5101 | D53: SELESTAT | E53: 4113 | F53: BARR | G53: 2.9 | H53: 57% | I53: 44% | J53: 44 | K53: 27% | L53: 27% | M53: 28 | N53: 59% | O53: 59% | P53: 33 | Q53: 85% | R53: 53% | S53: 101 | T53: 77% | U53: 77% | V53: 139 | W53: 71% | X53: 67% | Y53: 130
A54: 262 | B54: MOSELLE | C54: 45 | D54: METZ | E54: 457574 | F54: ROMBAS | G54: 2.6 | H54: 57% | I54: 44% | J54: 45 | K54: 34% | L54: 34% | M54: 49 | N54: 68% | O54: 68% | P54: 83 | Q54: 84% | R54: 52% | S54: 93 | T54: 61% | U54: 61% | V54: 19 | W54: 71% | X54: 68% | Y54: 139
A55: 262 | B55: MOSELLE | C55: 44 | D55: MOSELLE NORD | E55: 557352 | F55: HETTANGE GRANDE | G55: 3.0 | H55: 57% | I55: 45% | J55: 46 | K55: 59% | L55: 59% | M55: 145 | N55: 60% | O55: 60% | P55: 39 | Q55: 86% | R55: 54% | S55: 116 | T55: 67% | U55: 67% | V55: 45 | W55: 48% | X55: 45% | Y55: 15
A56: 262 | B56: MARNE ARDENNES | C56: 11 | D56: REIMS | E56: 551310 | F56: REIMS CHATILLONS | G56: 3.9 | H56: 57% | I56: 45% | J56: 47 | K56: 53% | L56: 53% | M56: 126 | N56: 56% | O56: 56% | P56: 30 | Q56: 86% | R56: 54% | S56: 110 | T56: 68% | U56: 68% | V56: 59 | W56: 57% | X56: 54% | Y56: 36
A57: 262 | B57: MARNE ARDENNES | C57: 6 | D57: CHALONS EN CHAMPAGNE | E57: 551110 | F57: CHALONS ROOSEVELT | G57: 4.3 | H57: 57% | I57: 45% | J57: 48 | K57: 29% | L57: 29% | M57: 32 | N57: 73% | O57: 73% | P57: 118 | Q57: 88% | R57: 56% | S57: 138 | T57: 62% | U57: 62% | V57: 22 | W57: 69% | X57: 66% | Y57: 113
A58: 262 | B58: BAS RHIN | C58: 5006 | D58: STRASBOURG | E58: 4038 | F58: OBERHAUSBERGEN | G58: 3.4 | H58: 57% | I58: 45% | J58: 49 | K58: 37% | L58: 37% | M58: 62 | N58: 65% | O58: 65% | P58: 65 | Q58: 69% | R58: 38% | S58: 11 | T58: 85% | U58: 85% | V58: 215 | W58: 65% | X58: 61% | Y58: 75
A59: 262 | B59: MOSELLE | C59: 42 | D59: MOSELLE EST | E59: 457583 | F59: SAINT AVOLD | G59: 7.0 | H59: 57% | I59: 45% | J59: 50 | K59: 37% | L59: 37% | M59: 61 | N59: 61% | O59: 61% | P59: 44 | Q59: 86% | R59: 54% | S59: 114 | T59: 69% | U59: 69% | V59: 69 | W59: 67% | X59: 64% | Y59: 91
A60: 262 | B60: MEURTHE ET MOSELLE MEUSE | C60: 27 | D60: PONT A MOUSSON | E60: 554516 | F60: PAGNY SUR MOSELLE | G60: 2.7 | H60: 57% | I60: 45% | J60: 51 | K60: 49% | L60: 49% | M60: 111 | N60: 67% | O60: 67% | P60: 77 | Q60: 80% | R60: 48% | S60: 52 | T60: 63% | U60: 63% | V60: 26 | W60: 62% | X60: 59% | Y60: 62
A61: 262 | B61: MOSELLE | C61: 42 | D61: MOSELLE EST | E61: 457308 | F61: FORBACH CENTRALE | G61: 9.4 | H61: 57% | I61: 45% | J61: 52 | K61: 44% | L61: 44% | M61: 91 | N61: 59% | O61: 59% | P61: 38 | Q61: 85% | R61: 53% | S61: 104 | T61: 66% | U61: 66% | V61: 41 | W61: 67% | X61: 63% | Y61: 81
A62: 262 | B62: BAS RHIN | C62: 5006 | D62: STRASBOURG | E62: 4024 | F62: STRASBOURG AUSTERLITZ | G62: 1.1 | H62: 57% | I62: 45% | J62: 53 | K62: 83% | L62: 83% | M62: 241 | N62: 60% | O62: 60% | P62: 42 | Q62: 61% | R62: 29% | S62: 4 | T62: 66% | U62: 66% | V62: 40 | W62: 52% | X62: 48% | Y62: 23
A63: 262 | B63: MEURTHE ET MOSELLE MEUSE | C63: 31 | D63: VERDUN | E63: 555406 | F63: LIGNY EN BARROIS | G63: 2.5 | H63: 57% | I63: 45% | J63: 54 | K63: 20% | L63: 20% | M63: 17 | N63: 73% | O63: 73% | P63: 120 | Q63: 70% | R63: 38% | S63: 12 | T63: 84% | U63: 84% | V63: 207 | W63: 75% | X63: 72% | Y63: 184
A64: 262 | B64: MARNE ARDENNES | C64: 11 | D64: REIMS | E64: 551306 | F64: REIMS SAINT MARCEAUX | G64: 3.9 | H64: 58% | I64: 46% | J64: 55 | K64: 37% | L64: 37% | M64: 59 | N64: 52% | O64: 52% | P64: 21 | Q64: 103% | R64: 71% | S64: 238 | T64: 71% | U64: 71% | V64: 74 | W64: 62% | X64: 59% | Y64: 61
A65: 262 | B65: MOSELLE | C65: 44 | D65: MOSELLE NORD | E65: 457350 | F65: HAYANGE | G65: 6.4 | H65: 58% | I65: 46% | J65: 56 | K65: 51% | L65: 51% | M65: 117 | N65: 62% | O65: 62% | P65: 50 | Q65: 87% | R65: 56% | S65: 129 | T65: 63% | U65: 63% | V65: 28 | W65: 61% | X65: 58% | Y65: 55
A66: 262 | B66: MARNE ARDENNES | C66: 11 | D66: REIMS | E66: 451336 | F66: TINQUEUX | G66: 4.9 | H66: 58% | I66: 46% | J66: 57 | K66: 60% | L66: 60% | M66: 147 | N66: 61% | O66: 61% | P66: 47 | Q66: 69% | R66: 37% | S66: 10 | T66: 74% | U66: 74% | V66: 101 | W66: 61% | X66: 57% | Y66: 52
A67: 262 | B67: MEURTHE ET MOSELLE MEUSE | C67: 27 | D67: PONT A MOUSSON | E67: 554686 | F67: VEZELISE | G67: 1.9 | H67: 58% | I67: 46% | J67: 58 | K67: 9% | L67: 9% | M67: 3 | N67: 75% | O67: 75% | P67: 138 | Q67: 84% | R67: 52% | S67: 87 | T67: 78% | U67: 78% | V67: 143 | W67: 79% | X67: 76% | Y67: 227
A68: 262 | B68: VOSGES | C68: 55 | D68: SAINT DIE | E68: 488326 | F68: GERARDMER | G68: 3.8 | H68: 58% | I68: 46% | J68: 59 | K68: 44% | L68: 44% | M68: 86 | N68: 71% | O68: 71% | P68: 101 | Q68: 75% | R68: 43% | S68: 29 | T68: 74% | U68: 74% | V68: 106 | W68: 62% | X68: 59% | Y68: 59
A69: 262 | B69: MEURTHE ET MOSELLE MEUSE | C69: 26 | D69: NANCY | E69: 554636 | F69: TOMBLAINE | G69: 2.6 | H69: 58% | I69: 46% | J69: 60 | K69: 20% | L69: 20% | M69: 15 | N69: 80% | O69: 80% | P69: 176 | Q69: 79% | R69: 47% | S69: 50 | T69: 77% | U69: 77% | V69: 140 | W69: 70% | X69: 67% | Y69: 128
A70: 262 | B70: MOSELLE | C70: 45 | D70: METZ | E70: 557447 | F70: METZ SAINT MAXIMIN | G70: 2.3 | H70: 58% | I70: 46% | J70: 61 | K70: 63% | L70: 63% | M70: 156 | N70: 66% | O70: 66% | P70: 73 | Q70: 77% | R70: 45% | S70: 38 | T70: 53% | U70: 53% | V70: 4 | W70: 68% | X70: 64% | Y70: 96
A71: 262 | B71: MEURTHE ET MOSELLE MEUSE | C71: 26 | D71: NANCY | E71: 454481 | F71: NANCY PLACE DOMBASLE | G71: 7.9 | H71: 58% | I71: 46% | J71: 62 | K71: 58% | L71: 58% | M71: 142 | N71: 64% | O71: 64% | P71: 59 | Q71: 82% | R71: 50% | S71: 67 | T71: 73% | U71: 73% | V71: 88 | W71: 50% | X71: 47% | Y71: 19
A72: 262 | B72: MEURTHE ET MOSELLE MEUSE | C72: 26 | D72: NANCY | E72: 554116 | F72: BACCARAT | G72: 2.8 | H72: 58% | I72: 46% | J72: 63 | K72: 9% | L72: 9% | M72: 4 | N72: 76% | O72: 76% | P72: 147 | Q72: 87% | R72: 55% | S72: 125 | T72: 77% | U72: 77% | V72: 135 | W72: 77% | X72: 73% | Y72: 203
A73: 262 | B73: MOSELLE | C73: 44 | D73: MOSELLE NORD | E73: 457632 | F73: THIONVILLE CENTRALE | G73: 10.6 | H73: 58% | I73: 46% | J73: 64 | K73: 55% | L73: 55% | M73: 134 | N73: 56% | O73: 56% | P73: 31 | Q73: 90% | R73: 58% | S73: 159 | T73: 65% | U73: 65% | V73: 34 | W73: 60% | X73: 57% | Y73: 46
A74: 262 | B74: MOSELLE | C74: 42 | D74: MOSELLE EST | E74: 457617 | F74: SARREGUEMINES | G74: 6.6 | H74: 58% | I74: 46% | J74: 65 | K74: 60% | L74: 60% | M74: 148 | N74: 62% | O74: 62% | P74: 54 | Q74: 80% | R74: 48% | S74: 55 | T74: 68% | U74: 68% | V74: 58 | W74: 57% | X74: 53% | Y74: 35
A75: 264 | B75: BAS RHIN | C75: 5006 | D75: STRASBOURG | E75: 4054 | F75: STRASBOURG MONTAGNE VERTE | G75: 2.7 | H75: 59% | I75: 46% | J75: 66 | K75: 31% | L75: 31% | M75: 43 | N75: 71% | O75: 71% | P75: 96 | Q75: 81% | R75: 49% | S75: 65 | T75: 67% | U75: 67% | V75: 46 | W75: 79% | X75: 76% | Y75: 225
A76: 264 | B76: MOSELLE | C76: 42 | D76: MOSELLE EST | E76: 557668 | F76: VALMONT | G76: 2.7 | H76: 59% | I76: 46% | J76: 67 | K76: 30% | L76: 30% | M76: 37 | N76: 79% | O76: 79% | P76: 173 | Q76: 74% | R76: 42% | S76: 25 | T76: 73% | U76: 73% | V76: 91 | W76: 73% | X76: 69% | Y76: 157
A77: 264 | B77: MOSELLE | C77: 44 | D77: MOSELLE NORD | E77: 457348 | F77: HAGONDANGE | G77: 8.1 | H77: 59% | I77: 47% | J77: 68 | K77: 52% | L77: 52% | M77: 119 | N77: 64% | O77: 64% | P77: 57 | Q77: 86% | R77: 54% | S77: 115 | T77: 67% | U77: 67% | V77: 49 | W77: 61% | X77: 57% | Y77: 49
A78: 264 | B78: MEURTHE ET MOSELLE MEUSE | C78: 31 | D78: VERDUN | E78: 555679 | F78: VERDUN MAZEL | G78: 3.6 | H78: 59% | I78: 47% | J78: 69 | K78: 22% | L78: 22% | M78: 20 | N78: 73% | O78: 73% | P78: 119 | Q78: 85% | R78: 53% | S78: 95 | T78: 76% | U78: 76% | V78: 127 | W78: 74% | X78: 71% | Y78: 172
A79: 264 | B79: BAS RHIN | C79: 5006 | D79: STRASBOURG | E79: 4043 | F79: STRASBOURG HALLES | G79: 7.8 | H79: 59% | I79: 47% | J79: 70 | K79: 62% | L79: 62% | M79: 154 | N79: 59% | O79: 59% | P79: 36 | Q79: 84% | R79: 52% | S79: 84 | T79: 55% | U79: 55% | V79: 6 | W79: 71% | X79: 67% | Y79: 133
A80: 264 | B80: MOSELLE | C80: 42 | D80: MOSELLE EST | E80: 557305 | F80: FAULQUEMONT | G80: 4.1 | H80: 59% | I80: 47% | J80: 71 | K80: 77% | L80: 77% | M80: 229 | N80: 51% | O80: 51% | P80: 19 | Q80: 92% | R80: 60% | S80: 178 | T80: 66% | U80: 66% | V80: 37 | W80: 45% | X80: 42% | Y80: 11
A81: 264 | B81: BAS RHIN | C81: 5060 | D81: HAGUENAU | E81: 4092 | F81: HOCHFELDEN | G81: 1.9 | H81: 59% | I81: 47% | J81: 72 | K81: 44% | L81: 44% | M81: 87 | N81: 71% | O81: 71% | P81: 97 | Q81: 77% | R81: 45% | S81: 35 | T81: 73% | U81: 73% | V81: 98 | W81: 67% | X81: 64% | Y81: 88
A82: 264 | B82: MOSELLE | C82: 42 | D82: MOSELLE EST | E82: 557523 | F82: PHALSBOURG | G82: 2.5 | H82: 59% | I82: 47% | J82: 73 | K82: 49% | L82: 49% | M82: 110 | N82: 75% | O82: 75% | P82: 130 | Q82: 76% | R82: 44% | S82: 32 | T82: 65% | U82: 65% | V82: 32 | W82: 68% | X82: 64% | Y82: 97
A83: 264 | B83: AUBE HAUTE MARNE | C83: 21 | D83: CHAUMONT | E83: 410541 | F83: LANGRES | G83: 8.2 | H83: 59% | I83: 47% | J83: 74 | K83: 39% | L83: 39% | M83: 68 | N83: 70% | O83: 70% | P83: 95 | Q83: 85% | R83: 53% | S83: 100 | T83: 69% | U83: 69% | V83: 60 | W83: 69% | X83: 66% | Y83: 119
A84: 264 | B84: MARNE ARDENNES | C84: 6 | D84: CHALONS EN CHAMPAGNE | E84: 451101 | F84: CHALONS VIVIERS | G84: 9.6 | H84: 59% | I84: 47% | J84: 75 | K84: 29% | L84: 29% | M84: 33 | N84: 75% | O84: 75% | P84: 132 | Q84: 89% | R84: 57% | S84: 147 | T84: 72% | U84: 72% | V84: 85 | W84: 67% | X84: 64% | Y84: 92
A85: 264 | B85: VOSGES | C85: 55 | D85: SAINT DIE | E85: 488246 | F85: CORNIMONT LA BRESSE | G85: 2.7 | H85: 59% | I85: 47% | J85: 76 | K85: 22% | L85: 22% | M85: 18 | N85: 70% | O85: 70% | P85: 94 | Q85: 94% | R85: 62% | S85: 207 | T85: 73% | U85: 73% | V85: 94 | W85: 73% | X85: 70% | Y85: 163
A86: 264 | B86: MARNE ARDENNES | C86: 11 | D86: REIMS | E86: 551341 | F86: REIMS JEAN JAURES | G86: 3.0 | H86: 60% | I86: 47% | J86: 77 | K86: 67% | L86: 67% | M86: 178 | N86: 61% | O86: 61% | P86: 46 | Q86: 77% | R86: 45% | S86: 36 | T86: 72% | U86: 72% | V86: 84 | W86: 57% | X86: 53% | Y86: 33
A87: 264 | B87: VOSGES | C87: 55 | D87: SAINT DIE | E87: 588551 | F87: RAMBERVILLERS | G87: 2.6 | H87: 60% | I87: 47% | J87: 78 | K87: 26% | L87: 26% | M87: 25 | N87: 79% | O87: 79% | P87: 160 | Q87: 87% | R87: 55% | S87: 122 | T87: 84% | U87: 84% | V87: 210 | W87: 58% | X87: 55% | Y87: 42
A88: 264 | B88: VOSGES | C88: 57 | D88: EPINAL | E88: 588396 | F88: LE VAL D AJOL | G88: 2.5 | H88: 60% | I88: 47% | J88: 79 | K88: 10% | L88: 10% | M88: 5 | N88: 80% | O88: 80% | P88: 177 | Q88: 85% | R88: 53% | S88: 103 | T88: 80% | U88: 80% | V88: 166 | W88: 79% | X88: 76% | Y88: 226
A89: 264 | B89: MOSELLE | C89: 44 | D89: MOSELLE NORD | E89: 557303 | F89: FAMECK | G89: 2.8 | H89: 60% | I89: 47% | J89: 80 | K89: 34% | L89: 34% | M89: 50 | N89: 69% | O89: 69% | P89: 85 | Q89: 86% | R89: 54% | S89: 112 | T89: 87% | U89: 87% | V89: 225 | W89: 58% | X89: 55% | Y89: 39
A90: 264 | B90: MEURTHE ET MOSELLE MEUSE | C90: 31 | D90: VERDUN | E90: 454414 | F90: LONGWY HAUT | G90: 3.3 | H90: 60% | I90: 48% | J90: 81 | K90: 50% | L90: 50% | M90: 114 | N90: 69% | O90: 69% | P90: 87 | Q90: 83% | R90: 51% | S90: 76 | T90: 66% | U90: 66% | V90: 35 | W90: 67% | X90: 64% | Y90: 87
A91: 264 | B91: VOSGES | C91: 57 | D91: EPINAL | E91: 488561 | F91: REMIREMONT | G91: 7.2 | H91: 60% | I91: 48% | J91: 82 | K91: 20% | L91: 20% | M91: 14 | N91: 71% | O91: 71% | P91: 106 | Q91: 91% | R91: 59% | S91: 162 | T91: 77% | U91: 77% | V91: 138 | W91: 76% | X91: 72% | Y91: 187
A92: 264 | B92: MOSELLE | C92: 44 | D92: MOSELLE NORD | E92: 457306 | F92: FLORANGE | G92: 4.7 | H92: 60% | I92: 48% | J92: 83 | K92: 77% | L92: 77% | M92: 231 | N92: 57% | O92: 57% | P92: 32 | Q92: 85% | R92: 53% | S92: 98 | T92: 71% | U92: 71% | V92: 79 | W92: 44% | X92: 41% | Y92: 10
A93: 264 | B93: BAS RHIN | C93: 5060 | D93: HAGUENAU | E93: 4079 | F93: SOULTZ SOUS FORETS | G93: 1.9 | H93: 60% | I93: 48% | J93: 84 | K93: 39% | L93: 39% | M93: 71 | N93: 63% | O93: 63% | P93: 55 | Q93: 82% | R93: 50% | S93: 71 | T93: 74% | U93: 74% | V93: 102 | W93: 79% | X93: 75% | Y93: 223
A94: 264 | B94: BAS RHIN | C94: 5101 | D94: SELESTAT | E94: 4104 | F94: ERSTEIN | G94: 4.3 | H94: 60% | I94: 48% | J94: 85 | K94: 72% | L94: 72% | M94: 210 | N94: 51% | O94: 51% | P94: 17 | Q94: 80% | R94: 48% | S94: 57 | T94: 68% | U94: 68% | V94: 55 | W94: 67% | X94: 63% | Y94: 82
A95: 264 | B95: MARNE ARDENNES | C95: 2 | D95: CHARLEVILLE MEZIERES | E95: 408840 | F95: RETHEL | G95: 4.3 | H95: 61% | I95: 48% | J95: 86 | K95: 55% | L95: 55% | M95: 135 | N95: 65% | O95: 65% | P95: 62 | Q95: 84% | R95: 52% | S95: 85 | T95: 71% | U95: 71% | V95: 77 | W95: 64% | X95: 60% | Y95: 71
A96: 264 | B96: MARNE ARDENNES | C96: 6 | D96: CHALONS EN CHAMPAGNE | E96: 551103 | F96: FAGNIERES LECLERC | G96: 2.9 | H96: 61% | I96: 48% | J96: 87 | K96: 47% | L96: 47% | M96: 101 | N96: 74% | O96: 74% | P96: 128 | Q96: 89% | R96: 57% | S96: 143 | T96: 62% | U96: 62% | V96: 20 | W96: 67% | X96: 64% | Y96: 86
A97: 30 | B97: MOSELLE | C97: 45 | D97: METZ | E97: 557434 | F97: MARLY | G97: 3.1 | H97: 61% | I97: 49% | J97: 88 | K97: 30% | L97: 30% | M97: 36 | N97: 74% | O97: 74% | P97: 123 | Q97: 86% | R97: 54% | S97: 113 | T97: 81% | U97: 81% | V97: 181 | W97: 68% | X97: 65% | Y97: 104
A98: 30 | B98: BAS RHIN | C98: 5006 | D98: STRASBOURG | E98: 4047 | F98: STRASBOURG CRONENBOURG | G98: 4.5 | H98: 61% | I98: 49% | J98: 89 | K98: 51% | L98: 51% | M98: 115 | N98: 62% | O98: 62% | P98: 51 | Q98: 79% | R98: 47% | S98: 48 | T98: 75% | U98: 75% | V98: 117 | W98: 73% | X98: 69% | Y98: 153
A99: 30 | B99: AUBE HAUTE MARNE | C99: 14 | D99: TROYES | E99: 510570 | F99: NOGENT SUR SEINE | G99: 4.2 | H99: 61% | I99: 49% | J99: 90 | K99: 26% | L99: 26% | M99: 27 | N99: 72% | O99: 72% | P99: 112 | Q99: 91% | R99: 59% | S99: 163 | T99: 78% | U99: 78% | V99: 148 | W99: 72% | X99: 69% | Y99: 152
A100: 30 | B100: VOSGES | C100: 55 | D100: SAINT DIE | E100: 588186 | F100: BRUYERES | G100: 3.5 | H100: 61% | I100: 49% | J100: 91 | K100: 28% | L100: 28% | M100: 31 | N100: 74% | O100: 74% | P100: 127 | Q100: 93% | R100: 61% | S100: 186 | T100: 78% | U100: 78% | V100: 144 | W100: 67% | X100: 64% | Y100: 89
A101: 30 | B101: BAS RHIN | C101: 5060 | D101: HAGUENAU | E101: 4030 | F101: BRUMATH | G101: 3.9 | H101: 61% | I101: 49% | J101: 92 | K101: 75% | L101: 75% | M101: 221 | N101: 71% | O101: 71% | P101: 98 | Q101: 32% | R101: 0% | S101: 1 | T101: 87% | U101: 87% | V101: 222 | W101: 77% | X101: 73% | Y101: 200
A102: 30 | B102: VOSGES | C102: 57 | D102: EPINAL | E102: 588631 | F102: THAON LES VOSGES | G102: 4.4 | H102: 61% | I102: 49% | J102: 93 | K102: 47% | L102: 47% | M102: 99 | N102: 68% | O102: 68% | P102: 79 | Q102: 86% | R102: 54% | S102: 111 | T102: 74% | U102: 74% | V102: 100 | W102: 67% | X102: 63% | Y102: 83
A103: 30 | B103: AUBE HAUTE MARNE | C103: 21 | D103: CHAUMONT | E103: 451154 | F103: JOINVILLE | G103: 1.8 | H103: 61% | I103: 49% | J103: 94 | K103: 42% | L103: 42% | M103: 77 | N103: 67% | O103: 67% | P103: 78 | Q103: 100% | R103: 68% | S103: 235 | T103: 63% | U103: 63% | V103: 24 | W103: 69% | X103: 65% | Y103: 111
A104: 30 | B104: MOSELLE | C104: 44 | D104: MOSELLE NORD | E104: 557347 | F104: GUENANGE | G104: 4.6 | H104: 61% | I104: 49% | J104: 95 | K104: 71% | L104: 71% | M104: 206 | N104: 59% | O104: 59% | P104: 37 | Q104: 89% | R104: 57% | S104: 142 | T104: 66% | U104: 66% | V104: 43 | W104: 55% | X104: 52% | Y104: 31
A105: 30 | B105: MEURTHE ET MOSELLE MEUSE | C105: 31 | D105: VERDUN | E105: 554700 | F105: VILLERUPT | G105: 2.8 | H105: 61% | I105: 49% | J105: 96 | K105: 37% | L105: 37% | M105: 60 | N105: 68% | O105: 68% | P105: 82 | Q105: 84% | R105: 52% | S105: 88 | T105: 76% | U105: 76% | V105: 122 | W105: 77% | X105: 73% | Y105: 204
A106: 30 | B106: BAS RHIN | C106: 5006 | D106: STRASBOURG | E106: 4010 | F106: STRASBOURG MEINAU | G106: 2.9 | H106: 61% | I106: 49% | J106: 97 | K106: 46% | L106: 46% | M106: 97 | N106: 71% | O106: 71% | P106: 104 | Q106: 85% | R106: 53% | S106: 97 | T106: 67% | U106: 67% | V106: 51 | W106: 72% | X106: 69% | Y106: 149
A107: 30 | B107: BAS RHIN | C107: 5006 | D107: STRASBOURG | E107: 4006 | F107: STRASBOURG NEUDORF | G107: 8.1 | H107: 61% | I107: 49% | J107: 98 | K107: 26% | L107: 26% | M107: 26 | N107: 81% | O107: 81% | P107: 185 | Q107: 86% | R107: 54% | S107: 109 | T107: 73% | U107: 73% | V107: 95 | W107: 76% | X107: 73% | Y107: 194
A108: 30 | B108: VOSGES | C108: 55 | D108: SAINT DIE | E108: 588666 | F108: VAGNEY | G108: 3.4 | H108: 61% | I108: 49% | J108: 99 | K108: 27% | L108: 27% | M108: 29 | N108: 79% | O108: 79% | P108: 161 | Q108: 80% | R108: 48% | S108: 58 | T108: 82% | U108: 82% | V108: 184 | W108: 74% | X108: 71% | Y108: 175
A109: 30 | B109: MARNE ARDENNES | C109: 2 | D109: CHARLEVILLE MEZIERES | E109: 408822 | F109: CHARLEVILLE MEZIERES | G109: 5.1 | H109: 61% | I109: 49% | J109: 100 | K109: 67% | L109: 67% | M109: 174 | N109: 76% | O109: 76% | P109: 141 | Q109: 68% | R109: 36% | S109: 7 | T109: 71% | U109: 71% | V109: 80 | W109: 61% | X109: 57% | Y109: 47
A110: 30 | B110: MEURTHE ET MOSELLE MEUSE | C110: 27 | D110: PONT A MOUSSON | E110: 554416 | F110: LUDRES | G110: 3.6 | H110: 62% | I110: 49% | J110: 101 | K110: 42% | L110: 42% | M110: 78 | N110: 75% | O110: 75% | P110: 131 | Q110: 82% | R110: 50% | S110: 69 | T110: 77% | U110: 77% | V110: 130 | W110: 69% | X110: 65% | Y110: 112
A111: 30 | B111: MARNE ARDENNES | C111: 6 | D111: CHALONS EN CHAMPAGNE | E111: 451381 | F111: SEZANNE | G111: 4.8 | H111: 62% | I111: 49% | J111: 102 | K111: 43% | L111: 43% | M111: 83 | N111: 69% | O111: 69% | P111: 91 | Q111: 79% | R111: 47% | S111: 49 | T111: 84% | U111: 84% | V111: 209 | W111: 68% | X111: 65% | Y111: 103
A112: 30 | B112: VOSGES | C112: 57 | D112: EPINAL | E112: 488281 | F112: ELOYES | G112: 3.3 | H112: 62% | I112: 49% | J112: 103 | K112: 33% | L112: 33% | M112: 47 | N112: 78% | O112: 78% | P112: 158 | Q112: 78% | R112: 46% | S112: 45 | T112: 86% | U112: 86% | V112: 218 | W112: 69% | X112: 66% | Y112: 115
A113: 30 | B113: MOSELLE | C113: 45 | D113: METZ | E113: 557444 | F113: SAINT JULIEN LES METZ | G113: 3.7 | H113: 62% | I113: 50% | J113: 104 | K113: 76% | L113: 76% | M113: 228 | N113: 67% | O113: 67% | P113: 76 | Q113: 71% | R113: 39% | S113: 15 | T113: 69% | U113: 69% | V113: 63 | W113: 61% | X113: 58% | Y113: 56
A114: 30 | B114: VOSGES | C114: 55 | D114: SAINT DIE | E114: 588386 | F114: LE THILLOT | G114: 2.6 | H114: 62% | I114: 50% | J114: 105 | K114: 16% | L114: 16% | M114: 10 | N114: 76% | O114: 76% | P114: 142 | Q114: 94% | R114: 62% | S114: 204 | T114: 83% | U114: 83% | V114: 191 | W114: 76% | X114: 73% | Y114: 193
A115: 30 | B115: BAS RHIN | C115: 5060 | D115: HAGUENAU | E115: 4041 | F115: HOERDT | G115: 1.7 | H115: 62% | I115: 50% | J115: 106 | K115: 39% | L115: 39% | M115: 72 | N115: 78% | O115: 78% | P115: 156 | Q115: 72% | R115: 40% | S115: 16 | T115: 78% | U115: 78% | V115: 145 | W115: 78% | X115: 75% | Y115: 217
A116: 30 | B116: MARNE ARDENNES | C116: 6 | D116: CHALONS EN CHAMPAGNE | E116: 551128 | F116: SAINTE MENEHOULD | G116: 3.0 | H116: 62% | I116: 50% | J116: 107 | K116: 36% | L116: 36% | M116: 56 | N116: 71% | O116: 71% | P116: 108 | Q116: 92% | R116: 60% | S116: 175 | T116: 72% | U116: 72% | V116: 83 | W116: 74% | X116: 71% | Y116: 174
A117: 30 | B117: MOSELLE | C117: 44 | D117: MOSELLE NORD | E117: 457158 | F117: YUTZ | G117: 4.4 | H117: 62% | I117: 50% | J117: 108 | K117: 63% | L117: 63% | M117: 157 | N117: 65% | O117: 65% | P117: 63 | Q117: 86% | R117: 54% | S117: 108 | T117: 66% | U117: 66% | V117: 38 | W117: 66% | X117: 63% | Y117: 77
A118: 30 | B118: BAS RHIN | C118: 5101 | D118: SELESTAT | E118: 4121 | F118: SCHIRMECK | G118: 2.8 | H118: 62% | I118: 50% | J118: 109 | K118: 36% | L118: 36% | M118: 54 | N118: 64% | O118: 64% | P118: 61 | Q118: 95% | R118: 63% | S118: 210 | T118: 83% | U118: 83% | V118: 196 | W118: 67% | X118: 64% | Y118: 93
A119: 30 | B119: MEURTHE ET MOSELLE MEUSE | C119: 27 | D119: PONT A MOUSSON | E119: 554376 | F119: LAXOU BOUFFLERS | G119: 2.8 | H119: 62% | I119: 50% | J119: 110 | K119: 81% | L119: 81% | M119: 238 | N119: 53% | O119: 53% | P119: 23 | Q119: 94% | R119: 62% | S119: 205 | T119: 69% | U119: 69% | V119: 61 | W119: 49% | X119: 46% | Y119: 18
A120: 30 | B120: BAS RHIN | C120: 5060 | D120: HAGUENAU | E120: 4071 | F120: WISSEMBOURG | G120: 7.0 | H120: 62% | I120: 50% | J120: 111 | K120: 30% | L120: 30% | M120: 39 | N120: 75% | O120: 75% | P120: 137 | Q120: 84% | R120: 52% | S120: 86 | T120: 79% | U120: 79% | V120: 153 | W120: 80% | X120: 77% | Y120: 229
A121: 30 | B121: BAS RHIN | C121: 5060 | D121: HAGUENAU | E121: 4057 | F121: BISCHWILLER | G121: 7.1 | H121: 63% | I121: 50% | J121: 112 | K121: 43% | L121: 43% | M121: 81 | N121: 66% | O121: 66% | P121: 74 | Q121: 90% | R121: 58% | S121: 158 | T121: 75% | U121: 75% | V121: 109 | W121: 75% | X121: 71% | Y121: 177
A122: 30 | B122: MOSELLE | C122: 45 | D122: METZ | E122: 557105 | F122: ARS SUR MOSELLE | G122: 3.1 | H122: 63% | I122: 50% | J122: 113 | K122: 48% | L122: 48% | M122: 103 | N122: 74% | O122: 74% | P122: 125 | Q122: 90% | R122: 58% | S122: 154 | T122: 80% | U122: 80% | V122: 168 | W122: 57% | X122: 53% | Y122: 34
A123: 30 | B123: VOSGES | C123: 57 | D123: EPINAL | E123: 488286 | F123: EPINAL ARISTIDE BRIAND | G123: 8.3 | H123: 63% | I123: 50% | J123: 114 | K123: 64% | L123: 64% | M123: 167 | N123: 60% | O123: 60% | P123: 40 | Q123: 81% | R123: 49% | S123: 62 | T123: 73% | U123: 73% | V123: 89 | W123: 70% | X123: 67% | Y123: 126
A124: 30 | B124: MEURTHE ET MOSELLE MEUSE | C124: 26 | D124: NANCY | E124: 454426 | F124: LUNEVILLE CARNOT | G124: 8.3 | H124: 63% | I124: 50% | J124: 115 | K124: 64% | L124: 64% | M124: 163 | N124: 69% | O124: 69% | P124: 89 | Q124: 80% | R124: 48% | S124: 54 | T124: 79% | U124: 79% | V124: 152 | W124: 56% | X124: 53% | Y124: 32
A125: 30 | B125: MEURTHE ET MOSELLE MEUSE | C125: 27 | D125: PONT A MOUSSON | E125: 454535 | F125: PONT A MOUSSON CENTRALE | G125: 5.3 | H125: 63% | I125: 50% | J125: 116 | K125: 78% | L125: 78% | M125: 235 | N125: 60% | O125: 60% | P125: 41 | Q125: 89% | R125: 57% | S125: 146 | T125: 67% | U125: 67% | V125: 50 | W125: 54% | X125: 51% | Y125: 29
A126: 30 | B126: VOSGES | C126: 57 | D126: EPINAL | E126: 588716 | F126: XERTIGNY | G126: 2.8 | H126: 63% | I126: 50% | J126: 117 | K126: 38% | L126: 38% | M126: 66 | N126: 78% | O126: 78% | P126: 155 | Q126: 82% | R126: 50% | S126: 70 | T126: 75% | U126: 75% | V126: 119 | W126: 76% | X126: 73% | Y126: 190
A127: 30 | B127: MEURTHE ET MOSELLE MEUSE | C127: 31 | D127: VERDUN | E127: 455151 | F127: BAR LE DUC | G127: 9.9 | H127: 63% | I127: 51% | J127: 118 | K127: 38% | L127: 38% | M127: 64 | N127: 75% | O127: 75% | P127: 134 | Q127: 90% | R127: 58% | S127: 153 | T127: 75% | U127: 75% | V127: 118 | W127: 72% | X127: 68% | Y127: 147
A128: 30 | B128: BAS RHIN | C128: 5006 | D128: STRASBOURG | E128: 4019 | F128: STRASBOURG ANVERS | G128: 4.5 | H128: 63% | I128: 51% | J128: 119 | K128: 67% | L128: 67% | M128: 176 | N128: 61% | O128: 61% | P128: 48 | Q128: 83% | R128: 51% | S128: 77 | T128: 71% | U128: 71% | V128: 76 | W128: 68% | X128: 64% | Y128: 95
A129: 30 | B129: MARNE ARDENNES | C129: 2 | D129: CHARLEVILLE MEZIERES | E129: 508802 | F129: CHARLEVILLE NEVERS | G129: 2.8 | H129: 63% | I129: 51% | J129: 120 | K129: 25% | L129: 25% | M129: 24 | N129: 86% | O129: 86% | P129: 213 | Q129: 96% | R129: 64% | S129: 221 | T129: 73% | U129: 73% | V129: 87 | W129: 69% | X129: 66% | Y129: 118
A130: 30 | B130: MEURTHE ET MOSELLE MEUSE | C130: 27 | D130: PONT A MOUSSON | E130: 554357 | F130: JOEUF | G130: 3.1 | H130: 63% | I130: 51% | J130: 121 | K130: 40% | L130: 40% | M130: 73 | N130: 74% | O130: 74% | P130: 129 | Q130: 93% | R130: 62% | S130: 195 | T130: 79% | U130: 79% | V130: 158 | W130: 63% | X130: 59% | Y130: 66
A131: 30 | B131: MEURTHE ET MOSELLE MEUSE | C131: 31 | D131: VERDUN | E131: 554412 | F131: LONGUYON | G131: 2.8 | H131: 63% | I131: 51% | J131: 122 | K131: 44% | L131: 44% | M131: 90 | N131: 67% | O131: 67% | P131: 75 | Q131: 90% | R131: 58% | S131: 157 | T131: 76% | U131: 76% | V131: 128 | W131: 73% | X131: 69% | Y131: 156
A132: 30 | B132: MOSELLE | C132: 42 | D132: MOSELLE EST | E132: 457543 | F132: PUTTELANGE AUX LACS | G132: 2.5 | H132: 63% | I132: 51% | J132: 123 | K132: 52% | L132: 52% | M132: 122 | N132: 70% | O132: 70% | P132: 93 | Q132: 90% | R132: 59% | S132: 160 | T132: 71% | U132: 71% | V132: 73 | W132: 67% | X132: 63% | Y132: 84
A133: 30 | B133: MOSELLE | C133: 45 | D133: METZ | E133: 557612 | F133: SAINTE MARIE AUX CHENES | G133: 3.7 | H133: 63% | I133: 51% | J133: 124 | K133: 29% | L133: 29% | M133: 35 | N133: 88% | O133: 88% | P133: 223 | Q133: 81% | R133: 49% | S133: 63 | T133: 75% | U133: 75% | V133: 114 | W133: 78% | X133: 74% | Y133: 213
A134: 30 | B134: VOSGES | C134: 55 | D134: SAINT DIE | E134: 588316 | F134: FRAIZE | G134: 3.6 | H134: 63% | I134: 51% | J134: 125 | K134: 45% | L134: 45% | M134: 94 | N134: 79% | O134: 79% | P134: 164 | Q134: 84% | R134: 52% | S134: 83 | T134: 73% | U134: 73% | V134: 92 | W134: 70% | X134: 66% | Y134: 123
A135: 30 | B135: MOSELLE | C135: 44 | D135: MOSELLE NORD | E135: 557307 | F135: FONTOY | G135: 1.8 | H135: 63% | I135: 51% | J135: 126 | K135: 37% | L135: 37% | M135: 63 | N135: 81% | O135: 81% | P135: 186 | Q135: 85% | R135: 53% | S135: 105 | T135: 85% | U135: 85% | V135: 217 | W135: 63% | X135: 59% | Y135: 64
A136: 110 | B136: BAS RHIN | C136: 5006 | D136: STRASBOURG | E136: 4023 | F136: STRASBOURG VOSGES | G136: 2.9 | H136: 63% | I136: 51% | J136: 127 | K136: 48% | L136: 48% | M136: 108 | N136: 72% | O136: 72% | P136: 110 | Q136: 73% | R136: 41% | S136: 20 | T136: 82% | U136: 82% | V136: 189 | W136: 77% | X136: 73% | Y136: 202
A137: 110 | B137: MEURTHE ET MOSELLE MEUSE | C137: 31 | D137: VERDUN | E137: 555624 | F137: STENAY | G137: 3.3 | H137: 63% | I137: 51% | J137: 128 | K137: 67% | L137: 67% | M137: 179 | N137: 61% | O137: 61% | P137: 49 | Q137: 89% | R137: 57% | S137: 144 | T137: 81% | U137: 81% | V137: 175 | W137: 54% | X137: 50% | Y137: 26
A138: 110 | B138: MEURTHE ET MOSELLE MEUSE | C138: 26 | D138: NANCY | E138: 554296 | F138: ESSEY LES NANCY | G138: 3.6 | H138: 64% | I138: 51% | J138: 129 | K138: 33% | L138: 33% | M138: 48 | N138: 74% | O138: 74% | P138: 124 | Q138: 91% | R138: 59% | S138: 164 | T138: 84% | U138: 84% | V138: 204 | W138: 72% | X138: 68% | Y138: 144
A139: 110 | B139: MOSELLE | C139: 44 | D139: MOSELLE NORD | E139: 457192 | F139: CATTENOM | G139: 1.6 | H139: 64% | I139: 52% | J139: 130 | K139: 53% | L139: 53% | M139: 127 | N139: 68% | O139: 68% | P139: 80 | Q139: 88% | R139: 57% | S139: 141 | T139: 79% | U139: 79% | V139: 151 | W139: 66% | X139: 63% | Y139: 79
A140: 110 | B140: MEURTHE ET MOSELLE MEUSE | C140: 27 | D140: PONT A MOUSSON | E140: 554496 | F140: NANCY TROIS MAISONS | G140: 2.3 | H140: 64% | I140: 52% | J140: 131 | K140: 65% | L140: 65% | M140: 168 | N140: 71% | O140: 71% | P140: 109 | Q140: 88% | R140: 56% | S140: 140 | T140: 69% | U140: 69% | V140: 65 | W140: 62% | X140: 58% | Y140: 58
A141: 110 | B141: AUBE HAUTE MARNE | C141: 21 | D141: CHAUMONT | E141: 451156 | F141: SAINT DIZIER CENTRE | G141: 8.6 | H141: 64% | I141: 52% | J141: 132 | K141: 55% | L141: 55% | M141: 137 | N141: 74% | O141: 74% | P141: 122 | Q141: 88% | R141: 56% | S141: 132 | T141: 70% | U141: 70% | V141: 72 | W141: 69% | X141: 65% | Y141: 109
A142: 110 | B142: VOSGES | C142: 57 | D142: EPINAL | E142: 588201 | F142: CHANTRAINE | G142: 3.7 | H142: 64% | I142: 52% | J142: 133 | K142: 45% | L142: 45% | M142: 92 | N142: 70% | O142: 70% | P142: 92 | Q142: 84% | R142: 52% | S142: 92 | T142: 82% | U142: 82% | V142: 187 | W142: 76% | X142: 72% | Y142: 189
A143: 110 | B143: MOSELLE | C143: 42 | D143: MOSELLE EST | E143: 457435 | F143: MERLEBACH | G143: 2.8 | H143: 64% | I143: 52% | J143: 134 | K143: 46% | L143: 46% | M143: 96 | N143: 75% | O143: 75% | P143: 136 | Q143: 95% | R143: 63% | S143: 209 | T143: 77% | U143: 77% | V143: 137 | W143: 64% | X143: 61% | Y143: 72
A144: 110 | B144: BAS RHIN | C144: 5006 | D144: STRASBOURG | E144: 4027 | F144: SCHILTIGHEIM CENTRE | G144: 4.1 | H144: 64% | I144: 52% | J144: 135 | K144: 71% | L144: 71% | M144: 204 | N144: 62% | O144: 62% | P144: 52 | Q144: 82% | R144: 50% | S144: 73 | T144: 71% | U144: 71% | V144: 75 | W144: 71% | X144: 67% | Y144: 135
A145: 110 | B145: HAUT RHIN | C145: 5130 | D145: COLMAR | E145: 4143 | F145: MUNSTER | G145: 4.3 | H145: 64% | I145: 52% | J145: 136 | K145: 58% | L145: 58% | M145: 141 | N145: 68% | O145: 68% | P145: 84 | Q145: 86% | R145: 54% | S145: 118 | T145: 73% | U145: 73% | V145: 99 | W145: 71% | X145: 67% | Y145: 138
A146: 110 | B146: BAS RHIN | C146: 5060 | D146: HAGUENAU | E146: 4031 | F146: TRUCHTERSHEIM | G146: 2.3 | H146: 64% | I146: 52% | J146: 137 | K146: 36% | L146: 36% | M146: 52 | N146: 64% | O146: 64% | P146: 58 | Q146: 87% | R146: 55% | S146: 126 | T146: 89% | U146: 89% | V146: 230 | W146: 82% | X146: 79% | Y146: 236
A147: 110 | B147: MEURTHE ET MOSELLE MEUSE | C147: 31 | D147: VERDUN | E147: 455566 | F147: REVIGNY SUR ORNAIN | G147: 2.7 | H147: 65% | I147: 52% | J147: 138 | K147: 48% | L147: 48% | M147: 106 | N147: 78% | O147: 78% | P147: 157 | Q147: 84% | R147: 52% | S147: 81 | T147: 75% | U147: 75% | V147: 112 | W147: 74% | X147: 70% | Y147: 169
A148: 110 | B148: BAS RHIN | C148: 5101 | D148: SELESTAT | E148: 4126 | F148: MUTZIG | G148: 2.7 | H148: 65% | I148: 52% | J148: 139 | K148: 63% | L148: 63% | M148: 158 | N148: 60% | O148: 60% | P148: 43 | Q148: 83% | R148: 51% | S148: 75 | T148: 80% | U148: 80% | V148: 165 | W148: 72% | X148: 69% | Y148: 151
A149: 110 | B149: VOSGES | C149: 55 | D149: SAINT DIE | E149: 588461 | F149: MOYENMOUTIER | G149: 4.3 | H149: 65% | I149: 52% | J149: 140 | K149: 44% | L149: 44% | M149: 89 | N149: 71% | O149: 71% | P149: 107 | Q149: 89% | R149: 57% | S149: 150 | T149: 77% | U149: 77% | V149: 133 | W149: 78% | X149: 74% | Y149: 211
A150: 110 | B150: BAS RHIN | C150: 5006 | D150: STRASBOURG | E150: 4039 | F150: REICHSTETT | G150: 1.6 | H150: 65% | I150: 53% | J150: 141 | K150: 54% | L150: 54% | M150: 129 | N150: 76% | O150: 76% | P150: 144 | Q150: 78% | R150: 46% | S150: 41 | T150: 75% | U150: 75% | V150: 115 | W150: 77% | X150: 73% | Y150: 206
A151: 110 | B151: BAS RHIN | C151: 5006 | D151: STRASBOURG | E151: 4020 | F151: STRASBOURG ROBERTSAU | G151: 5.3 | H151: 65% | I151: 53% | J151: 142 | K151: 54% | L151: 54% | M151: 131 | N151: 79% | O151: 79% | P151: 169 | Q151: 65% | R151: 33% | S151: 6 | T151: 84% | U151: 84% | V151: 211 | W151: 78% | X151: 74% | Y151: 212
A152: 110 | B152: MEURTHE ET MOSELLE MEUSE | C152: 26 | D152: NANCY | E152: 554486 | F152: NANCY POINT CENTRAL | G152: 2.9 | H152: 65% | I152: 53% | J152: 143 | K152: 55% | L152: 55% | M152: 136 | N152: 82% | O152: 82% | P152: 195 | Q152: 75% | R152: 43% | S152: 27 | T152: 79% | U152: 79% | V152: 157 | W152: 69% | X152: 66% | Y152: 117
A153: 110 | B153: MARNE ARDENNES | C153: 2 | D153: CHARLEVILLE MEZIERES | E153: 408862 | F153: REVIN | G153: 3.9 | H153: 65% | I153: 53% | J153: 144 | K153: 43% | L153: 43% | M153: 85 | N153: 82% | O153: 82% | P153: 188 | Q153: 93% | R153: 61% | S153: 193 | T153: 71% | U153: 71% | V153: 81 | W153: 72% | X153: 68% | Y153: 142
A154: 110 | B154: MOSELLE | C154: 42 | D154: MOSELLE EST | E154: 557503 | F154: NEUNKIRCH | G154: 3.3 | H154: 65% | I154: 53% | J154: 145 | K154: 11% | L154: 11% | M154: 7 | N154: 88% | O154: 88% | P154: 222 | Q154: 96% | R154: 64% | S154: 220 | T154: 90% | U154: 90% | V154: 234 | W154: 78% | X154: 75% | Y154: 215
A155: 110 | B155: MEURTHE ET MOSELLE MEUSE | C155: 26 | D155: NANCY | E155: 554166 | F155: BLAINVILLE | G155: 2.8 | H155: 65% | I155: 53% | J155: 146 | K155: 67% | L155: 67% | M155: 180 | N155: 65% | O155: 65% | P155: 67 | Q155: 92% | R155: 60% | S155: 174 | T155: 69% | U155: 69% | V155: 62 | W155: 70% | X155: 67% | Y155: 124
A156: 110 | B156: MOSELLE | C156: 45 | D156: METZ | E156: 557441 | F156: METZ PLAPPEVILLE | G156: 2.4 | H156: 66% | I156: 53% | J156: 147 | K156: 64% | L156: 64% | M156: 166 | N156: 80% | O156: 80% | P156: 179 | Q156: 70% | R156: 39% | S156: 13 | T156: 80% | U156: 80% | V156: 170 | W156: 69% | X156: 65% | Y156: 108
A157: 110 | B157: BAS RHIN | C157: 5006 | D157: STRASBOURG | E157: 4045 | F157: STRASBOURG FRANCS BOURGEOIS | G157: 4.1 | H157: 66% | I157: 54% | J157: 148 | K157: 52% | L157: 52% | M157: 121 | N157: 65% | O157: 65% | P157: 71 | Q157: 92% | R157: 60% | S157: 184 | T157: 78% | U157: 78% | V157: 142 | W157: 77% | X157: 73% | Y157: 199
A158: 110 | B158: AUBE HAUTE MARNE | C158: 21 | D158: CHAUMONT | E158: 410566 | F158: CHAUMONT HOTEL DE VILLE | G158: 10.4 | H158: 66% | I158: 54% | J158: 149 | K158: 46% | L158: 46% | M158: 95 | N158: 81% | O158: 81% | P158: 184 | Q158: 85% | R158: 53% | S158: 96 | T158: 79% | U158: 79% | V158: 156 | W158: 75% | X158: 71% | Y158: 179
A159: 110 | B159: VOSGES | C159: 57 | D159: EPINAL | E159: 588206 | F159: CHARMES | G159: 2.7 | H159: 66% | I159: 54% | J159: 150 | K159: 50% | L159: 50% | M159: 112 | N159: 82% | O159: 82% | P159: 190 | Q159: 82% | R159: 50% | S159: 68 | T159: 79% | U159: 79% | V159: 155 | W159: 73% | X159: 69% | Y159: 158
A160: 110 | B160: MOSELLE | C160: 42 | D160: MOSELLE EST | E160: 557210 | F160: CHATEAU SALINS | G160: 1.6 | H160: 66% | I160: 54% | J160: 151 | K160: 67% | L160: 67% | M160: 175 | N160: 71% | O160: 71% | P160: 100 | Q160: 92% | R160: 60% | S160: 173 | T160: 64% | U160: 64% | V160: 30 | W160: 72% | X160: 68% | Y160: 143
A161: 110 | B161: BAS RHIN | C161: 5101 | D161: SELESTAT | E161: 4127 | F161: ROSHEIM | G161: 1.7 | H161: 66% | I161: 54% | J161: 152 | K161: 54% | L161: 54% | M161: 130 | N161: 84% | O161: 84% | P161: 199 | Q161: 74% | R161: 42% | S161: 24 | T161: 83% | U161: 83% | V161: 195 | W161: 71% | X161: 67% | Y161: 131
A162: 110 | B162: VOSGES | C162: 57 | D162: EPINAL | E162: 488706 | F162: VITTEL | G162: 3.1 | H162: 66% | I162: 54% | J162: 153 | K162: 50% | L162: 50% | M162: 113 | N162: 79% | O162: 79% | P162: 175 | Q162: 92% | R162: 60% | S162: 177 | T162: 74% | U162: 74% | V162: 103 | W162: 70% | X162: 67% | Y162: 127
A163: 110 | B163: MEURTHE ET MOSELLE MEUSE | C163: 27 | D163: PONT A MOUSSON | E163: 454355 | F163: JARNY | G163: 4.1 | H163: 66% | I163: 54% | J163: 154 | K163: 48% | L163: 48% | M163: 105 | N163: 76% | O163: 76% | P163: 146 | Q163: 88% | R163: 56% | S163: 135 | T163: 76% | U163: 76% | V163: 126 | W163: 77% | X163: 74% | Y163: 209
A164: 110 | B164: MOSELLE | C164: 45 | D164: METZ | E164: 557459 | F164: MOULINS LES METZ | G164: 2.5 | H164: 66% | I164: 54% | J164: 155 | K164: 41% | L164: 41% | M164: 74 | N164: 82% | O164: 82% | P164: 196 | Q164: 91% | R164: 59% | S164: 161 | T164: 79% | U164: 79% | V164: 150 | W164: 74% | X164: 71% | Y164: 176
A165: 110 | B165: HAUT RHIN | C165: 5130 | D165: COLMAR | E165: 4157 | F165: NEUF BRISACH | G165: 2.7 | H165: 67% | I165: 54% | J165: 156 | K165: 70% | L165: 70% | M165: 198 | N165: 74% | O165: 74% | P165: 126 | Q165: 86% | R165: 54% | S165: 119 | T165: 70% | U165: 70% | V165: 71 | W165: 68% | X165: 65% | Y165: 99
A166: 110 | B166: AUBE HAUTE MARNE | C166: 14 | D166: TROYES | E166: 510513 | F166: SAINT PARRES AUX TERTRES | G166: 2.5 | H166: 67% | I166: 54% | J166: 157 | K166: 81% | L166: 81% | M166: 239 | N166: 65% | O166: 65% | P166: 69 | Q166: 88% | R166: 56% | S166: 131 | T166: 67% | U166: 67% | V166: 48 | W166: 68% | X166: 65% | Y166: 101
A167: 110 | B167: MARNE ARDENNES | C167: 11 | D167: REIMS | E167: 551309 | F167: REIMS EUROPE | G167: 2.9 | H167: 67% | I167: 55% | J167: 158 | K167: 56% | L167: 56% | M167: 140 | N167: 75% | O167: 75% | P167: 133 | Q167: 95% | R167: 63% | S167: 211 | T167: 73% | U167: 73% | V167: 93 | W167: 71% | X167: 67% | Y167: 132
A168: 110 | B168: BAS RHIN | C168: 5060 | D168: HAGUENAU | E168: 4085 | F168: INGWILLER | G168: 3.5 | H168: 67% | I168: 55% | J168: 159 | K168: 54% | L168: 54% | M168: 128 | N168: 77% | O168: 77% | P168: 152 | Q168: 91% | R168: 59% | S168: 169 | T168: 77% | U168: 77% | V168: 134 | W168: 71% | X168: 67% | Y168: 134
A169: 110 | B169: MEURTHE ET MOSELLE MEUSE | C169: 27 | D169: PONT A MOUSSON | E169: 454651 | F169: TOUL | G169: 9.7 | H169: 67% | I169: 55% | J169: 160 | K169: 73% | L169: 73% | M169: 213 | N169: 79% | O169: 79% | P169: 172 | Q169: 85% | R169: 53% | S169: 94 | T169: 72% | U169: 72% | V169: 82 | W169: 62% | X169: 59% | Y169: 63
A170: 110 | B170: AUBE HAUTE MARNE | C170: 14 | D170: TROYES | E170: 510523 | F170: LA CHAPELLE ST LUC | G170: 4.6 | H170: 67% | I170: 55% | J170: 161 | K170: 78% | L170: 78% | M170: 236 | N170: 72% | O170: 72% | P170: 116 | Q170: 85% | R170: 53% | S170: 99 | T170: 66% | U170: 66% | V170: 36 | W170: 70% | X170: 66% | Y170: 122
A171: 110 | B171: VOSGES | C171: 55 | D171: SAINT DIE | E171: 488556 | F171: RAON L ETAPE | G171: 2.2 | H171: 67% | I171: 55% | J171: 162 | K171: 41% | L171: 41% | M171: 76 | N171: 89% | O171: 89% | P171: 229 | Q171: 99% | R171: 67% | S171: 233 | T171: 78% | U171: 78% | V171: 149 | W171: 64% | X171: 61% | Y171: 73
A172: 110 | B172: BAS RHIN | C172: 5101 | D172: SELESTAT | E172: 4007 | F172: ILLKIRCH CENTRE | G172: 6.6 | H172: 67% | I172: 55% | J172: 163 | K172: 68% | L172: 68% | M172: 185 | N172: 75% | O172: 75% | P172: 139 | Q172: 91% | R172: 60% | S172: 172 | T172: 66% | U172: 66% | V172: 42 | W172: 71% | X172: 67% | Y172: 137
A173: 110 | B173: MARNE ARDENNES | C173: 2 | D173: CHARLEVILLE MEZIERES | E173: 408806 | F173: SEDAN | G173: 7.6 | H173: 67% | I173: 55% | J173: 164 | K173: 47% | L173: 47% | M173: 100 | N173: 79% | O173: 79% | P173: 162 | Q173: 91% | R173: 59% | S173: 170 | T173: 86% | U173: 86% | V173: 221 | W173: 69% | X173: 65% | Y173: 105
A174: 110 | B174: BAS RHIN | C174: 5006 | D174: STRASBOURG | E174: 4028 | F174: BISCHHEIM | G174: 3.2 | H174: 68% | I174: 55% | J174: 165 | K174: 66% | L174: 66% | M174: 173 | N174: 80% | O174: 80% | P174: 178 | Q174: 78% | R174: 46% | S174: 43 | T174: 71% | U174: 71% | V174: 78 | W174: 78% | X174: 74% | Y174: 210
A175: 110 | B175: MEURTHE ET MOSELLE MEUSE | C175: 26 | D175: NANCY | E175: 554266 | F175: DOMBASLE SUR MEURTHE | G175: 3.3 | H175: 68% | I175: 55% | J175: 166 | K175: 68% | L175: 68% | M175: 184 | N175: 87% | O175: 87% | P175: 217 | Q175: 78% | R175: 46% | S175: 39 | T175: 75% | U175: 75% | V175: 108 | W175: 66% | X175: 63% | Y175: 80
A176: 110 | B176: HAUT RHIN | C176: 5169 | D176: MULHOUSE | E176: 4180 | F176: RIEDISHEIM | G176: 3.4 | H176: 68% | I176: 55% | J176: 167 | K176: 44% | L176: 44% | M176: 88 | N176: 79% | O176: 79% | P176: 166 | Q176: 97% | R176: 65% | S176: 226 | T176: 75% | U176: 75% | V176: 113 | W176: 79% | X176: 75% | Y176: 219
A177: 110 | B177: MOSELLE | C177: 45 | D177: METZ | E177: 557559 | F177: REMILLY | G177: 3.5 | H177: 68% | I177: 56% | J177: 168 | K177: 60% | L177: 60% | M177: 146 | N177: 77% | O177: 77% | P177: 150 | Q177: 87% | R177: 55% | S177: 128 | T177: 83% | U177: 83% | V177: 193 | W177: 68% | X177: 65% | Y177: 100
A178: 160 | B178: MARNE ARDENNES | C178: 6 | D178: CHALONS EN CHAMPAGNE | E178: 451166 | F178: VITRY LE FRANCOIS | G178: 3.6 | H178: 68% | I178: 56% | J178: 169 | K178: 75% | L178: 75% | M178: 220 | N178: 69% | O178: 69% | P178: 88 | Q178: 101% | R178: 69% | S178: 237 | T178: 77% | U178: 77% | V178: 136 | W178: 54% | X178: 50% | Y178: 28
A179: 160 | B179: MOSELLE | C179: 42 | D179: MOSELLE EST | E179: 457614 | F179: SARREBOURG | G179: 7.6 | H179: 68% | I179: 56% | J179: 170 | K179: 56% | L179: 56% | M179: 138 | N179: 79% | O179: 79% | P179: 163 | Q179: 90% | R179: 58% | S179: 155 | T179: 78% | U179: 78% | V179: 146 | W179: 74% | X179: 71% | Y179: 171
A180: 160 | B180: BAS RHIN | C180: 5060 | D180: HAGUENAU | E180: 4082 | F180: BOUXWILLER | G180: 2.3 | H180: 68% | I180: 56% | J180: 171 | K180: 35% | L180: 35% | M180: 51 | N180: 84% | O180: 84% | P180: 203 | Q180: 113% | R180: 81% | S180: 242 | T180: 75% | U180: 75% | V180: 121 | W180: 69% | X180: 65% | Y180: 107
A181: 160 | B181: MOSELLE | C181: 45 | D181: METZ | E181: 557436 | F181: METZ CATHEDRALE | G181: 4.0 | H181: 68% | I181: 56% | J181: 172 | K181: 76% | L181: 76% | M181: 224 | N181: 72% | O181: 72% | P181: 111 | Q181: 82% | R181: 50% | S181: 72 | T181: 73% | U181: 73% | V181: 97 | W181: 74% | X181: 70% | Y181: 170
A182: 160 | B182: MARNE ARDENNES | C182: 2 | D182: CHARLEVILLE MEZIERES | E182: 508815 | F182: CARIGNAN | G182: 2.7 | H182: 68% | I182: 56% | J182: 173 | K182: 43% | L182: 43% | M182: 84 | N182: 79% | O182: 79% | P182: 167 | Q182: 91% | R182: 59% | S182: 165 | T182: 88% | U182: 88% | V182: 227 | W182: 75% | X182: 72% | Y182: 183
A183: 160 | B183: BAS RHIN | C183: 5101 | D183: SELESTAT | E183: 4008 | F183: FEGERSHEIM | G183: 2.4 | H183: 68% | I183: 56% | J183: 174 | K183: 51% | L183: 51% | M183: 116 | N183: 72% | O183: 72% | P183: 115 | Q183: 86% | R183: 55% | S183: 120 | T183: 84% | U183: 84% | V183: 205 | W183: 83% | X183: 79% | Y183: 238
A184: 160 | B184: BAS RHIN | C184: 5101 | D184: SELESTAT | E184: 4107 | F184: VILLE | G184: 2.2 | H184: 68% | I184: 56% | J184: 175 | K184: 73% | L184: 73% | M184: 214 | N184: 65% | O184: 65% | P184: 70 | Q184: 78% | R184: 46% | S184: 40 | T184: 80% | U184: 80% | V184: 167 | W184: 81% | X184: 78% | Y184: 233
A185: 160 | B185: HAUT RHIN | C185: 5169 | D185: MULHOUSE | E185: 4170 | F185: MULHOUSE REUNION | G185: 7.7 | H185: 68% | I185: 56% | J185: 176 | K185: 61% | L185: 61% | M185: 149 | N185: 77% | O185: 77% | P185: 154 | Q185: 94% | R185: 62% | S185: 202 | T185: 75% | U185: 75% | V185: 111 | W185: 70% | X185: 67% | Y185: 125
A186: 160 | B186: MOSELLE | C186: 45 | D186: METZ | E186: 557712 | F186: WOIPPY | G186: 4.5 | H186: 69% | I186: 56% | J186: 177 | K186: 71% | L186: 71% | M186: 205 | N186: 72% | O186: 72% | P186: 114 | Q186: 88% | R186: 56% | S186: 133 | T186: 75% | U186: 75% | V186: 110 | W186: 73% | X186: 70% | Y186: 160
A187: 160 | B187: HAUT RHIN | C187: 5130 | D187: COLMAR | E187: 4132 | F187: COLMAR MARAICHERS | G187: 3.8 | H187: 69% | I187: 57% | J187: 178 | K187: 59% | L187: 59% | M187: 143 | N187: 75% | O187: 75% | P187: 135 | Q187: 85% | R187: 53% | S187: 106 | T187: 82% | U187: 82% | V187: 182 | W187: 78% | X187: 75% | Y187: 216
A188: 160 | B188: AUBE HAUTE MARNE | C188: 14 | D188: TROYES | E188: 410550 | F188: BAR SUR AUBE | G188: 5.2 | H188: 69% | I188: 57% | J188: 179 | K188: 45% | L188: 45% | M188: 93 | N188: 79% | O188: 79% | P188: 174 | Q188: 98% | R188: 66% | S188: 229 | T188: 84% | U188: 84% | V188: 198 | W188: 73% | X188: 70% | Y188: 165
A189: 160 | B189: MOSELLE | C189: 44 | D189: MOSELLE NORD | E189: 457180 | F189: BOUSSE | G189: 2.5 | H189: 69% | I189: 57% | J189: 180 | K189: 15% | L189: 15% | M189: 9 | N189: 88% | O189: 88% | P189: 225 | Q189: 93% | R189: 61% | S189: 191 | T189: 94% | U189: 94% | V189: 240 | W189: 89% | X189: 86% | Y189: 244
A190: 160 | B190: BAS RHIN | C190: 5101 | D190: SELESTAT | E190: 4109 | F190: MARCKOLSHEIM | G190: 2.5 | H190: 69% | I190: 57% | J190: 181 | K190: 59% | L190: 59% | M190: 144 | N190: 76% | O190: 76% | P190: 143 | Q190: 94% | R190: 62% | S190: 196 | T190: 79% | U190: 79% | V190: 160 | W190: 73% | X190: 69% | Y190: 159
A191: 160 | B191: MARNE ARDENNES | C191: 2 | D191: CHARLEVILLE MEZIERES | E191: 508860 | F191: ROCROI | G191: 2.3 | H191: 69% | I191: 57% | J191: 182 | K191: 73% | L191: 73% | M191: 216 | N191: 69% | O191: 69% | P191: 86 | Q191: 93% | R191: 61% | S191: 187 | T191: 78% | U191: 78% | V191: 141 | W191: 69% | X191: 65% | Y191: 106
A192: 160 | B192: BAS RHIN | C192: 5006 | D192: STRASBOURG | E192: 4029 | F192: SCHILTIGHEIM KLEBER | G192: 0.9 | H192: 69% | I192: 57% | J192: 183 | K192: 62% | L192: 62% | M192: 151 | N192: 92% | O192: 92% | P192: 239 | Q192: 80% | R192: 49% | S192: 59 | T192: 76% | U192: 76% | V192: 125 | W192: 72% | X192: 68% | Y192: 141
A193: 160 | B193: MEURTHE ET MOSELLE MEUSE | C193: 27 | D193: PONT A MOUSSON | E193: 454696 | F193: VILLERS GENERAL LECLERC | G193: 4.0 | H193: 69% | I193: 57% | J193: 184 | K193: 65% | L193: 65% | M193: 170 | N193: 84% | O193: 84% | P193: 206 | Q193: 72% | R193: 40% | S193: 18 | T193: 82% | U193: 82% | V193: 186 | W193: 79% | X193: 75% | Y193: 220
A194: 160 | B194: MEURTHE ET MOSELLE MEUSE | C194: 27 | D194: PONT A MOUSSON | E194: 554196 | F194: CHAMPIGNEULLES | G194: 2.5 | H194: 70% | I194: 57% | J194: 185 | K194: 65% | L194: 65% | M194: 172 | N194: 84% | O194: 84% | P194: 202 | Q194: 89% | R194: 57% | S194: 151 | T194: 70% | U194: 70% | V194: 70 | W194: 75% | X194: 71% | Y194: 181
A195: 160 | B195: MARNE ARDENNES | C195: 11 | D195: REIMS | E195: 451308 | F195: REIMS SAINT THOMAS | G195: 5.4 | H195: 70% | I195: 58% | J195: 186 | K195: 81% | L195: 81% | M195: 240 | N195: 71% | O195: 71% | P195: 99 | Q195: 96% | R195: 64% | S195: 219 | T195: 74% | U195: 74% | V195: 104 | W195: 62% | X195: 59% | Y195: 60
A196: 160 | B196: MOSELLE | C196: 45 | D196: METZ | E196: 557440 | F196: METZ MOZART | G196: 3.0 | H196: 70% | I196: 58% | J196: 187 | K196: 63% | L196: 63% | M196: 160 | N196: 79% | O196: 79% | P196: 170 | Q196: 84% | R196: 52% | S196: 82 | T196: 79% | U196: 79% | V196: 154 | W196: 80% | X196: 77% | Y196: 230
A197: 160 | B197: HAUT RHIN | C197: 5169 | D197: MULHOUSE | E197: 4178 | F197: SAINT LOUIS | G197: 6.6 | H197: 70% | I197: 58% | J197: 188 | K197: 68% | L197: 68% | M197: 183 | N197: 77% | O197: 77% | P197: 148 | Q197: 83% | R197: 51% | S197: 79 | T197: 80% | U197: 80% | V197: 163 | W197: 79% | X197: 75% | Y197: 218
A198: 160 | B198: MARNE ARDENNES | C198: 2 | D198: CHARLEVILLE MEZIERES | E198: 508819 | F198: MOUZON | G198: 1.9 | H198: 70% | I198: 58% | J198: 189 | K198: 55% | L198: 55% | M198: 133 | N198: 90% | O198: 90% | P198: 233 | Q198: 81% | R198: 49% | S198: 61 | T198: 91% | U198: 91% | V198: 236 | W198: 70% | X198: 67% | Y198: 129
A199: 160 | B199: BAS RHIN | C199: 5060 | D199: HAGUENAU | E199: 4060 | F199: HAGUENAU HOUBLON | G199: 8.7 | H199: 70% | I199: 58% | J199: 190 | K199: 68% | L199: 68% | M199: 188 | N199: 81% | O199: 81% | P199: 183 | Q199: 84% | R199: 52% | S199: 89 | T199: 77% | U199: 77% | V199: 131 | W199: 76% | X199: 73% | Y199: 195
A200: 160 | B200: AUBE HAUTE MARNE | C200: 14 | D200: TROYES | E200: 410510 | F200: TROYES GAMBETTA | G200: 8.8 | H200: 70% | I200: 58% | J200: 191 | K200: 70% | L200: 70% | M200: 200 | N200: 77% | O200: 77% | P200: 149 | Q200: 93% | R200: 61% | S200: 188 | T200: 76% | U200: 76% | V200: 124 | W200: 71% | X200: 67% | Y200: 136
A201: 160 | B201: VOSGES | C201: 57 | D201: EPINAL | E201: 488256 | F201: DARNEY | G201: 1.6 | H201: 70% | I201: 58% | J201: 192 | K201: 30% | L201: 30% | M201: 38 | N201: 89% | O201: 89% | P201: 228 | Q201: 107% | R201: 75% | S201: 240 | T201: 81% | U201: 81% | V201: 173 | W201: 80% | X201: 77% | Y201: 231
A202: 160 | B202: MEURTHE ET MOSELLE MEUSE | C202: 26 | D202: NANCY | E202: 554491 | F202: NANCY SAINT SEBASTIEN | G202: 3.6 | H202: 70% | I202: 58% | J202: 193 | K202: 53% | L202: 53% | M202: 124 | N202: 85% | O202: 85% | P202: 207 | Q202: 92% | R202: 60% | S202: 180 | T202: 85% | U202: 85% | V202: 213 | W202: 74% | X202: 70% | Y202: 166
A203: 160 | B203: AUBE HAUTE MARNE | C203: 14 | D203: TROYES | E203: 510520 | F203: SAINT ANDRE LES VERGERS | G203: 3.0 | H203: 71% | I203: 58% | J203: 194 | K203: 80% | L203: 80% | M203: 237 | N203: 80% | O203: 80% | P203: 180 | Q203: 89% | R203: 57% | S203: 148 | T203: 75% | U203: 75% | V203: 120 | W203: 63% | X203: 60% | Y203: 69
... 51 more rows

Sheet AG_BANCA
B1: Accueil | H1: BAROMETRE BDD - AGENCES
H2: BANCARISATION
H3: =ACCUEIL!F7 -> 2022-09-11
H7: Ventes Nettes produits pondérés | L7: Ventes sur client non détenteur de l’univers | P7: Total Bancarisation
H8: =DATEMAJ!C8 -> au 11/09 | J8: coef | K8: ='RECAP DIRCOM'!AA4 -> 12% | L8: =DATEMAJ!C9 -> au 11/09 | N8: coef | O8: ='RECAP DIRCOM'!AE4 -> 8% | Q8: coef | R8: ='RECAP DIRCOM'!$AH$4 -> 20%
B9: Direction | C9: eds | D9: Territoire | E9: eds | F9: Agence | G9: ="ETP perf "&DATEMAJ!$C$28 -> ETP perf 11-sept | H9: VN | I9: VN / ETP | J9: % Ecart au 1er | K9: Rang | L9: VB | M9: VB / ETP | N9: % Ecart au 1er | O9: Rang | P9: Moyenne ecart au 1er | Q9: % Ecart au 1er | R9: Rang CEGEE
A10: 50 | B10: AUBE HAUTE MARNE | C10: 21 | D10: CHAUMONT | E10: 410541 | F10: LANGRES | G10: =VLOOKUP($E10,'RECAP AG'!$G$6:$CU$250,3,FALSE) -> 8.2 | H10: =VLOOKUP($E10,'RECAP AG'!$G$6:$CU$250,18,FALSE) -> 223.2 | I10: =VLOOKUP($E10,'RECAP AG'!$G$6:$CU$250,19,FALSE) -> 27.22 | J10: =VLOOKUP($E10,'RECAP AG'!$G$6:$CU$250,20,FALSE) -> 73% | K10: =VLOOKUP($E10,'RECAP AG'!$G$6:$CU$250,21,FALSE) -> 69 | L10: =VLOOKUP($E10,'RECAP AG'!$G$6:$CU$250,22,FALSE) -> 375 | M10: =VLOOKUP($E10,'RECAP AG'!$G$6:$CU$250,23,FALSE) -> 45.73 | N10: =VLOOKUP($E10,'RECAP AG'!$G$6:$CU$250,24,FALSE) -> 67% | O10: =VLOOKUP($E10,'RECAP AG'!$G$6:$CU$250,25,FALSE) -> 171 | P10: =VLOOKUP($E10,'RECAP AG'!$G$6:$CU$250,26,FALSE) -> 70% | Q10: =VLOOKUP($E10,'RECAP AG'!$G$6:$CU$250,27,FALSE) -> 70% | R10: =VLOOKUP($E10,'RECAP AG'!$G$6:$CU$250,28,FALSE) -> 95
A11: 50 | B11: AUBE HAUTE MARNE | C11: 21 | D11: CHAUMONT | E11: 410566 | F11: CHAUMONT HOTEL DE VILLE | G11: =VLOOKUP($E11,'RECAP AG'!$G$6:$CU$250,3,FALSE) -> 10.4 | H11: =VLOOKUP($E11,'RECAP AG'!$G$6:$CU$250,18,FALSE) -> 95.8 | I11: =VLOOKUP($E11,'RECAP AG'!$G$6:$CU$250,19,FALSE) -> 9.23 | J11: =VLOOKUP($E11,'RECAP AG'!$G$6:$CU$250,20,FALSE) -> 91% | K11: =VLOOKUP($E11,'RECAP AG'!$G$6:$CU$250,21,FALSE) -> 178 | L11: =VLOOKUP($E11,'RECAP AG'!$G$6:$CU$250,22,FALSE) -> 493 | M11: =VLOOKUP($E11,'RECAP AG'!$G$6:$CU$250,23,FALSE) -> 47.50 | N11: =VLOOKUP($E11,'RECAP AG'!$G$6:$CU$250,24,FALSE) -> 65% | O11: =VLOOKUP($E11,'RECAP AG'!$G$6:$CU$250,25,FALSE) -> 161 | P11: =VLOOKUP($E11,'RECAP AG'!$G$6:$CU$250,26,FALSE) -> 81% | Q11: =VLOOKUP($E11,'RECAP AG'!$G$6:$CU$250,27,FALSE) -> 81% | R11: =VLOOKUP($E11,'RECAP AG'!$G$6:$CU$250,28,FALSE) -> 184
A12: 50 | B12: AUBE HAUTE MARNE | C12: 21 | D12: CHAUMONT | E12: 510590 | F12: CHAUMONT REPUBLIQUE | G12: =VLOOKUP($E12,'RECAP AG'!$G$6:$CU$250,3,FALSE) -> 2.9 | H12: =VLOOKUP($E12,'RECAP AG'!$G$6:$CU$250,18,FALSE) -> 41.0 | I12: =VLOOKUP($E12,'RECAP AG'!$G$6:$CU$250,19,FALSE) -> 14.39 | J12: =VLOOKUP($E12,'RECAP AG'!$G$6:$CU$250,20,FALSE) -> 86% | K12: =VLOOKUP($E12,'RECAP AG'!$G$6:$CU$250,21,FALSE) -> 149 | L12: =VLOOKUP($E12,'RECAP AG'!$G$6:$CU$250,22,FALSE) -> 189 | M12: =VLOOKUP($E12,'RECAP AG'!$G$6:$CU$250,23,FALSE) -> 66.32 | N12: =VLOOKUP($E12,'RECAP AG'!$G$6:$CU$250,24,FALSE) -> 52% | O12: =VLOOKUP($E12,'RECAP AG'!$G$6:$CU$250,25,FALSE) -> 67 | P12: =VLOOKUP($E12,'RECAP AG'!$G$6:$CU$250,26,FALSE) -> 72% | Q12: =VLOOKUP($E12,'RECAP AG'!$G$6:$CU$250,27,FALSE) -> 72% | R12: =VLOOKUP($E12,'RECAP AG'!$G$6:$CU$250,28,FALSE) -> 113
A13: 50 | B13: AUBE HAUTE MARNE | C13: 21 | D13: CHAUMONT | E13: 451154 | F13: JOINVILLE | G13: =VLOOKUP($E13,'RECAP AG'!$G$6:$CU$250,3,FALSE) -> 1.8 | H13: =VLOOKUP($E13,'RECAP AG'!$G$6:$CU$250,18,FALSE) -> 39.0 | I13: =VLOOKUP($E13,'RECAP AG'!$G$6:$CU$250,19,FALSE) -> 21.20 | J13: =VLOOKUP($E13,'RECAP AG'!$G$6:$CU$250,20,FALSE) -> 79% | K13: =VLOOKUP($E13,'RECAP AG'!$G$6:$CU$250,21,FALSE) -> 95 | L13: =VLOOKUP($E13,'RECAP AG'!$G$6:$CU$250,22,FALSE) -> 125 | M13: =VLOOKUP($E13,'RECAP AG'!$G$6:$CU$250,23,FALSE) -> 67.93 | N13: =VLOOKUP($E13,'RECAP AG'!$G$6:$CU$250,24,FALSE) -> 50% | O13: =VLOOKUP($E13,'RECAP AG'!$G$6:$CU$250,25,FALSE) -> 58 | P13: =VLOOKUP($E13,'RECAP AG'!$G$6:$CU$250,26,FALSE) -> 67% | Q13: =VLOOKUP($E13,'RECAP AG'!$G$6:$CU$250,27,FALSE) -> 67% | R13: =VLOOKUP($E13,'RECAP AG'!$G$6:$CU$250,28,FALSE) -> 78
A14: 50 | B14: AUBE HAUTE MARNE | C14: 21 | D14: CHAUMONT | E14: 451156 | F14: SAINT DIZIER CENTRE | G14: =VLOOKUP($E14,'RECAP AG'!$G$6:$CU$250,3,FALSE) -> 8.6 | H14: =VLOOKUP($E14,'RECAP AG'!$G$6:$CU$250,18,FALSE) -> 124.1 | I14: =VLOOKUP($E14,'RECAP AG'!$G$6:$CU$250,19,FALSE) -> 14.46 | J14: =VLOOKUP($E14,'RECAP AG'!$G$6:$CU$250,20,FALSE) -> 86% | K14: =VLOOKUP($E14,'RECAP AG'!$G$6:$CU$250,21,FALSE) -> 147 | L14: =VLOOKUP($E14,'RECAP AG'!$G$6:$CU$250,22,FALSE) -> 521 | M14: =VLOOKUP($E14,'RECAP AG'!$G$6:$CU$250,23,FALSE) -> 60.72 | N14: =VLOOKUP($E14,'RECAP AG'!$G$6:$CU$250,24,FALSE) -> 56% | O14: =VLOOKUP($E14,'RECAP AG'!$G$6:$CU$250,25,FALSE) -> 94 | P14: =VLOOKUP($E14,'RECAP AG'!$G$6:$CU$250,26,FALSE) -> 74% | Q14: =VLOOKUP($E14,'RECAP AG'!$G$6:$CU$250,27,FALSE) -> 74% | R14: =VLOOKUP($E14,'RECAP AG'!$G$6:$CU$250,28,FALSE) -> 122
A15: 50 | B15: AUBE HAUTE MARNE | C15: 21 | D15: CHAUMONT | E15: 451151 | F15: WASSY | G15: =VLOOKUP($E15,'RECAP AG'!$G$6:$CU$250,3,FALSE) -> 1.9 | H15: =VLOOKUP($E15,'RECAP AG'!$G$6:$CU$250,18,FALSE) -> 22.0 | I15: =VLOOKUP($E15,'RECAP AG'!$G$6:$CU$250,19,FALSE) -> 11.46 | J15: =VLOOKUP($E15,'RECAP AG'!$G$6:$CU$250,20,FALSE) -> 89% | K15: =VLOOKUP($E15,'RECAP AG'!$G$6:$CU$250,21,FALSE) -> 166 | L15: =VLOOKUP($E15,'RECAP AG'!$G$6:$CU$250,22,FALSE) -> 91 | M15: =VLOOKUP($E15,'RECAP AG'!$G$6:$CU$250,23,FALSE) -> 47.40 | N15: =VLOOKUP($E15,'RECAP AG'!$G$6:$CU$250,24,FALSE) -> 65% | O15: =VLOOKUP($E15,'RECAP AG'!$G$6:$CU$250,25,FALSE) -> 162 | P15: =VLOOKUP($E15,'RECAP AG'!$G$6:$CU$250,26,FALSE) -> 79% | Q15: =VLOOKUP($E15,'RECAP AG'!$G$6:$CU$250,27,FALSE) -> 79% | R15: =VLOOKUP($E15,'RECAP AG'!$G$6:$CU$250,28,FALSE) -> 171
A16: 50 | B16: AUBE HAUTE MARNE | C16: 14 | D16: TROYES | E16: 510523 | F16: LA CHAPELLE ST LUC | G16: =VLOOKUP($E16,'RECAP AG'!$G$6:$CU$250,3,FALSE) -> 4.6 | H16: =VLOOKUP($E16,'RECAP AG'!$G$6:$CU$250,18,FALSE) -> 53.3 | I16: =VLOOKUP($E16,'RECAP AG'!$G$6:$CU$250,19,FALSE) -> 11.51 | J16: =VLOOKUP($E16,'RECAP AG'!$G$6:$CU$250,20,FALSE) -> 89% | K16: =VLOOKUP($E16,'RECAP AG'!$G$6:$CU$250,21,FALSE) -> 165 | L16: =VLOOKUP($E16,'RECAP AG'!$G$6:$CU$250,22,FALSE) -> 331 | M16: =VLOOKUP($E16,'RECAP AG'!$G$6:$CU$250,23,FALSE) -> 71.49 | N16: =VLOOKUP($E16,'RECAP AG'!$G$6:$CU$250,24,FALSE) -> 48% | O16: =VLOOKUP($E16,'RECAP AG'!$G$6:$CU$250,25,FALSE) -> 47 | P16: =VLOOKUP($E16,'RECAP AG'!$G$6:$CU$250,26,FALSE) -> 72% | Q16: =VLOOKUP($E16,'RECAP AG'!$G$6:$CU$250,27,FALSE) -> 72% | R16: =VLOOKUP($E16,'RECAP AG'!$G$6:$CU$250,28,FALSE) -> 116
A17: 50 | B17: AUBE HAUTE MARNE | C17: 14 | D17: TROYES | E17: 510530 | F17: ARCIS SUR AUBE | G17: =VLOOKUP($E17,'RECAP AG'!$G$6:$CU$250,3,FALSE) -> 3.6 | H17: =VLOOKUP($E17,'RECAP AG'!$G$6:$CU$250,18,FALSE) -> 52.5 | I17: =VLOOKUP($E17,'RECAP AG'!$G$6:$CU$250,19,FALSE) -> 14.50 | J17: =VLOOKUP($E17,'RECAP AG'!$G$6:$CU$250,20,FALSE) -> 86% | K17: =VLOOKUP($E17,'RECAP AG'!$G$6:$CU$250,21,FALSE) -> 146 | L17: =VLOOKUP($E17,'RECAP AG'!$G$6:$CU$250,22,FALSE) -> 174 | M17: =VLOOKUP($E17,'RECAP AG'!$G$6:$CU$250,23,FALSE) -> 48.07 | N17: =VLOOKUP($E17,'RECAP AG'!$G$6:$CU$250,24,FALSE) -> 65% | O17: =VLOOKUP($E17,'RECAP AG'!$G$6:$CU$250,25,FALSE) -> 157 | P17: =VLOOKUP($E17,'RECAP AG'!$G$6:$CU$250,26,FALSE) -> 77% | Q17: =VLOOKUP($E17,'RECAP AG'!$G$6:$CU$250,27,FALSE) -> 77% | R17: =VLOOKUP($E17,'RECAP AG'!$G$6:$CU$250,28,FALSE) -> 153
A18: 50 | B18: AUBE HAUTE MARNE | C18: 14 | D18: TROYES | E18: 410550 | F18: BAR SUR AUBE | G18: =VLOOKUP($E18,'RECAP AG'!$G$6:$CU$250,3,FALSE) -> 5.2 | H18: =VLOOKUP($E18,'RECAP AG'!$G$6:$CU$250,18,FALSE) -> 64.4 | I18: =VLOOKUP($E18,'RECAP AG'!$G$6:$CU$250,19,FALSE) -> 12.46 | J18: =VLOOKUP($E18,'RECAP AG'!$G$6:$CU$250,20,FALSE) -> 88% | K18: =VLOOKUP($E18,'RECAP AG'!$G$6:$CU$250,21,FALSE) -> 159 | L18: =VLOOKUP($E18,'RECAP AG'!$G$6:$CU$250,22,FALSE) -> 232 | M18: =VLOOKUP($E18,'RECAP AG'!$G$6:$CU$250,23,FALSE) -> 44.87 | N18: =VLOOKUP($E18,'RECAP AG'!$G$6:$CU$250,24,FALSE) -> 67% | O18: =VLOOKUP($E18,'RECAP AG'!$G$6:$CU$250,25,FALSE) -> 179 | P18: =VLOOKUP($E18,'RECAP AG'!$G$6:$CU$250,26,FALSE) -> 79% | Q18: =VLOOKUP($E18,'RECAP AG'!$G$6:$CU$250,27,FALSE) -> 79% | R18: =VLOOKUP($E18,'RECAP AG'!$G$6:$CU$250,28,FALSE) -> 174
A19: 50 | B19: AUBE HAUTE MARNE | C19: 14 | D19: TROYES | E19: 510556 | F19: BAR SUR SEINE | G19: =VLOOKUP($E19,'RECAP AG'!$G$6:$CU$250,3,FALSE) -> 2.6 | H19: =VLOOKUP($E19,'RECAP AG'!$G$6:$CU$250,18,FALSE) -> 11.6 | I19: =VLOOKUP($E19,'RECAP AG'!$G$6:$CU$250,19,FALSE) -> 4.39 | J19: =VLOOKUP($E19,'RECAP AG'!$G$6:$CU$250,20,FALSE) -> 96% | K19: =VLOOKUP($E19,'RECAP AG'!$G$6:$CU$250,21,FALSE) -> 201 | L19: =VLOOKUP($E19,'RECAP AG'!$G$6:$CU$250,22,FALSE) -> 97 | M19: =VLOOKUP($E19,'RECAP AG'!$G$6:$CU$250,23,FALSE) -> 36.74 | N19: =VLOOKUP($E19,'RECAP AG'!$G$6:$CU$250,24,FALSE) -> 73% | O19: =VLOOKUP($E19,'RECAP AG'!$G$6:$CU$250,25,FALSE) -> 223 | P19: =VLOOKUP($E19,'RECAP AG'!$G$6:$CU$250,26,FALSE) -> 87% | Q19: =VLOOKUP($E19,'RECAP AG'!$G$6:$CU$250,27,FALSE) -> 87% | R19: =VLOOKUP($E19,'RECAP AG'!$G$6:$CU$250,28,FALSE) -> 215
A20: 50 | B20: AUBE HAUTE MARNE | C20: 14 | D20: TROYES | E20: 510570 | F20: NOGENT SUR SEINE | G20: =VLOOKUP($E20,'RECAP AG'!$G$6:$CU$250,3,FALSE) -> 4.2 | H20: =VLOOKUP($E20,'RECAP AG'!$G$6:$CU$250,18,FALSE) -> 82.6 | I20: =VLOOKUP($E20,'RECAP AG'!$G$6:$CU$250,19,FALSE) -> 19.62 | J20: =VLOOKUP($E20,'RECAP AG'!$G$6:$CU$250,20,FALSE) -> 80% | K20: =VLOOKUP($E20,'RECAP AG'!$G$6:$CU$250,21,FALSE) -> 106 | L20: =VLOOKUP($E20,'RECAP AG'!$G$6:$CU$250,22,FALSE) -> 237 | M20: =VLOOKUP($E20,'RECAP AG'!$G$6:$CU$250,23,FALSE) -> 56.29 | N20: =VLOOKUP($E20,'RECAP AG'!$G$6:$CU$250,24,FALSE) -> 59% | O20: =VLOOKUP($E20,'RECAP AG'!$G$6:$CU$250,25,FALSE) -> 115 | P20: =VLOOKUP($E20,'RECAP AG'!$G$6:$CU$250,26,FALSE) -> 72% | Q20: =VLOOKUP($E20,'RECAP AG'!$G$6:$CU$250,27,FALSE) -> 72% | R20: =VLOOKUP($E20,'RECAP AG'!$G$6:$CU$250,28,FALSE) -> 112
A21: 50 | B21: AUBE HAUTE MARNE | C21: 14 | D21: TROYES | E21: 410571 | F21: ROMILLY SUR SEINE | G21: =VLOOKUP($E21,'RECAP AG'!$G$6:$CU$250,3,FALSE) -> 4.8 | H21: =VLOOKUP($E21,'RECAP AG'!$G$6:$CU$250,18,FALSE) -> 12.3 | I21: =VLOOKUP($E21,'RECAP AG'!$G$6:$CU$250,19,FALSE) -> 2.58 | J21: =VLOOKUP($E21,'RECAP AG'!$G$6:$CU$250,20,FALSE) -> 97% | K21: =VLOOKUP($E21,'RECAP AG'!$G$6:$CU$250,21,FALSE) -> 210 | L21: =VLOOKUP($E21,'RECAP AG'!$G$6:$CU$250,22,FALSE) -> 243 | M21: =VLOOKUP($E21,'RECAP AG'!$G$6:$CU$250,23,FALSE) -> 50.94 | N21: =VLOOKUP($E21,'RECAP AG'!$G$6:$CU$250,24,FALSE) -> 63% | O21: =VLOOKUP($E21,'RECAP AG'!$G$6:$CU$250,25,FALSE) -> 146 | P21: =VLOOKUP($E21,'RECAP AG'!$G$6:$CU$250,26,FALSE) -> 84% | Q21: =VLOOKUP($E21,'RECAP AG'!$G$6:$CU$250,27,FALSE) -> 84% | R21: =VLOOKUP($E21,'RECAP AG'!$G$6:$CU$250,28,FALSE) -> 198
A22: 50 | B22: AUBE HAUTE MARNE | C22: 14 | D22: TROYES | E22: 510520 | F22: SAINT ANDRE LES VERGERS | G22: =VLOOKUP($E22,'RECAP AG'!$G$6:$CU$250,3,FALSE) -> 3.0 | H22: =VLOOKUP($E22,'RECAP AG'!$G$6:$CU$250,18,FALSE) -> 2.7 | I22: =VLOOKUP($E22,'RECAP AG'!$G$6:$CU$250,19,FALSE) -> 0.89 | J22: =VLOOKUP($E22,'RECAP AG'!$G$6:$CU$250,20,FALSE) -> 99% | K22: =VLOOKUP($E22,'RECAP AG'!$G$6:$CU$250,21,FALSE) -> 216 | L22: =VLOOKUP($E22,'RECAP AG'!$G$6:$CU$250,22,FALSE) -> 202 | M22: =VLOOKUP($E22,'RECAP AG'!$G$6:$CU$250,23,FALSE) -> 66.89 | N22: =VLOOKUP($E22,'RECAP AG'!$G$6:$CU$250,24,FALSE) -> 51% | O22: =VLOOKUP($E22,'RECAP AG'!$G$6:$CU$250,25,FALSE) -> 65 | P22: =VLOOKUP($E22,'RECAP AG'!$G$6:$CU$250,26,FALSE) -> 80% | Q22: =VLOOKUP($E22,'RECAP AG'!$G$6:$CU$250,27,FALSE) -> 80% | R22: =VLOOKUP($E22,'RECAP AG'!$G$6:$CU$250,28,FALSE) -> 180
A23: 50 | B23: AUBE HAUTE MARNE | C23: 14 | D23: TROYES | E23: 410524 | F23: SAINT JULIEN LES VILLAS | G23: =VLOOKUP($E23,'RECAP AG'!$G$6:$CU$250,3,FALSE) -> 5.2 | H23: =VLOOKUP($E23,'RECAP AG'!$G$6:$CU$250,18,FALSE) -> 36.4 | I23: =VLOOKUP($E23,'RECAP AG'!$G$6:$CU$250,19,FALSE) -> 7.01 | J23: =VLOOKUP($E23,'RECAP AG'!$G$6:$CU$250,20,FALSE) -> 93% | K23: =VLOOKUP($E23,'RECAP AG'!$G$6:$CU$250,21,FALSE) -> 189 | L23: =VLOOKUP($E23,'RECAP AG'!$G$6:$CU$250,22,FALSE) -> 252 | M23: =VLOOKUP($E23,'RECAP AG'!$G$6:$CU$250,23,FALSE) -> 48.55 | N23: =VLOOKUP($E23,'RECAP AG'!$G$6:$CU$250,24,FALSE) -> 65% | O23: =VLOOKUP($E23,'RECAP AG'!$G$6:$CU$250,25,FALSE) -> 156 | P23: =VLOOKUP($E23,'RECAP AG'!$G$6:$CU$250,26,FALSE) -> 82% | Q23: =VLOOKUP($E23,'RECAP AG'!$G$6:$CU$250,27,FALSE) -> 82% | R23: =VLOOKUP($E23,'RECAP AG'!$G$6:$CU$250,28,FALSE) -> 189
A24: 50 | B24: AUBE HAUTE MARNE | C24: 14 | D24: TROYES | E24: 410521 | F24: SAINTE SAVINE | G24: =VLOOKUP($E24,'RECAP AG'!$G$6:$CU$250,3,FALSE) -> 4.1 | H24: =VLOOKUP($E24,'RECAP AG'!$G$6:$CU$250,18,FALSE) -> 22.5 | I24: =VLOOKUP($E24,'RECAP AG'!$G$6:$CU$250,19,FALSE) -> 5.45 | J24: =VLOOKUP($E24,'RECAP AG'!$G$6:$CU$250,20,FALSE) -> 95% | K24: =VLOOKUP($E24,'RECAP AG'!$G$6:$CU$250,21,FALSE) -> 197 | L24: =VLOOKUP($E24,'RECAP AG'!$G$6:$CU$250,22,FALSE) -> 210 | M24: =VLOOKUP($E24,'RECAP AG'!$G$6:$CU$250,23,FALSE) -> 50.85 | N24: =VLOOKUP($E24,'RECAP AG'!$G$6:$CU$250,24,FALSE) -> 63% | O24: =VLOOKUP($E24,'RECAP AG'!$G$6:$CU$250,25,FALSE) -> 148 | P24: =VLOOKUP($E24,'RECAP AG'!$G$6:$CU$250,26,FALSE) -> 82% | Q24: =VLOOKUP($E24,'RECAP AG'!$G$6:$CU$250,27,FALSE) -> 82% | R24: =VLOOKUP($E24,'RECAP AG'!$G$6:$CU$250,28,FALSE) -> 191
A25: 50 | B25: AUBE HAUTE MARNE | C25: 14 | D25: TROYES | E25: 510513 | F25: SAINT PARRES AUX TERTRES | G25: =VLOOKUP($E25,'RECAP AG'!$G$6:$CU$250,3,FALSE) -> 2.5 | H25: =VLOOKUP($E25,'RECAP AG'!$G$6:$CU$250,18,FALSE) -> 47.6 | I25: =VLOOKUP($E25,'RECAP AG'!$G$6:$CU$250,19,FALSE) -> 19.35 | J25: =VLOOKUP($E25,'RECAP AG'!$G$6:$CU$250,20,FALSE) -> 81% | K25: =VLOOKUP($E25,'RECAP AG'!$G$6:$CU$250,21,FALSE) -> 110 | L25: =VLOOKUP($E25,'RECAP AG'!$G$6:$CU$250,22,FALSE) -> 198 | M25: =VLOOKUP($E25,'RECAP AG'!$G$6:$CU$250,23,FALSE) -> 80.49 | N25: =VLOOKUP($E25,'RECAP AG'!$G$6:$CU$250,24,FALSE) -> 41% | O25: =VLOOKUP($E25,'RECAP AG'!$G$6:$CU$250,25,FALSE) -> 30 | P25: =VLOOKUP($E25,'RECAP AG'!$G$6:$CU$250,26,FALSE) -> 65% | Q25: =VLOOKUP($E25,'RECAP AG'!$G$6:$CU$250,27,FALSE) -> 65% | R25: =VLOOKUP($E25,'RECAP AG'!$G$6:$CU$250,28,FALSE) -> 69
A26: 50 | B26: AUBE HAUTE MARNE | C26: 14 | D26: TROYES | E26: 410510 | F26: TROYES GAMBETTA | G26: =VLOOKUP($E26,'RECAP AG'!$G$6:$CU$250,3,FALSE) -> 8.8 | H26: =VLOOKUP($E26,'RECAP AG'!$G$6:$CU$250,18,FALSE) -> 124.1 | I26: =VLOOKUP($E26,'RECAP AG'!$G$6:$CU$250,19,FALSE) -> 14.13 | J26: =VLOOKUP($E26,'RECAP AG'!$G$6:$CU$250,20,FALSE) -> 86% | K26: =VLOOKUP($E26,'RECAP AG'!$G$6:$CU$250,21,FALSE) -> 150 | L26: =VLOOKUP($E26,'RECAP AG'!$G$6:$CU$250,22,FALSE) -> 442 | M26: =VLOOKUP($E26,'RECAP AG'!$G$6:$CU$250,23,FALSE) -> 50.34 | N26: =VLOOKUP($E26,'RECAP AG'!$G$6:$CU$250,24,FALSE) -> 63% | O26: =VLOOKUP($E26,'RECAP AG'!$G$6:$CU$250,25,FALSE) -> 151 | P26: =VLOOKUP($E26,'RECAP AG'!$G$6:$CU$250,26,FALSE) -> 77% | Q26: =VLOOKUP($E26,'RECAP AG'!$G$6:$CU$250,27,FALSE) -> 77% | R26: =VLOOKUP($E26,'RECAP AG'!$G$6:$CU$250,28,FALSE) -> 149
A27: 50 | B27: AUBE HAUTE MARNE | C27: 14 | D27: TROYES | E27: 410512 | F27: TROYES ZOLA | G27: =VLOOKUP($E27,'RECAP AG'!$G$6:$CU$250,3,FALSE) -> 5.5 | H27: =VLOOKUP($E27,'RECAP AG'!$G$6:$CU$250,18,FALSE) -> -17.4 | I27: =VLOOKUP($E27,'RECAP AG'!$G$6:$CU$250,19,FALSE) -> -3.18 | J27: =VLOOKUP($E27,'RECAP AG'!$G$6:$CU$250,20,FALSE) -> 103% | K27: =VLOOKUP($E27,'RECAP AG'!$G$6:$CU$250,21,FALSE) -> 229 | L27: =VLOOKUP($E27,'RECAP AG'!$G$6:$CU$250,22,FALSE) -> 257 | M27: =VLOOKUP($E27,'RECAP AG'!$G$6:$CU$250,23,FALSE) -> 46.90 | N27: =VLOOKUP($E27,'RECAP AG'!$G$6:$CU$250,24,FALSE) -> 66% | O27: =VLOOKUP($E27,'RECAP AG'!$G$6:$CU$250,25,FALSE) -> 167 | P27: =VLOOKUP($E27,'RECAP AG'!$G$6:$CU$250,26,FALSE) -> 88% | Q27: =VLOOKUP($E27,'RECAP AG'!$G$6:$CU$250,27,FALSE) -> 88% | R27: =VLOOKUP($E27,'RECAP AG'!$G$6:$CU$250,28,FALSE) -> 224
A28: 262 | B28: BAS RHIN | C28: 5060 | D28: HAGUENAU | E28: 4057 | F28: BISCHWILLER | G28: =VLOOKUP($E28,'RECAP AG'!$G$6:$CU$250,3,FALSE) -> 7.1 | H28: =VLOOKUP($E28,'RECAP AG'!$G$6:$CU$250,18,FALSE) -> 247.4 | I28: =VLOOKUP($E28,'RECAP AG'!$G$6:$CU$250,19,FALSE) -> 34.94 | J28: =VLOOKUP($E28,'RECAP AG'!$G$6:$CU$250,20,FALSE) -> 65% | K28: =VLOOKUP($E28,'RECAP AG'!$G$6:$CU$250,21,FALSE) -> 37 | L28: =VLOOKUP($E28,'RECAP AG'!$G$6:$CU$250,22,FALSE) -> 315 | M28: =VLOOKUP($E28,'RECAP AG'!$G$6:$CU$250,23,FALSE) -> 44.49 | N28: =VLOOKUP($E28,'RECAP AG'!$G$6:$CU$250,24,FALSE) -> 68% | O28: =VLOOKUP($E28,'RECAP AG'!$G$6:$CU$250,25,FALSE) -> 183 | P28: =VLOOKUP($E28,'RECAP AG'!$G$6:$CU$250,26,FALSE) -> 66% | Q28: =VLOOKUP($E28,'RECAP AG'!$G$6:$CU$250,27,FALSE) -> 66% | R28: =VLOOKUP($E28,'RECAP AG'!$G$6:$CU$250,28,FALSE) -> 74
A29: 262 | B29: BAS RHIN | C29: 5060 | D29: HAGUENAU | E29: 4082 | F29: BOUXWILLER | G29: =VLOOKUP($E29,'RECAP AG'!$G$6:$CU$250,3,FALSE) -> 2.3 | H29: =VLOOKUP($E29,'RECAP AG'!$G$6:$CU$250,18,FALSE) -> 12.9 | I29: =VLOOKUP($E29,'RECAP AG'!$G$6:$CU$250,19,FALSE) -> 5.58 | J29: =VLOOKUP($E29,'RECAP AG'!$G$6:$CU$250,20,FALSE) -> 94% | K29: =VLOOKUP($E29,'RECAP AG'!$G$6:$CU$250,21,FALSE) -> 196 | L29: =VLOOKUP($E29,'RECAP AG'!$G$6:$CU$250,22,FALSE) -> 100 | M29: =VLOOKUP($E29,'RECAP AG'!$G$6:$CU$250,23,FALSE) -> 43.29 | N29: =VLOOKUP($E29,'RECAP AG'!$G$6:$CU$250,24,FALSE) -> 68% | O29: =VLOOKUP($E29,'RECAP AG'!$G$6:$CU$250,25,FALSE) -> 194 | P29: =VLOOKUP($E29,'RECAP AG'!$G$6:$CU$250,26,FALSE) -> 84% | Q29: =VLOOKUP($E29,'RECAP AG'!$G$6:$CU$250,27,FALSE) -> 84% | R29: =VLOOKUP($E29,'RECAP AG'!$G$6:$CU$250,28,FALSE) -> 203
A30: 262 | B30: BAS RHIN | C30: 5060 | D30: HAGUENAU | E30: 4030 | F30: BRUMATH | G30: =VLOOKUP($E30,'RECAP AG'!$G$6:$CU$250,3,FALSE) -> 3.9 | H30: =VLOOKUP($E30,'RECAP AG'!$G$6:$CU$250,18,FALSE) -> 107.3 | I30: =VLOOKUP($E30,'RECAP AG'!$G$6:$CU$250,19,FALSE) -> 27.58 | J30: =VLOOKUP($E30,'RECAP AG'!$G$6:$CU$250,20,FALSE) -> 73% | K30: =VLOOKUP($E30,'RECAP AG'!$G$6:$CU$250,21,FALSE) -> 65 | L30: =VLOOKUP($E30,'RECAP AG'!$G$6:$CU$250,22,FALSE) -> 171 | M30: =VLOOKUP($E30,'RECAP AG'!$G$6:$CU$250,23,FALSE) -> 43.96 | N30: =VLOOKUP($E30,'RECAP AG'!$G$6:$CU$250,24,FALSE) -> 68% | O30: =VLOOKUP($E30,'RECAP AG'!$G$6:$CU$250,25,FALSE) -> 190 | P30: =VLOOKUP($E30,'RECAP AG'!$G$6:$CU$250,26,FALSE) -> 71% | Q30: =VLOOKUP($E30,'RECAP AG'!$G$6:$CU$250,27,FALSE) -> 71% | R30: =VLOOKUP($E30,'RECAP AG'!$G$6:$CU$250,28,FALSE) -> 98
A31: 262 | B31: BAS RHIN | C31: 5060 | D31: HAGUENAU | E31: 4060 | F31: HAGUENAU HOUBLON | G31: =VLOOKUP($E31,'RECAP AG'!$G$6:$CU$250,3,FALSE) -> 8.7 | H31: =VLOOKUP($E31,'RECAP AG'!$G$6:$CU$250,18,FALSE) -> 102.6 | I31: =VLOOKUP($E31,'RECAP AG'!$G$6:$CU$250,19,FALSE) -> 11.75 | J31: =VLOOKUP($E31,'RECAP AG'!$G$6:$CU$250,20,FALSE) -> 88% | K31: =VLOOKUP($E31,'RECAP AG'!$G$6:$CU$250,21,FALSE) -> 164 | L31: =VLOOKUP($E31,'RECAP AG'!$G$6:$CU$250,22,FALSE) -> 371 | M31: =VLOOKUP($E31,'RECAP AG'!$G$6:$CU$250,23,FALSE) -> 42.50 | N31: =VLOOKUP($E31,'RECAP AG'!$G$6:$CU$250,24,FALSE) -> 69% | O31: =VLOOKUP($E31,'RECAP AG'!$G$6:$CU$250,25,FALSE) -> 197 | P31: =VLOOKUP($E31,'RECAP AG'!$G$6:$CU$250,26,FALSE) -> 81% | Q31: =VLOOKUP($E31,'RECAP AG'!$G$6:$CU$250,27,FALSE) -> 81% | R31: =VLOOKUP($E31,'RECAP AG'!$G$6:$CU$250,28,FALSE) -> 183
A32: 262 | B32: BAS RHIN | C32: 5060 | D32: HAGUENAU | E32: 4092 | F32: HOCHFELDEN | G32: =VLOOKUP($E32,'RECAP AG'!$G$6:$CU$250,3,FALSE) -> 1.9 | H32: =VLOOKUP($E32,'RECAP AG'!$G$6:$CU$250,18,FALSE) -> 30.0 | I32: =VLOOKUP($E32,'RECAP AG'!$G$6:$CU$250,19,FALSE) -> 16.04 | J32: =VLOOKUP($E32,'RECAP AG'!$G$6:$CU$250,20,FALSE) -> 84% | K32: =VLOOKUP($E32,'RECAP AG'!$G$6:$CU$250,21,FALSE) -> 134 | L32: =VLOOKUP($E32,'RECAP AG'!$G$6:$CU$250,22,FALSE) -> 127 | M32: =VLOOKUP($E32,'RECAP AG'!$G$6:$CU$250,23,FALSE) -> 67.91 | N32: =VLOOKUP($E32,'RECAP AG'!$G$6:$CU$250,24,FALSE) -> 50% | O32: =VLOOKUP($E32,'RECAP AG'!$G$6:$CU$250,25,FALSE) -> 59 | P32: =VLOOKUP($E32,'RECAP AG'!$G$6:$CU$250,26,FALSE) -> 71% | Q32: =VLOOKUP($E32,'RECAP AG'!$G$6:$CU$250,27,FALSE) -> 71% | R32: =VLOOKUP($E32,'RECAP AG'!$G$6:$CU$250,28,FALSE) -> 97
A33: 262 | B33: BAS RHIN | C33: 5060 | D33: HAGUENAU | E33: 4041 | F33: HOERDT | G33: =VLOOKUP($E33,'RECAP AG'!$G$6:$CU$250,3,FALSE) -> 1.7 | H33: =VLOOKUP($E33,'RECAP AG'!$G$6:$CU$250,18,FALSE) -> 24.9 | I33: =VLOOKUP($E33,'RECAP AG'!$G$6:$CU$250,19,FALSE) -> 14.91 | J33: =VLOOKUP($E33,'RECAP AG'!$G$6:$CU$250,20,FALSE) -> 85% | K33: =VLOOKUP($E33,'RECAP AG'!$G$6:$CU$250,21,FALSE) -> 143 | L33: =VLOOKUP($E33,'RECAP AG'!$G$6:$CU$250,22,FALSE) -> 77 | M33: =VLOOKUP($E33,'RECAP AG'!$G$6:$CU$250,23,FALSE) -> 46.11 | N33: =VLOOKUP($E33,'RECAP AG'!$G$6:$CU$250,24,FALSE) -> 66% | O33: =VLOOKUP($E33,'RECAP AG'!$G$6:$CU$250,25,FALSE) -> 169 | P33: =VLOOKUP($E33,'RECAP AG'!$G$6:$CU$250,26,FALSE) -> 78% | Q33: =VLOOKUP($E33,'RECAP AG'!$G$6:$CU$250,27,FALSE) -> 78% | R33: =VLOOKUP($E33,'RECAP AG'!$G$6:$CU$250,28,FALSE) -> 156
A34: 262 | B34: BAS RHIN | C34: 5060 | D34: HAGUENAU | E34: 4085 | F34: INGWILLER | G34: =VLOOKUP($E34,'RECAP AG'!$G$6:$CU$250,3,FALSE) -> 3.5 | H34: =VLOOKUP($E34,'RECAP AG'!$G$6:$CU$250,18,FALSE) -> 44.3 | I34: =VLOOKUP($E34,'RECAP AG'!$G$6:$CU$250,19,FALSE) -> 12.66 | J34: =VLOOKUP($E34,'RECAP AG'!$G$6:$CU$250,20,FALSE) -> 87% | K34: =VLOOKUP($E34,'RECAP AG'!$G$6:$CU$250,21,FALSE) -> 158 | L34: =VLOOKUP($E34,'RECAP AG'!$G$6:$CU$250,22,FALSE) -> 182 | M34: =VLOOKUP($E34,'RECAP AG'!$G$6:$CU$250,23,FALSE) -> 52.00 | N34: =VLOOKUP($E34,'RECAP AG'!$G$6:$CU$250,24,FALSE) -> 62% | O34: =VLOOKUP($E34,'RECAP AG'!$G$6:$CU$250,25,FALSE) -> 138 | P34: =VLOOKUP($E34,'RECAP AG'!$G$6:$CU$250,26,FALSE) -> 77% | Q34: =VLOOKUP($E34,'RECAP AG'!$G$6:$CU$250,27,FALSE) -> 77% | R34: =VLOOKUP($E34,'RECAP AG'!$G$6:$CU$250,28,FALSE) -> 152
A35: 262 | B35: BAS RHIN | C35: 5060 | D35: HAGUENAU | E35: 4066 | F35: NIEDERBRONN LES BAINS | G35: =VLOOKUP($E35,'RECAP AG'!$G$6:$CU$250,3,FALSE) -> 5.7 | H35: =VLOOKUP($E35,'RECAP AG'!$G$6:$CU$250,18,FALSE) -> -9.7 | I35: =VLOOKUP($E35,'RECAP AG'!$G$6:$CU$250,19,FALSE) -> -1.71 | J35: =VLOOKUP($E35,'RECAP AG'!$G$6:$CU$250,20,FALSE) -> 102% | K35: =VLOOKUP($E35,'RECAP AG'!$G$6:$CU$250,21,FALSE) -> 227 | L35: =VLOOKUP($E35,'RECAP AG'!$G$6:$CU$250,22,FALSE) -> 246 | M35: =VLOOKUP($E35,'RECAP AG'!$G$6:$CU$250,23,FALSE) -> 43.39 | N35: =VLOOKUP($E35,'RECAP AG'!$G$6:$CU$250,24,FALSE) -> 68% | O35: =VLOOKUP($E35,'RECAP AG'!$G$6:$CU$250,25,FALSE) -> 192 | P35: =VLOOKUP($E35,'RECAP AG'!$G$6:$CU$250,26,FALSE) -> 88% | Q35: =VLOOKUP($E35,'RECAP AG'!$G$6:$CU$250,27,FALSE) -> 88% | R35: =VLOOKUP($E35,'RECAP AG'!$G$6:$CU$250,28,FALSE) -> 226
A36: 262 | B36: BAS RHIN | C36: 5060 | D36: HAGUENAU | E36: 4067 | F36: PFAFFENHOFFEN | G36: =VLOOKUP($E36,'RECAP AG'!$G$6:$CU$250,3,FALSE) -> 1.9 | H36: =VLOOKUP($E36,'RECAP AG'!$G$6:$CU$250,18,FALSE) -> 43.2 | I36: =VLOOKUP($E36,'RECAP AG'!$G$6:$CU$250,19,FALSE) -> 22.98 | J36: =VLOOKUP($E36,'RECAP AG'!$G$6:$CU$250,20,FALSE) -> 77% | K36: =VLOOKUP($E36,'RECAP AG'!$G$6:$CU$250,21,FALSE) -> 87 | L36: =VLOOKUP($E36,'RECAP AG'!$G$6:$CU$250,22,FALSE) -> 90 | M36: =VLOOKUP($E36,'RECAP AG'!$G$6:$CU$250,23,FALSE) -> 47.87 | N36: =VLOOKUP($E36,'RECAP AG'!$G$6:$CU$250,24,FALSE) -> 65% | O36: =VLOOKUP($E36,'RECAP AG'!$G$6:$CU$250,25,FALSE) -> 160 | P36: =VLOOKUP($E36,'RECAP AG'!$G$6:$CU$250,26,FALSE) -> 72% | Q36: =VLOOKUP($E36,'RECAP AG'!$G$6:$CU$250,27,FALSE) -> 72% | R36: =VLOOKUP($E36,'RECAP AG'!$G$6:$CU$250,28,FALSE) -> 117
A37: 262 | B37: BAS RHIN | C37: 5060 | D37: HAGUENAU | E37: 4095 | F37: SARRE UNION | G37: =VLOOKUP($E37,'RECAP AG'!$G$6:$CU$250,3,FALSE) -> 2.6 | H37: =VLOOKUP($E37,'RECAP AG'!$G$6:$CU$250,18,FALSE) -> 28.3 | I37: =VLOOKUP($E37,'RECAP AG'!$G$6:$CU$250,19,FALSE) -> 10.72 | J37: =VLOOKUP($E37,'RECAP AG'!$G$6:$CU$250,20,FALSE) -> 89% | K37: =VLOOKUP($E37,'RECAP AG'!$G$6:$CU$250,21,FALSE) -> 171 | L37: =VLOOKUP($E37,'RECAP AG'!$G$6:$CU$250,22,FALSE) -> 101 | M37: =VLOOKUP($E37,'RECAP AG'!$G$6:$CU$250,23,FALSE) -> 38.26 | N37: =VLOOKUP($E37,'RECAP AG'!$G$6:$CU$250,24,FALSE) -> 72% | O37: =VLOOKUP($E37,'RECAP AG'!$G$6:$CU$250,25,FALSE) -> 216 | P37: =VLOOKUP($E37,'RECAP AG'!$G$6:$CU$250,26,FALSE) -> 82% | Q37: =VLOOKUP($E37,'RECAP AG'!$G$6:$CU$250,27,FALSE) -> 82% | R37: =VLOOKUP($E37,'RECAP AG'!$G$6:$CU$250,28,FALSE) -> 194
A38: 262 | B38: BAS RHIN | C38: 5060 | D38: HAGUENAU | E38: 4087 | F38: SAVERNE | G38: =VLOOKUP($E38,'RECAP AG'!$G$6:$CU$250,3,FALSE) -> 6.1 | H38: =VLOOKUP($E38,'RECAP AG'!$G$6:$CU$250,18,FALSE) -> 143.3 | I38: =VLOOKUP($E38,'RECAP AG'!$G$6:$CU$250,19,FALSE) -> 23.69 | J38: =VLOOKUP($E38,'RECAP AG'!$G$6:$CU$250,20,FALSE) -> 76% | K38: =VLOOKUP($E38,'RECAP AG'!$G$6:$CU$250,21,FALSE) -> 84 | L38: =VLOOKUP($E38,'RECAP AG'!$G$6:$CU$250,22,FALSE) -> 254 | M38: =VLOOKUP($E38,'RECAP AG'!$G$6:$CU$250,23,FALSE) -> 41.98 | N38: =VLOOKUP($E38,'RECAP AG'!$G$6:$CU$250,24,FALSE) -> 69% | O38: =VLOOKUP($E38,'RECAP AG'!$G$6:$CU$250,25,FALSE) -> 203 | P38: =VLOOKUP($E38,'RECAP AG'!$G$6:$CU$250,26,FALSE) -> 74% | Q38: =VLOOKUP($E38,'RECAP AG'!$G$6:$CU$250,27,FALSE) -> 74% | R38: =VLOOKUP($E38,'RECAP AG'!$G$6:$CU$250,28,FALSE) -> 121
A39: 262 | B39: BAS RHIN | C39: 5060 | D39: HAGUENAU | E39: 4079 | F39: SOULTZ SOUS FORETS | G39: =VLOOKUP($E39,'RECAP AG'!$G$6:$CU$250,3,FALSE) -> 1.9 | H39: =VLOOKUP($E39,'RECAP AG'!$G$6:$CU$250,18,FALSE) -> 62.2 | I39: =VLOOKUP($E39,'RECAP AG'!$G$6:$CU$250,19,FALSE) -> 33.62 | J39: =VLOOKUP($E39,'RECAP AG'!$G$6:$CU$250,20,FALSE) -> 67% | K39: =VLOOKUP($E39,'RECAP AG'!$G$6:$CU$250,21,FALSE) -> 43 | L39: =VLOOKUP($E39,'RECAP AG'!$G$6:$CU$250,22,FALSE) -> 106 | M39: =VLOOKUP($E39,'RECAP AG'!$G$6:$CU$250,23,FALSE) -> 57.30 | N39: =VLOOKUP($E39,'RECAP AG'!$G$6:$CU$250,24,FALSE) -> 58% | O39: =VLOOKUP($E39,'RECAP AG'!$G$6:$CU$250,25,FALSE) -> 111 | P39: =VLOOKUP($E39,'RECAP AG'!$G$6:$CU$250,26,FALSE) -> 63% | Q39: =VLOOKUP($E39,'RECAP AG'!$G$6:$CU$250,27,FALSE) -> 63% | R39: =VLOOKUP($E39,'RECAP AG'!$G$6:$CU$250,28,FALSE) -> 55
A40: 262 | B40: BAS RHIN | C40: 5060 | D40: HAGUENAU | E40: 4031 | F40: TRUCHTERSHEIM | G40: =VLOOKUP($E40,'RECAP AG'!$G$6:$CU$250,3,FALSE) -> 2.3 | H40: =VLOOKUP($E40,'RECAP AG'!$G$6:$CU$250,18,FALSE) -> 98.0 | I40: =VLOOKUP($E40,'RECAP AG'!$G$6:$CU$250,19,FALSE) -> 42.79 | J40: =VLOOKUP($E40,'RECAP AG'!$G$6:$CU$250,20,FALSE) -> 57% | K40: =VLOOKUP($E40,'RECAP AG'!$G$6:$CU$250,21,FALSE) -> 16 | L40: =VLOOKUP($E40,'RECAP AG'!$G$6:$CU$250,22,FALSE) -> 84 | M40: =VLOOKUP($E40,'RECAP AG'!$G$6:$CU$250,23,FALSE) -> 36.68 | N40: =VLOOKUP($E40,'RECAP AG'!$G$6:$CU$250,24,FALSE) -> 73% | O40: =VLOOKUP($E40,'RECAP AG'!$G$6:$CU$250,25,FALSE) -> 224 | P40: =VLOOKUP($E40,'RECAP AG'!$G$6:$CU$250,26,FALSE) -> 64% | Q40: =VLOOKUP($E40,'RECAP AG'!$G$6:$CU$250,27,FALSE) -> 64% | R40: =VLOOKUP($E40,'RECAP AG'!$G$6:$CU$250,28,FALSE) -> 58
A41: 262 | B41: BAS RHIN | C41: 5060 | D41: HAGUENAU | E41: 4071 | F41: WISSEMBOURG | G41: =VLOOKUP($E41,'RECAP AG'!$G$6:$CU$250,3,FALSE) -> 7.0 | H41: =VLOOKUP($E41,'RECAP AG'!$G$6:$CU$250,18,FALSE) -> 111.7 | I41: =VLOOKUP($E41,'RECAP AG'!$G$6:$CU$250,19,FALSE) -> 16.05 | J41: =VLOOKUP($E41,'RECAP AG'!$G$6:$CU$250,20,FALSE) -> 84% | K41: =VLOOKUP($E41,'RECAP AG'!$G$6:$CU$250,21,FALSE) -> 133 | L41: =VLOOKUP($E41,'RECAP AG'!$G$6:$CU$250,22,FALSE) -> 364 | M41: =VLOOKUP($E41,'RECAP AG'!$G$6:$CU$250,23,FALSE) -> 52.30 | N41: =VLOOKUP($E41,'RECAP AG'!$G$6:$CU$250,24,FALSE) -> 62% | O41: =VLOOKUP($E41,'RECAP AG'!$G$6:$CU$250,25,FALSE) -> 135 | P41: =VLOOKUP($E41,'RECAP AG'!$G$6:$CU$250,26,FALSE) -> 75% | Q41: =VLOOKUP($E41,'RECAP AG'!$G$6:$CU$250,27,FALSE) -> 75% | R41: =VLOOKUP($E41,'RECAP AG'!$G$6:$CU$250,28,FALSE) -> 137
A42: 262 | B42: BAS RHIN | C42: 5101 | D42: SELESTAT | E42: 4113 | F42: BARR | G42: =VLOOKUP($E42,'RECAP AG'!$G$6:$CU$250,3,FALSE) -> 2.9 | H42: =VLOOKUP($E42,'RECAP AG'!$G$6:$CU$250,18,FALSE) -> 110.4 | I42: =VLOOKUP($E42,'RECAP AG'!$G$6:$CU$250,19,FALSE) -> 38.47 | J42: =VLOOKUP($E42,'RECAP AG'!$G$6:$CU$250,20,FALSE) -> 62% | K42: =VLOOKUP($E42,'RECAP AG'!$G$6:$CU$250,21,FALSE) -> 24 | L42: =VLOOKUP($E42,'RECAP AG'!$G$6:$CU$250,22,FALSE) -> 179 | M42: =VLOOKUP($E42,'RECAP AG'!$G$6:$CU$250,23,FALSE) -> 62.37 | N42: =VLOOKUP($E42,'RECAP AG'!$G$6:$CU$250,24,FALSE) -> 54% | O42: =VLOOKUP($E42,'RECAP AG'!$G$6:$CU$250,25,FALSE) -> 84 | P42: =VLOOKUP($E42,'RECAP AG'!$G$6:$CU$250,26,FALSE) -> 59% | Q42: =VLOOKUP($E42,'RECAP AG'!$G$6:$CU$250,27,FALSE) -> 59% | R42: =VLOOKUP($E42,'RECAP AG'!$G$6:$CU$250,28,FALSE) -> 33
A43: 262 | B43: BAS RHIN | C43: 5101 | D43: SELESTAT | E43: 4111 | F43: BENFELD | G43: =VLOOKUP($E43,'RECAP AG'!$G$6:$CU$250,3,FALSE) -> 3.0 | H43: =VLOOKUP($E43,'RECAP AG'!$G$6:$CU$250,18,FALSE) -> 5.8 | I43: =VLOOKUP($E43,'RECAP AG'!$G$6:$CU$250,19,FALSE) -> 1.93 | J43: =VLOOKUP($E43,'RECAP AG'!$G$6:$CU$250,20,FALSE) -> 98% | K43: =VLOOKUP($E43,'RECAP AG'!$G$6:$CU$250,21,FALSE) -> 213 | L43: =VLOOKUP($E43,'RECAP AG'!$G$6:$CU$250,22,FALSE) -> 107 | M43: =VLOOKUP($E43,'RECAP AG'!$G$6:$CU$250,23,FALSE) -> 35.67 | N43: =VLOOKUP($E43,'RECAP AG'!$G$6:$CU$250,24,FALSE) -> 74% | O43: =VLOOKUP($E43,'RECAP AG'!$G$6:$CU$250,25,FALSE) -> 230 | P43: =VLOOKUP($E43,'RECAP AG'!$G$6:$CU$250,26,FALSE) -> 88% | Q43: =VLOOKUP($E43,'RECAP AG'!$G$6:$CU$250,27,FALSE) -> 88% | R43: =VLOOKUP($E43,'RECAP AG'!$G$6:$CU$250,28,FALSE) -> 227
A44: 262 | B44: BAS RHIN | C44: 5101 | D44: SELESTAT | E44: 4104 | F44: ERSTEIN | G44: =VLOOKUP($E44,'RECAP AG'!$G$6:$CU$250,3,FALSE) -> 4.3 | H44: =VLOOKUP($E44,'RECAP AG'!$G$6:$CU$250,18,FALSE) -> 221.2 | I44: =VLOOKUP($E44,'RECAP AG'!$G$6:$CU$250,19,FALSE) -> 51.20 | J44: =VLOOKUP($E44,'RECAP AG'!$G$6:$CU$250,20,FALSE) -> 49% | K44: =VLOOKUP($E44,'RECAP AG'!$G$6:$CU$250,21,FALSE) -> 7 | L44: =VLOOKUP($E44,'RECAP AG'!$G$6:$CU$250,22,FALSE) -> 279 | M44: =VLOOKUP($E44,'RECAP AG'!$G$6:$CU$250,23,FALSE) -> 64.58 | N44: =VLOOKUP($E44,'RECAP AG'!$G$6:$CU$250,24,FALSE) -> 53% | O44: =VLOOKUP($E44,'RECAP AG'!$G$6:$CU$250,25,FALSE) -> 79 | P44: =VLOOKUP($E44,'RECAP AG'!$G$6:$CU$250,26,FALSE) -> 51% | Q44: =VLOOKUP($E44,'RECAP AG'!$G$6:$CU$250,27,FALSE) -> 51% | R44: =VLOOKUP($E44,'RECAP AG'!$G$6:$CU$250,28,FALSE) -> 17
A45: 262 | B45: BAS RHIN | C45: 5101 | D45: SELESTAT | E45: 4008 | F45: FEGERSHEIM | G45: =VLOOKUP($E45,'RECAP AG'!$G$6:$CU$250,3,FALSE) -> 2.4 | H45: =VLOOKUP($E45,'RECAP AG'!$G$6:$CU$250,18,FALSE) -> 68.4 | I45: =VLOOKUP($E45,'RECAP AG'!$G$6:$CU$250,19,FALSE) -> 28.74 | J45: =VLOOKUP($E45,'RECAP AG'!$G$6:$CU$250,20,FALSE) -> 71% | K45: =VLOOKUP($E45,'RECAP AG'!$G$6:$CU$250,21,FALSE) -> 60 | L45: =VLOOKUP($E45,'RECAP AG'!$G$6:$CU$250,22,FALSE) -> 87 | M45: =VLOOKUP($E45,'RECAP AG'!$G$6:$CU$250,23,FALSE) -> 36.55 | N45: =VLOOKUP($E45,'RECAP AG'!$G$6:$CU$250,24,FALSE) -> 73% | O45: =VLOOKUP($E45,'RECAP AG'!$G$6:$CU$250,25,FALSE) -> 225 | P45: =VLOOKUP($E45,'RECAP AG'!$G$6:$CU$250,26,FALSE) -> 72% | Q45: =VLOOKUP($E45,'RECAP AG'!$G$6:$CU$250,27,FALSE) -> 72% | R45: =VLOOKUP($E45,'RECAP AG'!$G$6:$CU$250,28,FALSE) -> 115
A46: 262 | B46: BAS RHIN | C46: 5101 | D46: SELESTAT | E46: 4007 | F46: ILLKIRCH CENTRE | G46: =VLOOKUP($E46,'RECAP AG'!$G$6:$CU$250,3,FALSE) -> 6.6 | H46: =VLOOKUP($E46,'RECAP AG'!$G$6:$CU$250,18,FALSE) -> 118.9 | I46: =VLOOKUP($E46,'RECAP AG'!$G$6:$CU$250,19,FALSE) -> 18.13 | J46: =VLOOKUP($E46,'RECAP AG'!$G$6:$CU$250,20,FALSE) -> 82% | K46: =VLOOKUP($E46,'RECAP AG'!$G$6:$CU$250,21,FALSE) -> 123 | L46: =VLOOKUP($E46,'RECAP AG'!$G$6:$CU$250,22,FALSE) -> 308 | M46: =VLOOKUP($E46,'RECAP AG'!$G$6:$CU$250,23,FALSE) -> 46.95 | N46: =VLOOKUP($E46,'RECAP AG'!$G$6:$CU$250,24,FALSE) -> 66% | O46: =VLOOKUP($E46,'RECAP AG'!$G$6:$CU$250,25,FALSE) -> 165 | P46: =VLOOKUP($E46,'RECAP AG'!$G$6:$CU$250,26,FALSE) -> 75% | Q46: =VLOOKUP($E46,'RECAP AG'!$G$6:$CU$250,27,FALSE) -> 75% | R46: =VLOOKUP($E46,'RECAP AG'!$G$6:$CU$250,28,FALSE) -> 139
A47: 262 | B47: BAS RHIN | C47: 5101 | D47: SELESTAT | E47: 4015 | F47: LINGOLSHEIM | G47: =VLOOKUP($E47,'RECAP AG'!$G$6:$CU$250,3,FALSE) -> 2.4 | H47: =VLOOKUP($E47,'RECAP AG'!$G$6:$CU$250,18,FALSE) -> -30.4 | I47: =VLOOKUP($E47,'RECAP AG'!$G$6:$CU$250,19,FALSE) -> -12.77 | J47: =VLOOKUP($E47,'RECAP AG'!$G$6:$CU$250,20,FALSE) -> 113% | K47: =VLOOKUP($E47,'RECAP AG'!$G$6:$CU$250,21,FALSE) -> 241 | L47: =VLOOKUP($E47,'RECAP AG'!$G$6:$CU$250,22,FALSE) -> 142 | M47: =VLOOKUP($E47,'RECAP AG'!$G$6:$CU$250,23,FALSE) -> 59.66 | N47: =VLOOKUP($E47,'RECAP AG'!$G$6:$CU$250,24,FALSE) -> 56% | O47: =VLOOKUP($E47,'RECAP AG'!$G$6:$CU$250,25,FALSE) -> 98 | P47: =VLOOKUP($E47,'RECAP AG'!$G$6:$CU$250,26,FALSE) -> 90% | Q47: =VLOOKUP($E47,'RECAP AG'!$G$6:$CU$250,27,FALSE) -> 90% | R47: =VLOOKUP($E47,'RECAP AG'!$G$6:$CU$250,28,FALSE) -> 237
A48: 262 | B48: BAS RHIN | C48: 5101 | D48: SELESTAT | E48: 4109 | F48: MARCKOLSHEIM | G48: =VLOOKUP($E48,'RECAP AG'!$G$6:$CU$250,3,FALSE) -> 2.5 | H48: =VLOOKUP($E48,'RECAP AG'!$G$6:$CU$250,18,FALSE) -> 47.4 | I48: =VLOOKUP($E48,'RECAP AG'!$G$6:$CU$250,19,FALSE) -> 18.66 | J48: =VLOOKUP($E48,'RECAP AG'!$G$6:$CU$250,20,FALSE) -> 81% | K48: =VLOOKUP($E48,'RECAP AG'!$G$6:$CU$250,21,FALSE) -> 120 | L48: =VLOOKUP($E48,'RECAP AG'!$G$6:$CU$250,22,FALSE) -> 113 | M48: =VLOOKUP($E48,'RECAP AG'!$G$6:$CU$250,23,FALSE) -> 44.49 | N48: =VLOOKUP($E48,'RECAP AG'!$G$6:$CU$250,24,FALSE) -> 68% | O48: =VLOOKUP($E48,'RECAP AG'!$G$6:$CU$250,25,FALSE) -> 184 | P48: =VLOOKUP($E48,'RECAP AG'!$G$6:$CU$250,26,FALSE) -> 76% | Q48: =VLOOKUP($E48,'RECAP AG'!$G$6:$CU$250,27,FALSE) -> 76% | R48: =VLOOKUP($E48,'RECAP AG'!$G$6:$CU$250,28,FALSE) -> 143
A49: 262 | B49: BAS RHIN | C49: 5101 | D49: SELESTAT | E49: 4120 | F49: WASSELONNE | G49: =VLOOKUP($E49,'RECAP AG'!$G$6:$CU$250,3,FALSE) -> 2.7 | H49: =VLOOKUP($E49,'RECAP AG'!$G$6:$CU$250,18,FALSE) -> -2.3 | I49: =VLOOKUP($E49,'RECAP AG'!$G$6:$CU$250,19,FALSE) -> -0.84 | J49: =VLOOKUP($E49,'RECAP AG'!$G$6:$CU$250,20,FALSE) -> 101% | K49: =VLOOKUP($E49,'RECAP AG'!$G$6:$CU$250,21,FALSE) -> 225 | L49: =VLOOKUP($E49,'RECAP AG'!$G$6:$CU$250,22,FALSE) -> 153 | M49: =VLOOKUP($E49,'RECAP AG'!$G$6:$CU$250,23,FALSE) -> 55.84 | N49: =VLOOKUP($E49,'RECAP AG'!$G$6:$CU$250,24,FALSE) -> 59% | O49: =VLOOKUP($E49,'RECAP AG'!$G$6:$CU$250,25,FALSE) -> 119 | P49: =VLOOKUP($E49,'RECAP AG'!$G$6:$CU$250,26,FALSE) -> 84% | Q49: =VLOOKUP($E49,'RECAP AG'!$G$6:$CU$250,27,FALSE) -> 84% | R49: =VLOOKUP($E49,'RECAP AG'!$G$6:$CU$250,28,FALSE) -> 205
